Workbook

Sheet Cover

Sheet Index
B9: Map Details | G9: Programme of Care, Programme Subcategory, Commissioning for Value Pathway, Map Number, Map Title, Pathway Setting, Domain, Polarity
B11: Performance | G11: CCG Value, Confidence Intervals, England Average, Similar 10 Average, 75th Percentile Average
B13: Benchmarking | G13: National Quintile Position, Best CCG in Similar 10, Position against Peers, Statistical Significance Vs England / Similar 10 / 75th Percentile
B15: Opportunities | G15: Value Opportunity Vs England / Similar 10 / 75th Percentile
B17: Further Resources | G17: Guidance Note, Resource Links, Instant Atlas Tool Link, PDF Atlas Link
B19: Guidance & Screencasts | G19: Full Guidance PDF Document and Screencast Walkthroughs

Sheet Tool
B4: Map Details | K4: Performance | R4: Benchmarking | Y4: Opportunity | AC4: Further Resources
B5: Programme of Care | C5: Programme Subcategory | D5: Commissioning for Value Pathway | E5: Map Number | F5: Map Title | G5: Pathway Setting | H5: Domain | I5: Polarity | K5: CCG Value | L5: Lower CI | M5: Upper CI | N5: England | O5: Similar 10 | P5: 75th Percentile | R5: National Quintile Position | S5: Best CCG in Similar 10 | T5: Position against Peers | U5: Statistical Significance Vs England | V5: Statistical Significance Vs Similar 10 | W5: Statistical Significance Vs 75th Percentile | Y5: Vs England | Z5: Vs Similar 10 | AA5: Vs 75th Percentile | AC5: Guidance Note | AD5: Resource Links | AE5: Instant Atlas Tool Link | AF5: PDF Atlas Link
B6: =Report!C7 -> Infectious Diseases | C6: =Report!D7 -> Other Infectious Diseases | D6: =Report!E7 -> No Pathway | E6: =Report!G7 -> 2 | F6: =Report!H7 -> Map 2: Percentage of all antibiotic prescription items in primary care that were for key antibiotics by CCG, 2013 | G6: =Report!F7 -> Primary Care Management | H6: =Report!I7 -> 1, 3 | I6: =Report!J7 -> Improvement Opportunity | K6: =Report!K7 -> 9.118974546 | L6: =Report!L7 -> No Data | M6: =Report!M7 -> No Data | N6: =Report!Q7 -> 11.20139532 | O6: =Report!R7 -> 10.5066004 | P6: =Report!S7 -> 8.726018092 | R6: =Report!N7 -> 2 | S6: =Report!P7 -> NHS Harrogate and Rural District | T6: =Report!O7 -> A | U6: =Report!T7 ->  | V6: =Report!U7 ->  | W6: =Report!V7 ->  | Y6: =Report!W7 ->  | Z6: =Report!X7 ->  | AA6: =Report!Y7 -> 0.3929564543 | AC6: =Report!AB7 -> This indicator is not part of the pathways covered by Commissioning for Value. For more information around spend by programme budgeting category, please download the Programme Budgeting Benchmarking Tool | AD6: http://www.england.nhs.uk/wp-content/uploads/2015/06/13-14-ccg-prog-bug-benchmarking-tool.xlsm http://pathways.nice.org.uk/pathways/self-limiting-respiratory-tract-infections---antibiotic-prescribing http://pathways.nice.org.uk/pathways/antibiotics-for-early-onset-neonatal-infection | AE6: Click here | AF6: Click here
B7: =Report!C8 -> Infectious Diseases | C7: =Report!D8 -> HIV and Aids | D7: =Report!E8 -> No Pathway | E7: =Report!G8 -> 5 | F7: =Report!H8 -> Map 5: Percentage of all people aged 15 years and over newly diagnosed with HIV who had a CD4 count test within one month of diagnosis by CCG, 2011-2013 | G7: =Report!F8 -> Secondary Care Treatment | H7: =Report!I8 -> 1, 2 | I7: =Report!J8 -> Good | K7: =Report!K8 -> 88.8889 | L7: =Report!L8 -> 56.4994 | M7: =Report!M8 -> 98.011 | N7: =Report!Q8 -> 89.27654831 | O7: =Report!R8 -> 89.55189091 | P7: =Report!S8 -> 93.75 | R7: =Report!N8 -> 3 | S7: =Report!P8 -> NHS South Worcestershire | T7: =Report!O8 -> A | U7: =Report!T8 -> A | V7: =Report!U8 -> A | W7: =Report!V8 -> A | Y7: =Report!W8 -> 0.3876483092 | Z7: =Report!X8 -> 0.6629909091 | AA7: =Report!Y8 -> 4.8611 | AC7: =Report!AB8 -> This indicator is not part of the pathways covered by Commissioning for Value. For more information around spend by programme budgeting category, please download the Programme Budgeting Benchmarking Tool | AD7: http://www.england.nhs.uk/wp-content/uploads/2015/06/13-14-ccg-prog-bug-benchmarking-tool.xlsm http://pathways.nice.org.uk/pathways/hiv-testing-and-prevention | AE7: Click here | AF7: Click here
B8: =Report!C9 -> Cancers and Tumours | C8: =Report!D9 -> Other Cancer and Tumours | D8: =Report!E9 -> Cancer & Tumours | E8: =Report!G9 -> 6 | F8: =Report!H9 -> Map 6: Rate of mortality from cancer in people aged under 75 years per 100,000 population by CCG, 2013 | G8: =Report!F9 -> Outcomes | H8: =Report!I9 -> 1 | I8: =Report!J9 -> Improvement Opportunity | K8: =Report!K9 -> 125.8 | L8: =Report!L9 -> 109 | M8: =Report!M9 -> 144.5 | N8: =Report!Q9 -> 123.3971564 | O8: =Report!R9 -> 119.3363636 | P8: =Report!S9 -> 112.3 | R8: =Report!N9 -> 3 | S8: =Report!P9 -> NHS Harrogate and Rural District | T8: =Report!O9 -> R | U8: =Report!T9 -> A | V8: =Report!U9 -> A | W8: =Report!V9 -> A | Y8: =Report!W9 -> 2.402843602 | Z8: =Report!X9 -> 6.463636364 | AA8: =Report!Y9 -> 13.5 | AC8: =Report!AB9 -> To help understand the potential drivers of high cancer mortality please visit the Commissioning for Value website and download a 2014 pack. | AD8: http://www.england.nhs.uk/resources/resources-for-ccgs/comm-for-value/ http://pathways.nice.org.uk/pathways/suspected-cancer-recognition-and-referral/ | AE8: Click here | AF8: Click here
B9: =Report!C10 -> Cancers and Tumours | C9: =Report!D10 -> Other Cancer and Tumours | D9: =Report!E10 -> Cancer & Tumours | E9: =Report!G10 -> 7 | F9: =Report!H10 -> Map 7: Percentage of people aged 15-99 years who survived one year after being diagnosed with any cancer by CCG, 2012 followed up to 2013 | G9: =Report!F10 -> Secondary Care Treatment | H9: =Report!I10 -> 1 | I9: =Report!J10 -> Good | K9: =Report!K10 -> 72.5 | L9: =Report!L10 -> No Data | M9: =Report!M10 -> No Data | N9: =Report!Q10 -> 68.83412322 | O9: =Report!R10 -> 69.21818182 | P9: =Report!S10 -> 69.8 | R9: =Report!N10 -> 5 | S9: =Report!P10 -> NHS Airedale, Wharfedale and Craven | T9: =Report!O10 -> G | U9: =Report!T10 ->  | V9: =Report!U10 ->  | W9: =Report!V10 ->  | Y9: =Report!W10 ->  | Z9: =Report!X10 ->  | AA9: =Report!Y10 ->  | AC9: =Report!AB10 -> To help understand the potential drivers of high cancer mortality please visit the Commissioning for Value website and download a 2014 pack. | AD9: http://www.england.nhs.uk/resources/resources-for-ccgs/comm-for-value/ http://pathways.nice.org.uk/pathways/suspected-cancer-recognition-and-referral/ | AE9: Click here | AF9: Click here
B10: =Report!C11 -> Cancers and Tumours | C10: =Report!D11 -> Other Cancer and Tumours | D10: =Report!E11 -> Cancer & Tumours | E10: =Report!G11 -> 8 | F10: =Report!H11 -> Map 8: Percentage of people aged 15-99 years who survived one year after being diagnosed with breast, lung or colorectal cancer by CCG, 2012 followed up to 2013 | G10: =Report!F11 -> Secondary Care Treatment | H10: =Report!I11 -> 1 | I10: =Report!J11 -> Good | K10: =Report!K11 -> 72.1 | L10: =Report!L11 -> No Data | M10: =Report!M11 -> No Data | N10: =Report!Q11 -> 70.13744076 | O10: =Report!R11 -> 70.14545455 | P10: =Report!S11 -> 71.55 | R10: =Report!N11 -> 5 | S10: =Report!P11 -> NHS Harrogate and Rural District & NHS Newark & Sherwood | T10: =Report!O11 -> G | U10: =Report!T11 ->  | V10: =Report!U11 ->  | W10: =Report!V11 ->  | Y10: =Report!W11 ->  | Z10: =Report!X11 ->  | AA10: =Report!Y11 ->  | AC10: =Report!AB11 -> To help understand the potential drivers of high cancer mortality please visit the Commissioning for Value website and download a 2014 pack. | AD10: http://www.england.nhs.uk/resources/resources-for-ccgs/comm-for-value/ http://pathways.nice.org.uk/pathways/suspected-cancer-recognition-and-referral/ | AE10: Click here | AF10: Click here
B11: =Report!C12 -> Cancers and Tumours | C11: =Report!D12 -> Cancer, Lower GI | D11: =Report!E12 -> Cancer & Tumours - Lower GI Cancer | E11: =Report!G12 -> 9A | F11: =Report!H12 -> Map 9A: Rate of colonoscopy procedures and flexisigmoidoscopy procedures per 10,000 population by CCG, 2012/13 | G11: =Report!F12 -> Prevention and Early Diagnosis | H11: =Report!I12 -> 1 | I11: =Report!J12 -> Requires Local Interpretation | K11: =Report!K12 -> 150.0014975 | L11: =Report!L12 -> No Data | M11: =Report!M12 -> No Data | N11: =Report!Q12 -> 148.7704528 | O11: =Report!R12 -> 154.6942829 | P11: =Report!S12 ->  | R11: =Report!N12 -> 3 | S11: =Report!P12 ->  | T11: =Report!O12 ->  | U11: =Report!T12 -> Requires Local Interpretation | V11: =Report!U12 -> Requires Local Interpretation | W11: =Report!V12 -> Requires Local Interpretation | Y11: =Report!W12 ->  | Z11: =Report!X12 ->  | AA11: =Report!Y12 ->  | AC11: =Report!AB12 -> This indicator is not part of the pathways covered by Commissioning for Value. For more information around spend by programme budgeting category, please download the Programme Budgeting Benchmarking Tool. Spend for this procedure within the Programme Budgeting Benchmarking Tool may be included within 13X. | AD11: http://www.england.nhs.uk/wp-content/uploads/2015/06/13-14-ccg-prog-bug-benchmarking-tool.xlsm | AE11: Click here | AF11: Click here
B12: =Report!C13 -> Cancers and Tumours | C12: =Report!D13 -> Cancer, Lower GI | D12: =Report!E13 -> Cancer & Tumours - Lower GI Cancer | E12: =Report!G13 -> 9B | F12: =Report!H13 -> Map 9B: Ratio of colonoscopy procedures to flexisigmoidoscopy procedures by CCG, 2012/13 | G12: =Report!F13 -> Secondary Care Treatment | H12: =Report!I13 -> 1 | I12: =Report!J13 -> Requires Local Interpretation | K12: =Report!K13 -> 1.73318872 | L12: =Report!L13 -> No Data | M12: =Report!M13 -> No Data | N12: =Report!Q13 -> 1.9583242 | O12: =Report!R13 -> 2.049452558 | P12: =Report!S13 ->  | R12: =Report!N13 -> 3 | S12: =Report!P13 ->  | T12: =Report!O13 ->  | U12: =Report!T13 -> Requires Local Interpretation | V12: =Report!U13 -> Requires Local Interpretation | W12: =Report!V13 -> Requires Local Interpretation | Y12: =Report!W13 ->  | Z12: =Report!X13 ->  | AA12: =Report!Y13 ->  | AC12: =Report!AB13 -> This indicator is not part of the pathways covered by Commissioning for Value. For more information around spend by programme budgeting category, please download the Programme Budgeting Benchmarking Tool. Spend for this procedure within the Programme Budgeting Benchmarking Tool may be included within 13X. | AD12: http://www.england.nhs.uk/wp-content/uploads/2015/06/13-14-ccg-prog-bug-benchmarking-tool.xlsm | AE12: Click here | AF12: Click here
B13: =Report!C14 -> Cancers and Tumours | C13: =Report!D14 -> Cancer, Lower GI | D13: =Report!E14 -> Cancer & Tumours - Lower GI Cancer | E13: =Report!G14 -> 10 | F13: =Report!H14 -> Map 10: Rate of computed tomography (CT) colonoscopy procedures per 10,000 population by CCG, 2013/14 | G13: =Report!F14 -> Prevention and Early Diagnosis | H13: =Report!I14 -> 1 | I13: =Report!J14 -> Requires Local Interpretation | K13: =Report!K14 -> 30.73762504 | L13: =Report!L14 -> No Data | M13: =Report!M14 -> No Data | N13: =Report!Q14 -> 10.13376179 | O13: =Report!R14 -> 11.43138444 | P13: =Report!S14 ->  | R13: =Report!N14 -> 5 | S13: =Report!P14 ->  | T13: =Report!O14 ->  | U13: =Report!T14 -> Requires Local Interpretation | V13: =Report!U14 -> Requires Local Interpretation | W13: =Report!V14 -> Requires Local Interpretation | Y13: =Report!W14 ->  | Z13: =Report!X14 ->  | AA13: =Report!Y14 ->  | AC13: =Report!AB14 -> This indicator is not part of the pathways covered by Commissioning for Value. For more information around spend by programme budgeting category, please download the Programme Budgeting Benchmarking Tool. Spend for this procedure within the Programme Budgeting Benchmarking Tool may be included within 13X. | AD13: http://www.england.nhs.uk/wp-content/uploads/2015/06/13-14-ccg-prog-bug-benchmarking-tool.xlsm | AE13: Click here | AF13: Click here
B14: =Report!C15 -> Cancers and Tumours | C14: =Report!D15 -> Cancer, Lower GI | D14: =Report!E15 -> Cancer & Tumours - Lower GI Cancer | E14: =Report!G15 -> 11 | F14: =Report!H15 -> Map 11: Rate of barium enema procedures per 100,000 population by CCG, 2013/14 | G14: =Report!F15 -> Prevention and Early Diagnosis | H14: =Report!I15 -> 1 | I14: =Report!J15 -> Improvement Opportunity | K14: =Report!K15 -> 5.743128984 | L14: =Report!L15 -> 2.620666958 | M14: =Report!M15 -> 10.90297523 | N14: =Report!Q15 -> 77.26667146 | O14: =Report!R15 -> 104.3370079 | P14: =Report!S15 -> 10.3992291 | R14: =Report!N15 -> 1 | S14: =Report!P15 -> NHS Airedale, Wharfedale and Craven | T14: =Report!O15 -> G | U14: =Report!T15 -> G | V14: =Report!U15 -> G | W14: =Report!V15 -> A | Y14: =Report!W15 ->  | Z14: =Report!X15 ->  | AA14: =Report!Y15 ->  | AC14: =Report!AB15 -> This indicator is not part of the pathways covered by Commissioning for Value. For more information around spend by programme budgeting category, please download the Programme Budgeting Benchmarking Tool. Spend for this procedure within the Programme Budgeting Benchmarking Tool may be included within 13X. | AD14: http://www.england.nhs.uk/wp-content/uploads/2015/06/13-14-ccg-prog-bug-benchmarking-tool.xlsm | AE14: Click here | AF14: Click here
B15: =Report!C16 -> Cancers and Tumours | C15: =Report!D16 -> Other Cancer and Tumours | D15: =Report!E16 -> Cancer & Tumours | E15: =Report!G16 -> 12 | F15: =Report!H16 -> Map 12: Percentage of all cancer diagnoses that were made at stage 1 or stage 2 by CCG, 2013 | G15: =Report!F16 -> Prevention and Early Diagnosis | H15: =Report!I16 -> 1 | I15: =Report!J16 -> Good | K15: =Report!K16 -> 49.43181818 | L15: =Report!L16 -> 45.75166075 | M15: =Report!M16 -> 53.11814289 | N15: =Report!Q16 -> 45.59862967 | O15: =Report!R16 -> 43.48018158 | P15: =Report!S16 -> 53.15153989 | R15: =Report!N16 -> 4 | S15: =Report!P16 -> NHS West Essex | T15: =Report!O16 -> A | U15: =Report!T16 -> G | V15: =Report!U16 -> G | W15: =Report!V16 -> R | Y15: =Report!W16 ->  | Z15: =Report!X16 ->  | AA15: =Report!Y16 -> 3.719721709 | AC15: =Report!AB16 -> To help understand how early diagnosis for cancer affects expenditure and outcomes in the CCG please visit the Commissioning for Value website and download a 2014 pack. | AD15: http://www.england.nhs.uk/resources/resources-for-ccgs/comm-for-value/ http://pathways.nice.org.uk/pathways/suspected-cancer-recognition-and-referral/ | AE15: Click here | AF15: Click here
B16: =Report!C17 -> Cancers and Tumours | C16: =Report!D17 -> Cancer, Lower GI | D16: =Report!E17 -> Cancer & Tumours - Lower GI Cancer | E16: =Report!G17 -> 13 | F16: =Report!H17 -> Map 13: Percentage of new cases of colorectal cancer that were diagnosed at stage 1 or stage 2 by CCG, 2013 | G16: =Report!F17 -> Prevention and Early Diagnosis | H16: =Report!I17 -> 1 | I16: =Report!J17 -> Good | K16: =Report!K17 -> 41.34615385 | L16: =Report!L17 -> 32.35475821 | M16: =Report!M17 -> 50.95409477 | N16: =Report!Q17 -> 35.97003419 | O16: =Report!R17 -> 33.42261817 | P16: =Report!S17 -> 43.15014114 | R16: =Report!N17 -> 4 | S16: =Report!P17 -> NHS Great Yarmouth and Waveney | T16: =Report!O17 -> A | U16: =Report!T17 -> A | V16: =Report!U17 -> A | W16: =Report!V17 -> A | Y16: =Report!W17 ->  | Z16: =Report!X17 ->  | AA16: =Report!Y17 -> 1.803987297 | AC16: =Report!AB17 -> To help understand how early diagnosis for cancer affects expenditure and outcomes in the CCG please visit the Commissioning for Value website and download a 2014 pack. | AD16: http://www.england.nhs.uk/resources/resources-for-ccgs/comm-for-value/ http://pathways.nice.org.uk/pathways/colorectal-cancer http://pathways.nice.org.uk/pathways/colonoscopic-surveillance http://pathways.nice.org.uk/pathways/gastrointestinal-conditions | AE16: Click here | AF16: Click here
B17: =Report!C18 -> Neurological Problems | C17: =Report!D18 -> Other Neurological Problems | D17: =Report!E18 -> Neurology - Epilepsy (Tool Only) | E17: =Report!G18 -> 14 | F17: =Report!H18 -> Map 14: Rate of epilepsy emergency admissions to hospital in people aged 18 years and over per 100,000 population by CCG 2012/13 | G17: =Report!F18 -> Primary Care Management | H17: =Report!I18 -> 2 | I17: =Report!J18 -> Improvement Opportunity | K17: =Report!K18 -> 88.60542271 | L17: =Report!L18 -> 72.24840996 | M17: =Report!M18 -> 107.492274 | N17: =Report!Q18 -> 127.9932326 | O17: =Report!R18 -> 118.3532552 | P17: =Report!S18 -> 100.4036824 | R17: =Report!N18 -> 1 | S17: =Report!P18 -> NHS Harrogate and Rural District | T17: =Report!O18 -> G | U17: =Report!T18 -> G | V17: =Report!U18 -> G | W17: =Report!V18 -> A | Y17: =Report!W18 ->  | Z17: =Report!X18 ->  | AA17: =Report!Y18 ->  | AC17: =Report!AB18 -> To help understand how the management of epilepsy affects expenditure and outcomes in the CCG please visit the Commissioning for Value tool. | AD17: http://www.england.nhs.uk/resources/resources-for-ccgs/comm-for-value/ http://pathways.nice.org.uk/pathways/epilepsy | AE17: Click here | AF17: Click here
B18: =Report!C19 -> Neurological Problems | C18: =Report!D19 -> Other Neurological Problems | D18: =Report!E19 -> Neurology - Epilepsy (Tool Only) | E18: =Report!G19 -> 15 | F18: =Report!H19 -> Map 15: Percentage of people with epilepsy aged 18 years and over on GP epilepsy registers who were seizure-free for the preceding 12 months by CCG, 2013/14 | G18: =Report!F19 -> Primary Care Management | H18: =Report!I19 -> 2 | I18: =Report!J19 -> Good | K18: =Report!K19 -> 63.09178744 | L18: =Report!L19 -> 60.10856299 | M18: =Report!M19 -> 65.97818949 | N18: =Report!Q19 -> 61.63921678 | O18: =Report!R19 -> 64.25212174 | P18: =Report!S19 -> 66.38373121 | R18: =Report!N19 -> 3 | S18: =Report!P19 -> NHS South West Lincolnshire | T18: =Report!O19 -> A | U18: =Report!T19 -> A | V18: =Report!U19 -> A | W18: =Report!V19 -> R | Y18: =Report!W19 ->  | Z18: =Report!X19 -> 1.160334296 | AA18: =Report!Y19 -> 3.291943772 | AC18: =Report!AB19 -> To help understand how the management of epilepsy affects expenditure and outcomes in the CCG please visit the Commissioning for Value tool. | AD18: http://www.england.nhs.uk/resources/resources-for-ccgs/comm-for-value/ http://pathways.nice.org.uk/pathways/epilepsy | AE18: Click here | AF18: Click here
B19: =Report!C20 -> Problems of Vision | C19: =Report!D20 -> Problems of Vision | D19: =Report!E20 -> No Pathway | E19: =Report!G20 -> 18 | F19: =Report!H20 -> Map 18: Rate of admission to hospital for cataract surgery in people aged 65 years and over per 100,000 population by CCG, 2012/13 | G19: =Report!F20 -> Secondary Care Treatment | H19: =Report!I20 -> 2 | I19: =Report!J20 -> Requires Local Interpretation | K19: =Report!K20 -> 3762.295686 | L19: =Report!L20 -> 3552.727028 | M19: =Report!M20 -> 3980.917131 | N19: =Report!Q20 -> 3090.29867 | O19: =Report!R20 -> 3020.680023 | P19: =Report!S20 ->  | R19: =Report!N20 -> 5 | S19: =Report!P20 ->  | T19: =Report!O20 ->  | U19: =Report!T20 -> Requires Local Interpretation | V19: =Report!U20 -> Requires Local Interpretation | W19: =Report!V20 -> Requires Local Interpretation | Y19: =Report!W20 ->  | Z19: =Report!X20 ->  | AA19: =Report!Y20 ->  | AC19: =Report!AB20 -> This indicator is not part of the pathways covered by Commissioning for Value. For more information around spend by programme budgeting category, please download the Programme Budgeting Benchmarking Tool. Spend on this area may be included within 21X. | AD19: http://www.england.nhs.uk/wp-content/uploads/2015/06/13-14-ccg-prog-bug-benchmarking-tool.xlsm http://pathways.nice.org.uk/pathways/eye-conditions/eye-conditions-overview | AE19: Click here | AF19: Click here
B20: =Report!C21 -> Problems of the Respiratory System | C20: =Report!D21 -> Other Problems of the Respiratory System | D20: =Report!E21 -> Respiratory System Problems | E20: =Report!G21 -> 19 | F20: =Report!H21 -> Map 19: Rate of sleep studies undertaken per 1,000 weighted population by CCG, 2013/14 | G20: =Report!F21 -> Secondary Care Treatment | H20: =Report!I21 -> 2 | I20: =Report!J21 -> Requires Local Interpretation | K20: =Report!K21 -> 0.8376693207 | L20: =Report!L21 -> 0.7008584934 | M20: =Report!M21 -> 0.9933784725 | N20: =Report!Q21 -> 1.789046439 | O20: =Report!R21 -> 1.917621212 | P20: =Report!S21 ->  | R20: =Report!N21 -> 2 | S20: =Report!P21 ->  | T20: =Report!O21 ->  | U20: =Report!T21 -> Requires Local Interpretation | V20: =Report!U21 -> Requires Local Interpretation | W20: =Report!V21 -> Requires Local Interpretation | Y20: =Report!W21 ->  | Z20: =Report!X21 ->  | AA20: =Report!Y21 ->  | AC20: =Report!AB21 -> To help understand how the management of the problems of the respiratory system affects expenditure and outcomes in the CCG please visit the Commissioning for Value website and download a 2014 pack. | AD20: http://www.england.nhs.uk/resources/resources-for-ccgs/comm-for-value/ http://pathways.nice.org.uk/pathways/chronic-obstructive-pulmonary-disease http://pathways.nice.org.uk/pathways/asthma | AE20: Click here | AF20: Click here
B21: =Report!C22 -> Problems of the Respiratory System | C21: =Report!D22 -> Obstructive Airways Disease | D21: =Report!E22 -> Respiratory System Problems - COPD | E21: =Report!G22 -> 21 | F21: =Report!H22 -> Map 21: Percentage of patients with COPD who had influenza immunisation in the preceding 1 September to 31 March by CCG (QOF COPD006 with exception-reported patients included), 2013/14 | G21: =Report!F22 -> Primary Care Management | H21: =Report!I22 -> 1, 2 | I21: =Report!J22 -> Good | K21: =Report!K22 -> 81.27795527 | L21: =Report!L22 -> 79.87329585 | M21: =Report!M22 -> 82.60593092 | N21: =Report!Q22 -> 82.04620331 | O21: =Report!R22 -> 82.11139807 | P21: =Report!S22 -> 83.23990778 | R21: =Report!N22 -> 3 | S21: =Report!P22 -> NHS South West Lincolnshire | T21: =Report!O22 -> A | U21: =Report!T22 -> A | V21: =Report!U22 -> A | W21: =Report!V22 -> R | Y21: =Report!W22 -> 0.768248043 | Z21: =Report!X22 -> 0.8334427996 | AA21: =Report!Y22 -> 1.961952508 | AC21: =Report!AB22 -> To help understand how the management of COPD affects expenditure and outcomes in the CCG please visit the Commissioning for Value website and download a 2014 pack. | AD21: http://www.england.nhs.uk/resources/resources-for-ccgs/comm-for-value/ http://pathways.nice.org.uk/pathways/chronic-obstructive-pulmonary-disease | AE21: Click here | AF21: Click here
B22: =Report!C23 -> Problems of the Respiratory System | C22: =Report!D23 -> Obstructive Airways Disease | D22: =Report!E23 -> Respiratory System Problems - COPD | E22: =Report!G23 -> 22 | F22: =Report!H23 -> Map 22: Rate of COPD emergency admissions to hospital per 100,000 population by CCG, 2012/13 | G22: =Report!F23 -> Primary Care Management | H22: =Report!I23 -> 1, 2 | I22: =Report!J23 -> Improvement Opportunity | K22: =Report!K23 -> 201.0578445 | L22: =Report!L23 -> 179.7247077 | M22: =Report!M23 -> 224.1888 | N22: =Report!Q23 -> 269.026393 | O22: =Report!R23 -> 217.3760228 | P22: =Report!S23 -> 179.517593 | R22: =Report!N23 -> 2 | S22: =Report!P23 -> NHS South Worcestershire | T22: =Report!O23 -> A | U22: =Report!T23 -> G | V22: =Report!U23 -> A | W22: =Report!V23 -> R | Y22: =Report!W23 ->  | Z22: =Report!X23 ->  | AA22: =Report!Y23 -> 21.54025147 | AC22: =Report!AB23 -> To help understand how the management of COPD affects expenditure and outcomes in the CCG please visit the Commissioning for Value website and download a 2014 pack. | AD22: http://www.england.nhs.uk/resources/resources-for-ccgs/comm-for-value/ http://pathways.nice.org.uk/pathways/chronic-obstructive-pulmonary-disease | AE22: Click here | AF22: Click here
B23: =Report!C24 -> Problems of the Respiratory System | C23: =Report!D24 -> Asthma | D23: =Report!E24 -> Respiratory System Problems - Asthma | E23: =Report!G24 -> 23 | F23: =Report!H24 -> Map 23: Rate of asthma emergency admissions to hospital in people aged 19 years and over per 100,000 population by CCG, 2012/13 | G23: =Report!F24 -> Primary Care Management | H23: =Report!I24 -> 2, 3 | I23: =Report!J24 -> Improvement Opportunity | K23: =Report!K24 -> 68.20766169 | L23: =Report!L24 -> 54.12729215 | M23: =Report!M24 -> 84.78784506 | N23: =Report!Q24 -> 87.7944389 | O23: =Report!R24 -> 65.1325267 | P23: =Report!S24 -> 60.2209933 | R23: =Report!N24 -> 2 | S23: =Report!P24 -> NHS Newark & Sherwood | T23: =Report!O24 -> A | U23: =Report!T24 -> G | V23: =Report!U24 -> A | W23: =Report!V24 -> A | Y23: =Report!W24 ->  | Z23: =Report!X24 -> 3.075134984 | AA23: =Report!Y24 -> 7.98666839 | AC23: =Report!AB24 -> To help understand how the management of Asthma affects expenditure and outcomes in the CCG please visit the Commissioning for Value website and download a 2014 pack. | AD23: http://www.england.nhs.uk/resources/resources-for-ccgs/comm-for-value/ http://pathways.nice.org.uk/pathways/asthma | AE23: Click here | AF23: Click here
B24: =Report!C25 -> Cardiovascular Family of Diseases - Kidney Care | C24: =Report!D25 -> Other Problems of the Gastro Intestinal System | D24: =Report!E25 -> Genitourinary - Renal | E24: =Report!G25 -> 26 | F24: =Report!H25 -> Map 26: Percentage of people on the chronic kidney disease (CKD) register whose most recent blood-pressure measurement in the previous 15 months was 140/85 mmHg or less (QOF CKD3 with exception-reported patients excluded) by CCG, 2012/13 | G24: =Report!F25 -> Primary Care Management | H24: =Report!I25 -> 1, 2 | I24: =Report!J25 -> Good | K24: =Report!K25 -> 77.77098615 | L24: =Report!L25 -> 76.58626931 | M24: =Report!M25 -> 78.91226306 | N24: =Report!Q25 -> 76.22812918 | O24: =Report!R25 -> 75.95970777 | P24: =Report!S25 -> 76.52859791 | R24: =Report!N25 -> 4 | S24: =Report!P25 -> NHS Ashford | T24: =Report!O25 -> G | U24: =Report!T25 -> G | V24: =Report!U25 -> G | W24: =Report!V25 -> G | Y24: =Report!W25 ->  | Z24: =Report!X25 ->  | AA24: =Report!Y25 ->  | AC24: =Report!AB25 -> To help understand how the management of chronic kidney disease (CKD) affects expenditure and outcomes in the CCG please visit the Commissioning for Value website and download a 2014 pack. | AD24: http://www.england.nhs.uk/resources/resources-for-ccgs/comm-for-value/ http://pathways.nice.org.uk/pathways/chronic-kidney-disease | AE24: Click here | AF24: Click here
B25: =Report!C26 -> Cardiovascular Family of Diseases - Kidney Care | C25: =Report!D26 -> Other Problems of the Gastro Intestinal System | D25: =Report!E26 -> Genitourinary - Renal | E25: =Report!G26 -> 27 | F25: =Report!H26 -> Map 27: Ratio of reported to expected prevalence of chronic kidney disease (CKD) by CCG, 2012/13 | G25: =Report!F26 -> Prevention and Early Diagnosis | H25: =Report!I26 -> 1, 2 | I25: =Report!J26 -> Good | K25: =Report!K26 -> 0.6119077755 | L25: =Report!L26 -> No Data | M25: =Report!M26 -> No Data | N25: =Report!Q26 -> 0.7056958246 | O25: =Report!R26 -> 0.7077121453 | P25: =Report!S26 -> 0.7585541202 | R25: =Report!N26 -> 2 | S25: =Report!P26 -> NHS South West Lincolnshire | T25: =Report!O26 -> R | U25: =Report!T26 ->  | V25: =Report!U26 ->  | W25: =Report!V26 ->  | Y25: =Report!W26 -> 0.09378804911 | Z25: =Report!X26 -> 0.09580436982 | AA25: =Report!Y26 -> 0.1466463448 | AC25: =Report!AB26 -> To help understand how the management of chronic kidney disease (CKD) affects expenditure and outcomes in the CCG please visit the Commissioning for Value website and download a 2014 pack. | AD25: http://www.england.nhs.uk/resources/resources-for-ccgs/comm-for-value/ http://pathways.nice.org.uk/pathways/chronic-kidney-disease | AE25: Click here | AF25: Click here
B26: =Report!C27 -> Cardiovascular Family of Diseases - Kidney Care | C26: =Report!D27 -> Other Problems of the Gastro Intestinal System | D26: =Report!E27 -> Genitourinary - Renal | E26: =Report!G27 -> 28 | F26: =Report!H27 -> Map 28: Percentage of dialysis patients who were receiving dialysis in the home (home haemodialysis and peritoneal dialysis combined) by CCG, 2013 | G26: =Report!F27 -> Secondary Care Treatment | H26: =Report!I27 -> 2 | I26: =Report!J27 -> Good | K26: =Report!K27 -> 19.56521739 | L26: =Report!L27 -> 10.65049044 | M26: =Report!M27 -> 33.17153774 | N26: =Report!Q27 -> 19.4187454 | O26: =Report!R27 -> 23.39199662 | P26: =Report!S27 -> 26.96969697 | R26: =Report!N27 -> 3 | S26: =Report!P27 -> NHS Newark & Sherwood | T26: =Report!O27 -> A | U26: =Report!T27 -> A | V26: =Report!U27 -> A | W26: =Report!V27 -> A | Y26: =Report!W27 ->  | Z26: =Report!X27 -> 3.826779229 | AA26: =Report!Y27 -> 7.404479578 | AC26: =Report!AB27 -> To help understand how the management of chronic kidney disease (CKD) affects expenditure and outcomes in the CCG please visit the Commissioning for Value website and download a 2014 pack. | AD26: http://www.england.nhs.uk/resources/resources-for-ccgs/comm-for-value/ http://pathways.nice.org.uk/pathways/chronic-kidney-disease | AE26: Click here | AF26: Click here
B27: =Report!C28 -> Cardiovascular Family of Diseases - Kidney Care | C27: =Report!D28 -> Other Problems of the Gastro Intestinal System | D27: =Report!E28 -> Genitourinary - Renal | E27: =Report!G28 -> 29 | F27: =Report!H28 -> Map 29: Percentage of people receiving renal replacement therapy (RRT) who had a functioning kidney transplant at a Census date by CCG, 2013 | G27: =Report!F28 -> Secondary Care Treatment | H27: =Report!I28 -> 2 | I27: =Report!J28 -> Good | K27: =Report!K28 -> 61.98347107 | L27: =Report!L28 -> 53.09142515 | M27: =Report!M28 -> 70.1380112 | N27: =Report!Q28 -> 52.13604867 | O27: =Report!R28 -> 54.76610163 | P27: =Report!S28 -> 59.43210251 | R27: =Report!N28 -> 5 | S27: =Report!P28 -> NHS Harrogate and Rural District | T27: =Report!O28 -> G | U27: =Report!T28 -> G | V27: =Report!U28 -> A | W27: =Report!V28 -> A | Y27: =Report!W28 ->  | Z27: =Report!X28 ->  | AA27: =Report!Y28 ->  | AC27: =Report!AB28 -> To help understand how the management of chronic kidney disease (CKD) affects expenditure and outcomes in the CCG please visit the Commissioning for Value website and download a 2014 pack. | AD27: http://www.england.nhs.uk/resources/resources-for-ccgs/comm-for-value/ http://pathways.nice.org.uk/pathways/chronic-kidney-disease | AE27: Click here | AF27: Click here
B28: =Report!C29 -> Cardiovascular Family of Diseases - Diabetes | C28: =Report!D29 -> Diabetes | D28: =Report!E29 -> Endocrine, Nutritional and Metabolic problems - Diabetes | E28: =Report!G29 -> 30 | F28: =Report!H29 -> Map 30: Percentage of people in the National Diabetes Audit (NDA) with Type 1 and Type 2 diabetes who received NICE-recommended care processes (excluding eye screening) by CCG, 2012/13 | G28: =Report!F29 -> Primary Care Management | H28: =Report!I29 -> 1 | I28: =Report!J29 -> Good | K28: =Report!K29 -> 55.33719779 | L28: =Report!L29 -> 54.17600534 | M28: =Report!M29 -> 56.49259575 | N28: =Report!Q29 -> 59.93575783 | O28: =Report!R29 -> 56.41427955 | P28: =Report!S29 -> 64.35369616 | R28: =Report!N29 -> 2 | S28: =Report!P29 -> NHS Newark & Sherwood | T28: =Report!O29 -> A | U28: =Report!T29 -> R | V28: =Report!U29 -> A | W28: =Report!V29 -> R | Y28: =Report!W29 -> 4.598560038 | Z28: =Report!X29 -> 1.077081759 | AA28: =Report!Y29 -> 9.016498361 | AC28: =Report!AB29 -> To help understand how the management of diabetes affects expenditure and outcomes in the CCG please visit the Commissioning for Value webiste and download a 2014 pack. | AD28: http://www.england.nhs.uk/resources/resources-for-ccgs/comm-for-value/ http://pathways.nice.org.uk/pathways/diabetes | AE28: Click here | AF28: Click here
B29: =Report!C30 -> Cardiovascular Family of Diseases - Diabetes | C29: =Report!D30 -> Diabetes | D29: =Report!E30 -> Endocrine, Nutritional and Metabolic problems - Diabetes | E29: =Report!G30 -> 31 | F29: =Report!H30 -> Map 31: Percentage of people in the National Diabetes Audit (NDA) with Type 1 and Type 2 diabetes who met treatment targets for HbA1c, blood-pressure and cholesterol by CCG, 2012/13 | G29: =Report!F30 -> Primary Care Management | H29: =Report!I30 -> 1 | I29: =Report!J30 -> Good | K29: =Report!K30 -> 34.08728895 | L29: =Report!L30 -> 32.99151675 | M29: =Report!M30 -> 35.20033729 | N29: =Report!Q30 -> 36.25492615 | O29: =Report!R30 -> 36.27025179 | P29: =Report!S30 -> 38.42236954 | R29: =Report!N30 -> 2 | S29: =Report!P30 -> NHS South Worcestershire | T29: =Report!O30 -> A | U29: =Report!T30 -> R | V29: =Report!U30 -> R | W29: =Report!V30 -> R | Y29: =Report!W30 -> 2.167637209 | Z29: =Report!X30 -> 2.182962847 | AA29: =Report!Y30 -> 4.335080597 | AC29: =Report!AB30 -> To help understand how the management of diabetes affects expenditure and outcomes in the CCG please visit the Commissioning for Value webiste and download a 2014 pack. | AD29: http://www.england.nhs.uk/resources/resources-for-ccgs/comm-for-value/ http://pathways.nice.org.uk/pathways/diabetes | AE29: Click here | AF29: Click here
B30: =Report!C31 -> Cardiovascular Family of Diseases - Diabetes | C30: =Report!D31 -> Diabetes | D30: =Report!E31 -> Endocrine, Nutritional and Metabolic problems - Diabetes | E30: =Report!G31 -> 32 | F30: =Report!H31 -> Map 32: Total net ingredient cost of anti-diabetic items per person on GP diabetes registers by CCG, 2013/14 | G30: =Report!F31 -> Primary Care Management | H30: =Report!I31 -> 1 | I30: =Report!J31 -> Improvement Opportunity | K30: =Report!K31 -> 271.7468596 | L30: =Report!L31 -> No Data | M30: =Report!M31 -> No Data | N30: =Report!Q31 -> 286.3087929 | O30: =Report!R31 -> 292.6750206 | P30: =Report!S31 -> 285.2399924 | R30: =Report!N31 -> 2 | S30: =Report!P31 -> NHS Great Yarmouth and Waveney | T30: =Report!O31 -> G | U30: =Report!T31 ->  | V30: =Report!U31 ->  | W30: =Report!V31 ->  | Y30: =Report!W31 ->  | Z30: =Report!X31 ->  | AA30: =Report!Y31 ->  | AC30: =Report!AB31 -> To help understand how the management of diabetes affects expenditure and outcomes in the CCG please visit the Commissioning for Value webiste and download a 2014 pack. | AD30: http://www.england.nhs.uk/resources/resources-for-ccgs/comm-for-value/ http://pathways.nice.org.uk/pathways/diabetes | AE30: Click here | AF30: Click here
B31: =Report!C32 -> Cardiovascular Family of Diseases - Diabetes | C31: =Report!D32 -> Diabetes | D31: =Report!E32 -> Endocrine, Nutritional and Metabolic problems - Diabetes | E31: =Report!G32 -> 33 | F31: =Report!H32 -> Map 33: Additional risk of mortality among people in the National Diabetes Audit (NDA) with Type 1 and Type 2 diabetes compared with the general population by CCG, 2011-2013 | G31: =Report!F32 -> Outcomes | H31: =Report!I32 -> 1 | I31: =Report!J32 -> Improvement Opportunity | K31: =Report!K32 -> 52.07402624 | L31: =Report!L32 -> 41.37660487 | M31: =Report!M32 -> 63.36630774 | N31: =Report!Q32 -> 39.00992769 | O31: =Report!R32 -> 46.74739296 | P31: =Report!S32 -> 42.40492005 | R31: =Report!N32 -> 5 | S31: =Report!P32 -> NHS Great Yarmouth and Waveney | T31: =Report!O32 -> R | U31: =Report!T32 -> R | V31: =Report!U32 -> A | W31: =Report!V32 -> A | Y31: =Report!W32 -> 13.06409856 | Z31: =Report!X32 -> 5.32663328 | AA31: =Report!Y32 -> 9.669106193 | AC31: =Report!AB32 -> To help understand how the management of diabetes affects expenditure and outcomes in the CCG please visit the Commissioning for Value webiste and download a 2014 pack. | AD31: http://www.england.nhs.uk/resources/resources-for-ccgs/comm-for-value/ http://pathways.nice.org.uk/pathways/diabetes | AE31: Click here | AF31: Click here
B32: =Report!C33 -> Cardiovascular Family of Diseases - Diabetes | C32: =Report!D33 -> Diabetes | D32: =Report!E33 -> Endocrine, Nutritional and Metabolic problems - Diabetes | E32: =Report!G33 -> 34 | F32: =Report!H33 -> Map 34: Relative risk of hospital admission for heart failure among people in the National Diabetes Audit (NDA) with Type 1 and Type 2 diabetes compared with people without diabetes by CCG, 2010/11-2012/13 | G32: =Report!F33 -> Primary Care Management | H32: =Report!I33 -> 1 | I32: =Report!J33 -> Improvement Opportunity | K32: =Report!K33 -> 3.005790189 | L32: =Report!L33 -> 2.720480638 | M32: =Report!M33 -> 3.312883601 | N32: =Report!Q33 -> 2.497683028 | O32: =Report!R33 -> 2.429315439 | P32: =Report!S33 -> 2.250433755 | R32: =Report!N33 -> 5 | S32: =Report!P33 -> NHS East Staffordshire | T32: =Report!O33 -> R | U32: =Report!T33 -> R | V32: =Report!U33 -> R | W32: =Report!V33 -> R | Y32: =Report!W33 -> 0.5081071606 | Z32: =Report!X33 -> 0.5764747505 | AA32: =Report!Y33 -> 0.7553564345 | AC32: =Report!AB33 -> To help understand how the management of diabetes affects expenditure and outcomes in the CCG please visit the Commissioning for Value webiste and download a 2014 pack. | AD32: http://www.england.nhs.uk/resources/resources-for-ccgs/comm-for-value/ http://pathways.nice.org.uk/pathways/diabetes | AE32: Click here | AF32: Click here
B33: =Report!C34 -> Cardiovascular Family of Diseases - Diabetes | C33: =Report!D34 -> Diabetes | D33: =Report!E34 -> Endocrine, Nutritional and Metabolic problems - Diabetes | E33: =Report!G34 -> 35 | F33: =Report!H34 -> Map 35: Relative risk of major lower limb amputation among people in the National Diabetes Audit (NDA) with Type 1 and Type 2 diabetes compared with people without diabetes by CCG, 2010/11-2012/13 | G33: =Report!F34 -> Primary Care Management | H33: =Report!I34 -> 1 | I33: =Report!J34 -> Improvement Opportunity | K33: =Report!K34 -> 5.114027249 | L33: =Report!L34 -> 2.338458907 | M33: =Report!M34 -> 9.70801671 | N33: =Report!Q34 -> 5.777513378 | O33: =Report!R34 -> 6.006125722 | P33: =Report!S34 -> 4.850166741 | R33: =Report!N34 -> 3 | S33: =Report!P34 -> NHS South Worcestershire | T33: =Report!O34 -> A | U33: =Report!T34 -> A | V33: =Report!U34 -> A | W33: =Report!V34 -> A | Y33: =Report!W34 ->  | Z33: =Report!X34 ->  | AA33: =Report!Y34 -> 0.2638605075 | AC33: =Report!AB34 -> To help understand how the management of diabetes affects expenditure and outcomes in the CCG please visit the Commissioning for Value webiste and download a 2014 pack. | AD33: http://www.england.nhs.uk/resources/resources-for-ccgs/comm-for-value/ http://pathways.nice.org.uk/pathways/diabetes | AE33: Click here | AF33: Click here
B34: =Report!C35 -> Cardiovascular Family of Diseases - Heart | C34: =Report!D35 -> Coronary Heart Disease | D34: =Report!E35 -> Circulation Problems (CVD) - Heart Disease | E34: =Report!G35 -> 36 | F34: =Report!H35 -> Map 36: Ratio of reported to expected prevalence of hypertension by CCG, 2013/14 | G34: =Report!F35 -> Prevention and Early Diagnosis | H34: =Report!I35 -> 1, 2 | I34: =Report!J35 -> Good | K34: =Report!K35 -> 0.5642752133 | L34: =Report!L35 -> No Data | M34: =Report!M35 -> No Data | N34: =Report!Q35 -> 0.5583134754 | O34: =Report!R35 -> 0.5658546644 | P34: =Report!S35 -> 0.5754835682 | R34: =Report!N35 -> 3 | S34: =Report!P35 -> NHS South West Lincolnshire | T34: =Report!O35 -> A | U34: =Report!T35 ->  | V34: =Report!U35 ->  | W34: =Report!V35 ->  | Y34: =Report!W35 ->  | Z34: =Report!X35 -> 0.001579451104 | AA34: =Report!Y35 -> 0.0112083549 | AC34: =Report!AB35 -> To help understand how the management of hypertension and coronary heart disease affects expenditure and outcomes in the CCG please visit the Commissioning for Value website and download a 2014 pack. | AD34: http://www.england.nhs.uk/resources/resources-for-ccgs/comm-for-value/ http://pathways.nice.org.uk/pathways/hypertension http://pathways.nice.org.uk/pathways/cardiovascular-disease-prevention http://pathways.nice.org.uk/pathways/smoking | AE34: Click here | AF34: Click here
B35: =Report!C36 -> Cardiovascular Family of Diseases - Heart | C35: =Report!D36 -> Coronary Heart Disease | D35: =Report!E36 -> Circulation Problems (CVD) - Heart Disease | E35: =Report!G36 -> 37 | F35: =Report!H36 -> Map 37: Ratio of reported to expected prevalence of coronary heart disease (CHD) by CCG, 2013/14 | G35: =Report!F36 -> Prevention and Early Diagnosis | H35: =Report!I36 -> 1 | I35: =Report!J36 -> Good | K35: =Report!K36 -> 0.8167562466 | L35: =Report!L36 -> No Data | M35: =Report!M36 -> No Data | N35: =Report!Q36 -> 0.7170719042 | O35: =Report!R36 -> 0.756316526 | P35: =Report!S36 -> 0.8130599912 | R35: =Report!N36 -> 5 | S35: =Report!P36 -> NHS Harrogate and Rural District | T35: =Report!O36 -> G | U35: =Report!T36 ->  | V35: =Report!U36 ->  | W35: =Report!V36 ->  | Y35: =Report!W36 ->  | Z35: =Report!X36 ->  | AA35: =Report!Y36 ->  | AC35: =Report!AB36 -> To help understand how the management of coronary heart disease affects expenditure and outcomes in the CCG please visit the Commissioning for Value website and download a 2014 pack. | AD35: http://www.england.nhs.uk/resources/resources-for-ccgs/comm-for-value/ http://pathways.nice.org.uk/pathways/cardiovascular-disease-prevention http://pathways.nice.org.uk/pathways/smoking | AE35: Click here | AF35: Click here
B36: =Report!C37 -> Cardiovascular Family of Diseases - Heart | C36: =Report!D37 -> Coronary Heart Disease | D36: =Report!E37 -> Circulation Problems (CVD) - Heart Disease | E36: =Report!G37 -> 38 | F36: =Report!H37 -> Map 38: Rate of mortality from coronary heart disease (CHD) in people aged under 75 years per 100,000 population by CCG, 2011-2013 | G36: =Report!F37 -> Outcomes | H36: =Report!I37 -> 1 | I36: =Report!J37 -> Improvement Opportunity | K36: =Report!K37 -> 37.4127603 | L36: =Report!L37 -> 31.81323993 | M36: =Report!M37 -> 43.71016965 | N36: =Report!Q37 -> 44.9873951 | O36: =Report!R37 -> 39.91975958 | P36: =Report!S37 -> 34.4456714 | R36: =Report!N37 -> 2 | S36: =Report!P37 -> NHS Ashford | T36: =Report!O37 -> A | U36: =Report!T37 -> G | V36: =Report!U37 -> A | W36: =Report!V37 -> A | Y36: =Report!W37 ->  | Z36: =Report!X37 ->  | AA36: =Report!Y37 -> 2.967088894 | AC36: =Report!AB37 -> To help understand how the management of coronary heart disease affects expenditure and outcomes in the CCG please visit the Commissioning for Value website and download a 2014 pack. | AD36: http://www.england.nhs.uk/resources/resources-for-ccgs/comm-for-value/ http://pathways.nice.org.uk/pathways/cardiovascular-disease-prevention http://pathways.nice.org.uk/pathways/smoking | AE36: Click here | AF36: Click here
B37: =Report!C38 -> Cardiovascular Family of Diseases - Stroke | C37: =Report!D38 -> Cerebrovascular Disease | D37: =Report!E38 -> Circulation Problems (CVD) - Stroke | E37: =Report!G38 -> 40 | F37: =Report!H38 -> Map 40: Percentage of people with acute stroke who were directly admitted to a stroke unit within four hours of arrival at hospital by CCG, 2013/14 | G37: =Report!F38 -> Secondary Care Treatment | H37: =Report!I38 -> 1 | I37: =Report!J38 -> Good | K37: =Report!K38 -> 52.15686275 | L37: =Report!L38 -> 46.03915084 | M37: =Report!M38 -> 58.21055245 | N37: =Report!Q38 -> 59.45994107 | O37: =Report!R38 -> 56.52311759 | P37: =Report!S38 -> 64.40522155 | R37: =Report!N38 -> 2 | S37: =Report!P38 -> NHS Great Yarmouth and Waveney | T37: =Report!O38 -> A | U37: =Report!T38 -> R | V37: =Report!U38 -> A | W37: =Report!V38 -> R | Y37: =Report!W38 -> 7.303078324 | Z37: =Report!X38 -> 4.366254844 | AA37: =Report!Y38 -> 12.2483588 | AC37: =Report!AB38 -> To help understand how the management of strokes affects expenditure and outcomes in the CCG please visit the Commissioning for Value website and download a 2014 pack. | AD37: http://www.england.nhs.uk/resources/resources-for-ccgs/comm-for-value/ http://pathways.nice.org.uk/pathways/stroke | AE37: Click here | AF37: Click here
B38: =Report!C39 -> Cardiovascular Family of Diseases - Stroke | C38: =Report!D39 -> Cerebrovascular Disease | D38: =Report!E39 -> Circulation Problems (CVD) - Stroke | E38: =Report!G39 -> 41 | F38: =Report!H39 -> Map 41: Average composite score for quality of care of stroke services in the Sentinel Stroke National Audit Programme (SSNAP) by CCG, April-June 2014 | G38: =Report!F39 -> Secondary Care Treatment | H38: =Report!I39 -> 1 | I38: =Report!J39 -> Good | K38: =Report!K39 -> E | L38: =Report!L39 -> No Data | M38: =Report!M39 -> No Data | N38: =Report!Q39 ->  | O38: =Report!R39 ->  | P38: =Report!S39 ->  | R38: =Report!N39 -> 1 | S38: =Report!P39 ->  | T38: =Report!O39 ->  | U38: =Report!T39 ->  | V38: =Report!U39 ->  | W38: =Report!V39 ->  | Y38: =Report!W39 ->  | Z38: =Report!X39 ->  | AA38: =Report!Y39 ->  | AC38: =Report!AB39 -> To help understand how the management of strokes affects expenditure and outcomes in the CCG please visit the Commissioning for Value website and download a 2014 pack. | AD38: http://www.england.nhs.uk/resources/resources-for-ccgs/comm-for-value/ http://pathways.nice.org.uk/pathways/stroke | AE38: Click here | AF38: Click here
B39: =Report!C40 -> Cardiovascular Family of Diseases - Stroke | C39: =Report!D40 -> Cerebrovascular Disease | D39: =Report!E40 -> Circulation Problems (CVD) - Stroke | E39: =Report!G40 -> 42 | F39: =Report!H40 -> Map 42: Percentage of people known to have atrial fibrillation (AF) who were prescribed anticoagulation prior to a stroke by CCG, 2013/14 | G39: =Report!F40 -> Secondary Care Treatment | H39: =Report!I40 -> 1 | I39: =Report!J40 -> Good | K39: =Report!K40 -> 32.8358209 | L39: =Report!L40 -> 22.79115762 | M39: =Report!M40 -> 44.74204322 | N39: =Report!Q40 -> 38.25711533 | O39: =Report!R40 -> 41.28742739 | P39: =Report!S40 -> 47.08994709 | R39: =Report!N40 -> 2 | S39: =Report!P40 -> NHS East Staffordshire | T39: =Report!O40 -> A | U39: =Report!T40 -> A | V39: =Report!U40 -> A | W39: =Report!V40 -> R | Y39: =Report!W40 -> 5.421294433 | Z39: =Report!X40 -> 8.451606497 | AA39: =Report!Y40 -> 14.25412619 | AC39: =Report!AB40 -> To help understand how the management of strokes affects expenditure and outcomes in the CCG please visit the Commissioning for Value website and download a 2014 pack. | AD39: http://www.england.nhs.uk/resources/resources-for-ccgs/comm-for-value/ http://pathways.nice.org.uk/pathways/stroke | AE39: Click here | AF39: Click here
B40: =Report!C41 -> Cardiovascular Family of Diseases - Stroke | C40: =Report!D41 -> Cerebrovascular Disease | D40: =Report!E41 -> Circulation Problems (CVD) - Stroke | E40: =Report!G41 -> 43 | F40: =Report!H41 -> Map 43: Standardised mortality ratio (SMR) in the 30 days following admission to hospital for a stroke by CCG, 2013/14 | G40: =Report!F41 -> Outcomes | H40: =Report!I41 -> 1 | I40: =Report!J41 -> Improvement Opportunity | K40: =Report!K41 -> 1.68 | L40: =Report!L41 -> No Data | M40: =Report!M41 -> No Data | N40: =Report!Q41 -> 1.171650485 | O40: =Report!R41 -> 1.364545455 | P40: =Report!S41 -> 1.145 | R40: =Report!N41 -> 3 | S40: =Report!P41 -> NHS Calderdale | T40: =Report!O41 -> R | U40: =Report!T41 ->  | V40: =Report!U41 ->  | W40: =Report!V41 ->  | Y40: =Report!W41 -> 0.5083495146 | Z40: =Report!X41 -> 0.3154545455 | AA40: =Report!Y41 -> 0.535 | AC40: =Report!AB41 -> To help understand how the management of strokes affects expenditure and outcomes in the CCG please visit the Commissioning for Value website and download a 2014 pack. | AD40: http://www.england.nhs.uk/resources/resources-for-ccgs/comm-for-value/ http://pathways.nice.org.uk/pathways/stroke | AE40: Click here | AF40: Click here
B41: =Report!C42 -> Cardiovascular Family of Diseases - Stroke | C41: =Report!D42 -> Cerebrovascular Disease | D41: =Report!E42 -> Circulation Problems (CVD) - Stroke | E41: =Report!G42 -> 44 | F41: =Report!H42 -> Map 44: Percentage of people discharged from hospital following a stroke who were 'newly institutionalised' by CCG, 2013/14 | G41: =Report!F42 -> Secondary Care Treatment | H41: =Report!I42 -> 1 | I41: =Report!J42 -> Improvement Opportunity | K41: =Report!K42 -> 10 | L41: =Report!L42 -> No Data | M41: =Report!M42 -> No Data | N41: =Report!Q42 -> 8.278238342 | O41: =Report!R42 -> 8.36 | P41: =Report!S42 -> 4.075 | R41: =Report!N42 -> 4 | S41: =Report!P42 -> NHS Newark & Sherwood | T41: =Report!O42 -> A | U41: =Report!T42 ->  | V41: =Report!U42 ->  | W41: =Report!V42 ->  | Y41: =Report!W42 -> 1.721761658 | Z41: =Report!X42 -> 1.64 | AA41: =Report!Y42 -> 5.925 | AC41: =Report!AB42 -> To help understand how the management of strokes affects expenditure and outcomes in the CCG please visit the Commissioning for Value website and download a 2014 pack. | AD41: http://www.england.nhs.uk/resources/resources-for-ccgs/comm-for-value/ http://pathways.nice.org.uk/pathways/stroke | AE41: Click here | AF41: Click here
B42: =Report!C43 -> Mental Health Disorders | C42: =Report!D43 -> Psychotic Disorders | D42: =Report!E43 -> Mental Health Problems - Psychosis | E42: =Report!G43 -> 45 | F42: =Report!H43 -> Map 45: Percentage of people who are recorded in GP registers of severe mental illness (SMI) by CCG 2013/14 | G42: =Report!F43 -> Primary Care Management | H42: =Report!I43 -> 1, 2, 5 | I42: =Report!J43 -> Good | K42: =Report!K43 -> 0.9254767801 | L42: =Report!L43 -> 0.8784485115 | M42: =Report!M43 -> 0.9743686994 | N42: =Report!Q43 -> 0.8529571166 | O42: =Report!R43 -> 0.7445343644 | P42: =Report!S43 -> 0.8574913404 | R42: =Report!N43 -> 4 | S42: =Report!P43 -> NHS Great Yarmouth and Waveney | T42: =Report!O43 -> G | U42: =Report!T43 -> G | V42: =Report!U43 -> G | W42: =Report!V43 -> G | Y42: =Report!W43 ->  | Z42: =Report!X43 ->  | AA42: =Report!Y43 ->  | AC42: =Report!AB43 -> To help understand how the management of psychosis affects expenditure and outcomes in the CCG please visit the Commissioning for Value website and download a 2014 pack. | AD42: http://www.england.nhs.uk/resources/resources-for-ccgs/comm-for-value/ http://pathways.nice.org.uk/pathways/psychosis-and-schizophrenia | AE42: Click here | AF42: Click here
B43: =Report!C44 -> Mental Health Disorders | C43: =Report!D44 -> Psychotic Disorders | D43: =Report!E44 -> Mental Health Problems - Psychosis | E43: =Report!G44 -> 46 | F43: =Report!H44 -> Map 46: Mean percentage achievement score for physical health checks on people with severe mental illness (SMI) recorded in GP SMI registers by CCG, 2013/14 | G43: =Report!F44 -> Primary Care Management | H43: =Report!I44 -> 1 | I43: =Report!J44 -> Good | K43: =Report!K44 -> 70.17121194 | L43: =Report!L44 -> No Data | M43: =Report!M44 -> No Data | N43: =Report!Q44 -> 76.29595638 | O43: =Report!R44 -> 75.66668442 | P43: =Report!S44 -> 78.71173412 | R43: =Report!N44 -> 1 | S43: =Report!P44 -> NHS South West Lincolnshire | T43: =Report!O44 -> R | U43: =Report!T44 ->  | V43: =Report!U44 ->  | W43: =Report!V44 ->  | Y43: =Report!W44 -> 6.124744442 | Z43: =Report!X44 -> 5.495472483 | AA43: =Report!Y44 -> 8.540522178 | AC43: =Report!AB44 -> To help understand how the management of psychosis affects expenditure and outcomes in the CCG please visit the Commissioning for Value website and download a 2014 pack. | AD43: http://www.england.nhs.uk/resources/resources-for-ccgs/comm-for-value/ http://pathways.nice.org.uk/pathways/psychosis-and-schizophrenia | AE43: Click here | AF43: Click here
B44: =Report!C45 -> Mental Health Disorders | C44: =Report!D45 -> Psychotic Disorders | D44: =Report!E45 -> Mental Health Problems - Psychosis | E44: =Report!G45 -> 47 | F44: =Report!H45 -> Map 47: Percentage of people with severe mental illness (SMI) recorded in GP SMI registers who were excepted from the calculation of QOF achievement scores by CCG 2013/14 | G44: =Report!F45 -> Primary Care Management | H44: =Report!I45 -> 2 | I44: =Report!J45 -> Improvement Opportunity | K44: =Report!K45 -> 20.71731235 | L44: =Report!L45 -> 19.75729388 | M44: =Report!M45 -> 21.71135711 | N44: =Report!Q45 -> 11.62848034 | O44: =Report!R45 -> 12.61979882 | P44: =Report!S45 -> 11.2041204 | R44: =Report!N45 -> 5 | S44: =Report!P45 -> NHS East Staffordshire | T44: =Report!O45 -> R | U44: =Report!T45 -> R | V44: =Report!U45 -> R | W44: =Report!V45 -> R | Y44: =Report!W45 -> 9.088832013 | Z44: =Report!X45 -> 8.097513532 | AA44: =Report!Y45 -> 9.513191951 | AC44: =Report!AB45 -> To help understand how the management of psychosis affects expenditure and outcomes in the CCG please visit the Commissioning for Value website and download a 2014 pack. | AD44: http://www.england.nhs.uk/resources/resources-for-ccgs/comm-for-value/ http://pathways.nice.org.uk/pathways/psychosis-and-schizophrenia | AE44: Click here | AF44: Click here
B45: =Report!C46 -> Mental Health Disorders | C45: =Report!D46 -> Psychotic Disorders | D45: =Report!E46 -> Mental Health Problems - Psychosis | E45: =Report!G46 -> 48 | F45: =Report!H46 -> Map 48: Rate of new cases of psychosis in people aged 18 years and over who received early intervention psychosis (EIP) services per 100,000 population by CCG, April 2013-September 2014 | G45: =Report!F46 -> Secondary Care Treatment | H45: =Report!I46 -> 2 | I45: =Report!J46 -> Good | K45: =Report!K46 -> 36.61406088 | L45: =Report!L46 -> 28.43083738 | M45: =Report!M46 -> 46.4179263 | N45: =Report!Q46 -> 24.63692423 | O45: =Report!R46 -> 25.68062269 | P45: =Report!S46 -> 29.57791586 | R45: =Report!N46 -> 5 | S45: =Report!P46 -> NHS Calderdale | T45: =Report!O46 -> G | U45: =Report!T46 -> G | V45: =Report!U46 -> G | W45: =Report!V46 -> A | Y45: =Report!W46 ->  | Z45: =Report!X46 ->  | AA45: =Report!Y46 ->  | AC45: =Report!AB46 -> To help understand how the management of psychosis affects expenditure and outcomes in the CCG please visit the Commissioning for Value website and download a 2014 pack. | AD45: http://www.england.nhs.uk/resources/resources-for-ccgs/comm-for-value/ http://pathways.nice.org.uk/pathways/psychosis-and-schizophrenia | AE45: Click here | AF45: Click here
B46: =Report!C47 -> Mental Health Disorders | C46: =Report!D47 -> Organic Mental Disorders | D46: =Report!E47 -> Dementia and LTCs | E46: =Report!G47 -> 50 | F46: =Report!H47 -> Map 50: Ratio of reported to expected prevalence of dementia by CCG, October 2014 | G46: =Report!F47 -> Prevention and Early Diagnosis | H46: =Report!I47 -> 2 | I46: =Report!J47 -> Good | K46: =Report!K47 -> 0.5860566188 | L46: =Report!L47 -> 0.5563863847 | M46: =Report!M47 -> 0.6168981205 | N46: =Report!Q47 -> 0.5599796215 | O46: =Report!R47 -> 0.5264446765 | P46: =Report!S47 -> 0.5640790234 | R46: =Report!N47 -> 4 | S46: =Report!P47 -> NHS Harrogate and Rural District | T46: =Report!O47 -> G | U46: =Report!T47 -> A | V46: =Report!U47 -> G | W46: =Report!V47 -> A | Y46: =Report!W47 ->  | Z46: =Report!X47 ->  | AA46: =Report!Y47 ->  | AC46: =Report!AB47 -> To help understand how the management of dementia affects expenditure and outcomes in the CCG please visit the Commissioning for Value website and download a 2015 pack. | AD46: http://www.england.nhs.uk/resources/resources-for-ccgs/comm-for-value/ http://pathways.nice.org.uk/pathways/dementia | AE46: Click here | AF46: Click here
B47: =Report!C48 -> Mental Health Disorders | C47: =Report!D48 -> Organic Mental Disorders | D47: =Report!E48 -> Dementia and LTCs | E47: =Report!G48 -> 55 | F47: =Report!H48 -> Map 55: Rate of emergency admissions to hospital of people with dementia aged 65 years and over per 100,000 population by CCG, 2012/13 | G47: =Report!F48 -> Outcomes | H47: =Report!I48 -> 2 | I47: =Report!J48 -> Improvement Opportunity | K47: =Report!K48 -> 2870.123766 | L47: =Report!L48 -> 2687.237653 | M47: =Report!M48 -> 3062.179688 | N47: =Report!Q48 -> 3364.157721 | O47: =Report!R48 -> 3003.225727 | P47: =Report!S48 -> 2766.611447 | R47: =Report!N48 -> 2 | S47: =Report!P48 -> NHS Ashford | T47: =Report!O48 -> A | U47: =Report!T48 -> G | V47: =Report!U48 -> A | W47: =Report!V48 -> A | Y47: =Report!W48 ->  | Z47: =Report!X48 ->  | AA47: =Report!Y48 -> 103.5123195 | AC47: =Report!AB48 -> To help understand how the management of dementia affects expenditure and outcomes in the CCG please visit the Commissioning for Value website and download a 2015 pack. | AD47: http://www.england.nhs.uk/resources/resources-for-ccgs/comm-for-value/ http://pathways.nice.org.uk/pathways/dementia | AE47: Click here | AF47: Click here
B48: =Report!C49 -> Problems of the Musculo-skeletal System | C48: =Report!D49 -> Problems of the Musculo Skeletal System | D48: =Report!E49 -> Musculoskeletal System Problems (Excludes Trauma) | E48: =Report!G49 -> 56 | F48: =Report!H49 -> Map 56: Rate of dual-energy X-ray absorptiometry (DEXA) activity per 1,000 weighted population by CCG, 2013/14 | G48: =Report!F49 -> Secondary Care Treatment | H48: =Report!I49 -> 2 | I48: =Report!J49 -> Requires Local Interpretation | K48: =Report!K49 -> 10.5660562 | L48: =Report!L49 -> 10.0645609 | M48: =Report!M49 -> 11.0860709 | N48: =Report!Q49 -> 6.56228202 | O48: =Report!R49 -> 7.130527877 | P48: =Report!S49 ->  | R48: =Report!N49 -> 5 | S48: =Report!P49 ->  | T48: =Report!O49 ->  | U48: =Report!T49 -> Requires Local Interpretation | V48: =Report!U49 -> Requires Local Interpretation | W48: =Report!V49 -> Requires Local Interpretation | Y48: =Report!W49 ->  | Z48: =Report!X49 ->  | AA48: =Report!Y49 ->  | AC48: =Report!AB49 -> To help understand how the management of Musculoskeletal System Problems affects expenditure and outcomes in the CCG please visit the Commissioning for Value website and download a 2014 pack. | AD48: http://www.england.nhs.uk/resources/resources-for-ccgs/comm-for-value/ http://pathways.nice.org.uk/pathways/musculoskeletal-conditions http://www.arthritisresearchuk.org/mskcalculator | AE48: Click here | AF48: Click here
B49: =Report!C50 -> Problems of the Musculo-skeletal System | C49: =Report!D50 -> Problems of the Musculo Skeletal System | D49: =Report!E50 -> Musculoskeletal System Problems (Excludes Trauma) | E49: =Report!G50 -> 57 | F49: =Report!H50 -> Map 57: Percentage of patients aged 75 years and over with a fragility fracture on or after 1 April 2012 who were treated with a bone-sparing agent (excluding exceptions) by CCG, 2013/14 | G49: =Report!F50 -> Secondary Care Treatment | H49: =Report!I50 -> 3 | I49: =Report!J50 -> Good | K49: =Report!K50 -> 86.36363636 | L49: =Report!L50 -> 80.05230453 | M49: =Report!M50 -> 90.90497174 | N49: =Report!Q50 -> 82.19264541 | O49: =Report!R50 -> 79.97653038 | P49: =Report!S50 -> 82.6317345 | R49: =Report!N50 -> 5 | S49: =Report!P50 -> NHS Airedale, Wharfedale and Craven | T49: =Report!O50 -> G | U49: =Report!T50 -> A | V49: =Report!U50 -> G | W49: =Report!V50 -> A | Y49: =Report!W50 ->  | Z49: =Report!X50 ->  | AA49: =Report!Y50 ->  | AC49: =Report!AB50 -> To help understand how the management of Musculoskeletal System Problems affects expenditure and outcomes in the CCG please visit the Commissioning for Value website and download a 2014 pack. | AD49: http://www.england.nhs.uk/resources/resources-for-ccgs/comm-for-value/ http://pathways.nice.org.uk/pathways/musculoskeletal-conditions http://www.arthritisresearchuk.org/mskcalculator | AE49: Click here | AF49: Click here
B50: =Report!C51 -> Problems of the Musculo-skeletal System | C50: =Report!D51 -> Problems of the Musculo Skeletal System | D50: =Report!E51 -> Trauma & Injury | E50: =Report!G51 -> 58 | F50: =Report!H51 -> Map 58: Mean length of stay (days) for emergency admission to hospital for fractured neck of femur (FNOF) by CCG, 2012/13 | G50: =Report!F51 -> Secondary Care Treatment | H50: =Report!I51 -> 3 | I50: =Report!J51 -> Improvement Opportunity | K50: =Report!K51 -> 18.15277778 | L50: =Report!L51 -> 16.24041616 | M50: =Report!M51 -> 20.0651394 | N50: =Report!Q51 -> 18.79030721 | O50: =Report!R51 -> 18.7459244 | P50: =Report!S51 -> 17.03525844 | R50: =Report!N51 -> 3 | S50: =Report!P51 -> NHS South West Lincolnshire | T50: =Report!O51 -> A | U50: =Report!T51 -> A | V50: =Report!U51 -> A | W50: =Report!V51 -> A | Y50: =Report!W51 ->  | Z50: =Report!X51 ->  | AA50: =Report!Y51 -> 1.117519339 | AC50: =Report!AB51 -> To help understand how the management of Trauma & Injury affects expenditure and outcomes in the CCG please visit the Commissioning for Value website and download a 2014 pack. | AD50: http://www.england.nhs.uk/resources/resources-for-ccgs/comm-for-value/ http://pathways.nice.org.uk/pathways/falls-in-older-people http://pathways.nice.org.uk/pathways/unintentional-injuries-among-under-15s http://pathways.nice.org.uk/pathways/hip-fracture | AE50: Click here | AF50: Click here
B51: =Report!C52 -> Problems of the Musculo-skeletal System | C51: =Report!D52 -> Problems of the Musculo Skeletal System | D51: =Report!E52 -> Musculoskeletal System Problems (Excludes Trauma) | E51: =Report!G52 -> 59 | F51: =Report!H52 -> Map 59: Rate of primary hip replacement procedures per 100,000 population by CCG, 2012/13 | G51: =Report!F52 -> Secondary Care Treatment | H51: =Report!I52 -> 3 | I51: =Report!J52 -> Requires Local Interpretation | K51: =Report!K52 -> 170.6912541 | L51: =Report!L52 -> 150.9037595 | M51: =Report!M52 -> 192.3308131 | N51: =Report!Q52 -> 137.3952523 | O51: =Report!R52 -> 146.8114374 | P51: =Report!S52 ->  | R51: =Report!N52 -> 5 | S51: =Report!P52 ->  | T51: =Report!O52 ->  | U51: =Report!T52 -> Requires Local Interpretation | V51: =Report!U52 -> Requires Local Interpretation | W51: =Report!V52 -> Requires Local Interpretation | Y51: =Report!W52 ->  | Z51: =Report!X52 ->  | AA51: =Report!Y52 ->  | AC51: =Report!AB52 -> To help understand how the management of Musculoskeletal System Problems affects expenditure and outcomes in the CCG please visit the Commissioning for Value website and download a 2014 pack. | AD51: http://www.england.nhs.uk/resources/resources-for-ccgs/comm-for-value/ http://pathways.nice.org.uk/pathways/musculoskeletal-conditions http://www.arthritisresearchuk.org/mskcalculator | AE51: Click here | AF51: Click here
B52: =Report!C53 -> Problems of the Musculo-skeletal System | C52: =Report!D53 -> Problems of the Musculo Skeletal System | D52: =Report!E53 -> Musculoskeletal System Problems (Excludes Trauma) | E52: =Report!G53 -> 60 | F52: =Report!H53 -> Map 60: Mean patient-reported health gain (EQ-5D index score) for primary hip replacement procedures by CCG, 2013/14 | G52: =Report!F53 -> Secondary Care Treatment | H52: =Report!I53 -> 3 | I52: =Report!J53 -> Good | K52: =Report!K53 -> 0.405 | L52: =Report!L53 -> No Data | M52: =Report!M53 -> No Data | N52: =Report!Q53 -> 0.4355165877 | O52: =Report!R53 -> 0.4198181818 | P52: =Report!S53 -> 0.4435 | R52: =Report!N53 -> 2 | S52: =Report!P53 -> NHS West Essex | T52: =Report!O53 -> A | U52: =Report!T53 ->  | V52: =Report!U53 ->  | W52: =Report!V53 ->  | Y52: =Report!W53 -> 0.03051658768 | Z52: =Report!X53 -> 0.01481818182 | AA52: =Report!Y53 -> 0.0385 | AC52: =Report!AB53 -> To help understand how the management of Musculoskeletal System Problems affects expenditure and outcomes in the CCG please visit the Commissioning for Value website and download a 2014 pack. | AD52: http://www.england.nhs.uk/resources/resources-for-ccgs/comm-for-value/ http://pathways.nice.org.uk/pathways/musculoskeletal-conditions http://www.arthritisresearchuk.org/mskcalculator | AE52: Click here | AF52: Click here
B53: =Report!C54 -> Care of Older People | C53: =Report!D54 -> No Subcategory | D53: =Report!E54 -> Dementia and LTCs | E53: =Report!G54 -> 61 | F53: =Report!H54 -> Map 61: Rate of emergency admission to hospital for people aged 75 years and over with a length of stay of less than 24 hours per 100,000 population by CCG, 2012/13 | G53: =Report!F54 -> Secondary Care Treatment | H53: =Report!I54 -> 2, 3, 5 | I53: =Report!J54 -> Improvement Opportunity | K53: =Report!K54 -> 1244.759755 | L53: =Report!L54 -> 1075.322372 | M53: =Report!M54 -> 1433.31221 | N53: =Report!Q54 -> 5261.498034 | O53: =Report!R54 -> 4750.361072 | P53: =Report!S54 -> 3570.648552 | R53: =Report!N54 -> 1 | S53: =Report!P54 -> NHS Airedale, Wharfedale and Craven | T53: =Report!O54 -> G | U53: =Report!T54 -> G | V53: =Report!U54 -> G | W53: =Report!V54 -> G | Y53: =Report!W54 ->  | Z53: =Report!X54 ->  | AA53: =Report!Y54 ->  | AC53: =Report!AB54 -> To help understand how the management of dementia and long-term conditions affects expenditure and outcomes in the CCG please visit the Commissioning for Value website and download a 2015 pack. | AD53: http://www.england.nhs.uk/resources/resources-for-ccgs/comm-for-value/ http://pathways.nice.org.uk/pathways/dementia | AE53: Click here | AF53: Click here
B54: =Report!C55 -> Care of Older People | C54: =Report!D55 -> No Subcategory | D54: =Report!E55 -> Dementia and LTCs | E54: =Report!G55 -> 62 | F54: =Report!H55 -> Map 62: Rate of admission to hospital for people aged 75 years and over from nursing home or residential care home settings per 1,000 population by CCG, 2012/13 | G54: =Report!F55 -> End of Life, Social Care & Rehabilitation | H54: =Report!I55 -> 2, 3, 5 | I54: =Report!J55 -> Improvement Opportunity | K54: =Report!K55 -> 1.289906482 | L54: =Report!L55 -> 0.787572584 | M54: =Report!M55 -> 1.992266613 | N54: =Report!Q55 -> 4.827930648 | O54: =Report!R55 -> 6.001941806 | P54: =Report!S55 -> 1.135951604 | R54: =Report!N55 -> 3 | S54: =Report!P55 -> NHS South West Lincolnshire | T54: =Report!O55 -> A | U54: =Report!T55 -> G | V54: =Report!U55 -> G | W54: =Report!V55 -> A | Y54: =Report!W55 ->  | Z54: =Report!X55 ->  | AA54: =Report!Y55 -> 0.1539548776 | AC54: =Report!AB55 -> To help understand how the management of dementia and long-term conditions affects expenditure and outcomes in the CCG please visit the Commissioning for Value website and download a 2015 pack. | AD54: http://www.england.nhs.uk/resources/resources-for-ccgs/comm-for-value/ http://pathways.nice.org.uk/pathways/dementia | AE54: Click here | AF54: Click here
B55: =Report!C56 -> End-of-Life Care | C55: =Report!D56 -> No Subcategory | D55: =Report!E56 -> Dementia and LTCs | E55: =Report!G56 -> 67 | F55: =Report!H56 -> Map 67: Percentage of all deaths that occurred in usual place of residence by CCG, 2013 | G55: =Report!F56 -> End of Life, Social Care & Rehabilitation | H55: =Report!I56 -> 4 | I55: =Report!J56 -> Good | K55: =Report!K56 -> 53.61803084 | L55: =Report!L56 -> 50.12274485 | M55: =Report!M56 -> 57.11331683 | N55: =Report!Q56 -> 43.55337506 | O55: =Report!R56 -> 45.8965025 | P55: =Report!S56 -> 47.97691479 | R55: =Report!N56 -> 5 | S55: =Report!P56 -> NHS Airedale, Wharfedale and Craven | T55: =Report!O56 -> G | U55: =Report!T56 -> G | V55: =Report!U56 -> G | W55: =Report!V56 -> G | Y55: =Report!W56 ->  | Z55: =Report!X56 ->  | AA55: =Report!Y56 ->  | AC55: =Report!AB56 -> To help understand how the management of dementia and long-term conditions affects expenditure and outcomes in the CCG please visit the Commissioning for Value website and download a 2015 pack. | AD55: http://www.england.nhs.uk/resources/resources-for-ccgs/comm-for-value/ http://pathways.nice.org.uk/pathways/dementia | AE55: Click here | AF55: Click here
B56: =Report!C57 -> Care of Mothers, Babies, Children and Young People | C56: =Report!D57 -> No Subcategory | D56: =Report!E57 -> Maternity and Early Years | E56: =Report!G57 -> 74 | F56: =Report!H57 -> Map 74: Percentage of re-admissions to hospital following an elective Caesarean section that occurred within 28 days of discharge by CCG, 2012/13 | G56: =Report!F57 -> Prevention and Early Diagnosis | H56: =Report!I57 -> 4, 5 | I56: =Report!J57 -> Improvement Opportunity | K56: =Report!K57 -> 10.58823529 | L56: =Report!L57 -> 6.803069762 | M56: =Report!M57 -> 16.11526509 | N56: =Report!Q57 -> 11.31467069 | O56: =Report!R57 -> 9.704103845 | P56: =Report!S57 -> 8.444698995 | R56: =Report!N57 -> 3 | S56: =Report!P57 -> NHS West Essex | T56: =Report!O57 -> A | U56: =Report!T57 -> A | V56: =Report!U57 -> A | W56: =Report!V57 -> A | Y56: =Report!W57 ->  | Z56: =Report!X57 -> 0.8841314496 | AA56: =Report!Y57 -> 2.1435363 | AC56: =Report!AB57 -> To help understand how the management of maternity and early years affects expenditure and outcomes in the Local Authority please visit the Commissioning for Value website and download a 2015 pack. | AD56: http://www.england.nhs.uk/resources/resources-for-ccgs/comm-for-value/ http://pathways.nice.org.uk/ https://sustain.sharepoint.com/Documents/HCP%20Integrated%20Com%20and%20Del%20toolkit%20final.pdf | AE56: Click here | AF56: Click here
B57: =Report!C58 -> Care of Mothers, Babies, Children and Young People | C57: =Report!D58 -> No Subcategory | D57: =Report!E58 -> Maternity and Early Years | E57: =Report!G58 -> 75 | F57: =Report!H58 -> Map 75: Rate of emergency admissions to hospital of babies within 14 days of being born per 1,000 deliveries by CCG, 2012/13 | G57: =Report!F58 -> Secondary Care Treatment | H57: =Report!I58 -> 5 | I57: =Report!J58 -> Improvement Opportunity | K57: =Report!K58 -> 52.23447475 | L57: =Report!L58 -> 42.00268609 | M57: =Report!M58 -> 64.2050376 | N57: =Report!Q58 -> 55.61109843 | O57: =Report!R58 -> 55.92717303 | P57: =Report!S58 -> 36.03844019 | R57: =Report!N58 -> 3 | S57: =Report!P58 -> NHS Ashford | T57: =Report!O58 -> A | U57: =Report!T58 -> A | V57: =Report!U58 -> A | W57: =Report!V58 -> R | Y57: =Report!W58 ->  | Z57: =Report!X58 ->  | AA57: =Report!Y58 -> 16.19603456 | AC57: =Report!AB58 -> To help understand how the management of maternity and early years affects expenditure and outcomes in the Local Authority please visit the Commissioning for Value website and download a 2015 pack. | AD57: http://www.england.nhs.uk/resources/resources-for-ccgs/comm-for-value/ http://pathways.nice.org.uk/ https://sustain.sharepoint.com/Documents/HCP%20Integrated%20Com%20and%20Del%20toolkit%20final.pdf | AE57: Click here | AF57: Click here
B58: =Report!C59 -> Care of Mothers, Babies, Children and Young People | C58: =Report!D59 -> No Subcategory | D58: =Report!E59 -> Maternity and Early Years | E58: =Report!G59 -> 79 | F58: =Report!H59 -> Map 79: Rate of admission to hospital for dental caries in children aged 1-4 years per 100,000 population by CCG, 2010/11-2012/13 | G58: =Report!F59 -> Prevention and Early Diagnosis | H58: =Report!I59 -> 5 | I58: =Report!J59 -> Improvement Opportunity | K58: =Report!K59 -> 446.2775753 | L58: =Report!L59 -> 361.0652085 | M58: =Report!M59 -> 545.5511933 | N58: =Report!Q59 -> 357.9141428 | O58: =Report!R59 -> 311.1237253 | P58: =Report!S59 -> 64.9995663 | R58: =Report!N59 -> 4 | S58: =Report!P59 -> NHS South Worcestershire | T58: =Report!O59 -> R | U58: =Report!T59 -> R | V58: =Report!U59 -> R | W58: =Report!V59 -> R | Y58: =Report!W59 -> 88.36343241 | Z58: =Report!X59 -> 135.1538499 | AA58: =Report!Y59 -> 381.278009 | AC58: =Report!AB59 -> To help understand how the management of maternity and early years affects expenditure and outcomes in the Local Authority please visit the Commissioning for Value website and download a 2015 pack. | AD58: http://www.england.nhs.uk/resources/resources-for-ccgs/comm-for-value/ http://pathways.nice.org.uk/ https://sustain.sharepoint.com/Documents/HCP%20Integrated%20Com%20and%20Del%20toolkit%20final.pdf | AE58: Click here | AF58: Click here
B59: =Report!C60 -> Care of Mothers, Babies, Children and Young People | C59: =Report!D60 -> No Subcategory | D59: =Report!E60 -> Respiratory System Problems - Asthma | E59: =Report!G60 -> 83 | F59: =Report!H60 -> Map 83: Emergency asthma admission rate for children aged 0-18 years per 100,000 population by CCG, 2012/13 | G59: =Report!F60 -> Secondary Care Treatment | H59: =Report!I60 -> 2, 4 | I59: =Report!J60 -> Improvement Opportunity | K59: =Report!K60 -> 210.9790004 | L59: =Report!L60 -> 165.3738575 | M59: =Report!M60 -> 265.2744177 | N59: =Report!Q60 -> 220.8175884 | O59: =Report!R60 -> 172.4362619 | P59: =Report!S60 -> 138.5622332 | R59: =Report!N60 -> 3 | S59: =Report!P60 -> NHS Newark & Sherwood | T59: =Report!O60 -> A | U59: =Report!T60 -> A | V59: =Report!U60 -> A | W59: =Report!V60 -> R | Y59: =Report!W60 ->  | Z59: =Report!X60 -> 38.54273851 | AA59: =Report!Y60 -> 72.41676715 | AC59: =Report!AB60 -> To help understand how the management of Asthma affects expenditure and outcomes in the CCG please visit the Commissioning for Value website and download a 2014 pack. | AD59: http://www.england.nhs.uk/resources/resources-for-ccgs/comm-for-value/ http://pathways.nice.org.uk/pathways/asthma | AE59: Click here | AF59: Click here
B60: =Report!C61 -> Care of Mothers, Babies, Children and Young People | C60: =Report!D61 -> No Subcategory | D60: =Report!E61 -> Respiratory System Problems - Asthma | E60: =Report!G61 -> 84 | F60: =Report!H61 -> Map 84: Mean length of stay (days) for asthma in children aged 0-18 years by CCG, 2012/13 | G60: =Report!F61 -> Prevention and Early Diagnosis | H60: =Report!I61 -> 2, 4 | I60: =Report!J61 -> Improvement Opportunity | K60: =Report!K61 -> 1.534246575 | L60: =Report!L61 -> 1.263293884 | M60: =Report!M61 -> 1.846097305 | N60: =Report!Q61 -> 1.268743448 | O60: =Report!R61 -> 1.26448604 | P60: =Report!S61 -> 0.9393344958 | R60: =Report!N61 -> 5 | S60: =Report!P61 -> NHS South West Lincolnshire | T60: =Report!O61 -> R | U60: =Report!T61 -> A | V60: =Report!U61 -> A | W60: =Report!V61 -> R | Y60: =Report!W61 -> 0.2655031276 | Z60: =Report!X61 -> 0.2697605355 | AA60: =Report!Y61 -> 0.5949120796 | AC60: =Report!AB61 -> To help understand how the management of psychosis and common mental health disorders affect expenditure and outcomes in the CCG please visit the Commissioning for Value website and download a 2014 pack. | AD60: http://www.england.nhs.uk/resources/resources-for-ccgs/comm-for-value/ http://pathways.nice.org.uk/pathways/psychosis-and-schizophrenia http://pathways.nice.org.uk/pathways/common-mental-health-disorders-in-primary-care | AE60: Click here | AF60: Click here
B61: =Report!C62 -> Care of Mothers, Babies, Children and Young People | C61: =Report!D62 -> No Subcategory | D61: =Report!E62 -> Maternity and Early Years | E61: =Report!G62 -> 86 | F61: =Report!H62 -> Map 86: Rate of children and young people aged 0-18 years with three or more admissions to hospital per year for mental health problems per 100,000 population by CCG, 2012/13 | G61: =Report!F62 -> End of Life, Social Care & Rehabilitation | H61: =Report!I62 -> 2 | I61: =Report!J62 -> Improvement Opportunity | K61: =Report!K62 -> 106.586499 | L61: =Report!L62 -> 75.78380593 | M61: =Report!M62 -> 145.7119929 | N61: =Report!Q62 -> 78.20388332 | O61: =Report!R62 -> 75.40253613 | P61: =Report!S62 -> 54.93636169 | R61: =Report!N62 -> 4 | S61: =Report!P62 -> NHS East Staffordshire | T61: =Report!O62 -> R | U61: =Report!T62 -> A | V61: =Report!U62 -> R | W61: =Report!V62 -> R | Y61: =Report!W62 -> 28.38261572 | Z61: =Report!X62 -> 31.18396291 | AA61: =Report!Y62 -> 51.65013735 | AC61: =Report!AB62 -> To help understand how the management of maternity and early years affects expenditure and outcomes in the Local Authority please visit the Commissioning for Value website and download a 2015 pack. | AD61: http://www.england.nhs.uk/resources/resources-for-ccgs/comm-for-value/ http://pathways.nice.org.uk/ https://sustain.sharepoint.com/Documents/HCP%20Integrated%20Com%20and%20Del%20toolkit%20final.pdf | AE61: Click here | AF61: Click here
B62: =Report!C63 -> Care of Mothers, Babies, Children and Young People | C62: =Report!D63 -> No Subcategory | D62: =Report!E63 -> Maternity and Early Years | E62: =Report!G63 -> 87 | F62: =Report!H63 -> Map 87: Rate of accident and emergency (A&E) attendance in children and young people aged 0-19 years per 1,000 population by CCG 2012/13 | G62: =Report!F63 -> Prevention and Early Diagnosis | H62: =Report!I63 -> 3 | I62: =Report!J63 -> Improvement Opportunity | K62: =Report!K63 -> 300.2661837 | L62: =Report!L63 -> 294.6661326 | M62: =Report!M63 -> 305.9459158 | N62: =Report!Q63 -> 382.5497879 | O62: =Report!R63 -> 322.1162263 | P62: =Report!S63 -> 299.410515 | R62: =Report!N63 -> 2 | S62: =Report!P63 -> NHS Harrogate and Rural District | T62: =Report!O63 -> A | U62: =Report!T63 -> G | V62: =Report!U63 -> G | W62: =Report!V63 -> A | Y62: =Report!W63 ->  | Z62: =Report!X63 ->  | AA62: =Report!Y63 -> 0.8556686519 | AC62: =Report!AB63 -> To help understand how the management of maternity and early years affects expenditure and outcomes in the Local Authority please visit the Commissioning for Value website and download a 2015 pack. | AD62: http://www.england.nhs.uk/resources/resources-for-ccgs/comm-for-value/ http://pathways.nice.org.uk/ https://sustain.sharepoint.com/Documents/HCP%20Integrated%20Com%20and%20Del%20toolkit%20final.pdf | AE62: Click here | AF62: Click here
B63: =Report!C64 -> Care of Mothers, Babies, Children and Young People | C63: =Report!D64 -> No Subcategory | D63: =Report!E64 -> Maternity and Early Years | E63: =Report!G64 -> 88 | F63: =Report!H64 -> Map 88: Rate of elective admission to hospital for tonsillectomy in children aged 0-17 years per 100,000 population by CCG, 2012/12 | G63: =Report!F64 -> Prevention and Early Diagnosis | H63: =Report!I64 -> 2 | I63: =Report!J64 -> Improvement Opportunity | K63: =Report!K64 -> 257.1869026 | L63: =Report!L64 -> 205.1181324 | M63: =Report!M64 -> 318.4433718 | N63: =Report!Q64 -> 256.0593742 | O63: =Report!R64 -> 269.4720162 | P63: =Report!S64 -> 230.1319491 | R63: =Report!N64 -> 3 | S63: =Report!P64 -> NHS Harrogate and Rural District | T63: =Report!O64 -> A | U63: =Report!T64 -> A | V63: =Report!U64 -> A | W63: =Report!V64 -> A | Y63: =Report!W64 -> 1.127528402 | Z63: =Report!X64 ->  | AA63: =Report!Y64 -> 27.05495355 | AC63: =Report!AB64 -> To help understand how the management of maternity and early years affects expenditure and outcomes in the Local Authority please visit the Commissioning for Value website and download a 2015 pack. | AD63: http://www.england.nhs.uk/resources/resources-for-ccgs/comm-for-value/ http://pathways.nice.org.uk/ https://sustain.sharepoint.com/Documents/HCP%20Integrated%20Com%20and%20Del%20toolkit%20final.pdf | AE63: Click here | AF63: Click here
B64: =Report!C65 -> Problems of Learning Disability | C64: =Report!D65 -> No Subcategory | D64: =Report!E65 -> No Pathway | E64: =Report!G65 -> 92 | F64: =Report!H65 -> Map 92: Prevalence rate of people with a learning disability aged 18 years and over per 1,000 patients on GP registers by CCG, 2013/14 | G64: =Report!F65 -> Prevention and Early Diagnosis | H64: =Report!I65 -> 2, 5 | I64: =Report!J65 -> Requires Local Interpretation | K64: =Report!K65 -> 4.251086743 | L64: =Report!L65 -> 3.895497379 | M64: =Report!M65 -> 4.630410396 | N64: =Report!Q65 -> 4.864323033 | O64: =Report!R65 -> 5.30952238 | P64: =Report!S65 ->  | R64: =Report!N65 -> 2 | S64: =Report!P65 ->  | T64: =Report!O65 ->  | U64: =Report!T65 -> Requires Local Interpretation | V64: =Report!U65 -> Requires Local Interpretation | W64: =Report!V65 -> Requires Local Interpretation | Y64: =Report!W65 ->  | Z64: =Report!X65 ->  | AA64: =Report!Y65 ->  | AC64: =Report!AB65 -> This indicator is not part of the pathways covered by Commissioning for Value. For more information around spend by programme budgeting category, please download the Programme Budgeting Benchmarking Tool. Spend on this area may be included in 06X | AD64: http://www.england.nhs.uk/wp-content/uploads/2015/06/13-14-ccg-prog-bug-benchmarking-tool.xlsm http://pathways.nice.org.uk/pathways/challenging-behaviour-and-learning-disabilities | AE64: Click here | AF64: Click here
B65: =Report!C66 -> Emergency Care | C65: =Report!D66 -> No Subcategory | D65: =Report!E66 -> No Pathway | E65: =Report!G66 -> 93 | F65: =Report!H66 -> Map 93: Rate of accident and emergency (A&E) attendances per 1,000 population by CCG, 2012/13 | G65: =Report!F66 -> Secondary Care Treatment | H65: =Report!I66 -> 3 | I65: =Report!J66 -> Improvement Opportunity | K65: =Report!K66 -> 277.2061216 | L65: =Report!L66 -> 274.5706803 | M65: =Report!M66 -> 279.8602642 | N65: =Report!Q66 -> 340.6763679 | O65: =Report!R66 -> 297.2759209 | P65: =Report!S66 -> 277.2881243 | R65: =Report!N66 -> 2 | S65: =Report!P66 -> NHS Harrogate and Rural District | T65: =Report!O66 -> G | U65: =Report!T66 -> G | V65: =Report!U66 -> G | W65: =Report!V66 -> A | Y65: =Report!W66 ->  | Z65: =Report!X66 ->  | AA65: =Report!Y66 ->  | AC65: =Report!AB66 -> This indicator is not part of the pathways covered by Commissioning for Value. For more information around spend by programme budgeting category, please download the Programme Budgeting Benchmarking Tool. Spend on this area may be included within 23F | AD65: http://www.england.nhs.uk/wp-content/uploads/2015/06/13-14-ccg-prog-bug-benchmarking-tool.xlsm | AE65: Click here | AF65: Click here
B66: =Report!C67 -> Emergency Care | C66: =Report!D67 -> No Subcategory | D66: =Report!E67 -> No Pathway | E66: =Report!G67 -> 94 | F66: =Report!H67 -> Map 94: Percentage of accident and emergency (A&E) attendances that result in emergency admission to hospital by CCG, 2012/13 | G66: =Report!F67 -> Secondary Care Treatment | H66: =Report!I67 -> 3 | I66: =Report!J67 -> Improvement Opportunity | K66: =Report!K67 -> 20.33945689 | L66: =Report!L67 -> 19.93226525 | M66: =Report!M67 -> 20.75287347 | N66: =Report!Q67 -> 21.3010585 | O66: =Report!R67 -> 21.26831074 | P66: =Report!S67 -> 19.70220397 | R66: =Report!N67 -> 3 | S66: =Report!P67 -> NHS Harrogate and Rural District | T66: =Report!O67 -> A | U66: =Report!T67 -> G | V66: =Report!U67 -> G | W66: =Report!V67 -> R | Y66: =Report!W67 ->  | Z66: =Report!X67 ->  | AA66: =Report!Y67 -> 0.6372529196 | AC66: =Report!AB67 -> This indicator is not part of the pathways covered by Commissioning for Value. For more information around spend by programme budgeting category, please download the Programme Budgeting Benchmarking Tool. Spend on this area may be included within 23F | AD66: http://www.england.nhs.uk/wp-content/uploads/2015/06/13-14-ccg-prog-bug-benchmarking-tool.xlsm | AE66: Click here | AF66: Click here
B67: =Report!C68 -> Emergency Care | C67: =Report!D68 -> No Subcategory | D67: =Report!E68 -> Dementia and LTCs | E67: =Report!G68 -> 95 | F67: =Report!H68 -> Map 95: Rate of emergency admission to hospital for ambulatory care-sensitive conditions per 100,000 population by CCG, 2012/13 | G67: =Report!F68 -> Primary Care Management | H67: =Report!I68 -> 3 | I67: =Report!J68 -> Improvement Opportunity | K67: =Report!K68 -> 716.8 | L67: =Report!L68 -> 677.4 | M67: =Report!M68 -> 757.9 | N67: =Report!Q68 -> 830.2938389 | O67: =Report!R68 -> 752.4363636 | P67: =Report!S68 -> 662.95 | R67: =Report!N68 -> 2 | S67: =Report!P68 -> NHS Harrogate and Rural District | T67: =Report!O68 -> A | U67: =Report!T68 -> G | V67: =Report!U68 -> A | W67: =Report!V68 -> R | Y67: =Report!W68 ->  | Z67: =Report!X68 ->  | AA67: =Report!Y68 -> 53.85 | AC67: =Report!AB68 -> To help understand how the management of dementia and long-term conditions affects expenditure and outcomes in the CCG please visit the Commissioning for Value website and download a 2015 pack. Spend on this area may be included within 23F | AD67: http://www.england.nhs.uk/resources/resources-for-ccgs/comm-for-value/ http://pathways.nice.org.uk/pathways/dementia | AE67: Click here | AF67: Click here
B68: =Report!C69 -> Critical Care | C68: =Report!D69 -> No Subcategory | D68: =Report!E69 -> Genitourinary - Renal | E68: =Report!G69 -> 97 | F68: =Report!H69 -> Map 97: Percentage of elective admissions for abdominal aortic aneurysm (AAA) or aorto-bifemoral bifurcation graft procedures that had planned access to adult critical care by CCG, 2013/14 | G68: =Report!F69 -> Secondary Care Treatment | H68: =Report!I69 -> 1, 4 | I68: =Report!J69 -> Good | K68: =Report!K69 -> No Data | L68: =Report!L69 -> No Data | M68: =Report!M69 -> No Data | N68: =Report!Q69 -> 85.50352843 | O68: =Report!R69 -> 89.52777778 | P68: =Report!S69 -> 100 | R68: =Report!N69 -> No Data | S68: =Report!P69 -> NHS East Staffordshire & NHS West Essex | T68: =Report!O69 ->  | U68: =Report!T69 ->  | V68: =Report!U69 ->  | W68: =Report!V69 ->  | Y68: =Report!W69 ->  | Z68: =Report!X69 ->  | AA68: =Report!Y69 ->  | AC68: =Report!AB69 -> To help understand how the management of the renal system affects expenditure and outcomes in the CCG please visit the Commissioning for Value website and download a 2014 pack. | AD68: http://www.england.nhs.uk/resources/resources-for-ccgs/comm-for-value/ http://pathways.nice.org.uk/pathways/chronic-kidney-disease | AE68: Click here | AF68: Click here
B69: =Report!C70 -> Critical Care | C69: =Report!D70 -> No Subcategory | D69: =Report!E70 -> Genitourinary - Renal, Cancer & Tumours - Lower GI Cancer | E69: =Report!G70 -> 98 | F69: =Report!H70 -> Map 98: Percentage of emergency admissions for excision colorectal surgery that had planned access to adult critical care by CCG, 2013/14 | G69: =Report!F70 -> Secondary Care Treatment | H69: =Report!I70 -> 1, 4 | I69: =Report!J70 -> Good | K69: =Report!K70 -> 52.38095238 | L69: =Report!L70 -> 32.3692179 | M69: =Report!M70 -> 71.6562877 | N69: =Report!Q70 -> 53.7163973 | O69: =Report!R70 -> 59.06374885 | P69: =Report!S70 -> 66.21621622 | R69: =Report!N70 -> 3 | S69: =Report!P70 -> NHS East Staffordshire | T69: =Report!O70 -> A | U69: =Report!T70 -> A | V69: =Report!U70 -> A | W69: =Report!V70 -> A | Y69: =Report!W70 -> 1.335444915 | Z69: =Report!X70 -> 6.68279647 | AA69: =Report!Y70 -> 13.83526384 | AC69: =Report!AB70 -> To help understand how the management of the renal system affects expenditure and outcomes in the CCG please visit the Commissioning for Value website and download a 2014 pack. | AD69: http://www.england.nhs.uk/resources/resources-for-ccgs/comm-for-value/ http://pathways.nice.org.uk/pathways/chronic-kidney-disease | AE69: Click here | AF69: Click here

Sheet Guidance & Screencasts

Sheet Drop-Down Menus (hidden)
A1: Drop-Down Menus
B3: Purpose : Store information for drop-down CCG menu which will drive displays in charts
C17: 1
C18: =OFFSET(C20,C17,0) -> NHS Airedale, Wharfedale and Craven
C20: SELECT CCG
B21: 1 | C21: NHS Airedale, Wharfedale and Craven
B22: 2 | C22: NHS Ashford
B23: 3 | C23: NHS Aylesbury Vale
B24: 4 | C24: NHS Barking and Dagenham
B25: 5 | C25: NHS Barnet
B26: 6 | C26: NHS Barnsley
B27: 7 | C27: NHS Basildon and Brentwood
B28: 8 | C28: NHS Bassetlaw
B29: 9 | C29: NHS Bath and North East Somerset
B30: 10 | C30: NHS Bedfordshire
B31: 11 | C31: NHS Bexley
B32: 12 | C32: NHS Birmingham Crosscity
B33: 13 | C33: NHS Birmingham South and Central
B34: 14 | C34: NHS Blackburn with Darwen
B35: 15 | C35: NHS Blackpool
B36: 16 | C36: NHS Bolton
B37: 17 | C37: NHS Bracknell and Ascot
B38: 18 | C38: NHS Bradford City
B39: 19 | C39: NHS Bradford Districts
B40: 20 | C40: NHS Brent
B41: 21 | C41: NHS Brighton and Hove
B42: 22 | C42: NHS Bristol
B43: 23 | C43: NHS Bromley
B44: 24 | C44: NHS Bury
B45: 25 | C45: NHS Calderdale
B46: 26 | C46: NHS Cambridgeshire and Peterborough
B47: 27 | C47: NHS Camden
B48: 28 | C48: NHS Cannock Chase
B49: 29 | C49: NHS Canterbury and Coastal
B50: 30 | C50: NHS Castle Point and Rochford
B51: 31 | C51: NHS Central London (Westminster)
B52: 32 | C52: NHS Central Manchester
B53: 33 | C53: NHS Chiltern
B54: 34 | C54: NHS Chorley and South Ribble
B55: 35 | C55: NHS City and Hackney
B56: 36 | C56: NHS Coastal West Sussex
B57: 37 | C57: NHS Corby
B58: 38 | C58: NHS Coventry and Rugby
B59: 39 | C59: NHS Crawley
B60: 40 | C60: NHS Croydon
B61: 41 | C61: NHS Cumbria
B62: 42 | C62: NHS Darlington
B63: 43 | C63: NHS Dartford, Gravesham and Swanley
B64: 44 | C64: NHS Doncaster
B65: 45 | C65: NHS Dorset
B66: 46 | C66: NHS Dudley
B67: 47 | C67: NHS Durham Dales, Easington and Sedgefield
B68: 48 | C68: NHS Ealing
B69: 49 | C69: NHS East and North Hertfordshire
B70: 50 | C70: NHS East Lancashire
B71: 51 | C71: NHS East Leicestershire and Rutland
B72: 52 | C72: NHS East Riding of Yorkshire
B73: 53 | C73: NHS East Staffordshire
B74: 54 | C74: NHS East Surrey
B75: 55 | C75: NHS Eastbourne, Hailsham and Seaford
B76: 56 | C76: NHS Eastern Cheshire
B77: 57 | C77: NHS Enfield
B78: 58 | C78: NHS Erewash
B79: 59 | C79: NHS Fareham and Gosport
B80: 60 | C80: NHS Fylde & Wyre
B81: 61 | C81: NHS Gateshead
B82: 62 | C82: NHS Gloucestershire
B83: 63 | C83: NHS Great Yarmouth and Waveney
B84: 64 | C84: NHS Greater Huddersfield
B85: 65 | C85: NHS Greater Preston
B86: 66 | C86: NHS Greenwich
B87: 67 | C87: NHS Guildford and Waverley
B88: 68 | C88: NHS Halton
B89: 69 | C89: NHS Hambleton, Richmondshire and Whitby
B90: 70 | C90: NHS Hammersmith and Fulham
B91: 71 | C91: NHS Hardwick
B92: 72 | C92: NHS Haringey
B93: 73 | C93: NHS Harrogate and Rural District
B94: 74 | C94: NHS Harrow
B95: 75 | C95: NHS Hartlepool and Stockton-On-Tees
B96: 76 | C96: NHS Hastings and Rother
B97: 77 | C97: NHS Havering
B98: 78 | C98: NHS Herefordshire
B99: 79 | C99: NHS Herts Valleys
B100: 80 | C100: NHS Heywood, Middleton and Rochdale
B101: 81 | C101: NHS High Weald Lewes Havens
B102: 82 | C102: NHS Hillingdon
B103: 83 | C103: NHS Horsham and Mid Sussex
B104: 84 | C104: NHS Hounslow
B105: 85 | C105: NHS Hull
B106: 86 | C106: NHS Ipswich and East Suffolk
B107: 87 | C107: NHS Isle of Wight
B108: 88 | C108: NHS Islington
B109: 89 | C109: NHS Kernow
B110: 90 | C110: NHS Kingston
B111: 91 | C111: NHS Knowsley
B112: 92 | C112: NHS Lambeth
B113: 93 | C113: NHS Lancashire North
B114: 94 | C114: NHS Leeds North
B115: 95 | C115: NHS Leeds South and East
B116: 96 | C116: NHS Leeds West
B117: 97 | C117: NHS Leicester City
B118: 98 | C118: NHS Lewisham
B119: 99 | C119: NHS Lincolnshire East
B120: 100 | C120: NHS Lincolnshire West
B121: 101 | C121: NHS Liverpool
B122: 102 | C122: NHS Luton
B123: 103 | C123: NHS Mansfield and Ashfield
B124: 104 | C124: NHS Medway
B125: 105 | C125: NHS Merton
B126: 106 | C126: NHS Mid Essex
B127: 107 | C127: NHS Milton Keynes
B128: 108 | C128: NHS Nene
B129: 109 | C129: NHS Newark & Sherwood
B130: 110 | C130: NHS Newbury and District
B131: 111 | C131: NHS Newcastle North and East
B132: 112 | C132: NHS Newcastle West
B133: 113 | C133: NHS Newham
B134: 114 | C134: NHS North & West Reading
B135: 115 | C135: NHS North Derbyshire
B136: 116 | C136: NHS North Durham
B137: 117 | C137: NHS North East Essex
B138: 118 | C138: NHS North East Hampshire and Farnham
B139: 119 | C139: NHS North East Lincolnshire
B140: 120 | C140: NHS North Hampshire
B141: 121 | C141: NHS North Kirklees
B142: 122 | C142: NHS North Lincolnshire
B143: 123 | C143: NHS North Manchester
B144: 124 | C144: NHS North Norfolk
B145: 125 | C145: NHS North Somerset
B146: 126 | C146: NHS North Staffordshire
B147: 127 | C147: NHS North Tyneside
B148: 128 | C148: NHS North West Surrey
B149: 129 | C149: NHS Northern, Eastern and Western Devon
B150: 130 | C150: NHS Northumberland
B151: 131 | C151: NHS Norwich
B152: 132 | C152: NHS Nottingham City
B153: 133 | C153: NHS Nottingham North and East
B154: 134 | C154: NHS Nottingham West
B155: 135 | C155: NHS Oldham
B156: 136 | C156: NHS Oxfordshire
B157: 137 | C157: NHS Portsmouth
B158: 138 | C158: NHS Redbridge
B159: 139 | C159: NHS Redditch and Bromsgrove
B160: 140 | C160: NHS Richmond
B161: 141 | C161: NHS Rotherham
B162: 142 | C162: NHS Rushcliffe
B163: 143 | C163: NHS Salford
B164: 144 | C164: NHS Sandwell and West Birmingham
B165: 145 | C165: NHS Scarborough and Ryedale
B166: 146 | C166: NHS Sheffield
B167: 147 | C167: NHS Shropshire
B168: 148 | C168: NHS Slough
B169: 149 | C169: NHS Solihull
B170: 150 | C170: NHS Somerset
B171: 151 | C171: NHS South Cheshire
B172: 152 | C172: NHS South Devon and Torbay
B173: 153 | C173: NHS South East Staffordshire and Seisdon Peninsula
B174: 154 | C174: NHS South Eastern Hampshire
B175: 155 | C175: NHS South Gloucestershire
B176: 156 | C176: NHS South Kent Coast
B177: 157 | C177: NHS South Lincolnshire
B178: 158 | C178: NHS South Manchester
B179: 159 | C179: NHS South Norfolk
B180: 160 | C180: NHS South Reading
B181: 161 | C181: NHS South Sefton
B182: 162 | C182: NHS South Tees
B183: 163 | C183: NHS South Tyneside
B184: 164 | C184: NHS South Warwickshire
B185: 165 | C185: NHS South West Lincolnshire
B186: 166 | C186: NHS South Worcestershire
B187: 167 | C187: NHS Southampton
B188: 168 | C188: NHS Southend
B189: 169 | C189: NHS Southern Derbyshire
B190: 170 | C190: NHS Southport and Formby
B191: 171 | C191: NHS Southwark
B192: 172 | C192: NHS St Helens
B193: 173 | C193: NHS Stafford and Surrounds
B194: 174 | C194: NHS Stockport
B195: 175 | C195: NHS Stoke-on-Trent
B196: 176 | C196: NHS Sunderland
B197: 177 | C197: NHS Surrey Downs
B198: 178 | C198: NHS Surrey Heath
B199: 179 | C199: NHS Sutton
B200: 180 | C200: NHS Swale
B201: 181 | C201: NHS Swindon
B202: 182 | C202: NHS Tameside and Glossop
B203: 183 | C203: NHS Telford and Wrekin
B204: 184 | C204: NHS Thanet
B205: 185 | C205: NHS Thurrock
B206: 186 | C206: NHS Tower Hamlets
B207: 187 | C207: NHS Trafford
B208: 188 | C208: NHS Vale of York
B209: 189 | C209: NHS Vale Royal
B210: 190 | C210: NHS Wakefield
B211: 191 | C211: NHS Walsall
B212: 192 | C212: NHS Waltham Forest
B213: 193 | C213: NHS Wandsworth
B214: 194 | C214: NHS Warrington
B215: 195 | C215: NHS Warwickshire North
... 16 more rows

Sheet Report (hidden)
G1: check lookups when all settled down & updated eg erica & ben williams | O1: G
C2: CCG | E2: ='Drop-Down Menus'!$C$18 -> NHS Airedale, Wharfedale and Craven | G2: Nb not all maps have data for particulat CCGs. + Not all maps have upper & lower limits - thus cant calculat statistical significance for those maps
A4: Hide | G4: ='Rules & Lookups'!B2 -> 0.75 | L4: Hide? | M4: Hide? | O4: map sync req!
C5: MAP DESCRIPTION | K5: PERFORMANCE | N5: BENCHMARKING | W5: OPPORTUNITIES | Z5: IMPACT | AB5: FURTHER RESOURCES
A6: Lookup | B6: Lookup2 | C6: Programme of Care | D6: Programme Subcategory | E6: Pathway (From Ben Williams lookup) | F6: Pathway Settings | G6: Map # | H6: Map Title | I6: Domain | J6: Polarity - Based on Perform, High is: | K6: Value | L6: 95% LL | M6: 95% UL | N6: Quintile - Population (National England) | O6: Position against Peers (Highest # Ranks 1) | P6: Best in cluster group | Q6: England (unweighted CCG average) | R6: CCG+10 Similar (unweighted average) | S6: ="CCG+10 Similar "&$G$4*100&"th percentile value (user defined)" -> CCG+10 Similar 75th percentile value (user defined) | T6: Significantly worse than England average at 95% level? | U6: Significantly worse than 'Similar CCGs' average at 95% level? | V6: ="Significantly worse than 'Similar CCGs"&'Rules & Lookups'!$B$2*100&"th"&" Percentile at 95% level?" -> Significantly worse than 'Similar CCGs75th Percentile at 95% level? | W6: Opportunity VS. England Avg | X6: Opportunity VS. CCG+10 Similar (unweighted average) | Y6: ="Opportunity VS."&"CCG+10 Similar "&$G$4*100&"th percentile value (user defined)" -> Opportunity VS.CCG+10 Similar 75th percentile value (user defined) | Z6: Speed of Implementation (In a well managed system) | AA6: Speed of Impact (rate of return) | AB6: CFV Guidance note on where to look and options for aciton | AC6: Commissioning for Value Hyperlinks (Benchmarking Tool) | AD6: Map details: eg - Options for Action + Tools & Decision Aids etc
A7: =G7&$E$2 -> 2NHS Airedale, Wharfedale and Craven | B7: =VLOOKUP(Report!$E$2,'Rules & Lookups'!$B$6:$C$216,2,FALSE) -> E38000001 | C7: =(VLOOKUP(G7,'Map lookups'!$B$2:$P$104,7,FALSE)) -> Infectious Diseases | D7: =IF(VLOOKUP(G7,'Map lookups'!$B$2:$P$104,8,FALSE)="","No Subcategory",VLOOKUP(G7,'Map lookups'!$B$2:$P$104,8,FALSE)) -> Other Infectious Diseases | E7: =IF(VLOOKUP(G7,'Map lookups'!$B$2:$P$104,10,FALSE)="","No Pathway",VLOOKUP(G7,'Map lookups'!$B$2:$P$104,10,FALSE)) -> No Pathway | F7: =VLOOKUP(G7,'Map lookups'!$B$2:$P$104,5,FALSE) -> Primary Care Management | G7: 2 | H7: =VLOOKUP($G7,'Map lookups'!$B$2:$P$104,4,FALSE) -> Map 2: Percentage of all antibiotic prescription items in primary care that were for key antibiotics by CCG, 2013 | I7: =VLOOKUP(G7,'Map lookups'!$B$2:$P$104,6,FALSE) -> 1, 3 | J7: =IF(VLOOKUP($G7,'Master Database'!$C$4:$E$13507,3,FALSE)="Bad","Improvement Opportunity",VLOOKUP($G7,'Master Database'!$C$4:$E$13507,3,FALSE)) -> Improvement Opportunity | K7: =IF(OR(VLOOKUP($A7,'Master Database'!$D$4:$Q$13507,3,FALSE)="-",VLOOKUP($A7,'Master Database'!$D$4:$Q$13507,3,FALSE)=""),"No Data",VLOOKUP($A7,'Master Database'!$D$4:$Q$13507,3,FALSE)) -> 9.118974546 | L7: =IF(OR(VLOOKUP($A7,'Master Database'!$D$4:$Q$13507,4,FALSE)="-",VLOOKUP($A7,'Master Database'!$D$4:$Q$13507,4,FALSE)=""),"No Data",VLOOKUP($A7,'Master Database'!$D$4:$Q$13507,4,FALSE)) -> No Data | M7: =IF(OR(VLOOKUP($A7,'Master Database'!$D$4:$Q$13507,5,FALSE)="-",VLOOKUP($A7,'Master Database'!$D$4:$Q$13507,5,FALSE)=""),"No Data",VLOOKUP($A7,'Master Database'!$D$4:$Q$13507,5,FALSE)) -> No Data | N7: =IF(VLOOKUP(A7,Quintiles!$A$3:$E$13506,5,FALSE)=6,"No Data",VLOOKUP(A7,Quintiles!$A$3:$E$13506,5,FALSE)) -> 2 | O7: =INDEX('Colour Calculation'!$X$15:$CI$16,1,MATCH(Report!$G7,'Colour Calculation'!$X$16:$CI$16,0)) -> A | P7: =IFERROR(INDEX('Best performing CCG code'!$AE$7:$AL$70,MATCH("Map_"&Report!$G7,'Best performing CCG code'!$AE$7:$AE$70,0),8),"") -> NHS Harrogate and Rural District | Q7: =IF(OR(VLOOKUP($A7,'Master Database'!$D$4:$Q$13507,6,FALSE)="-",VLOOKUP($A7,'Master Database'!$D$4:$Q$13507,6,FALSE)="",VLOOKUP($A7,'Master Database'!$D$4:$Q$13507,6,FALSE)=0),"",VLOOKUP($A7,'Master Database'!$D$4:$Q$13507,6,FALSE)) -> 11.20139532 | R7: =IF(OR(VLOOKUP($A7,'Master Database'!$D$4:$Q$13507,7,FALSE)="-",VLOOKUP($A7,'Master Database'!$D$4:$Q$13507,7,FALSE)="",VLOOKUP($A7,'Master Database'!$D$4:$Q$13507,7,FALSE)=0),"",VLOOKUP($A7,'Master Database'!$D$4:$Q$13507,7,FALSE)) -> 10.5066004 | S7: =IF(OR(VLOOKUP($A7,'Master Database'!$D$4:$Q$13507,8,FALSE)="-",VLOOKUP($A7,'Master Database'!$D$4:$Q$13507,8,FALSE)=0,VLOOKUP($A7,'Master Database'!$D$4:$Q$13507,8,FALSE)=""),"",VLOOKUP($A7,'Master Database'!$D$4:$Q$13507,8,FALSE)) -> 8.726018092 | T7: =VLOOKUP($A7,'Master Database'!$D$4:$Q$13507,9,FALSE) ->  | U7: =VLOOKUP($A7,'Master Database'!$D$4:$Q$13507,10,FALSE) ->  | V7: =VLOOKUP($A7,'Master Database'!$D$4:$Q$13507,11,FALSE) ->  | W7: =IF(VLOOKUP($A7,'Master Database'!$D$4:$Q$13507,12,FALSE)=0,"",VLOOKUP($A7,'Master Database'!$D$4:$Q$13507,12,FALSE)) ->  | X7: =IF(VLOOKUP($A7,'Master Database'!$D$4:$Q$13507,13,FALSE)=0,"",VLOOKUP($A7,'Master Database'!$D$4:$Q$13507,13,FALSE)) ->  | Y7: =IF(VLOOKUP($A7,'Master Database'!$D$4:$Q$13507,14,FALSE)=0,"",VLOOKUP($A7,'Master Database'!$D$4:$Q$13507,14,FALSE)) -> 0.3929564543 | AB7: This indicator is not part of the pathways covered by Commissioning for Value. For more information around spend by programme budgeting category, please download the Programme Budgeting Benchmarking Tool | AC7: http://www.england.nhs.uk/wp-content/uploads/2015/06/13-14-ccg-prog-bug-benchmarking-tool.xlsm http://pathways.nice.org.uk/pathways/self-limiting-respiratory-tract-infections---antibiotic-prescribing http://pathways.nice.org.uk/pathways/antibiotics-for-early-onset-neonatal-infection
A8: 5NHS Airedale, Wharfedale and Craven | B8: =VLOOKUP(Report!$E$2,'Rules & Lookups'!$B$6:$C$216,2,FALSE) -> E38000001 | C8: =VLOOKUP(G8,'Map lookups'!$B$2:$P$104,7,FALSE) -> Infectious Diseases | D8: =IF(VLOOKUP(G8,'Map lookups'!$B$2:$P$104,8,FALSE)="","No Subcategory",VLOOKUP(G8,'Map lookups'!$B$2:$P$104,8,FALSE)) -> HIV and Aids | E8: =IF(VLOOKUP(G8,'Map lookups'!$B$2:$P$104,10,FALSE)="","No Pathway",VLOOKUP(G8,'Map lookups'!$B$2:$P$104,10,FALSE)) -> No Pathway | F8: =VLOOKUP(G8,'Map lookups'!$B$2:$P$104,5,FALSE) -> Secondary Care Treatment | G8: 5 | H8: =VLOOKUP($G8,'Map lookups'!$B$2:$P$104,4,FALSE) -> Map 5: Percentage of all people aged 15 years and over newly diagnosed with HIV who had a CD4 count test within one month of diagnosis by CCG, 2011-2013 | I8: =VLOOKUP(G8,'Map lookups'!$B$2:$P$104,6,FALSE) -> 1, 2 | J8: =IF(VLOOKUP($G8,'Master Database'!$C$4:$E$13507,3,FALSE)="Bad","Improvement Opportunity",VLOOKUP($G8,'Master Database'!$C$4:$E$13507,3,FALSE)) -> Good | K8: =IF(OR(VLOOKUP($A8,'Master Database'!$D$4:$Q$13507,3,FALSE)="-",VLOOKUP($A8,'Master Database'!$D$4:$Q$13507,3,FALSE)=""),"No Data",VLOOKUP($A8,'Master Database'!$D$4:$Q$13507,3,FALSE)) -> 88.8889 | L8: =IF(OR(VLOOKUP($A8,'Master Database'!$D$4:$Q$13507,4,FALSE)="-",VLOOKUP($A8,'Master Database'!$D$4:$Q$13507,4,FALSE)=""),"No Data",VLOOKUP($A8,'Master Database'!$D$4:$Q$13507,4,FALSE)) -> 56.4994 | M8: =IF(OR(VLOOKUP($A8,'Master Database'!$D$4:$Q$13507,5,FALSE)="-",VLOOKUP($A8,'Master Database'!$D$4:$Q$13507,5,FALSE)=""),"No Data",VLOOKUP($A8,'Master Database'!$D$4:$Q$13507,5,FALSE)) -> 98.011 | N8: =IF(VLOOKUP(A8,Quintiles!$A$3:$E$13506,5,FALSE)=6,"No Data",VLOOKUP(A8,Quintiles!$A$3:$E$13506,5,FALSE)) -> 3 | O8: =INDEX('Colour Calculation'!$X$15:$CI$16,1,MATCH(Report!$G8,'Colour Calculation'!$X$16:$CI$16,0)) -> A | P8: =IFERROR(INDEX('Best performing CCG code'!$AE$7:$AL$70,MATCH("Map_"&Report!$G8,'Best performing CCG code'!$AE$7:$AE$70,0),8),"") -> NHS South Worcestershire | Q8: =IF(OR(VLOOKUP($A8,'Master Database'!$D$4:$Q$13507,6,FALSE)="-",VLOOKUP($A8,'Master Database'!$D$4:$Q$13507,6,FALSE)="",VLOOKUP($A8,'Master Database'!$D$4:$Q$13507,6,FALSE)=0),"",VLOOKUP($A8,'Master Database'!$D$4:$Q$13507,6,FALSE)) -> 89.27654831 | R8: =IF(OR(VLOOKUP($A8,'Master Database'!$D$4:$Q$13507,7,FALSE)="-",VLOOKUP($A8,'Master Database'!$D$4:$Q$13507,7,FALSE)="",VLOOKUP($A8,'Master Database'!$D$4:$Q$13507,7,FALSE)=0),"",VLOOKUP($A8,'Master Database'!$D$4:$Q$13507,7,FALSE)) -> 89.55189091 | S8: =IF(OR(VLOOKUP($A8,'Master Database'!$D$4:$Q$13507,8,FALSE)="-",VLOOKUP($A8,'Master Database'!$D$4:$Q$13507,8,FALSE)=0,VLOOKUP($A8,'Master Database'!$D$4:$Q$13507,8,FALSE)=""),"",VLOOKUP($A8,'Master Database'!$D$4:$Q$13507,8,FALSE)) -> 93.75 | T8: =VLOOKUP($A8,'Master Database'!$D$4:$Q$13507,9,FALSE) -> A | U8: =VLOOKUP($A8,'Master Database'!$D$4:$Q$13507,10,FALSE) -> A | V8: =VLOOKUP($A8,'Master Database'!$D$4:$Q$13507,11,FALSE) -> A | W8: =IF(VLOOKUP($A8,'Master Database'!$D$4:$Q$13507,12,FALSE)=0,"",VLOOKUP($A8,'Master Database'!$D$4:$Q$13507,12,FALSE)) -> 0.3876483092 | X8: =IF(VLOOKUP($A8,'Master Database'!$D$4:$Q$13507,13,FALSE)=0,"",VLOOKUP($A8,'Master Database'!$D$4:$Q$13507,13,FALSE)) -> 0.6629909091 | Y8: =IF(VLOOKUP($A8,'Master Database'!$D$4:$Q$13507,14,FALSE)=0,"",VLOOKUP($A8,'Master Database'!$D$4:$Q$13507,14,FALSE)) -> 4.8611 | AB8: This indicator is not part of the pathways covered by Commissioning for Value. For more information around spend by programme budgeting category, please download the Programme Budgeting Benchmarking Tool | AC8: http://www.england.nhs.uk/wp-content/uploads/2015/06/13-14-ccg-prog-bug-benchmarking-tool.xlsm http://pathways.nice.org.uk/pathways/hiv-testing-and-prevention
A9: 6NHS Airedale, Wharfedale and Craven | B9: =VLOOKUP(Report!$E$2,'Rules & Lookups'!$B$6:$C$216,2,FALSE) -> E38000001 | C9: =VLOOKUP(G9,'Map lookups'!$B$2:$P$104,7,FALSE) -> Cancers and Tumours | D9: =IF(VLOOKUP(G9,'Map lookups'!$B$2:$P$104,8,FALSE)="","No Subcategory",VLOOKUP(G9,'Map lookups'!$B$2:$P$104,8,FALSE)) -> Other Cancer and Tumours | E9: =IF(VLOOKUP(G9,'Map lookups'!$B$2:$P$104,10,FALSE)="","No Pathway",VLOOKUP(G9,'Map lookups'!$B$2:$P$104,10,FALSE)) -> Cancer & Tumours | F9: =VLOOKUP(G9,'Map lookups'!$B$2:$P$104,5,FALSE) -> Outcomes | G9: 6 | H9: =VLOOKUP($G9,'Map lookups'!$B$2:$P$104,4,FALSE) -> Map 6: Rate of mortality from cancer in people aged under 75 years per 100,000 population by CCG, 2013 | I9: =VLOOKUP(G9,'Map lookups'!$B$2:$P$104,6,FALSE) -> 1 | J9: =IF(VLOOKUP($G9,'Master Database'!$C$4:$E$13507,3,FALSE)="Bad","Improvement Opportunity",VLOOKUP($G9,'Master Database'!$C$4:$E$13507,3,FALSE)) -> Improvement Opportunity | K9: =IF(OR(VLOOKUP($A9,'Master Database'!$D$4:$Q$13507,3,FALSE)="-",VLOOKUP($A9,'Master Database'!$D$4:$Q$13507,3,FALSE)=""),"No Data",VLOOKUP($A9,'Master Database'!$D$4:$Q$13507,3,FALSE)) -> 125.8 | L9: =IF(OR(VLOOKUP($A9,'Master Database'!$D$4:$Q$13507,4,FALSE)="-",VLOOKUP($A9,'Master Database'!$D$4:$Q$13507,4,FALSE)=""),"No Data",VLOOKUP($A9,'Master Database'!$D$4:$Q$13507,4,FALSE)) -> 109 | M9: =IF(OR(VLOOKUP($A9,'Master Database'!$D$4:$Q$13507,5,FALSE)="-",VLOOKUP($A9,'Master Database'!$D$4:$Q$13507,5,FALSE)=""),"No Data",VLOOKUP($A9,'Master Database'!$D$4:$Q$13507,5,FALSE)) -> 144.5 | N9: =IF(VLOOKUP(A9,Quintiles!$A$3:$E$13506,5,FALSE)=6,"No Data",VLOOKUP(A9,Quintiles!$A$3:$E$13506,5,FALSE)) -> 3 | O9: =INDEX('Colour Calculation'!$X$15:$CI$16,1,MATCH(Report!$G9,'Colour Calculation'!$X$16:$CI$16,0)) -> R | P9: =IFERROR(INDEX('Best performing CCG code'!$AE$7:$AL$70,MATCH("Map_"&Report!$G9,'Best performing CCG code'!$AE$7:$AE$70,0),8),"") -> NHS Harrogate and Rural District | Q9: =IF(OR(VLOOKUP($A9,'Master Database'!$D$4:$Q$13507,6,FALSE)="-",VLOOKUP($A9,'Master Database'!$D$4:$Q$13507,6,FALSE)="",VLOOKUP($A9,'Master Database'!$D$4:$Q$13507,6,FALSE)=0),"",VLOOKUP($A9,'Master Database'!$D$4:$Q$13507,6,FALSE)) -> 123.3971564 | R9: =IF(OR(VLOOKUP($A9,'Master Database'!$D$4:$Q$13507,7,FALSE)="-",VLOOKUP($A9,'Master Database'!$D$4:$Q$13507,7,FALSE)="",VLOOKUP($A9,'Master Database'!$D$4:$Q$13507,7,FALSE)=0),"",VLOOKUP($A9,'Master Database'!$D$4:$Q$13507,7,FALSE)) -> 119.3363636 | S9: =IF(OR(VLOOKUP($A9,'Master Database'!$D$4:$Q$13507,8,FALSE)="-",VLOOKUP($A9,'Master Database'!$D$4:$Q$13507,8,FALSE)=0,VLOOKUP($A9,'Master Database'!$D$4:$Q$13507,8,FALSE)=""),"",VLOOKUP($A9,'Master Database'!$D$4:$Q$13507,8,FALSE)) -> 112.3 | T9: =VLOOKUP($A9,'Master Database'!$D$4:$Q$13507,9,FALSE) -> A | U9: =VLOOKUP($A9,'Master Database'!$D$4:$Q$13507,10,FALSE) -> A | V9: =VLOOKUP($A9,'Master Database'!$D$4:$Q$13507,11,FALSE) -> A | W9: =IF(VLOOKUP($A9,'Master Database'!$D$4:$Q$13507,12,FALSE)=0,"",VLOOKUP($A9,'Master Database'!$D$4:$Q$13507,12,FALSE)) -> 2.402843602 | X9: =IF(VLOOKUP($A9,'Master Database'!$D$4:$Q$13507,13,FALSE)=0,"",VLOOKUP($A9,'Master Database'!$D$4:$Q$13507,13,FALSE)) -> 6.463636364 | Y9: =IF(VLOOKUP($A9,'Master Database'!$D$4:$Q$13507,14,FALSE)=0,"",VLOOKUP($A9,'Master Database'!$D$4:$Q$13507,14,FALSE)) -> 13.5 | AB9: To help understand the potential drivers of high cancer mortality please visit the Commissioning for Value website and download a 2014 pack. | AC9: http://www.england.nhs.uk/resources/resources-for-ccgs/comm-for-value/ http://pathways.nice.org.uk/pathways/suspected-cancer-recognition-and-referral/
A10: 7NHS Airedale, Wharfedale and Craven | B10: =VLOOKUP(Report!$E$2,'Rules & Lookups'!$B$6:$C$216,2,FALSE) -> E38000001 | C10: =VLOOKUP(G10,'Map lookups'!$B$2:$P$104,7,FALSE) -> Cancers and Tumours | D10: =IF(VLOOKUP(G10,'Map lookups'!$B$2:$P$104,8,FALSE)="","No Subcategory",VLOOKUP(G10,'Map lookups'!$B$2:$P$104,8,FALSE)) -> Other Cancer and Tumours | E10: =IF(VLOOKUP(G10,'Map lookups'!$B$2:$P$104,10,FALSE)="","No Pathway",VLOOKUP(G10,'Map lookups'!$B$2:$P$104,10,FALSE)) -> Cancer & Tumours | F10: =VLOOKUP(G10,'Map lookups'!$B$2:$P$104,5,FALSE) -> Secondary Care Treatment | G10: 7 | H10: =VLOOKUP($G10,'Map lookups'!$B$2:$P$104,4,FALSE) -> Map 7: Percentage of people aged 15-99 years who survived one year after being diagnosed with any cancer by CCG, 2012 followed up to 2013 | I10: =VLOOKUP(G10,'Map lookups'!$B$2:$P$104,6,FALSE) -> 1 | J10: =IF(VLOOKUP($G10,'Master Database'!$C$4:$E$13507,3,FALSE)="Bad","Improvement Opportunity",VLOOKUP($G10,'Master Database'!$C$4:$E$13507,3,FALSE)) -> Good | K10: =IF(OR(VLOOKUP($A10,'Master Database'!$D$4:$Q$13507,3,FALSE)="-",VLOOKUP($A10,'Master Database'!$D$4:$Q$13507,3,FALSE)=""),"No Data",VLOOKUP($A10,'Master Database'!$D$4:$Q$13507,3,FALSE)) -> 72.5 | L10: =IF(OR(VLOOKUP($A10,'Master Database'!$D$4:$Q$13507,4,FALSE)="-",VLOOKUP($A10,'Master Database'!$D$4:$Q$13507,4,FALSE)=""),"No Data",VLOOKUP($A10,'Master Database'!$D$4:$Q$13507,4,FALSE)) -> No Data | M10: =IF(OR(VLOOKUP($A10,'Master Database'!$D$4:$Q$13507,5,FALSE)="-",VLOOKUP($A10,'Master Database'!$D$4:$Q$13507,5,FALSE)=""),"No Data",VLOOKUP($A10,'Master Database'!$D$4:$Q$13507,5,FALSE)) -> No Data | N10: =IF(VLOOKUP(A10,Quintiles!$A$3:$E$13506,5,FALSE)=6,"No Data",VLOOKUP(A10,Quintiles!$A$3:$E$13506,5,FALSE)) -> 5 | O10: =INDEX('Colour Calculation'!$X$15:$CI$16,1,MATCH(Report!$G10,'Colour Calculation'!$X$16:$CI$16,0)) -> G | P10: =IFERROR(INDEX('Best performing CCG code'!$AE$7:$AL$70,MATCH("Map_"&Report!$G10,'Best performing CCG code'!$AE$7:$AE$70,0),8),"") -> NHS Airedale, Wharfedale and Craven | Q10: =IF(OR(VLOOKUP($A10,'Master Database'!$D$4:$Q$13507,6,FALSE)="-",VLOOKUP($A10,'Master Database'!$D$4:$Q$13507,6,FALSE)="",VLOOKUP($A10,'Master Database'!$D$4:$Q$13507,6,FALSE)=0),"",VLOOKUP($A10,'Master Database'!$D$4:$Q$13507,6,FALSE)) -> 68.83412322 | R10: =IF(OR(VLOOKUP($A10,'Master Database'!$D$4:$Q$13507,7,FALSE)="-",VLOOKUP($A10,'Master Database'!$D$4:$Q$13507,7,FALSE)="",VLOOKUP($A10,'Master Database'!$D$4:$Q$13507,7,FALSE)=0),"",VLOOKUP($A10,'Master Database'!$D$4:$Q$13507,7,FALSE)) -> 69.21818182 | S10: =IF(OR(VLOOKUP($A10,'Master Database'!$D$4:$Q$13507,8,FALSE)="-",VLOOKUP($A10,'Master Database'!$D$4:$Q$13507,8,FALSE)=0,VLOOKUP($A10,'Master Database'!$D$4:$Q$13507,8,FALSE)=""),"",VLOOKUP($A10,'Master Database'!$D$4:$Q$13507,8,FALSE)) -> 69.8 | T10: =VLOOKUP($A10,'Master Database'!$D$4:$Q$13507,9,FALSE) ->  | U10: =VLOOKUP($A10,'Master Database'!$D$4:$Q$13507,10,FALSE) ->  | V10: =VLOOKUP($A10,'Master Database'!$D$4:$Q$13507,11,FALSE) ->  | W10: =IF(VLOOKUP($A10,'Master Database'!$D$4:$Q$13507,12,FALSE)=0,"",VLOOKUP($A10,'Master Database'!$D$4:$Q$13507,12,FALSE)) ->  | X10: =IF(VLOOKUP($A10,'Master Database'!$D$4:$Q$13507,13,FALSE)=0,"",VLOOKUP($A10,'Master Database'!$D$4:$Q$13507,13,FALSE)) ->  | Y10: =IF(VLOOKUP($A10,'Master Database'!$D$4:$Q$13507,14,FALSE)=0,"",VLOOKUP($A10,'Master Database'!$D$4:$Q$13507,14,FALSE)) ->  | AB10: To help understand the potential drivers of high cancer mortality please visit the Commissioning for Value website and download a 2014 pack. | AC10: http://www.england.nhs.uk/resources/resources-for-ccgs/comm-for-value/ http://pathways.nice.org.uk/pathways/suspected-cancer-recognition-and-referral/
A11: 8NHS Airedale, Wharfedale and Craven | B11: =VLOOKUP(Report!$E$2,'Rules & Lookups'!$B$6:$C$216,2,FALSE) -> E38000001 | C11: =VLOOKUP(G11,'Map lookups'!$B$2:$P$104,7,FALSE) -> Cancers and Tumours | D11: =IF(VLOOKUP(G11,'Map lookups'!$B$2:$P$104,8,FALSE)="","No Subcategory",VLOOKUP(G11,'Map lookups'!$B$2:$P$104,8,FALSE)) -> Other Cancer and Tumours | E11: =IF(VLOOKUP(G11,'Map lookups'!$B$2:$P$104,10,FALSE)="","No Pathway",VLOOKUP(G11,'Map lookups'!$B$2:$P$104,10,FALSE)) -> Cancer & Tumours | F11: =VLOOKUP(G11,'Map lookups'!$B$2:$P$104,5,FALSE) -> Secondary Care Treatment | G11: 8 | H11: =VLOOKUP($G11,'Map lookups'!$B$2:$P$104,4,FALSE) -> Map 8: Percentage of people aged 15-99 years who survived one year after being diagnosed with breast, lung or colorectal cancer by CCG, 2012 followed up to 2013 | I11: =VLOOKUP(G11,'Map lookups'!$B$2:$P$104,6,FALSE) -> 1 | J11: =IF(VLOOKUP($G11,'Master Database'!$C$4:$E$13507,3,FALSE)="Bad","Improvement Opportunity",VLOOKUP($G11,'Master Database'!$C$4:$E$13507,3,FALSE)) -> Good | K11: =IF(OR(VLOOKUP($A11,'Master Database'!$D$4:$Q$13507,3,FALSE)="-",VLOOKUP($A11,'Master Database'!$D$4:$Q$13507,3,FALSE)=""),"No Data",VLOOKUP($A11,'Master Database'!$D$4:$Q$13507,3,FALSE)) -> 72.1 | L11: =IF(OR(VLOOKUP($A11,'Master Database'!$D$4:$Q$13507,4,FALSE)="-",VLOOKUP($A11,'Master Database'!$D$4:$Q$13507,4,FALSE)=""),"No Data",VLOOKUP($A11,'Master Database'!$D$4:$Q$13507,4,FALSE)) -> No Data | M11: =IF(OR(VLOOKUP($A11,'Master Database'!$D$4:$Q$13507,5,FALSE)="-",VLOOKUP($A11,'Master Database'!$D$4:$Q$13507,5,FALSE)=""),"No Data",VLOOKUP($A11,'Master Database'!$D$4:$Q$13507,5,FALSE)) -> No Data | N11: =IF(VLOOKUP(A11,Quintiles!$A$3:$E$13506,5,FALSE)=6,"No Data",VLOOKUP(A11,Quintiles!$A$3:$E$13506,5,FALSE)) -> 5 | O11: =INDEX('Colour Calculation'!$X$15:$CI$16,1,MATCH(Report!$G11,'Colour Calculation'!$X$16:$CI$16,0)) -> G | P11: =IFERROR(INDEX('Best performing CCG code'!$AE$7:$AL$70,MATCH("Map_"&Report!$G11,'Best performing CCG code'!$AE$7:$AE$70,0),8),"") -> NHS Harrogate and Rural District & NHS Newark & Sherwood | Q11: =IF(OR(VLOOKUP($A11,'Master Database'!$D$4:$Q$13507,6,FALSE)="-",VLOOKUP($A11,'Master Database'!$D$4:$Q$13507,6,FALSE)="",VLOOKUP($A11,'Master Database'!$D$4:$Q$13507,6,FALSE)=0),"",VLOOKUP($A11,'Master Database'!$D$4:$Q$13507,6,FALSE)) -> 70.13744076 | R11: =IF(OR(VLOOKUP($A11,'Master Database'!$D$4:$Q$13507,7,FALSE)="-",VLOOKUP($A11,'Master Database'!$D$4:$Q$13507,7,FALSE)="",VLOOKUP($A11,'Master Database'!$D$4:$Q$13507,7,FALSE)=0),"",VLOOKUP($A11,'Master Database'!$D$4:$Q$13507,7,FALSE)) -> 70.14545455 | S11: =IF(OR(VLOOKUP($A11,'Master Database'!$D$4:$Q$13507,8,FALSE)="-",VLOOKUP($A11,'Master Database'!$D$4:$Q$13507,8,FALSE)=0,VLOOKUP($A11,'Master Database'!$D$4:$Q$13507,8,FALSE)=""),"",VLOOKUP($A11,'Master Database'!$D$4:$Q$13507,8,FALSE)) -> 71.55 | T11: =VLOOKUP($A11,'Master Database'!$D$4:$Q$13507,9,FALSE) ->  | U11: =VLOOKUP($A11,'Master Database'!$D$4:$Q$13507,10,FALSE) ->  | V11: =VLOOKUP($A11,'Master Database'!$D$4:$Q$13507,11,FALSE) ->  | W11: =IF(VLOOKUP($A11,'Master Database'!$D$4:$Q$13507,12,FALSE)=0,"",VLOOKUP($A11,'Master Database'!$D$4:$Q$13507,12,FALSE)) ->  | X11: =IF(VLOOKUP($A11,'Master Database'!$D$4:$Q$13507,13,FALSE)=0,"",VLOOKUP($A11,'Master Database'!$D$4:$Q$13507,13,FALSE)) ->  | Y11: =IF(VLOOKUP($A11,'Master Database'!$D$4:$Q$13507,14,FALSE)=0,"",VLOOKUP($A11,'Master Database'!$D$4:$Q$13507,14,FALSE)) ->  | AB11: To help understand the potential drivers of high cancer mortality please visit the Commissioning for Value website and download a 2014 pack. | AC11: http://www.england.nhs.uk/resources/resources-for-ccgs/comm-for-value/ http://pathways.nice.org.uk/pathways/suspected-cancer-recognition-and-referral/
A12: 9ANHS Airedale, Wharfedale and Craven | B12: =VLOOKUP(Report!$E$2,'Rules & Lookups'!$B$6:$C$216,2,FALSE) -> E38000001 | C12: =VLOOKUP(G12,'Map lookups'!$B$2:$P$104,7,FALSE) -> Cancers and Tumours | D12: =IF(VLOOKUP(G12,'Map lookups'!$B$2:$P$104,8,FALSE)="","No Subcategory",VLOOKUP(G12,'Map lookups'!$B$2:$P$104,8,FALSE)) -> Cancer, Lower GI | E12: =IF(VLOOKUP(G12,'Map lookups'!$B$2:$P$104,10,FALSE)="","No Pathway",VLOOKUP(G12,'Map lookups'!$B$2:$P$104,10,FALSE)) -> Cancer & Tumours - Lower GI Cancer | F12: =VLOOKUP(G12,'Map lookups'!$B$2:$P$104,5,FALSE) -> Prevention and Early Diagnosis | G12: 9A | H12: =VLOOKUP($G12,'Map lookups'!$B$2:$P$104,4,FALSE) -> Map 9A: Rate of colonoscopy procedures and flexisigmoidoscopy procedures per 10,000 population by CCG, 2012/13 | I12: =VLOOKUP(G12,'Map lookups'!$B$2:$P$104,6,FALSE) -> 1 | J12: =IF(VLOOKUP($G12,'Master Database'!$C$4:$E$13507,3,FALSE)="Bad","Improvement Opportunity",VLOOKUP($G12,'Master Database'!$C$4:$E$13507,3,FALSE)) -> Requires Local Interpretation | K12: =IF(OR(VLOOKUP($A12,'Master Database'!$D$4:$Q$13507,3,FALSE)="-",VLOOKUP($A12,'Master Database'!$D$4:$Q$13507,3,FALSE)=""),"No Data",VLOOKUP($A12,'Master Database'!$D$4:$Q$13507,3,FALSE)) -> 150.0014975 | L12: =IF(OR(VLOOKUP($A12,'Master Database'!$D$4:$Q$13507,4,FALSE)="-",VLOOKUP($A12,'Master Database'!$D$4:$Q$13507,4,FALSE)=""),"No Data",VLOOKUP($A12,'Master Database'!$D$4:$Q$13507,4,FALSE)) -> No Data | M12: =IF(OR(VLOOKUP($A12,'Master Database'!$D$4:$Q$13507,5,FALSE)="-",VLOOKUP($A12,'Master Database'!$D$4:$Q$13507,5,FALSE)=""),"No Data",VLOOKUP($A12,'Master Database'!$D$4:$Q$13507,5,FALSE)) -> No Data | N12: =IF(VLOOKUP(A12,Quintiles!$A$3:$E$13506,5,FALSE)=6,"No Data",VLOOKUP(A12,Quintiles!$A$3:$E$13506,5,FALSE)) -> 3 | O12: =INDEX('Colour Calculation'!$X$15:$CI$16,1,MATCH(Report!$G12,'Colour Calculation'!$X$16:$CI$16,0)) ->  | P12: =IFERROR(INDEX('Best performing CCG code'!$AE$7:$AL$70,MATCH("Map_"&Report!$G12,'Best performing CCG code'!$AE$7:$AE$70,0),8),"") ->  | Q12: =IF(OR(VLOOKUP($A12,'Master Database'!$D$4:$Q$13507,6,FALSE)="-",VLOOKUP($A12,'Master Database'!$D$4:$Q$13507,6,FALSE)="",VLOOKUP($A12,'Master Database'!$D$4:$Q$13507,6,FALSE)=0),"",VLOOKUP($A12,'Master Database'!$D$4:$Q$13507,6,FALSE)) -> 148.7704528 | R12: =IF(OR(VLOOKUP($A12,'Master Database'!$D$4:$Q$13507,7,FALSE)="-",VLOOKUP($A12,'Master Database'!$D$4:$Q$13507,7,FALSE)="",VLOOKUP($A12,'Master Database'!$D$4:$Q$13507,7,FALSE)=0),"",VLOOKUP($A12,'Master Database'!$D$4:$Q$13507,7,FALSE)) -> 154.6942829 | S12: =IF(OR(VLOOKUP($A12,'Master Database'!$D$4:$Q$13507,8,FALSE)="-",VLOOKUP($A12,'Master Database'!$D$4:$Q$13507,8,FALSE)=0,VLOOKUP($A12,'Master Database'!$D$4:$Q$13507,8,FALSE)=""),"",VLOOKUP($A12,'Master Database'!$D$4:$Q$13507,8,FALSE)) ->  | T12: =VLOOKUP($A12,'Master Database'!$D$4:$Q$13507,9,FALSE) -> Requires Local Interpretation | U12: =VLOOKUP($A12,'Master Database'!$D$4:$Q$13507,10,FALSE) -> Requires Local Interpretation | V12: =VLOOKUP($A12,'Master Database'!$D$4:$Q$13507,11,FALSE) -> Requires Local Interpretation | W12: =IF(VLOOKUP($A12,'Master Database'!$D$4:$Q$13507,12,FALSE)=0,"",VLOOKUP($A12,'Master Database'!$D$4:$Q$13507,12,FALSE)) ->  | X12: =IF(VLOOKUP($A12,'Master Database'!$D$4:$Q$13507,13,FALSE)=0,"",VLOOKUP($A12,'Master Database'!$D$4:$Q$13507,13,FALSE)) ->  | Y12: =IF(VLOOKUP($A12,'Master Database'!$D$4:$Q$13507,14,FALSE)=0,"",VLOOKUP($A12,'Master Database'!$D$4:$Q$13507,14,FALSE)) ->  | AB12: This indicator is not part of the pathways covered by Commissioning for Value. For more information around spend by programme budgeting category, please download the Programme Budgeting Benchmarking Tool. Spend for this procedure within the Programme Budgeting Benchmarking Tool may be included within 13X. | AC12: http://www.england.nhs.uk/wp-content/uploads/2015/06/13-14-ccg-prog-bug-benchmarking-tool.xlsm
A13: 9BNHS Airedale, Wharfedale and Craven | B13: =VLOOKUP(Report!$E$2,'Rules & Lookups'!$B$6:$C$216,2,FALSE) -> E38000001 | C13: =VLOOKUP(G13,'Map lookups'!$B$2:$P$104,7,FALSE) -> Cancers and Tumours | D13: =IF(VLOOKUP(G13,'Map lookups'!$B$2:$P$104,8,FALSE)="","No Subcategory",VLOOKUP(G13,'Map lookups'!$B$2:$P$104,8,FALSE)) -> Cancer, Lower GI | E13: =IF(VLOOKUP(G13,'Map lookups'!$B$2:$P$104,10,FALSE)="","No Pathway",VLOOKUP(G13,'Map lookups'!$B$2:$P$104,10,FALSE)) -> Cancer & Tumours - Lower GI Cancer | F13: =VLOOKUP(G13,'Map lookups'!$B$2:$P$104,5,FALSE) -> Secondary Care Treatment | G13: 9B | H13: =VLOOKUP($G13,'Map lookups'!$B$2:$P$104,4,FALSE) -> Map 9B: Ratio of colonoscopy procedures to flexisigmoidoscopy procedures by CCG, 2012/13 | I13: =VLOOKUP(G13,'Map lookups'!$B$2:$P$104,6,FALSE) -> 1 | J13: =IF(VLOOKUP($G13,'Master Database'!$C$4:$E$13507,3,FALSE)="Bad","Improvement Opportunity",VLOOKUP($G13,'Master Database'!$C$4:$E$13507,3,FALSE)) -> Requires Local Interpretation | K13: =IF(OR(VLOOKUP($A13,'Master Database'!$D$4:$Q$13507,3,FALSE)="-",VLOOKUP($A13,'Master Database'!$D$4:$Q$13507,3,FALSE)=""),"No Data",VLOOKUP($A13,'Master Database'!$D$4:$Q$13507,3,FALSE)) -> 1.73318872 | L13: =IF(OR(VLOOKUP($A13,'Master Database'!$D$4:$Q$13507,4,FALSE)="-",VLOOKUP($A13,'Master Database'!$D$4:$Q$13507,4,FALSE)=""),"No Data",VLOOKUP($A13,'Master Database'!$D$4:$Q$13507,4,FALSE)) -> No Data | M13: =IF(OR(VLOOKUP($A13,'Master Database'!$D$4:$Q$13507,5,FALSE)="-",VLOOKUP($A13,'Master Database'!$D$4:$Q$13507,5,FALSE)=""),"No Data",VLOOKUP($A13,'Master Database'!$D$4:$Q$13507,5,FALSE)) -> No Data | N13: =IF(VLOOKUP(A13,Quintiles!$A$3:$E$13506,5,FALSE)=6,"No Data",VLOOKUP(A13,Quintiles!$A$3:$E$13506,5,FALSE)) -> 3 | O13: =INDEX('Colour Calculation'!$X$15:$CI$16,1,MATCH(Report!$G13,'Colour Calculation'!$X$16:$CI$16,0)) ->  | P13: =IFERROR(INDEX('Best performing CCG code'!$AE$7:$AL$70,MATCH("Map_"&Report!$G13,'Best performing CCG code'!$AE$7:$AE$70,0),8),"") ->  | Q13: =IF(OR(VLOOKUP($A13,'Master Database'!$D$4:$Q$13507,6,FALSE)="-",VLOOKUP($A13,'Master Database'!$D$4:$Q$13507,6,FALSE)="",VLOOKUP($A13,'Master Database'!$D$4:$Q$13507,6,FALSE)=0),"",VLOOKUP($A13,'Master Database'!$D$4:$Q$13507,6,FALSE)) -> 1.9583242 | R13: =IF(OR(VLOOKUP($A13,'Master Database'!$D$4:$Q$13507,7,FALSE)="-",VLOOKUP($A13,'Master Database'!$D$4:$Q$13507,7,FALSE)="",VLOOKUP($A13,'Master Database'!$D$4:$Q$13507,7,FALSE)=0),"",VLOOKUP($A13,'Master Database'!$D$4:$Q$13507,7,FALSE)) -> 2.049452558 | S13: =IF(OR(VLOOKUP($A13,'Master Database'!$D$4:$Q$13507,8,FALSE)="-",VLOOKUP($A13,'Master Database'!$D$4:$Q$13507,8,FALSE)=0,VLOOKUP($A13,'Master Database'!$D$4:$Q$13507,8,FALSE)=""),"",VLOOKUP($A13,'Master Database'!$D$4:$Q$13507,8,FALSE)) ->  | T13: =VLOOKUP($A13,'Master Database'!$D$4:$Q$13507,9,FALSE) -> Requires Local Interpretation | U13: =VLOOKUP($A13,'Master Database'!$D$4:$Q$13507,10,FALSE) -> Requires Local Interpretation | V13: =VLOOKUP($A13,'Master Database'!$D$4:$Q$13507,11,FALSE) -> Requires Local Interpretation | W13: =IF(VLOOKUP($A13,'Master Database'!$D$4:$Q$13507,12,FALSE)=0,"",VLOOKUP($A13,'Master Database'!$D$4:$Q$13507,12,FALSE)) ->  | X13: =IF(VLOOKUP($A13,'Master Database'!$D$4:$Q$13507,13,FALSE)=0,"",VLOOKUP($A13,'Master Database'!$D$4:$Q$13507,13,FALSE)) ->  | Y13: =IF(VLOOKUP($A13,'Master Database'!$D$4:$Q$13507,14,FALSE)=0,"",VLOOKUP($A13,'Master Database'!$D$4:$Q$13507,14,FALSE)) ->  | AB13: This indicator is not part of the pathways covered by Commissioning for Value. For more information around spend by programme budgeting category, please download the Programme Budgeting Benchmarking Tool. Spend for this procedure within the Programme Budgeting Benchmarking Tool may be included within 13X. | AC13: http://www.england.nhs.uk/wp-content/uploads/2015/06/13-14-ccg-prog-bug-benchmarking-tool.xlsm
A14: 10NHS Airedale, Wharfedale and Craven | B14: =VLOOKUP(Report!$E$2,'Rules & Lookups'!$B$6:$C$216,2,FALSE) -> E38000001 | C14: =VLOOKUP(G14,'Map lookups'!$B$2:$P$104,7,FALSE) -> Cancers and Tumours | D14: =IF(VLOOKUP(G14,'Map lookups'!$B$2:$P$104,8,FALSE)="","No Subcategory",VLOOKUP(G14,'Map lookups'!$B$2:$P$104,8,FALSE)) -> Cancer, Lower GI | E14: =IF(VLOOKUP(G14,'Map lookups'!$B$2:$P$104,10,FALSE)="","No Pathway",VLOOKUP(G14,'Map lookups'!$B$2:$P$104,10,FALSE)) -> Cancer & Tumours - Lower GI Cancer | F14: =VLOOKUP(G14,'Map lookups'!$B$2:$P$104,5,FALSE) -> Prevention and Early Diagnosis | G14: 10 | H14: =VLOOKUP($G14,'Map lookups'!$B$2:$P$104,4,FALSE) -> Map 10: Rate of computed tomography (CT) colonoscopy procedures per 10,000 population by CCG, 2013/14 | I14: =VLOOKUP(G14,'Map lookups'!$B$2:$P$104,6,FALSE) -> 1 | J14: =IF(VLOOKUP($G14,'Master Database'!$C$4:$E$13507,3,FALSE)="Bad","Improvement Opportunity",VLOOKUP($G14,'Master Database'!$C$4:$E$13507,3,FALSE)) -> Requires Local Interpretation | K14: =IF(OR(VLOOKUP($A14,'Master Database'!$D$4:$Q$13507,3,FALSE)="-",VLOOKUP($A14,'Master Database'!$D$4:$Q$13507,3,FALSE)=""),"No Data",VLOOKUP($A14,'Master Database'!$D$4:$Q$13507,3,FALSE)) -> 30.73762504 | L14: =IF(OR(VLOOKUP($A14,'Master Database'!$D$4:$Q$13507,4,FALSE)="-",VLOOKUP($A14,'Master Database'!$D$4:$Q$13507,4,FALSE)=""),"No Data",VLOOKUP($A14,'Master Database'!$D$4:$Q$13507,4,FALSE)) -> No Data | M14: =IF(OR(VLOOKUP($A14,'Master Database'!$D$4:$Q$13507,5,FALSE)="-",VLOOKUP($A14,'Master Database'!$D$4:$Q$13507,5,FALSE)=""),"No Data",VLOOKUP($A14,'Master Database'!$D$4:$Q$13507,5,FALSE)) -> No Data | N14: =IF(VLOOKUP(A14,Quintiles!$A$3:$E$13506,5,FALSE)=6,"No Data",VLOOKUP(A14,Quintiles!$A$3:$E$13506,5,FALSE)) -> 5 | O14: =INDEX('Colour Calculation'!$X$15:$CI$16,1,MATCH(Report!$G14,'Colour Calculation'!$X$16:$CI$16,0)) ->  | P14: =IFERROR(INDEX('Best performing CCG code'!$AE$7:$AL$70,MATCH("Map_"&Report!$G14,'Best performing CCG code'!$AE$7:$AE$70,0),8),"") ->  | Q14: =IF(OR(VLOOKUP($A14,'Master Database'!$D$4:$Q$13507,6,FALSE)="-",VLOOKUP($A14,'Master Database'!$D$4:$Q$13507,6,FALSE)="",VLOOKUP($A14,'Master Database'!$D$4:$Q$13507,6,FALSE)=0),"",VLOOKUP($A14,'Master Database'!$D$4:$Q$13507,6,FALSE)) -> 10.13376179 | R14: =IF(OR(VLOOKUP($A14,'Master Database'!$D$4:$Q$13507,7,FALSE)="-",VLOOKUP($A14,'Master Database'!$D$4:$Q$13507,7,FALSE)="",VLOOKUP($A14,'Master Database'!$D$4:$Q$13507,7,FALSE)=0),"",VLOOKUP($A14,'Master Database'!$D$4:$Q$13507,7,FALSE)) -> 11.43138444 | S14: =IF(OR(VLOOKUP($A14,'Master Database'!$D$4:$Q$13507,8,FALSE)="-",VLOOKUP($A14,'Master Database'!$D$4:$Q$13507,8,FALSE)=0,VLOOKUP($A14,'Master Database'!$D$4:$Q$13507,8,FALSE)=""),"",VLOOKUP($A14,'Master Database'!$D$4:$Q$13507,8,FALSE)) ->  | T14: =VLOOKUP($A14,'Master Database'!$D$4:$Q$13507,9,FALSE) -> Requires Local Interpretation | U14: =VLOOKUP($A14,'Master Database'!$D$4:$Q$13507,10,FALSE) -> Requires Local Interpretation | V14: =VLOOKUP($A14,'Master Database'!$D$4:$Q$13507,11,FALSE) -> Requires Local Interpretation | W14: =IF(VLOOKUP($A14,'Master Database'!$D$4:$Q$13507,12,FALSE)=0,"",VLOOKUP($A14,'Master Database'!$D$4:$Q$13507,12,FALSE)) ->  | X14: =IF(VLOOKUP($A14,'Master Database'!$D$4:$Q$13507,13,FALSE)=0,"",VLOOKUP($A14,'Master Database'!$D$4:$Q$13507,13,FALSE)) ->  | Y14: =IF(VLOOKUP($A14,'Master Database'!$D$4:$Q$13507,14,FALSE)=0,"",VLOOKUP($A14,'Master Database'!$D$4:$Q$13507,14,FALSE)) ->  | AB14: This indicator is not part of the pathways covered by Commissioning for Value. For more information around spend by programme budgeting category, please download the Programme Budgeting Benchmarking Tool. Spend for this procedure within the Programme Budgeting Benchmarking Tool may be included within 13X. | AC14: http://www.england.nhs.uk/wp-content/uploads/2015/06/13-14-ccg-prog-bug-benchmarking-tool.xlsm
A15: 11NHS Airedale, Wharfedale and Craven | B15: =VLOOKUP(Report!$E$2,'Rules & Lookups'!$B$6:$C$216,2,FALSE) -> E38000001 | C15: =VLOOKUP(G15,'Map lookups'!$B$2:$P$104,7,FALSE) -> Cancers and Tumours | D15: =IF(VLOOKUP(G15,'Map lookups'!$B$2:$P$104,8,FALSE)="","No Subcategory",VLOOKUP(G15,'Map lookups'!$B$2:$P$104,8,FALSE)) -> Cancer, Lower GI | E15: =IF(VLOOKUP(G15,'Map lookups'!$B$2:$P$104,10,FALSE)="","No Pathway",VLOOKUP(G15,'Map lookups'!$B$2:$P$104,10,FALSE)) -> Cancer & Tumours - Lower GI Cancer | F15: =VLOOKUP(G15,'Map lookups'!$B$2:$P$104,5,FALSE) -> Prevention and Early Diagnosis | G15: 11 | H15: =VLOOKUP($G15,'Map lookups'!$B$2:$P$104,4,FALSE) -> Map 11: Rate of barium enema procedures per 100,000 population by CCG, 2013/14 | I15: =VLOOKUP(G15,'Map lookups'!$B$2:$P$104,6,FALSE) -> 1 | J15: =IF(VLOOKUP($G15,'Master Database'!$C$4:$E$13507,3,FALSE)="Bad","Improvement Opportunity",VLOOKUP($G15,'Master Database'!$C$4:$E$13507,3,FALSE)) -> Improvement Opportunity | K15: =IF(OR(VLOOKUP($A15,'Master Database'!$D$4:$Q$13507,3,FALSE)="-",VLOOKUP($A15,'Master Database'!$D$4:$Q$13507,3,FALSE)=""),"No Data",VLOOKUP($A15,'Master Database'!$D$4:$Q$13507,3,FALSE)) -> 5.743128984 | L15: =IF(OR(VLOOKUP($A15,'Master Database'!$D$4:$Q$13507,4,FALSE)="-",VLOOKUP($A15,'Master Database'!$D$4:$Q$13507,4,FALSE)=""),"No Data",VLOOKUP($A15,'Master Database'!$D$4:$Q$13507,4,FALSE)) -> 2.620666958 | M15: =IF(OR(VLOOKUP($A15,'Master Database'!$D$4:$Q$13507,5,FALSE)="-",VLOOKUP($A15,'Master Database'!$D$4:$Q$13507,5,FALSE)=""),"No Data",VLOOKUP($A15,'Master Database'!$D$4:$Q$13507,5,FALSE)) -> 10.90297523 | N15: =IF(VLOOKUP(A15,Quintiles!$A$3:$E$13506,5,FALSE)=6,"No Data",VLOOKUP(A15,Quintiles!$A$3:$E$13506,5,FALSE)) -> 1 | O15: =INDEX('Colour Calculation'!$X$15:$CI$16,1,MATCH(Report!$G15,'Colour Calculation'!$X$16:$CI$16,0)) -> G | P15: =IFERROR(INDEX('Best performing CCG code'!$AE$7:$AL$70,MATCH("Map_"&Report!$G15,'Best performing CCG code'!$AE$7:$AE$70,0),8),"") -> NHS Airedale, Wharfedale and Craven | Q15: =IF(OR(VLOOKUP($A15,'Master Database'!$D$4:$Q$13507,6,FALSE)="-",VLOOKUP($A15,'Master Database'!$D$4:$Q$13507,6,FALSE)="",VLOOKUP($A15,'Master Database'!$D$4:$Q$13507,6,FALSE)=0),"",VLOOKUP($A15,'Master Database'!$D$4:$Q$13507,6,FALSE)) -> 77.26667146 | R15: =IF(OR(VLOOKUP($A15,'Master Database'!$D$4:$Q$13507,7,FALSE)="-",VLOOKUP($A15,'Master Database'!$D$4:$Q$13507,7,FALSE)="",VLOOKUP($A15,'Master Database'!$D$4:$Q$13507,7,FALSE)=0),"",VLOOKUP($A15,'Master Database'!$D$4:$Q$13507,7,FALSE)) -> 104.3370079 | S15: =IF(OR(VLOOKUP($A15,'Master Database'!$D$4:$Q$13507,8,FALSE)="-",VLOOKUP($A15,'Master Database'!$D$4:$Q$13507,8,FALSE)=0,VLOOKUP($A15,'Master Database'!$D$4:$Q$13507,8,FALSE)=""),"",VLOOKUP($A15,'Master Database'!$D$4:$Q$13507,8,FALSE)) -> 10.3992291 | T15: =VLOOKUP($A15,'Master Database'!$D$4:$Q$13507,9,FALSE) -> G | U15: =VLOOKUP($A15,'Master Database'!$D$4:$Q$13507,10,FALSE) -> G | V15: =VLOOKUP($A15,'Master Database'!$D$4:$Q$13507,11,FALSE) -> A | W15: =IF(VLOOKUP($A15,'Master Database'!$D$4:$Q$13507,12,FALSE)=0,"",VLOOKUP($A15,'Master Database'!$D$4:$Q$13507,12,FALSE)) ->  | X15: =IF(VLOOKUP($A15,'Master Database'!$D$4:$Q$13507,13,FALSE)=0,"",VLOOKUP($A15,'Master Database'!$D$4:$Q$13507,13,FALSE)) ->  | Y15: =IF(VLOOKUP($A15,'Master Database'!$D$4:$Q$13507,14,FALSE)=0,"",VLOOKUP($A15,'Master Database'!$D$4:$Q$13507,14,FALSE)) ->  | AB15: This indicator is not part of the pathways covered by Commissioning for Value. For more information around spend by programme budgeting category, please download the Programme Budgeting Benchmarking Tool. Spend for this procedure within the Programme Budgeting Benchmarking Tool may be included within 13X. | AC15: http://www.england.nhs.uk/wp-content/uploads/2015/06/13-14-ccg-prog-bug-benchmarking-tool.xlsm
A16: 12NHS Airedale, Wharfedale and Craven | B16: =VLOOKUP(Report!$E$2,'Rules & Lookups'!$B$6:$C$216,2,FALSE) -> E38000001 | C16: =VLOOKUP(G16,'Map lookups'!$B$2:$P$104,7,FALSE) -> Cancers and Tumours | D16: =IF(VLOOKUP(G16,'Map lookups'!$B$2:$P$104,8,FALSE)="","No Subcategory",VLOOKUP(G16,'Map lookups'!$B$2:$P$104,8,FALSE)) -> Other Cancer and Tumours | E16: =IF(VLOOKUP(G16,'Map lookups'!$B$2:$P$104,10,FALSE)="","No Pathway",VLOOKUP(G16,'Map lookups'!$B$2:$P$104,10,FALSE)) -> Cancer & Tumours | F16: =VLOOKUP(G16,'Map lookups'!$B$2:$P$104,5,FALSE) -> Prevention and Early Diagnosis | G16: 12 | H16: =VLOOKUP($G16,'Map lookups'!$B$2:$P$104,4,FALSE) -> Map 12: Percentage of all cancer diagnoses that were made at stage 1 or stage 2 by CCG, 2013 | I16: =VLOOKUP(G16,'Map lookups'!$B$2:$P$104,6,FALSE) -> 1 | J16: =IF(VLOOKUP($G16,'Master Database'!$C$4:$E$13507,3,FALSE)="Bad","Improvement Opportunity",VLOOKUP($G16,'Master Database'!$C$4:$E$13507,3,FALSE)) -> Good | K16: =IF(OR(VLOOKUP($A16,'Master Database'!$D$4:$Q$13507,3,FALSE)="-",VLOOKUP($A16,'Master Database'!$D$4:$Q$13507,3,FALSE)=""),"No Data",VLOOKUP($A16,'Master Database'!$D$4:$Q$13507,3,FALSE)) -> 49.43181818 | L16: =IF(OR(VLOOKUP($A16,'Master Database'!$D$4:$Q$13507,4,FALSE)="-",VLOOKUP($A16,'Master Database'!$D$4:$Q$13507,4,FALSE)=""),"No Data",VLOOKUP($A16,'Master Database'!$D$4:$Q$13507,4,FALSE)) -> 45.75166075 | M16: =IF(OR(VLOOKUP($A16,'Master Database'!$D$4:$Q$13507,5,FALSE)="-",VLOOKUP($A16,'Master Database'!$D$4:$Q$13507,5,FALSE)=""),"No Data",VLOOKUP($A16,'Master Database'!$D$4:$Q$13507,5,FALSE)) -> 53.11814289 | N16: =IF(VLOOKUP(A16,Quintiles!$A$3:$E$13506,5,FALSE)=6,"No Data",VLOOKUP(A16,Quintiles!$A$3:$E$13506,5,FALSE)) -> 4 | O16: =INDEX('Colour Calculation'!$X$15:$CI$16,1,MATCH(Report!$G16,'Colour Calculation'!$X$16:$CI$16,0)) -> A | P16: =IFERROR(INDEX('Best performing CCG code'!$AE$7:$AL$70,MATCH("Map_"&Report!$G16,'Best performing CCG code'!$AE$7:$AE$70,0),8),"") -> NHS West Essex | Q16: =IF(OR(VLOOKUP($A16,'Master Database'!$D$4:$Q$13507,6,FALSE)="-",VLOOKUP($A16,'Master Database'!$D$4:$Q$13507,6,FALSE)="",VLOOKUP($A16,'Master Database'!$D$4:$Q$13507,6,FALSE)=0),"",VLOOKUP($A16,'Master Database'!$D$4:$Q$13507,6,FALSE)) -> 45.59862967 | R16: =IF(OR(VLOOKUP($A16,'Master Database'!$D$4:$Q$13507,7,FALSE)="-",VLOOKUP($A16,'Master Database'!$D$4:$Q$13507,7,FALSE)="",VLOOKUP($A16,'Master Database'!$D$4:$Q$13507,7,FALSE)=0),"",VLOOKUP($A16,'Master Database'!$D$4:$Q$13507,7,FALSE)) -> 43.48018158 | S16: =IF(OR(VLOOKUP($A16,'Master Database'!$D$4:$Q$13507,8,FALSE)="-",VLOOKUP($A16,'Master Database'!$D$4:$Q$13507,8,FALSE)=0,VLOOKUP($A16,'Master Database'!$D$4:$Q$13507,8,FALSE)=""),"",VLOOKUP($A16,'Master Database'!$D$4:$Q$13507,8,FALSE)) -> 53.15153989 | T16: =VLOOKUP($A16,'Master Database'!$D$4:$Q$13507,9,FALSE) -> G | U16: =VLOOKUP($A16,'Master Database'!$D$4:$Q$13507,10,FALSE) -> G | V16: =VLOOKUP($A16,'Master Database'!$D$4:$Q$13507,11,FALSE) -> R | W16: =IF(VLOOKUP($A16,'Master Database'!$D$4:$Q$13507,12,FALSE)=0,"",VLOOKUP($A16,'Master Database'!$D$4:$Q$13507,12,FALSE)) ->  | X16: =IF(VLOOKUP($A16,'Master Database'!$D$4:$Q$13507,13,FALSE)=0,"",VLOOKUP($A16,'Master Database'!$D$4:$Q$13507,13,FALSE)) ->  | Y16: =IF(VLOOKUP($A16,'Master Database'!$D$4:$Q$13507,14,FALSE)=0,"",VLOOKUP($A16,'Master Database'!$D$4:$Q$13507,14,FALSE)) -> 3.719721709 | AB16: To help understand how early diagnosis for cancer affects expenditure and outcomes in the CCG please visit the Commissioning for Value website and download a 2014 pack. | AC16: http://www.england.nhs.uk/resources/resources-for-ccgs/comm-for-value/ http://pathways.nice.org.uk/pathways/suspected-cancer-recognition-and-referral/
A17: 13NHS Airedale, Wharfedale and Craven | B17: =VLOOKUP(Report!$E$2,'Rules & Lookups'!$B$6:$C$216,2,FALSE) -> E38000001 | C17: =VLOOKUP(G17,'Map lookups'!$B$2:$P$104,7,FALSE) -> Cancers and Tumours | D17: =IF(VLOOKUP(G17,'Map lookups'!$B$2:$P$104,8,FALSE)="","No Subcategory",VLOOKUP(G17,'Map lookups'!$B$2:$P$104,8,FALSE)) -> Cancer, Lower GI | E17: =IF(VLOOKUP(G17,'Map lookups'!$B$2:$P$104,10,FALSE)="","No Pathway",VLOOKUP(G17,'Map lookups'!$B$2:$P$104,10,FALSE)) -> Cancer & Tumours - Lower GI Cancer | F17: =VLOOKUP(G17,'Map lookups'!$B$2:$P$104,5,FALSE) -> Prevention and Early Diagnosis | G17: 13 | H17: =VLOOKUP($G17,'Map lookups'!$B$2:$P$104,4,FALSE) -> Map 13: Percentage of new cases of colorectal cancer that were diagnosed at stage 1 or stage 2 by CCG, 2013 | I17: =VLOOKUP(G17,'Map lookups'!$B$2:$P$104,6,FALSE) -> 1 | J17: =IF(VLOOKUP($G17,'Master Database'!$C$4:$E$13507,3,FALSE)="Bad","Improvement Opportunity",VLOOKUP($G17,'Master Database'!$C$4:$E$13507,3,FALSE)) -> Good | K17: =IF(OR(VLOOKUP($A17,'Master Database'!$D$4:$Q$13507,3,FALSE)="-",VLOOKUP($A17,'Master Database'!$D$4:$Q$13507,3,FALSE)=""),"No Data",VLOOKUP($A17,'Master Database'!$D$4:$Q$13507,3,FALSE)) -> 41.34615385 | L17: =IF(OR(VLOOKUP($A17,'Master Database'!$D$4:$Q$13507,4,FALSE)="-",VLOOKUP($A17,'Master Database'!$D$4:$Q$13507,4,FALSE)=""),"No Data",VLOOKUP($A17,'Master Database'!$D$4:$Q$13507,4,FALSE)) -> 32.35475821 | M17: =IF(OR(VLOOKUP($A17,'Master Database'!$D$4:$Q$13507,5,FALSE)="-",VLOOKUP($A17,'Master Database'!$D$4:$Q$13507,5,FALSE)=""),"No Data",VLOOKUP($A17,'Master Database'!$D$4:$Q$13507,5,FALSE)) -> 50.95409477 | N17: =IF(VLOOKUP(A17,Quintiles!$A$3:$E$13506,5,FALSE)=6,"No Data",VLOOKUP(A17,Quintiles!$A$3:$E$13506,5,FALSE)) -> 4 | O17: =INDEX('Colour Calculation'!$X$15:$CI$16,1,MATCH(Report!$G17,'Colour Calculation'!$X$16:$CI$16,0)) -> A | P17: =IFERROR(INDEX('Best performing CCG code'!$AE$7:$AL$70,MATCH("Map_"&Report!$G17,'Best performing CCG code'!$AE$7:$AE$70,0),8),"") -> NHS Great Yarmouth and Waveney | Q17: =IF(OR(VLOOKUP($A17,'Master Database'!$D$4:$Q$13507,6,FALSE)="-",VLOOKUP($A17,'Master Database'!$D$4:$Q$13507,6,FALSE)="",VLOOKUP($A17,'Master Database'!$D$4:$Q$13507,6,FALSE)=0),"",VLOOKUP($A17,'Master Database'!$D$4:$Q$13507,6,FALSE)) -> 35.97003419 | R17: =IF(OR(VLOOKUP($A17,'Master Database'!$D$4:$Q$13507,7,FALSE)="-",VLOOKUP($A17,'Master Database'!$D$4:$Q$13507,7,FALSE)="",VLOOKUP($A17,'Master Database'!$D$4:$Q$13507,7,FALSE)=0),"",VLOOKUP($A17,'Master Database'!$D$4:$Q$13507,7,FALSE)) -> 33.42261817 | S17: =IF(OR(VLOOKUP($A17,'Master Database'!$D$4:$Q$13507,8,FALSE)="-",VLOOKUP($A17,'Master Database'!$D$4:$Q$13507,8,FALSE)=0,VLOOKUP($A17,'Master Database'!$D$4:$Q$13507,8,FALSE)=""),"",VLOOKUP($A17,'Master Database'!$D$4:$Q$13507,8,FALSE)) -> 43.15014114 | T17: =VLOOKUP($A17,'Master Database'!$D$4:$Q$13507,9,FALSE) -> A | U17: =VLOOKUP($A17,'Master Database'!$D$4:$Q$13507,10,FALSE) -> A | V17: =VLOOKUP($A17,'Master Database'!$D$4:$Q$13507,11,FALSE) -> A | W17: =IF(VLOOKUP($A17,'Master Database'!$D$4:$Q$13507,12,FALSE)=0,"",VLOOKUP($A17,'Master Database'!$D$4:$Q$13507,12,FALSE)) ->  | X17: =IF(VLOOKUP($A17,'Master Database'!$D$4:$Q$13507,13,FALSE)=0,"",VLOOKUP($A17,'Master Database'!$D$4:$Q$13507,13,FALSE)) ->  | Y17: =IF(VLOOKUP($A17,'Master Database'!$D$4:$Q$13507,14,FALSE)=0,"",VLOOKUP($A17,'Master Database'!$D$4:$Q$13507,14,FALSE)) -> 1.803987297 | AB17: To help understand how early diagnosis for cancer affects expenditure and outcomes in the CCG please visit the Commissioning for Value website and download a 2014 pack. | AC17: http://www.england.nhs.uk/resources/resources-for-ccgs/comm-for-value/ http://pathways.nice.org.uk/pathways/colorectal-cancer http://pathways.nice.org.uk/pathways/colonoscopic-surveillance http://pathways.nice.org.uk/pathways/gastrointestinal-conditions
A18: 14NHS Airedale, Wharfedale and Craven | B18: =VLOOKUP(Report!$E$2,'Rules & Lookups'!$B$6:$C$216,2,FALSE) -> E38000001 | C18: =VLOOKUP(G18,'Map lookups'!$B$2:$P$104,7,FALSE) -> Neurological Problems | D18: =IF(VLOOKUP(G18,'Map lookups'!$B$2:$P$104,8,FALSE)="","No Subcategory",VLOOKUP(G18,'Map lookups'!$B$2:$P$104,8,FALSE)) -> Other Neurological Problems | E18: =IF(VLOOKUP(G18,'Map lookups'!$B$2:$P$104,10,FALSE)="","No Pathway",VLOOKUP(G18,'Map lookups'!$B$2:$P$104,10,FALSE)) -> Neurology - Epilepsy (Tool Only) | F18: =VLOOKUP(G18,'Map lookups'!$B$2:$P$104,5,FALSE) -> Primary Care Management | G18: 14 | H18: =VLOOKUP($G18,'Map lookups'!$B$2:$P$104,4,FALSE) -> Map 14: Rate of epilepsy emergency admissions to hospital in people aged 18 years and over per 100,000 population by CCG 2012/13 | I18: =VLOOKUP(G18,'Map lookups'!$B$2:$P$104,6,FALSE) -> 2 | J18: =IF(VLOOKUP($G18,'Master Database'!$C$4:$E$13507,3,FALSE)="Bad","Improvement Opportunity",VLOOKUP($G18,'Master Database'!$C$4:$E$13507,3,FALSE)) -> Improvement Opportunity | K18: =IF(OR(VLOOKUP($A18,'Master Database'!$D$4:$Q$13507,3,FALSE)="-",VLOOKUP($A18,'Master Database'!$D$4:$Q$13507,3,FALSE)=""),"No Data",VLOOKUP($A18,'Master Database'!$D$4:$Q$13507,3,FALSE)) -> 88.60542271 | L18: =IF(OR(VLOOKUP($A18,'Master Database'!$D$4:$Q$13507,4,FALSE)="-",VLOOKUP($A18,'Master Database'!$D$4:$Q$13507,4,FALSE)=""),"No Data",VLOOKUP($A18,'Master Database'!$D$4:$Q$13507,4,FALSE)) -> 72.24840996 | M18: =IF(OR(VLOOKUP($A18,'Master Database'!$D$4:$Q$13507,5,FALSE)="-",VLOOKUP($A18,'Master Database'!$D$4:$Q$13507,5,FALSE)=""),"No Data",VLOOKUP($A18,'Master Database'!$D$4:$Q$13507,5,FALSE)) -> 107.492274 | N18: =IF(VLOOKUP(A18,Quintiles!$A$3:$E$13506,5,FALSE)=6,"No Data",VLOOKUP(A18,Quintiles!$A$3:$E$13506,5,FALSE)) -> 1 | O18: =INDEX('Colour Calculation'!$X$15:$CI$16,1,MATCH(Report!$G18,'Colour Calculation'!$X$16:$CI$16,0)) -> G | P18: =IFERROR(INDEX('Best performing CCG code'!$AE$7:$AL$70,MATCH("Map_"&Report!$G18,'Best performing CCG code'!$AE$7:$AE$70,0),8),"") -> NHS Harrogate and Rural District | Q18: =IF(OR(VLOOKUP($A18,'Master Database'!$D$4:$Q$13507,6,FALSE)="-",VLOOKUP($A18,'Master Database'!$D$4:$Q$13507,6,FALSE)="",VLOOKUP($A18,'Master Database'!$D$4:$Q$13507,6,FALSE)=0),"",VLOOKUP($A18,'Master Database'!$D$4:$Q$13507,6,FALSE)) -> 127.9932326 | R18: =IF(OR(VLOOKUP($A18,'Master Database'!$D$4:$Q$13507,7,FALSE)="-",VLOOKUP($A18,'Master Database'!$D$4:$Q$13507,7,FALSE)="",VLOOKUP($A18,'Master Database'!$D$4:$Q$13507,7,FALSE)=0),"",VLOOKUP($A18,'Master Database'!$D$4:$Q$13507,7,FALSE)) -> 118.3532552 | S18: =IF(OR(VLOOKUP($A18,'Master Database'!$D$4:$Q$13507,8,FALSE)="-",VLOOKUP($A18,'Master Database'!$D$4:$Q$13507,8,FALSE)=0,VLOOKUP($A18,'Master Database'!$D$4:$Q$13507,8,FALSE)=""),"",VLOOKUP($A18,'Master Database'!$D$4:$Q$13507,8,FALSE)) -> 100.4036824 | T18: =VLOOKUP($A18,'Master Database'!$D$4:$Q$13507,9,FALSE) -> G | U18: =VLOOKUP($A18,'Master Database'!$D$4:$Q$13507,10,FALSE) -> G | V18: =VLOOKUP($A18,'Master Database'!$D$4:$Q$13507,11,FALSE) -> A | W18: =IF(VLOOKUP($A18,'Master Database'!$D$4:$Q$13507,12,FALSE)=0,"",VLOOKUP($A18,'Master Database'!$D$4:$Q$13507,12,FALSE)) ->  | X18: =IF(VLOOKUP($A18,'Master Database'!$D$4:$Q$13507,13,FALSE)=0,"",VLOOKUP($A18,'Master Database'!$D$4:$Q$13507,13,FALSE)) ->  | Y18: =IF(VLOOKUP($A18,'Master Database'!$D$4:$Q$13507,14,FALSE)=0,"",VLOOKUP($A18,'Master Database'!$D$4:$Q$13507,14,FALSE)) ->  | AB18: To help understand how the management of epilepsy affects expenditure and outcomes in the CCG please visit the Commissioning for Value tool. | AC18: http://www.england.nhs.uk/resources/resources-for-ccgs/comm-for-value/ http://pathways.nice.org.uk/pathways/epilepsy
A19: 15NHS Airedale, Wharfedale and Craven | B19: =VLOOKUP(Report!$E$2,'Rules & Lookups'!$B$6:$C$216,2,FALSE) -> E38000001 | C19: =VLOOKUP(G19,'Map lookups'!$B$2:$P$104,7,FALSE) -> Neurological Problems | D19: =IF(VLOOKUP(G19,'Map lookups'!$B$2:$P$104,8,FALSE)="","No Subcategory",VLOOKUP(G19,'Map lookups'!$B$2:$P$104,8,FALSE)) -> Other Neurological Problems | E19: =IF(VLOOKUP(G19,'Map lookups'!$B$2:$P$104,10,FALSE)="","No Pathway",VLOOKUP(G19,'Map lookups'!$B$2:$P$104,10,FALSE)) -> Neurology - Epilepsy (Tool Only) | F19: =VLOOKUP(G19,'Map lookups'!$B$2:$P$104,5,FALSE) -> Primary Care Management | G19: 15 | H19: =VLOOKUP($G19,'Map lookups'!$B$2:$P$104,4,FALSE) -> Map 15: Percentage of people with epilepsy aged 18 years and over on GP epilepsy registers who were seizure-free for the preceding 12 months by CCG, 2013/14 | I19: =VLOOKUP(G19,'Map lookups'!$B$2:$P$104,6,FALSE) -> 2 | J19: =IF(VLOOKUP($G19,'Master Database'!$C$4:$E$13507,3,FALSE)="Bad","Improvement Opportunity",VLOOKUP($G19,'Master Database'!$C$4:$E$13507,3,FALSE)) -> Good | K19: =IF(OR(VLOOKUP($A19,'Master Database'!$D$4:$Q$13507,3,FALSE)="-",VLOOKUP($A19,'Master Database'!$D$4:$Q$13507,3,FALSE)=""),"No Data",VLOOKUP($A19,'Master Database'!$D$4:$Q$13507,3,FALSE)) -> 63.09178744 | L19: =IF(OR(VLOOKUP($A19,'Master Database'!$D$4:$Q$13507,4,FALSE)="-",VLOOKUP($A19,'Master Database'!$D$4:$Q$13507,4,FALSE)=""),"No Data",VLOOKUP($A19,'Master Database'!$D$4:$Q$13507,4,FALSE)) -> 60.10856299 | M19: =IF(OR(VLOOKUP($A19,'Master Database'!$D$4:$Q$13507,5,FALSE)="-",VLOOKUP($A19,'Master Database'!$D$4:$Q$13507,5,FALSE)=""),"No Data",VLOOKUP($A19,'Master Database'!$D$4:$Q$13507,5,FALSE)) -> 65.97818949 | N19: =IF(VLOOKUP(A19,Quintiles!$A$3:$E$13506,5,FALSE)=6,"No Data",VLOOKUP(A19,Quintiles!$A$3:$E$13506,5,FALSE)) -> 3 | O19: =INDEX('Colour Calculation'!$X$15:$CI$16,1,MATCH(Report!$G19,'Colour Calculation'!$X$16:$CI$16,0)) -> A | P19: =IFERROR(INDEX('Best performing CCG code'!$AE$7:$AL$70,MATCH("Map_"&Report!$G19,'Best performing CCG code'!$AE$7:$AE$70,0),8),"") -> NHS South West Lincolnshire | Q19: =IF(OR(VLOOKUP($A19,'Master Database'!$D$4:$Q$13507,6,FALSE)="-",VLOOKUP($A19,'Master Database'!$D$4:$Q$13507,6,FALSE)="",VLOOKUP($A19,'Master Database'!$D$4:$Q$13507,6,FALSE)=0),"",VLOOKUP($A19,'Master Database'!$D$4:$Q$13507,6,FALSE)) -> 61.63921678 | R19: =IF(OR(VLOOKUP($A19,'Master Database'!$D$4:$Q$13507,7,FALSE)="-",VLOOKUP($A19,'Master Database'!$D$4:$Q$13507,7,FALSE)="",VLOOKUP($A19,'Master Database'!$D$4:$Q$13507,7,FALSE)=0),"",VLOOKUP($A19,'Master Database'!$D$4:$Q$13507,7,FALSE)) -> 64.25212174 | S19: =IF(OR(VLOOKUP($A19,'Master Database'!$D$4:$Q$13507,8,FALSE)="-",VLOOKUP($A19,'Master Database'!$D$4:$Q$13507,8,FALSE)=0,VLOOKUP($A19,'Master Database'!$D$4:$Q$13507,8,FALSE)=""),"",VLOOKUP($A19,'Master Database'!$D$4:$Q$13507,8,FALSE)) -> 66.38373121 | T19: =VLOOKUP($A19,'Master Database'!$D$4:$Q$13507,9,FALSE) -> A | U19: =VLOOKUP($A19,'Master Database'!$D$4:$Q$13507,10,FALSE) -> A | V19: =VLOOKUP($A19,'Master Database'!$D$4:$Q$13507,11,FALSE) -> R | W19: =IF(VLOOKUP($A19,'Master Database'!$D$4:$Q$13507,12,FALSE)=0,"",VLOOKUP($A19,'Master Database'!$D$4:$Q$13507,12,FALSE)) ->  | X19: =IF(VLOOKUP($A19,'Master Database'!$D$4:$Q$13507,13,FALSE)=0,"",VLOOKUP($A19,'Master Database'!$D$4:$Q$13507,13,FALSE)) -> 1.160334296 | Y19: =IF(VLOOKUP($A19,'Master Database'!$D$4:$Q$13507,14,FALSE)=0,"",VLOOKUP($A19,'Master Database'!$D$4:$Q$13507,14,FALSE)) -> 3.291943772 | AB19: To help understand how the management of epilepsy affects expenditure and outcomes in the CCG please visit the Commissioning for Value tool. | AC19: http://www.england.nhs.uk/resources/resources-for-ccgs/comm-for-value/ http://pathways.nice.org.uk/pathways/epilepsy
A20: 18NHS Airedale, Wharfedale and Craven | B20: =VLOOKUP(Report!$E$2,'Rules & Lookups'!$B$6:$C$216,2,FALSE) -> E38000001 | C20: =VLOOKUP(G20,'Map lookups'!$B$2:$P$104,7,FALSE) -> Problems of Vision | D20: =IF(VLOOKUP(G20,'Map lookups'!$B$2:$P$104,8,FALSE)="","No Subcategory",VLOOKUP(G20,'Map lookups'!$B$2:$P$104,8,FALSE)) -> Problems of Vision | E20: =IF(VLOOKUP(G20,'Map lookups'!$B$2:$P$104,10,FALSE)="","No Pathway",VLOOKUP(G20,'Map lookups'!$B$2:$P$104,10,FALSE)) -> No Pathway | F20: =VLOOKUP(G20,'Map lookups'!$B$2:$P$104,5,FALSE) -> Secondary Care Treatment | G20: 18 | H20: =VLOOKUP($G20,'Map lookups'!$B$2:$P$104,4,FALSE) -> Map 18: Rate of admission to hospital for cataract surgery in people aged 65 years and over per 100,000 population by CCG, 2012/13 | I20: =VLOOKUP(G20,'Map lookups'!$B$2:$P$104,6,FALSE) -> 2 | J20: =IF(VLOOKUP($G20,'Master Database'!$C$4:$E$13507,3,FALSE)="Bad","Improvement Opportunity",VLOOKUP($G20,'Master Database'!$C$4:$E$13507,3,FALSE)) -> Requires Local Interpretation | K20: =IF(OR(VLOOKUP($A20,'Master Database'!$D$4:$Q$13507,3,FALSE)="-",VLOOKUP($A20,'Master Database'!$D$4:$Q$13507,3,FALSE)=""),"No Data",VLOOKUP($A20,'Master Database'!$D$4:$Q$13507,3,FALSE)) -> 3762.295686 | L20: =IF(OR(VLOOKUP($A20,'Master Database'!$D$4:$Q$13507,4,FALSE)="-",VLOOKUP($A20,'Master Database'!$D$4:$Q$13507,4,FALSE)=""),"No Data",VLOOKUP($A20,'Master Database'!$D$4:$Q$13507,4,FALSE)) -> 3552.727028 | M20: =IF(OR(VLOOKUP($A20,'Master Database'!$D$4:$Q$13507,5,FALSE)="-",VLOOKUP($A20,'Master Database'!$D$4:$Q$13507,5,FALSE)=""),"No Data",VLOOKUP($A20,'Master Database'!$D$4:$Q$13507,5,FALSE)) -> 3980.917131 | N20: =IF(VLOOKUP(A20,Quintiles!$A$3:$E$13506,5,FALSE)=6,"No Data",VLOOKUP(A20,Quintiles!$A$3:$E$13506,5,FALSE)) -> 5 | O20: =INDEX('Colour Calculation'!$X$15:$CI$16,1,MATCH(Report!$G20,'Colour Calculation'!$X$16:$CI$16,0)) ->  | P20: =IFERROR(INDEX('Best performing CCG code'!$AE$7:$AL$70,MATCH("Map_"&Report!$G20,'Best performing CCG code'!$AE$7:$AE$70,0),8),"") ->  | Q20: =IF(OR(VLOOKUP($A20,'Master Database'!$D$4:$Q$13507,6,FALSE)="-",VLOOKUP($A20,'Master Database'!$D$4:$Q$13507,6,FALSE)="",VLOOKUP($A20,'Master Database'!$D$4:$Q$13507,6,FALSE)=0),"",VLOOKUP($A20,'Master Database'!$D$4:$Q$13507,6,FALSE)) -> 3090.29867 | R20: =IF(OR(VLOOKUP($A20,'Master Database'!$D$4:$Q$13507,7,FALSE)="-",VLOOKUP($A20,'Master Database'!$D$4:$Q$13507,7,FALSE)="",VLOOKUP($A20,'Master Database'!$D$4:$Q$13507,7,FALSE)=0),"",VLOOKUP($A20,'Master Database'!$D$4:$Q$13507,7,FALSE)) -> 3020.680023 | S20: =IF(OR(VLOOKUP($A20,'Master Database'!$D$4:$Q$13507,8,FALSE)="-",VLOOKUP($A20,'Master Database'!$D$4:$Q$13507,8,FALSE)=0,VLOOKUP($A20,'Master Database'!$D$4:$Q$13507,8,FALSE)=""),"",VLOOKUP($A20,'Master Database'!$D$4:$Q$13507,8,FALSE)) ->  | T20: =VLOOKUP($A20,'Master Database'!$D$4:$Q$13507,9,FALSE) -> Requires Local Interpretation | U20: =VLOOKUP($A20,'Master Database'!$D$4:$Q$13507,10,FALSE) -> Requires Local Interpretation | V20: =VLOOKUP($A20,'Master Database'!$D$4:$Q$13507,11,FALSE) -> Requires Local Interpretation | W20: =IF(VLOOKUP($A20,'Master Database'!$D$4:$Q$13507,12,FALSE)=0,"",VLOOKUP($A20,'Master Database'!$D$4:$Q$13507,12,FALSE)) ->  | X20: =IF(VLOOKUP($A20,'Master Database'!$D$4:$Q$13507,13,FALSE)=0,"",VLOOKUP($A20,'Master Database'!$D$4:$Q$13507,13,FALSE)) ->  | Y20: =IF(VLOOKUP($A20,'Master Database'!$D$4:$Q$13507,14,FALSE)=0,"",VLOOKUP($A20,'Master Database'!$D$4:$Q$13507,14,FALSE)) ->  | AB20: This indicator is not part of the pathways covered by Commissioning for Value. For more information around spend by programme budgeting category, please download the Programme Budgeting Benchmarking Tool. Spend on this area may be included within 21X. | AC20: http://www.england.nhs.uk/wp-content/uploads/2015/06/13-14-ccg-prog-bug-benchmarking-tool.xlsm http://pathways.nice.org.uk/pathways/eye-conditions/eye-conditions-overview
A21: 19NHS Airedale, Wharfedale and Craven | B21: =VLOOKUP(Report!$E$2,'Rules & Lookups'!$B$6:$C$216,2,FALSE) -> E38000001 | C21: =VLOOKUP(G21,'Map lookups'!$B$2:$P$104,7,FALSE) -> Problems of the Respiratory System | D21: =IF(VLOOKUP(G21,'Map lookups'!$B$2:$P$104,8,FALSE)="","No Subcategory",VLOOKUP(G21,'Map lookups'!$B$2:$P$104,8,FALSE)) -> Other Problems of the Respiratory System | E21: =IF(VLOOKUP(G21,'Map lookups'!$B$2:$P$104,10,FALSE)="","No Pathway",VLOOKUP(G21,'Map lookups'!$B$2:$P$104,10,FALSE)) -> Respiratory System Problems | F21: =VLOOKUP(G21,'Map lookups'!$B$2:$P$104,5,FALSE) -> Secondary Care Treatment | G21: 19 | H21: =VLOOKUP($G21,'Map lookups'!$B$2:$P$104,4,FALSE) -> Map 19: Rate of sleep studies undertaken per 1,000 weighted population by CCG, 2013/14 | I21: =VLOOKUP(G21,'Map lookups'!$B$2:$P$104,6,FALSE) -> 2 | J21: =IF(VLOOKUP($G21,'Master Database'!$C$4:$E$13507,3,FALSE)="Bad","Improvement Opportunity",VLOOKUP($G21,'Master Database'!$C$4:$E$13507,3,FALSE)) -> Requires Local Interpretation | K21: =IF(OR(VLOOKUP($A21,'Master Database'!$D$4:$Q$13507,3,FALSE)="-",VLOOKUP($A21,'Master Database'!$D$4:$Q$13507,3,FALSE)=""),"No Data",VLOOKUP($A21,'Master Database'!$D$4:$Q$13507,3,FALSE)) -> 0.8376693207 | L21: =IF(OR(VLOOKUP($A21,'Master Database'!$D$4:$Q$13507,4,FALSE)="-",VLOOKUP($A21,'Master Database'!$D$4:$Q$13507,4,FALSE)=""),"No Data",VLOOKUP($A21,'Master Database'!$D$4:$Q$13507,4,FALSE)) -> 0.7008584934 | M21: =IF(OR(VLOOKUP($A21,'Master Database'!$D$4:$Q$13507,5,FALSE)="-",VLOOKUP($A21,'Master Database'!$D$4:$Q$13507,5,FALSE)=""),"No Data",VLOOKUP($A21,'Master Database'!$D$4:$Q$13507,5,FALSE)) -> 0.9933784725 | N21: =IF(VLOOKUP(A21,Quintiles!$A$3:$E$13506,5,FALSE)=6,"No Data",VLOOKUP(A21,Quintiles!$A$3:$E$13506,5,FALSE)) -> 2 | O21: =INDEX('Colour Calculation'!$X$15:$CI$16,1,MATCH(Report!$G21,'Colour Calculation'!$X$16:$CI$16,0)) ->  | P21: =IFERROR(INDEX('Best performing CCG code'!$AE$7:$AL$70,MATCH("Map_"&Report!$G21,'Best performing CCG code'!$AE$7:$AE$70,0),8),"") ->  | Q21: =IF(OR(VLOOKUP($A21,'Master Database'!$D$4:$Q$13507,6,FALSE)="-",VLOOKUP($A21,'Master Database'!$D$4:$Q$13507,6,FALSE)="",VLOOKUP($A21,'Master Database'!$D$4:$Q$13507,6,FALSE)=0),"",VLOOKUP($A21,'Master Database'!$D$4:$Q$13507,6,FALSE)) -> 1.789046439 | R21: =IF(OR(VLOOKUP($A21,'Master Database'!$D$4:$Q$13507,7,FALSE)="-",VLOOKUP($A21,'Master Database'!$D$4:$Q$13507,7,FALSE)="",VLOOKUP($A21,'Master Database'!$D$4:$Q$13507,7,FALSE)=0),"",VLOOKUP($A21,'Master Database'!$D$4:$Q$13507,7,FALSE)) -> 1.917621212 | S21: =IF(OR(VLOOKUP($A21,'Master Database'!$D$4:$Q$13507,8,FALSE)="-",VLOOKUP($A21,'Master Database'!$D$4:$Q$13507,8,FALSE)=0,VLOOKUP($A21,'Master Database'!$D$4:$Q$13507,8,FALSE)=""),"",VLOOKUP($A21,'Master Database'!$D$4:$Q$13507,8,FALSE)) ->  | T21: =VLOOKUP($A21,'Master Database'!$D$4:$Q$13507,9,FALSE) -> Requires Local Interpretation | U21: =VLOOKUP($A21,'Master Database'!$D$4:$Q$13507,10,FALSE) -> Requires Local Interpretation | V21: =VLOOKUP($A21,'Master Database'!$D$4:$Q$13507,11,FALSE) -> Requires Local Interpretation | W21: =IF(VLOOKUP($A21,'Master Database'!$D$4:$Q$13507,12,FALSE)=0,"",VLOOKUP($A21,'Master Database'!$D$4:$Q$13507,12,FALSE)) ->  | X21: =IF(VLOOKUP($A21,'Master Database'!$D$4:$Q$13507,13,FALSE)=0,"",VLOOKUP($A21,'Master Database'!$D$4:$Q$13507,13,FALSE)) ->  | Y21: =IF(VLOOKUP($A21,'Master Database'!$D$4:$Q$13507,14,FALSE)=0,"",VLOOKUP($A21,'Master Database'!$D$4:$Q$13507,14,FALSE)) ->  | AB21: To help understand how the management of the problems of the respiratory system affects expenditure and outcomes in the CCG please visit the Commissioning for Value website and download a 2014 pack. | AC21: http://www.england.nhs.uk/resources/resources-for-ccgs/comm-for-value/ http://pathways.nice.org.uk/pathways/chronic-obstructive-pulmonary-disease http://pathways.nice.org.uk/pathways/asthma
A22: 21NHS Airedale, Wharfedale and Craven | B22: =VLOOKUP(Report!$E$2,'Rules & Lookups'!$B$6:$C$216,2,FALSE) -> E38000001 | C22: =VLOOKUP(G22,'Map lookups'!$B$2:$P$104,7,FALSE) -> Problems of the Respiratory System | D22: =IF(VLOOKUP(G22,'Map lookups'!$B$2:$P$104,8,FALSE)="","No Subcategory",VLOOKUP(G22,'Map lookups'!$B$2:$P$104,8,FALSE)) -> Obstructive Airways Disease | E22: =IF(VLOOKUP(G22,'Map lookups'!$B$2:$P$104,10,FALSE)="","No Pathway",VLOOKUP(G22,'Map lookups'!$B$2:$P$104,10,FALSE)) -> Respiratory System Problems - COPD | F22: =VLOOKUP(G22,'Map lookups'!$B$2:$P$104,5,FALSE) -> Primary Care Management | G22: 21 | H22: =VLOOKUP($G22,'Map lookups'!$B$2:$P$104,4,FALSE) -> Map 21: Percentage of patients with COPD who had influenza immunisation in the preceding 1 September to 31 March by CCG (QOF COPD006 with exception-reported patients included), 2013/14 | I22: =VLOOKUP(G22,'Map lookups'!$B$2:$P$104,6,FALSE) -> 1, 2 | J22: =IF(VLOOKUP($G22,'Master Database'!$C$4:$E$13507,3,FALSE)="Bad","Improvement Opportunity",VLOOKUP($G22,'Master Database'!$C$4:$E$13507,3,FALSE)) -> Good | K22: =IF(OR(VLOOKUP($A22,'Master Database'!$D$4:$Q$13507,3,FALSE)="-",VLOOKUP($A22,'Master Database'!$D$4:$Q$13507,3,FALSE)=""),"No Data",VLOOKUP($A22,'Master Database'!$D$4:$Q$13507,3,FALSE)) -> 81.27795527 | L22: =IF(OR(VLOOKUP($A22,'Master Database'!$D$4:$Q$13507,4,FALSE)="-",VLOOKUP($A22,'Master Database'!$D$4:$Q$13507,4,FALSE)=""),"No Data",VLOOKUP($A22,'Master Database'!$D$4:$Q$13507,4,FALSE)) -> 79.87329585 | M22: =IF(OR(VLOOKUP($A22,'Master Database'!$D$4:$Q$13507,5,FALSE)="-",VLOOKUP($A22,'Master Database'!$D$4:$Q$13507,5,FALSE)=""),"No Data",VLOOKUP($A22,'Master Database'!$D$4:$Q$13507,5,FALSE)) -> 82.60593092 | N22: =IF(VLOOKUP(A22,Quintiles!$A$3:$E$13506,5,FALSE)=6,"No Data",VLOOKUP(A22,Quintiles!$A$3:$E$13506,5,FALSE)) -> 3 | O22: =INDEX('Colour Calculation'!$X$15:$CI$16,1,MATCH(Report!$G22,'Colour Calculation'!$X$16:$CI$16,0)) -> A | P22: =IFERROR(INDEX('Best performing CCG code'!$AE$7:$AL$70,MATCH("Map_"&Report!$G22,'Best performing CCG code'!$AE$7:$AE$70,0),8),"") -> NHS South West Lincolnshire | Q22: =IF(OR(VLOOKUP($A22,'Master Database'!$D$4:$Q$13507,6,FALSE)="-",VLOOKUP($A22,'Master Database'!$D$4:$Q$13507,6,FALSE)="",VLOOKUP($A22,'Master Database'!$D$4:$Q$13507,6,FALSE)=0),"",VLOOKUP($A22,'Master Database'!$D$4:$Q$13507,6,FALSE)) -> 82.04620331 | R22: =IF(OR(VLOOKUP($A22,'Master Database'!$D$4:$Q$13507,7,FALSE)="-",VLOOKUP($A22,'Master Database'!$D$4:$Q$13507,7,FALSE)="",VLOOKUP($A22,'Master Database'!$D$4:$Q$13507,7,FALSE)=0),"",VLOOKUP($A22,'Master Database'!$D$4:$Q$13507,7,FALSE)) -> 82.11139807 | S22: =IF(OR(VLOOKUP($A22,'Master Database'!$D$4:$Q$13507,8,FALSE)="-",VLOOKUP($A22,'Master Database'!$D$4:$Q$13507,8,FALSE)=0,VLOOKUP($A22,'Master Database'!$D$4:$Q$13507,8,FALSE)=""),"",VLOOKUP($A22,'Master Database'!$D$4:$Q$13507,8,FALSE)) -> 83.23990778 | T22: =VLOOKUP($A22,'Master Database'!$D$4:$Q$13507,9,FALSE) -> A | U22: =VLOOKUP($A22,'Master Database'!$D$4:$Q$13507,10,FALSE) -> A | V22: =VLOOKUP($A22,'Master Database'!$D$4:$Q$13507,11,FALSE) -> R | W22: =IF(VLOOKUP($A22,'Master Database'!$D$4:$Q$13507,12,FALSE)=0,"",VLOOKUP($A22,'Master Database'!$D$4:$Q$13507,12,FALSE)) -> 0.768248043 | X22: =IF(VLOOKUP($A22,'Master Database'!$D$4:$Q$13507,13,FALSE)=0,"",VLOOKUP($A22,'Master Database'!$D$4:$Q$13507,13,FALSE)) -> 0.8334427996 | Y22: =IF(VLOOKUP($A22,'Master Database'!$D$4:$Q$13507,14,FALSE)=0,"",VLOOKUP($A22,'Master Database'!$D$4:$Q$13507,14,FALSE)) -> 1.961952508 | AB22: To help understand how the management of COPD affects expenditure and outcomes in the CCG please visit the Commissioning for Value website and download a 2014 pack. | AC22: http://www.england.nhs.uk/resources/resources-for-ccgs/comm-for-value/ http://pathways.nice.org.uk/pathways/chronic-obstructive-pulmonary-disease
A23: 22NHS Airedale, Wharfedale and Craven | B23: =VLOOKUP(Report!$E$2,'Rules & Lookups'!$B$6:$C$216,2,FALSE) -> E38000001 | C23: =VLOOKUP(G23,'Map lookups'!$B$2:$P$104,7,FALSE) -> Problems of the Respiratory System | D23: =IF(VLOOKUP(G23,'Map lookups'!$B$2:$P$104,8,FALSE)="","No Subcategory",VLOOKUP(G23,'Map lookups'!$B$2:$P$104,8,FALSE)) -> Obstructive Airways Disease | E23: =IF(VLOOKUP(G23,'Map lookups'!$B$2:$P$104,10,FALSE)="","No Pathway",VLOOKUP(G23,'Map lookups'!$B$2:$P$104,10,FALSE)) -> Respiratory System Problems - COPD | F23: =VLOOKUP(G23,'Map lookups'!$B$2:$P$104,5,FALSE) -> Primary Care Management | G23: 22 | H23: =VLOOKUP($G23,'Map lookups'!$B$2:$P$104,4,FALSE) -> Map 22: Rate of COPD emergency admissions to hospital per 100,000 population by CCG, 2012/13 | I23: =VLOOKUP(G23,'Map lookups'!$B$2:$P$104,6,FALSE) -> 1, 2 | J23: =IF(VLOOKUP($G23,'Master Database'!$C$4:$E$13507,3,FALSE)="Bad","Improvement Opportunity",VLOOKUP($G23,'Master Database'!$C$4:$E$13507,3,FALSE)) -> Improvement Opportunity | K23: =IF(OR(VLOOKUP($A23,'Master Database'!$D$4:$Q$13507,3,FALSE)="-",VLOOKUP($A23,'Master Database'!$D$4:$Q$13507,3,FALSE)=""),"No Data",VLOOKUP($A23,'Master Database'!$D$4:$Q$13507,3,FALSE)) -> 201.0578445 | L23: =IF(OR(VLOOKUP($A23,'Master Database'!$D$4:$Q$13507,4,FALSE)="-",VLOOKUP($A23,'Master Database'!$D$4:$Q$13507,4,FALSE)=""),"No Data",VLOOKUP($A23,'Master Database'!$D$4:$Q$13507,4,FALSE)) -> 179.7247077 | M23: =IF(OR(VLOOKUP($A23,'Master Database'!$D$4:$Q$13507,5,FALSE)="-",VLOOKUP($A23,'Master Database'!$D$4:$Q$13507,5,FALSE)=""),"No Data",VLOOKUP($A23,'Master Database'!$D$4:$Q$13507,5,FALSE)) -> 224.1888 | N23: =IF(VLOOKUP(A23,Quintiles!$A$3:$E$13506,5,FALSE)=6,"No Data",VLOOKUP(A23,Quintiles!$A$3:$E$13506,5,FALSE)) -> 2 | O23: =INDEX('Colour Calculation'!$X$15:$CI$16,1,MATCH(Report!$G23,'Colour Calculation'!$X$16:$CI$16,0)) -> A | P23: =IFERROR(INDEX('Best performing CCG code'!$AE$7:$AL$70,MATCH("Map_"&Report!$G23,'Best performing CCG code'!$AE$7:$AE$70,0),8),"") -> NHS South Worcestershire | Q23: =IF(OR(VLOOKUP($A23,'Master Database'!$D$4:$Q$13507,6,FALSE)="-",VLOOKUP($A23,'Master Database'!$D$4:$Q$13507,6,FALSE)="",VLOOKUP($A23,'Master Database'!$D$4:$Q$13507,6,FALSE)=0),"",VLOOKUP($A23,'Master Database'!$D$4:$Q$13507,6,FALSE)) -> 269.026393 | R23: =IF(OR(VLOOKUP($A23,'Master Database'!$D$4:$Q$13507,7,FALSE)="-",VLOOKUP($A23,'Master Database'!$D$4:$Q$13507,7,FALSE)="",VLOOKUP($A23,'Master Database'!$D$4:$Q$13507,7,FALSE)=0),"",VLOOKUP($A23,'Master Database'!$D$4:$Q$13507,7,FALSE)) -> 217.3760228 | S23: =IF(OR(VLOOKUP($A23,'Master Database'!$D$4:$Q$13507,8,FALSE)="-",VLOOKUP($A23,'Master Database'!$D$4:$Q$13507,8,FALSE)=0,VLOOKUP($A23,'Master Database'!$D$4:$Q$13507,8,FALSE)=""),"",VLOOKUP($A23,'Master Database'!$D$4:$Q$13507,8,FALSE)) -> 179.517593 | T23: =VLOOKUP($A23,'Master Database'!$D$4:$Q$13507,9,FALSE) -> G | U23: =VLOOKUP($A23,'Master Database'!$D$4:$Q$13507,10,FALSE) -> A | V23: =VLOOKUP($A23,'Master Database'!$D$4:$Q$13507,11,FALSE) -> R | W23: =IF(VLOOKUP($A23,'Master Database'!$D$4:$Q$13507,12,FALSE)=0,"",VLOOKUP($A23,'Master Database'!$D$4:$Q$13507,12,FALSE)) ->  | X23: =IF(VLOOKUP($A23,'Master Database'!$D$4:$Q$13507,13,FALSE)=0,"",VLOOKUP($A23,'Master Database'!$D$4:$Q$13507,13,FALSE)) ->  | Y23: =IF(VLOOKUP($A23,'Master Database'!$D$4:$Q$13507,14,FALSE)=0,"",VLOOKUP($A23,'Master Database'!$D$4:$Q$13507,14,FALSE)) -> 21.54025147 | AB23: To help understand how the management of COPD affects expenditure and outcomes in the CCG please visit the Commissioning for Value website and download a 2014 pack. | AC23: http://www.england.nhs.uk/resources/resources-for-ccgs/comm-for-value/ http://pathways.nice.org.uk/pathways/chronic-obstructive-pulmonary-disease
A24: 23NHS Airedale, Wharfedale and Craven | B24: =VLOOKUP(Report!$E$2,'Rules & Lookups'!$B$6:$C$216,2,FALSE) -> E38000001 | C24: =VLOOKUP(G24,'Map lookups'!$B$2:$P$104,7,FALSE) -> Problems of the Respiratory System | D24: =IF(VLOOKUP(G24,'Map lookups'!$B$2:$P$104,8,FALSE)="","No Subcategory",VLOOKUP(G24,'Map lookups'!$B$2:$P$104,8,FALSE)) -> Asthma | E24: =IF(VLOOKUP(G24,'Map lookups'!$B$2:$P$104,10,FALSE)="","No Pathway",VLOOKUP(G24,'Map lookups'!$B$2:$P$104,10,FALSE)) -> Respiratory System Problems - Asthma | F24: =VLOOKUP(G24,'Map lookups'!$B$2:$P$104,5,FALSE) -> Primary Care Management | G24: 23 | H24: =VLOOKUP($G24,'Map lookups'!$B$2:$P$104,4,FALSE) -> Map 23: Rate of asthma emergency admissions to hospital in people aged 19 years and over per 100,000 population by CCG, 2012/13 | I24: =VLOOKUP(G24,'Map lookups'!$B$2:$P$104,6,FALSE) -> 2, 3 | J24: =IF(VLOOKUP($G24,'Master Database'!$C$4:$E$13507,3,FALSE)="Bad","Improvement Opportunity",VLOOKUP($G24,'Master Database'!$C$4:$E$13507,3,FALSE)) -> Improvement Opportunity | K24: =IF(OR(VLOOKUP($A24,'Master Database'!$D$4:$Q$13507,3,FALSE)="-",VLOOKUP($A24,'Master Database'!$D$4:$Q$13507,3,FALSE)=""),"No Data",VLOOKUP($A24,'Master Database'!$D$4:$Q$13507,3,FALSE)) -> 68.20766169 | L24: =IF(OR(VLOOKUP($A24,'Master Database'!$D$4:$Q$13507,4,FALSE)="-",VLOOKUP($A24,'Master Database'!$D$4:$Q$13507,4,FALSE)=""),"No Data",VLOOKUP($A24,'Master Database'!$D$4:$Q$13507,4,FALSE)) -> 54.12729215 | M24: =IF(OR(VLOOKUP($A24,'Master Database'!$D$4:$Q$13507,5,FALSE)="-",VLOOKUP($A24,'Master Database'!$D$4:$Q$13507,5,FALSE)=""),"No Data",VLOOKUP($A24,'Master Database'!$D$4:$Q$13507,5,FALSE)) -> 84.78784506 | N24: =IF(VLOOKUP(A24,Quintiles!$A$3:$E$13506,5,FALSE)=6,"No Data",VLOOKUP(A24,Quintiles!$A$3:$E$13506,5,FALSE)) -> 2 | O24: =INDEX('Colour Calculation'!$X$15:$CI$16,1,MATCH(Report!$G24,'Colour Calculation'!$X$16:$CI$16,0)) -> A | P24: =IFERROR(INDEX('Best performing CCG code'!$AE$7:$AL$70,MATCH("Map_"&Report!$G24,'Best performing CCG code'!$AE$7:$AE$70,0),8),"") -> NHS Newark & Sherwood | Q24: =IF(OR(VLOOKUP($A24,'Master Database'!$D$4:$Q$13507,6,FALSE)="-",VLOOKUP($A24,'Master Database'!$D$4:$Q$13507,6,FALSE)="",VLOOKUP($A24,'Master Database'!$D$4:$Q$13507,6,FALSE)=0),"",VLOOKUP($A24,'Master Database'!$D$4:$Q$13507,6,FALSE)) -> 87.7944389 | R24: =IF(OR(VLOOKUP($A24,'Master Database'!$D$4:$Q$13507,7,FALSE)="-",VLOOKUP($A24,'Master Database'!$D$4:$Q$13507,7,FALSE)="",VLOOKUP($A24,'Master Database'!$D$4:$Q$13507,7,FALSE)=0),"",VLOOKUP($A24,'Master Database'!$D$4:$Q$13507,7,FALSE)) -> 65.1325267 | S24: =IF(OR(VLOOKUP($A24,'Master Database'!$D$4:$Q$13507,8,FALSE)="-",VLOOKUP($A24,'Master Database'!$D$4:$Q$13507,8,FALSE)=0,VLOOKUP($A24,'Master Database'!$D$4:$Q$13507,8,FALSE)=""),"",VLOOKUP($A24,'Master Database'!$D$4:$Q$13507,8,FALSE)) -> 60.2209933 | T24: =VLOOKUP($A24,'Master Database'!$D$4:$Q$13507,9,FALSE) -> G | U24: =VLOOKUP($A24,'Master Database'!$D$4:$Q$13507,10,FALSE) -> A | V24: =VLOOKUP($A24,'Master Database'!$D$4:$Q$13507,11,FALSE) -> A | W24: =IF(VLOOKUP($A24,'Master Database'!$D$4:$Q$13507,12,FALSE)=0,"",VLOOKUP($A24,'Master Database'!$D$4:$Q$13507,12,FALSE)) ->  | X24: =IF(VLOOKUP($A24,'Master Database'!$D$4:$Q$13507,13,FALSE)=0,"",VLOOKUP($A24,'Master Database'!$D$4:$Q$13507,13,FALSE)) -> 3.075134984 | Y24: =IF(VLOOKUP($A24,'Master Database'!$D$4:$Q$13507,14,FALSE)=0,"",VLOOKUP($A24,'Master Database'!$D$4:$Q$13507,14,FALSE)) -> 7.98666839 | AB24: To help understand how the management of Asthma affects expenditure and outcomes in the CCG please visit the Commissioning for Value website and download a 2014 pack. | AC24: http://www.england.nhs.uk/resources/resources-for-ccgs/comm-for-value/ http://pathways.nice.org.uk/pathways/asthma
A25: 26NHS Airedale, Wharfedale and Craven | B25: =VLOOKUP(Report!$E$2,'Rules & Lookups'!$B$6:$C$216,2,FALSE) -> E38000001 | C25: =VLOOKUP(G25,'Map lookups'!$B$2:$P$104,7,FALSE) -> Cardiovascular Family of Diseases - Kidney Care | D25: =IF(VLOOKUP(G25,'Map lookups'!$B$2:$P$104,8,FALSE)="","No Subcategory",VLOOKUP(G25,'Map lookups'!$B$2:$P$104,8,FALSE)) -> Other Problems of the Gastro Intestinal System | E25: =IF(VLOOKUP(G25,'Map lookups'!$B$2:$P$104,10,FALSE)="","No Pathway",VLOOKUP(G25,'Map lookups'!$B$2:$P$104,10,FALSE)) -> Genitourinary - Renal | F25: =VLOOKUP(G25,'Map lookups'!$B$2:$P$104,5,FALSE) -> Primary Care Management | G25: 26 | H25: =VLOOKUP($G25,'Map lookups'!$B$2:$P$104,4,FALSE) -> Map 26: Percentage of people on the chronic kidney disease (CKD) register whose most recent blood-pressure measurement in the previous 15 months was 140/85 mmHg or less (QOF CKD3 with exception-reported patients excluded) by CCG, 2012/13 | I25: =VLOOKUP(G25,'Map lookups'!$B$2:$P$104,6,FALSE) -> 1, 2 | J25: =IF(VLOOKUP($G25,'Master Database'!$C$4:$E$13507,3,FALSE)="Bad","Improvement Opportunity",VLOOKUP($G25,'Master Database'!$C$4:$E$13507,3,FALSE)) -> Good | K25: =IF(OR(VLOOKUP($A25,'Master Database'!$D$4:$Q$13507,3,FALSE)="-",VLOOKUP($A25,'Master Database'!$D$4:$Q$13507,3,FALSE)=""),"No Data",VLOOKUP($A25,'Master Database'!$D$4:$Q$13507,3,FALSE)) -> 77.77098615 | L25: =IF(OR(VLOOKUP($A25,'Master Database'!$D$4:$Q$13507,4,FALSE)="-",VLOOKUP($A25,'Master Database'!$D$4:$Q$13507,4,FALSE)=""),"No Data",VLOOKUP($A25,'Master Database'!$D$4:$Q$13507,4,FALSE)) -> 76.58626931 | M25: =IF(OR(VLOOKUP($A25,'Master Database'!$D$4:$Q$13507,5,FALSE)="-",VLOOKUP($A25,'Master Database'!$D$4:$Q$13507,5,FALSE)=""),"No Data",VLOOKUP($A25,'Master Database'!$D$4:$Q$13507,5,FALSE)) -> 78.91226306 | N25: =IF(VLOOKUP(A25,Quintiles!$A$3:$E$13506,5,FALSE)=6,"No Data",VLOOKUP(A25,Quintiles!$A$3:$E$13506,5,FALSE)) -> 4 | O25: =INDEX('Colour Calculation'!$X$15:$CI$16,1,MATCH(Report!$G25,'Colour Calculation'!$X$16:$CI$16,0)) -> G | P25: =IFERROR(INDEX('Best performing CCG code'!$AE$7:$AL$70,MATCH("Map_"&Report!$G25,'Best performing CCG code'!$AE$7:$AE$70,0),8),"") -> NHS Ashford | Q25: =IF(OR(VLOOKUP($A25,'Master Database'!$D$4:$Q$13507,6,FALSE)="-",VLOOKUP($A25,'Master Database'!$D$4:$Q$13507,6,FALSE)="",VLOOKUP($A25,'Master Database'!$D$4:$Q$13507,6,FALSE)=0),"",VLOOKUP($A25,'Master Database'!$D$4:$Q$13507,6,FALSE)) -> 76.22812918 | R25: =IF(OR(VLOOKUP($A25,'Master Database'!$D$4:$Q$13507,7,FALSE)="-",VLOOKUP($A25,'Master Database'!$D$4:$Q$13507,7,FALSE)="",VLOOKUP($A25,'Master Database'!$D$4:$Q$13507,7,FALSE)=0),"",VLOOKUP($A25,'Master Database'!$D$4:$Q$13507,7,FALSE)) -> 75.95970777 | S25: =IF(OR(VLOOKUP($A25,'Master Database'!$D$4:$Q$13507,8,FALSE)="-",VLOOKUP($A25,'Master Database'!$D$4:$Q$13507,8,FALSE)=0,VLOOKUP($A25,'Master Database'!$D$4:$Q$13507,8,FALSE)=""),"",VLOOKUP($A25,'Master Database'!$D$4:$Q$13507,8,FALSE)) -> 76.52859791 | T25: =VLOOKUP($A25,'Master Database'!$D$4:$Q$13507,9,FALSE) -> G | U25: =VLOOKUP($A25,'Master Database'!$D$4:$Q$13507,10,FALSE) -> G | V25: =VLOOKUP($A25,'Master Database'!$D$4:$Q$13507,11,FALSE) -> G | W25: =IF(VLOOKUP($A25,'Master Database'!$D$4:$Q$13507,12,FALSE)=0,"",VLOOKUP($A25,'Master Database'!$D$4:$Q$13507,12,FALSE)) ->  | X25: =IF(VLOOKUP($A25,'Master Database'!$D$4:$Q$13507,13,FALSE)=0,"",VLOOKUP($A25,'Master Database'!$D$4:$Q$13507,13,FALSE)) ->  | Y25: =IF(VLOOKUP($A25,'Master Database'!$D$4:$Q$13507,14,FALSE)=0,"",VLOOKUP($A25,'Master Database'!$D$4:$Q$13507,14,FALSE)) ->  | AB25: To help understand how the management of chronic kidney disease (CKD) affects expenditure and outcomes in the CCG please visit the Commissioning for Value website and download a 2014 pack. | AC25: http://www.england.nhs.uk/resources/resources-for-ccgs/comm-for-value/ http://pathways.nice.org.uk/pathways/chronic-kidney-disease
A26: 27NHS Airedale, Wharfedale and Craven | B26: =VLOOKUP(Report!$E$2,'Rules & Lookups'!$B$6:$C$216,2,FALSE) -> E38000001 | C26: =VLOOKUP(G26,'Map lookups'!$B$2:$P$104,7,FALSE) -> Cardiovascular Family of Diseases - Kidney Care | D26: =IF(VLOOKUP(G26,'Map lookups'!$B$2:$P$104,8,FALSE)="","No Subcategory",VLOOKUP(G26,'Map lookups'!$B$2:$P$104,8,FALSE)) -> Other Problems of the Gastro Intestinal System | E26: =IF(VLOOKUP(G26,'Map lookups'!$B$2:$P$104,10,FALSE)="","No Pathway",VLOOKUP(G26,'Map lookups'!$B$2:$P$104,10,FALSE)) -> Genitourinary - Renal | F26: =VLOOKUP(G26,'Map lookups'!$B$2:$P$104,5,FALSE) -> Prevention and Early Diagnosis | G26: 27 | H26: =VLOOKUP($G26,'Map lookups'!$B$2:$P$104,4,FALSE) -> Map 27: Ratio of reported to expected prevalence of chronic kidney disease (CKD) by CCG, 2012/13 | I26: =VLOOKUP(G26,'Map lookups'!$B$2:$P$104,6,FALSE) -> 1, 2 | J26: =IF(VLOOKUP($G26,'Master Database'!$C$4:$E$13507,3,FALSE)="Bad","Improvement Opportunity",VLOOKUP($G26,'Master Database'!$C$4:$E$13507,3,FALSE)) -> Good | K26: =IF(OR(VLOOKUP($A26,'Master Database'!$D$4:$Q$13507,3,FALSE)="-",VLOOKUP($A26,'Master Database'!$D$4:$Q$13507,3,FALSE)=""),"No Data",VLOOKUP($A26,'Master Database'!$D$4:$Q$13507,3,FALSE)) -> 0.6119077755 | L26: =IF(OR(VLOOKUP($A26,'Master Database'!$D$4:$Q$13507,4,FALSE)="-",VLOOKUP($A26,'Master Database'!$D$4:$Q$13507,4,FALSE)=""),"No Data",VLOOKUP($A26,'Master Database'!$D$4:$Q$13507,4,FALSE)) -> No Data | M26: =IF(OR(VLOOKUP($A26,'Master Database'!$D$4:$Q$13507,5,FALSE)="-",VLOOKUP($A26,'Master Database'!$D$4:$Q$13507,5,FALSE)=""),"No Data",VLOOKUP($A26,'Master Database'!$D$4:$Q$13507,5,FALSE)) -> No Data | N26: =IF(VLOOKUP(A26,Quintiles!$A$3:$E$13506,5,FALSE)=6,"No Data",VLOOKUP(A26,Quintiles!$A$3:$E$13506,5,FALSE)) -> 2 | O26: =INDEX('Colour Calculation'!$X$15:$CI$16,1,MATCH(Report!$G26,'Colour Calculation'!$X$16:$CI$16,0)) -> R | P26: =IFERROR(INDEX('Best performing CCG code'!$AE$7:$AL$70,MATCH("Map_"&Report!$G26,'Best performing CCG code'!$AE$7:$AE$70,0),8),"") -> NHS South West Lincolnshire | Q26: =IF(OR(VLOOKUP($A26,'Master Database'!$D$4:$Q$13507,6,FALSE)="-",VLOOKUP($A26,'Master Database'!$D$4:$Q$13507,6,FALSE)="",VLOOKUP($A26,'Master Database'!$D$4:$Q$13507,6,FALSE)=0),"",VLOOKUP($A26,'Master Database'!$D$4:$Q$13507,6,FALSE)) -> 0.7056958246 | R26: =IF(OR(VLOOKUP($A26,'Master Database'!$D$4:$Q$13507,7,FALSE)="-",VLOOKUP($A26,'Master Database'!$D$4:$Q$13507,7,FALSE)="",VLOOKUP($A26,'Master Database'!$D$4:$Q$13507,7,FALSE)=0),"",VLOOKUP($A26,'Master Database'!$D$4:$Q$13507,7,FALSE)) -> 0.7077121453 | S26: =IF(OR(VLOOKUP($A26,'Master Database'!$D$4:$Q$13507,8,FALSE)="-",VLOOKUP($A26,'Master Database'!$D$4:$Q$13507,8,FALSE)=0,VLOOKUP($A26,'Master Database'!$D$4:$Q$13507,8,FALSE)=""),"",VLOOKUP($A26,'Master Database'!$D$4:$Q$13507,8,FALSE)) -> 0.7585541202 | T26: =VLOOKUP($A26,'Master Database'!$D$4:$Q$13507,9,FALSE) ->  | U26: =VLOOKUP($A26,'Master Database'!$D$4:$Q$13507,10,FALSE) ->  | V26: =VLOOKUP($A26,'Master Database'!$D$4:$Q$13507,11,FALSE) ->  | W26: =IF(VLOOKUP($A26,'Master Database'!$D$4:$Q$13507,12,FALSE)=0,"",VLOOKUP($A26,'Master Database'!$D$4:$Q$13507,12,FALSE)) -> 0.09378804911 | X26: =IF(VLOOKUP($A26,'Master Database'!$D$4:$Q$13507,13,FALSE)=0,"",VLOOKUP($A26,'Master Database'!$D$4:$Q$13507,13,FALSE)) -> 0.09580436982 | Y26: =IF(VLOOKUP($A26,'Master Database'!$D$4:$Q$13507,14,FALSE)=0,"",VLOOKUP($A26,'Master Database'!$D$4:$Q$13507,14,FALSE)) -> 0.1466463448 | AB26: To help understand how the management of chronic kidney disease (CKD) affects expenditure and outcomes in the CCG please visit the Commissioning for Value website and download a 2014 pack. | AC26: http://www.england.nhs.uk/resources/resources-for-ccgs/comm-for-value/ http://pathways.nice.org.uk/pathways/chronic-kidney-disease
A27: 28NHS Airedale, Wharfedale and Craven | B27: =VLOOKUP(Report!$E$2,'Rules & Lookups'!$B$6:$C$216,2,FALSE) -> E38000001 | C27: =VLOOKUP(G27,'Map lookups'!$B$2:$P$104,7,FALSE) -> Cardiovascular Family of Diseases - Kidney Care | D27: =IF(VLOOKUP(G27,'Map lookups'!$B$2:$P$104,8,FALSE)="","No Subcategory",VLOOKUP(G27,'Map lookups'!$B$2:$P$104,8,FALSE)) -> Other Problems of the Gastro Intestinal System | E27: =IF(VLOOKUP(G27,'Map lookups'!$B$2:$P$104,10,FALSE)="","No Pathway",VLOOKUP(G27,'Map lookups'!$B$2:$P$104,10,FALSE)) -> Genitourinary - Renal | F27: =VLOOKUP(G27,'Map lookups'!$B$2:$P$104,5,FALSE) -> Secondary Care Treatment | G27: 28 | H27: =VLOOKUP($G27,'Map lookups'!$B$2:$P$104,4,FALSE) -> Map 28: Percentage of dialysis patients who were receiving dialysis in the home (home haemodialysis and peritoneal dialysis combined) by CCG, 2013 | I27: =VLOOKUP(G27,'Map lookups'!$B$2:$P$104,6,FALSE) -> 2 | J27: =IF(VLOOKUP($G27,'Master Database'!$C$4:$E$13507,3,FALSE)="Bad","Improvement Opportunity",VLOOKUP($G27,'Master Database'!$C$4:$E$13507,3,FALSE)) -> Good | K27: =IF(OR(VLOOKUP($A27,'Master Database'!$D$4:$Q$13507,3,FALSE)="-",VLOOKUP($A27,'Master Database'!$D$4:$Q$13507,3,FALSE)=""),"No Data",VLOOKUP($A27,'Master Database'!$D$4:$Q$13507,3,FALSE)) -> 19.56521739 | L27: =IF(OR(VLOOKUP($A27,'Master Database'!$D$4:$Q$13507,4,FALSE)="-",VLOOKUP($A27,'Master Database'!$D$4:$Q$13507,4,FALSE)=""),"No Data",VLOOKUP($A27,'Master Database'!$D$4:$Q$13507,4,FALSE)) -> 10.65049044 | M27: =IF(OR(VLOOKUP($A27,'Master Database'!$D$4:$Q$13507,5,FALSE)="-",VLOOKUP($A27,'Master Database'!$D$4:$Q$13507,5,FALSE)=""),"No Data",VLOOKUP($A27,'Master Database'!$D$4:$Q$13507,5,FALSE)) -> 33.17153774 | N27: =IF(VLOOKUP(A27,Quintiles!$A$3:$E$13506,5,FALSE)=6,"No Data",VLOOKUP(A27,Quintiles!$A$3:$E$13506,5,FALSE)) -> 3 | O27: =INDEX('Colour Calculation'!$X$15:$CI$16,1,MATCH(Report!$G27,'Colour Calculation'!$X$16:$CI$16,0)) -> A | P27: =IFERROR(INDEX('Best performing CCG code'!$AE$7:$AL$70,MATCH("Map_"&Report!$G27,'Best performing CCG code'!$AE$7:$AE$70,0),8),"") -> NHS Newark & Sherwood | Q27: =IF(OR(VLOOKUP($A27,'Master Database'!$D$4:$Q$13507,6,FALSE)="-",VLOOKUP($A27,'Master Database'!$D$4:$Q$13507,6,FALSE)="",VLOOKUP($A27,'Master Database'!$D$4:$Q$13507,6,FALSE)=0),"",VLOOKUP($A27,'Master Database'!$D$4:$Q$13507,6,FALSE)) -> 19.4187454 | R27: =IF(OR(VLOOKUP($A27,'Master Database'!$D$4:$Q$13507,7,FALSE)="-",VLOOKUP($A27,'Master Database'!$D$4:$Q$13507,7,FALSE)="",VLOOKUP($A27,'Master Database'!$D$4:$Q$13507,7,FALSE)=0),"",VLOOKUP($A27,'Master Database'!$D$4:$Q$13507,7,FALSE)) -> 23.39199662 | S27: =IF(OR(VLOOKUP($A27,'Master Database'!$D$4:$Q$13507,8,FALSE)="-",VLOOKUP($A27,'Master Database'!$D$4:$Q$13507,8,FALSE)=0,VLOOKUP($A27,'Master Database'!$D$4:$Q$13507,8,FALSE)=""),"",VLOOKUP($A27,'Master Database'!$D$4:$Q$13507,8,FALSE)) -> 26.96969697 | T27: =VLOOKUP($A27,'Master Database'!$D$4:$Q$13507,9,FALSE) -> A | U27: =VLOOKUP($A27,'Master Database'!$D$4:$Q$13507,10,FALSE) -> A | V27: =VLOOKUP($A27,'Master Database'!$D$4:$Q$13507,11,FALSE) -> A | W27: =IF(VLOOKUP($A27,'Master Database'!$D$4:$Q$13507,12,FALSE)=0,"",VLOOKUP($A27,'Master Database'!$D$4:$Q$13507,12,FALSE)) ->  | X27: =IF(VLOOKUP($A27,'Master Database'!$D$4:$Q$13507,13,FALSE)=0,"",VLOOKUP($A27,'Master Database'!$D$4:$Q$13507,13,FALSE)) -> 3.826779229 | Y27: =IF(VLOOKUP($A27,'Master Database'!$D$4:$Q$13507,14,FALSE)=0,"",VLOOKUP($A27,'Master Database'!$D$4:$Q$13507,14,FALSE)) -> 7.404479578 | AB27: To help understand how the management of chronic kidney disease (CKD) affects expenditure and outcomes in the CCG please visit the Commissioning for Value website and download a 2014 pack. | AC27: http://www.england.nhs.uk/resources/resources-for-ccgs/comm-for-value/ http://pathways.nice.org.uk/pathways/chronic-kidney-disease
A28: 29NHS Airedale, Wharfedale and Craven | B28: =VLOOKUP(Report!$E$2,'Rules & Lookups'!$B$6:$C$216,2,FALSE) -> E38000001 | C28: =VLOOKUP(G28,'Map lookups'!$B$2:$P$104,7,FALSE) -> Cardiovascular Family of Diseases - Kidney Care | D28: =IF(VLOOKUP(G28,'Map lookups'!$B$2:$P$104,8,FALSE)="","No Subcategory",VLOOKUP(G28,'Map lookups'!$B$2:$P$104,8,FALSE)) -> Other Problems of the Gastro Intestinal System | E28: =IF(VLOOKUP(G28,'Map lookups'!$B$2:$P$104,10,FALSE)="","No Pathway",VLOOKUP(G28,'Map lookups'!$B$2:$P$104,10,FALSE)) -> Genitourinary - Renal | F28: =VLOOKUP(G28,'Map lookups'!$B$2:$P$104,5,FALSE) -> Secondary Care Treatment | G28: 29 | H28: =VLOOKUP($G28,'Map lookups'!$B$2:$P$104,4,FALSE) -> Map 29: Percentage of people receiving renal replacement therapy (RRT) who had a functioning kidney transplant at a Census date by CCG, 2013 | I28: =VLOOKUP(G28,'Map lookups'!$B$2:$P$104,6,FALSE) -> 2 | J28: =IF(VLOOKUP($G28,'Master Database'!$C$4:$E$13507,3,FALSE)="Bad","Improvement Opportunity",VLOOKUP($G28,'Master Database'!$C$4:$E$13507,3,FALSE)) -> Good | K28: =IF(OR(VLOOKUP($A28,'Master Database'!$D$4:$Q$13507,3,FALSE)="-",VLOOKUP($A28,'Master Database'!$D$4:$Q$13507,3,FALSE)=""),"No Data",VLOOKUP($A28,'Master Database'!$D$4:$Q$13507,3,FALSE)) -> 61.98347107 | L28: =IF(OR(VLOOKUP($A28,'Master Database'!$D$4:$Q$13507,4,FALSE)="-",VLOOKUP($A28,'Master Database'!$D$4:$Q$13507,4,FALSE)=""),"No Data",VLOOKUP($A28,'Master Database'!$D$4:$Q$13507,4,FALSE)) -> 53.09142515 | M28: =IF(OR(VLOOKUP($A28,'Master Database'!$D$4:$Q$13507,5,FALSE)="-",VLOOKUP($A28,'Master Database'!$D$4:$Q$13507,5,FALSE)=""),"No Data",VLOOKUP($A28,'Master Database'!$D$4:$Q$13507,5,FALSE)) -> 70.1380112 | N28: =IF(VLOOKUP(A28,Quintiles!$A$3:$E$13506,5,FALSE)=6,"No Data",VLOOKUP(A28,Quintiles!$A$3:$E$13506,5,FALSE)) -> 5 | O28: =INDEX('Colour Calculation'!$X$15:$CI$16,1,MATCH(Report!$G28,'Colour Calculation'!$X$16:$CI$16,0)) -> G | P28: =IFERROR(INDEX('Best performing CCG code'!$AE$7:$AL$70,MATCH("Map_"&Report!$G28,'Best performing CCG code'!$AE$7:$AE$70,0),8),"") -> NHS Harrogate and Rural District | Q28: =IF(OR(VLOOKUP($A28,'Master Database'!$D$4:$Q$13507,6,FALSE)="-",VLOOKUP($A28,'Master Database'!$D$4:$Q$13507,6,FALSE)="",VLOOKUP($A28,'Master Database'!$D$4:$Q$13507,6,FALSE)=0),"",VLOOKUP($A28,'Master Database'!$D$4:$Q$13507,6,FALSE)) -> 52.13604867 | R28: =IF(OR(VLOOKUP($A28,'Master Database'!$D$4:$Q$13507,7,FALSE)="-",VLOOKUP($A28,'Master Database'!$D$4:$Q$13507,7,FALSE)="",VLOOKUP($A28,'Master Database'!$D$4:$Q$13507,7,FALSE)=0),"",VLOOKUP($A28,'Master Database'!$D$4:$Q$13507,7,FALSE)) -> 54.76610163 | S28: =IF(OR(VLOOKUP($A28,'Master Database'!$D$4:$Q$13507,8,FALSE)="-",VLOOKUP($A28,'Master Database'!$D$4:$Q$13507,8,FALSE)=0,VLOOKUP($A28,'Master Database'!$D$4:$Q$13507,8,FALSE)=""),"",VLOOKUP($A28,'Master Database'!$D$4:$Q$13507,8,FALSE)) -> 59.43210251 | T28: =VLOOKUP($A28,'Master Database'!$D$4:$Q$13507,9,FALSE) -> G | U28: =VLOOKUP($A28,'Master Database'!$D$4:$Q$13507,10,FALSE) -> A | V28: =VLOOKUP($A28,'Master Database'!$D$4:$Q$13507,11,FALSE) -> A | W28: =IF(VLOOKUP($A28,'Master Database'!$D$4:$Q$13507,12,FALSE)=0,"",VLOOKUP($A28,'Master Database'!$D$4:$Q$13507,12,FALSE)) ->  | X28: =IF(VLOOKUP($A28,'Master Database'!$D$4:$Q$13507,13,FALSE)=0,"",VLOOKUP($A28,'Master Database'!$D$4:$Q$13507,13,FALSE)) ->  | Y28: =IF(VLOOKUP($A28,'Master Database'!$D$4:$Q$13507,14,FALSE)=0,"",VLOOKUP($A28,'Master Database'!$D$4:$Q$13507,14,FALSE)) ->  | AB28: To help understand how the management of chronic kidney disease (CKD) affects expenditure and outcomes in the CCG please visit the Commissioning for Value website and download a 2014 pack. | AC28: http://www.england.nhs.uk/resources/resources-for-ccgs/comm-for-value/ http://pathways.nice.org.uk/pathways/chronic-kidney-disease
A29: 30NHS Airedale, Wharfedale and Craven | B29: =VLOOKUP(Report!$E$2,'Rules & Lookups'!$B$6:$C$216,2,FALSE) -> E38000001 | C29: =VLOOKUP(G29,'Map lookups'!$B$2:$P$104,7,FALSE) -> Cardiovascular Family of Diseases - Diabetes | D29: =IF(VLOOKUP(G29,'Map lookups'!$B$2:$P$104,8,FALSE)="","No Subcategory",VLOOKUP(G29,'Map lookups'!$B$2:$P$104,8,FALSE)) -> Diabetes | E29: =IF(VLOOKUP(G29,'Map lookups'!$B$2:$P$104,10,FALSE)="","No Pathway",VLOOKUP(G29,'Map lookups'!$B$2:$P$104,10,FALSE)) -> Endocrine, Nutritional and Metabolic problems - Diabetes | F29: =VLOOKUP(G29,'Map lookups'!$B$2:$P$104,5,FALSE) -> Primary Care Management | G29: 30 | H29: =VLOOKUP($G29,'Map lookups'!$B$2:$P$104,4,FALSE) -> Map 30: Percentage of people in the National Diabetes Audit (NDA) with Type 1 and Type 2 diabetes who received NICE-recommended care processes (excluding eye screening) by CCG, 2012/13 | I29: =VLOOKUP(G29,'Map lookups'!$B$2:$P$104,6,FALSE) -> 1 | J29: =IF(VLOOKUP($G29,'Master Database'!$C$4:$E$13507,3,FALSE)="Bad","Improvement Opportunity",VLOOKUP($G29,'Master Database'!$C$4:$E$13507,3,FALSE)) -> Good | K29: =IF(OR(VLOOKUP($A29,'Master Database'!$D$4:$Q$13507,3,FALSE)="-",VLOOKUP($A29,'Master Database'!$D$4:$Q$13507,3,FALSE)=""),"No Data",VLOOKUP($A29,'Master Database'!$D$4:$Q$13507,3,FALSE)) -> 55.33719779 | L29: =IF(OR(VLOOKUP($A29,'Master Database'!$D$4:$Q$13507,4,FALSE)="-",VLOOKUP($A29,'Master Database'!$D$4:$Q$13507,4,FALSE)=""),"No Data",VLOOKUP($A29,'Master Database'!$D$4:$Q$13507,4,FALSE)) -> 54.17600534 | M29: =IF(OR(VLOOKUP($A29,'Master Database'!$D$4:$Q$13507,5,FALSE)="-",VLOOKUP($A29,'Master Database'!$D$4:$Q$13507,5,FALSE)=""),"No Data",VLOOKUP($A29,'Master Database'!$D$4:$Q$13507,5,FALSE)) -> 56.49259575 | N29: =IF(VLOOKUP(A29,Quintiles!$A$3:$E$13506,5,FALSE)=6,"No Data",VLOOKUP(A29,Quintiles!$A$3:$E$13506,5,FALSE)) -> 2 | O29: =INDEX('Colour Calculation'!$X$15:$CI$16,1,MATCH(Report!$G29,'Colour Calculation'!$X$16:$CI$16,0)) -> A | P29: =IFERROR(INDEX('Best performing CCG code'!$AE$7:$AL$70,MATCH("Map_"&Report!$G29,'Best performing CCG code'!$AE$7:$AE$70,0),8),"") -> NHS Newark & Sherwood | Q29: =IF(OR(VLOOKUP($A29,'Master Database'!$D$4:$Q$13507,6,FALSE)="-",VLOOKUP($A29,'Master Database'!$D$4:$Q$13507,6,FALSE)="",VLOOKUP($A29,'Master Database'!$D$4:$Q$13507,6,FALSE)=0),"",VLOOKUP($A29,'Master Database'!$D$4:$Q$13507,6,FALSE)) -> 59.93575783 | R29: =IF(OR(VLOOKUP($A29,'Master Database'!$D$4:$Q$13507,7,FALSE)="-",VLOOKUP($A29,'Master Database'!$D$4:$Q$13507,7,FALSE)="",VLOOKUP($A29,'Master Database'!$D$4:$Q$13507,7,FALSE)=0),"",VLOOKUP($A29,'Master Database'!$D$4:$Q$13507,7,FALSE)) -> 56.41427955 | S29: =IF(OR(VLOOKUP($A29,'Master Database'!$D$4:$Q$13507,8,FALSE)="-",VLOOKUP($A29,'Master Database'!$D$4:$Q$13507,8,FALSE)=0,VLOOKUP($A29,'Master Database'!$D$4:$Q$13507,8,FALSE)=""),"",VLOOKUP($A29,'Master Database'!$D$4:$Q$13507,8,FALSE)) -> 64.35369616 | T29: =VLOOKUP($A29,'Master Database'!$D$4:$Q$13507,9,FALSE) -> R | U29: =VLOOKUP($A29,'Master Database'!$D$4:$Q$13507,10,FALSE) -> A | V29: =VLOOKUP($A29,'Master Database'!$D$4:$Q$13507,11,FALSE) -> R | W29: =IF(VLOOKUP($A29,'Master Database'!$D$4:$Q$13507,12,FALSE)=0,"",VLOOKUP($A29,'Master Database'!$D$4:$Q$13507,12,FALSE)) -> 4.598560038 | X29: =IF(VLOOKUP($A29,'Master Database'!$D$4:$Q$13507,13,FALSE)=0,"",VLOOKUP($A29,'Master Database'!$D$4:$Q$13507,13,FALSE)) -> 1.077081759 | Y29: =IF(VLOOKUP($A29,'Master Database'!$D$4:$Q$13507,14,FALSE)=0,"",VLOOKUP($A29,'Master Database'!$D$4:$Q$13507,14,FALSE)) -> 9.016498361 | AB29: To help understand how the management of diabetes affects expenditure and outcomes in the CCG please visit the Commissioning for Value webiste and download a 2014 pack. | AC29: http://www.england.nhs.uk/resources/resources-for-ccgs/comm-for-value/ http://pathways.nice.org.uk/pathways/diabetes
A30: 31NHS Airedale, Wharfedale and Craven | B30: =VLOOKUP(Report!$E$2,'Rules & Lookups'!$B$6:$C$216,2,FALSE) -> E38000001 | C30: =VLOOKUP(G30,'Map lookups'!$B$2:$P$104,7,FALSE) -> Cardiovascular Family of Diseases - Diabetes | D30: =IF(VLOOKUP(G30,'Map lookups'!$B$2:$P$104,8,FALSE)="","No Subcategory",VLOOKUP(G30,'Map lookups'!$B$2:$P$104,8,FALSE)) -> Diabetes | E30: =IF(VLOOKUP(G30,'Map lookups'!$B$2:$P$104,10,FALSE)="","No Pathway",VLOOKUP(G30,'Map lookups'!$B$2:$P$104,10,FALSE)) -> Endocrine, Nutritional and Metabolic problems - Diabetes | F30: =VLOOKUP(G30,'Map lookups'!$B$2:$P$104,5,FALSE) -> Primary Care Management | G30: 31 | H30: =VLOOKUP($G30,'Map lookups'!$B$2:$P$104,4,FALSE) -> Map 31: Percentage of people in the National Diabetes Audit (NDA) with Type 1 and Type 2 diabetes who met treatment targets for HbA1c, blood-pressure and cholesterol by CCG, 2012/13 | I30: =VLOOKUP(G30,'Map lookups'!$B$2:$P$104,6,FALSE) -> 1 | J30: =IF(VLOOKUP($G30,'Master Database'!$C$4:$E$13507,3,FALSE)="Bad","Improvement Opportunity",VLOOKUP($G30,'Master Database'!$C$4:$E$13507,3,FALSE)) -> Good | K30: =IF(OR(VLOOKUP($A30,'Master Database'!$D$4:$Q$13507,3,FALSE)="-",VLOOKUP($A30,'Master Database'!$D$4:$Q$13507,3,FALSE)=""),"No Data",VLOOKUP($A30,'Master Database'!$D$4:$Q$13507,3,FALSE)) -> 34.08728895 | L30: =IF(OR(VLOOKUP($A30,'Master Database'!$D$4:$Q$13507,4,FALSE)="-",VLOOKUP($A30,'Master Database'!$D$4:$Q$13507,4,FALSE)=""),"No Data",VLOOKUP($A30,'Master Database'!$D$4:$Q$13507,4,FALSE)) -> 32.99151675 | M30: =IF(OR(VLOOKUP($A30,'Master Database'!$D$4:$Q$13507,5,FALSE)="-",VLOOKUP($A30,'Master Database'!$D$4:$Q$13507,5,FALSE)=""),"No Data",VLOOKUP($A30,'Master Database'!$D$4:$Q$13507,5,FALSE)) -> 35.20033729 | N30: =IF(VLOOKUP(A30,Quintiles!$A$3:$E$13506,5,FALSE)=6,"No Data",VLOOKUP(A30,Quintiles!$A$3:$E$13506,5,FALSE)) -> 2 | O30: =INDEX('Colour Calculation'!$X$15:$CI$16,1,MATCH(Report!$G30,'Colour Calculation'!$X$16:$CI$16,0)) -> A | P30: =IFERROR(INDEX('Best performing CCG code'!$AE$7:$AL$70,MATCH("Map_"&Report!$G30,'Best performing CCG code'!$AE$7:$AE$70,0),8),"") -> NHS South Worcestershire | Q30: =IF(OR(VLOOKUP($A30,'Master Database'!$D$4:$Q$13507,6,FALSE)="-",VLOOKUP($A30,'Master Database'!$D$4:$Q$13507,6,FALSE)="",VLOOKUP($A30,'Master Database'!$D$4:$Q$13507,6,FALSE)=0),"",VLOOKUP($A30,'Master Database'!$D$4:$Q$13507,6,FALSE)) -> 36.25492615 | R30: =IF(OR(VLOOKUP($A30,'Master Database'!$D$4:$Q$13507,7,FALSE)="-",VLOOKUP($A30,'Master Database'!$D$4:$Q$13507,7,FALSE)="",VLOOKUP($A30,'Master Database'!$D$4:$Q$13507,7,FALSE)=0),"",VLOOKUP($A30,'Master Database'!$D$4:$Q$13507,7,FALSE)) -> 36.27025179 | S30: =IF(OR(VLOOKUP($A30,'Master Database'!$D$4:$Q$13507,8,FALSE)="-",VLOOKUP($A30,'Master Database'!$D$4:$Q$13507,8,FALSE)=0,VLOOKUP($A30,'Master Database'!$D$4:$Q$13507,8,FALSE)=""),"",VLOOKUP($A30,'Master Database'!$D$4:$Q$13507,8,FALSE)) -> 38.42236954 | T30: =VLOOKUP($A30,'Master Database'!$D$4:$Q$13507,9,FALSE) -> R | U30: =VLOOKUP($A30,'Master Database'!$D$4:$Q$13507,10,FALSE) -> R | V30: =VLOOKUP($A30,'Master Database'!$D$4:$Q$13507,11,FALSE) -> R | W30: =IF(VLOOKUP($A30,'Master Database'!$D$4:$Q$13507,12,FALSE)=0,"",VLOOKUP($A30,'Master Database'!$D$4:$Q$13507,12,FALSE)) -> 2.167637209 | X30: =IF(VLOOKUP($A30,'Master Database'!$D$4:$Q$13507,13,FALSE)=0,"",VLOOKUP($A30,'Master Database'!$D$4:$Q$13507,13,FALSE)) -> 2.182962847 | Y30: =IF(VLOOKUP($A30,'Master Database'!$D$4:$Q$13507,14,FALSE)=0,"",VLOOKUP($A30,'Master Database'!$D$4:$Q$13507,14,FALSE)) -> 4.335080597 | AB30: To help understand how the management of diabetes affects expenditure and outcomes in the CCG please visit the Commissioning for Value webiste and download a 2014 pack. | AC30: http://www.england.nhs.uk/resources/resources-for-ccgs/comm-for-value/ http://pathways.nice.org.uk/pathways/diabetes
A31: 32NHS Airedale, Wharfedale and Craven | B31: =VLOOKUP(Report!$E$2,'Rules & Lookups'!$B$6:$C$216,2,FALSE) -> E38000001 | C31: =VLOOKUP(G31,'Map lookups'!$B$2:$P$104,7,FALSE) -> Cardiovascular Family of Diseases - Diabetes | D31: =IF(VLOOKUP(G31,'Map lookups'!$B$2:$P$104,8,FALSE)="","No Subcategory",VLOOKUP(G31,'Map lookups'!$B$2:$P$104,8,FALSE)) -> Diabetes | E31: =IF(VLOOKUP(G31,'Map lookups'!$B$2:$P$104,10,FALSE)="","No Pathway",VLOOKUP(G31,'Map lookups'!$B$2:$P$104,10,FALSE)) -> Endocrine, Nutritional and Metabolic problems - Diabetes | F31: =VLOOKUP(G31,'Map lookups'!$B$2:$P$104,5,FALSE) -> Primary Care Management | G31: 32 | H31: =VLOOKUP($G31,'Map lookups'!$B$2:$P$104,4,FALSE) -> Map 32: Total net ingredient cost of anti-diabetic items per person on GP diabetes registers by CCG, 2013/14 | I31: =VLOOKUP(G31,'Map lookups'!$B$2:$P$104,6,FALSE) -> 1 | J31: =IF(VLOOKUP($G31,'Master Database'!$C$4:$E$13507,3,FALSE)="Bad","Improvement Opportunity",VLOOKUP($G31,'Master Database'!$C$4:$E$13507,3,FALSE)) -> Improvement Opportunity | K31: =IF(OR(VLOOKUP($A31,'Master Database'!$D$4:$Q$13507,3,FALSE)="-",VLOOKUP($A31,'Master Database'!$D$4:$Q$13507,3,FALSE)=""),"No Data",VLOOKUP($A31,'Master Database'!$D$4:$Q$13507,3,FALSE)) -> 271.7468596 | L31: =IF(OR(VLOOKUP($A31,'Master Database'!$D$4:$Q$13507,4,FALSE)="-",VLOOKUP($A31,'Master Database'!$D$4:$Q$13507,4,FALSE)=""),"No Data",VLOOKUP($A31,'Master Database'!$D$4:$Q$13507,4,FALSE)) -> No Data | M31: =IF(OR(VLOOKUP($A31,'Master Database'!$D$4:$Q$13507,5,FALSE)="-",VLOOKUP($A31,'Master Database'!$D$4:$Q$13507,5,FALSE)=""),"No Data",VLOOKUP($A31,'Master Database'!$D$4:$Q$13507,5,FALSE)) -> No Data | N31: =IF(VLOOKUP(A31,Quintiles!$A$3:$E$13506,5,FALSE)=6,"No Data",VLOOKUP(A31,Quintiles!$A$3:$E$13506,5,FALSE)) -> 2 | O31: =INDEX('Colour Calculation'!$X$15:$CI$16,1,MATCH(Report!$G31,'Colour Calculation'!$X$16:$CI$16,0)) -> G | P31: =IFERROR(INDEX('Best performing CCG code'!$AE$7:$AL$70,MATCH("Map_"&Report!$G31,'Best performing CCG code'!$AE$7:$AE$70,0),8),"") -> NHS Great Yarmouth and Waveney | Q31: =IF(OR(VLOOKUP($A31,'Master Database'!$D$4:$Q$13507,6,FALSE)="-",VLOOKUP($A31,'Master Database'!$D$4:$Q$13507,6,FALSE)="",VLOOKUP($A31,'Master Database'!$D$4:$Q$13507,6,FALSE)=0),"",VLOOKUP($A31,'Master Database'!$D$4:$Q$13507,6,FALSE)) -> 286.3087929 | R31: =IF(OR(VLOOKUP($A31,'Master Database'!$D$4:$Q$13507,7,FALSE)="-",VLOOKUP($A31,'Master Database'!$D$4:$Q$13507,7,FALSE)="",VLOOKUP($A31,'Master Database'!$D$4:$Q$13507,7,FALSE)=0),"",VLOOKUP($A31,'Master Database'!$D$4:$Q$13507,7,FALSE)) -> 292.6750206 | S31: =IF(OR(VLOOKUP($A31,'Master Database'!$D$4:$Q$13507,8,FALSE)="-",VLOOKUP($A31,'Master Database'!$D$4:$Q$13507,8,FALSE)=0,VLOOKUP($A31,'Master Database'!$D$4:$Q$13507,8,FALSE)=""),"",VLOOKUP($A31,'Master Database'!$D$4:$Q$13507,8,FALSE)) -> 285.2399924 | T31: =VLOOKUP($A31,'Master Database'!$D$4:$Q$13507,9,FALSE) ->  | U31: =VLOOKUP($A31,'Master Database'!$D$4:$Q$13507,10,FALSE) ->  | V31: =VLOOKUP($A31,'Master Database'!$D$4:$Q$13507,11,FALSE) ->  | W31: =IF(VLOOKUP($A31,'Master Database'!$D$4:$Q$13507,12,FALSE)=0,"",VLOOKUP($A31,'Master Database'!$D$4:$Q$13507,12,FALSE)) ->  | X31: =IF(VLOOKUP($A31,'Master Database'!$D$4:$Q$13507,13,FALSE)=0,"",VLOOKUP($A31,'Master Database'!$D$4:$Q$13507,13,FALSE)) ->  | Y31: =IF(VLOOKUP($A31,'Master Database'!$D$4:$Q$13507,14,FALSE)=0,"",VLOOKUP($A31,'Master Database'!$D$4:$Q$13507,14,FALSE)) ->  | AB31: To help understand how the management of diabetes affects expenditure and outcomes in the CCG please visit the Commissioning for Value webiste and download a 2014 pack. | AC31: http://www.england.nhs.uk/resources/resources-for-ccgs/comm-for-value/ http://pathways.nice.org.uk/pathways/diabetes
A32: 33NHS Airedale, Wharfedale and Craven | B32: =VLOOKUP(Report!$E$2,'Rules & Lookups'!$B$6:$C$216,2,FALSE) -> E38000001 | C32: =VLOOKUP(G32,'Map lookups'!$B$2:$P$104,7,FALSE) -> Cardiovascular Family of Diseases - Diabetes | D32: =IF(VLOOKUP(G32,'Map lookups'!$B$2:$P$104,8,FALSE)="","No Subcategory",VLOOKUP(G32,'Map lookups'!$B$2:$P$104,8,FALSE)) -> Diabetes | E32: =IF(VLOOKUP(G32,'Map lookups'!$B$2:$P$104,10,FALSE)="","No Pathway",VLOOKUP(G32,'Map lookups'!$B$2:$P$104,10,FALSE)) -> Endocrine, Nutritional and Metabolic problems - Diabetes | F32: =VLOOKUP(G32,'Map lookups'!$B$2:$P$104,5,FALSE) -> Outcomes | G32: 33 | H32: =VLOOKUP($G32,'Map lookups'!$B$2:$P$104,4,FALSE) -> Map 33: Additional risk of mortality among people in the National Diabetes Audit (NDA) with Type 1 and Type 2 diabetes compared with the general population by CCG, 2011-2013 | I32: =VLOOKUP(G32,'Map lookups'!$B$2:$P$104,6,FALSE) -> 1 | J32: =IF(VLOOKUP($G32,'Master Database'!$C$4:$E$13507,3,FALSE)="Bad","Improvement Opportunity",VLOOKUP($G32,'Master Database'!$C$4:$E$13507,3,FALSE)) -> Improvement Opportunity | K32: =IF(OR(VLOOKUP($A32,'Master Database'!$D$4:$Q$13507,3,FALSE)="-",VLOOKUP($A32,'Master Database'!$D$4:$Q$13507,3,FALSE)=""),"No Data",VLOOKUP($A32,'Master Database'!$D$4:$Q$13507,3,FALSE)) -> 52.07402624 | L32: =IF(OR(VLOOKUP($A32,'Master Database'!$D$4:$Q$13507,4,FALSE)="-",VLOOKUP($A32,'Master Database'!$D$4:$Q$13507,4,FALSE)=""),"No Data",VLOOKUP($A32,'Master Database'!$D$4:$Q$13507,4,FALSE)) -> 41.37660487 | M32: =IF(OR(VLOOKUP($A32,'Master Database'!$D$4:$Q$13507,5,FALSE)="-",VLOOKUP($A32,'Master Database'!$D$4:$Q$13507,5,FALSE)=""),"No Data",VLOOKUP($A32,'Master Database'!$D$4:$Q$13507,5,FALSE)) -> 63.36630774 | N32: =IF(VLOOKUP(A32,Quintiles!$A$3:$E$13506,5,FALSE)=6,"No Data",VLOOKUP(A32,Quintiles!$A$3:$E$13506,5,FALSE)) -> 5 | O32: =INDEX('Colour Calculation'!$X$15:$CI$16,1,MATCH(Report!$G32,'Colour Calculation'!$X$16:$CI$16,0)) -> R | P32: =IFERROR(INDEX('Best performing CCG code'!$AE$7:$AL$70,MATCH("Map_"&Report!$G32,'Best performing CCG code'!$AE$7:$AE$70,0),8),"") -> NHS Great Yarmouth and Waveney | Q32: =IF(OR(VLOOKUP($A32,'Master Database'!$D$4:$Q$13507,6,FALSE)="-",VLOOKUP($A32,'Master Database'!$D$4:$Q$13507,6,FALSE)="",VLOOKUP($A32,'Master Database'!$D$4:$Q$13507,6,FALSE)=0),"",VLOOKUP($A32,'Master Database'!$D$4:$Q$13507,6,FALSE)) -> 39.00992769 | R32: =IF(OR(VLOOKUP($A32,'Master Database'!$D$4:$Q$13507,7,FALSE)="-",VLOOKUP($A32,'Master Database'!$D$4:$Q$13507,7,FALSE)="",VLOOKUP($A32,'Master Database'!$D$4:$Q$13507,7,FALSE)=0),"",VLOOKUP($A32,'Master Database'!$D$4:$Q$13507,7,FALSE)) -> 46.74739296 | S32: =IF(OR(VLOOKUP($A32,'Master Database'!$D$4:$Q$13507,8,FALSE)="-",VLOOKUP($A32,'Master Database'!$D$4:$Q$13507,8,FALSE)=0,VLOOKUP($A32,'Master Database'!$D$4:$Q$13507,8,FALSE)=""),"",VLOOKUP($A32,'Master Database'!$D$4:$Q$13507,8,FALSE)) -> 42.40492005 | T32: =VLOOKUP($A32,'Master Database'!$D$4:$Q$13507,9,FALSE) -> R | U32: =VLOOKUP($A32,'Master Database'!$D$4:$Q$13507,10,FALSE) -> A | V32: =VLOOKUP($A32,'Master Database'!$D$4:$Q$13507,11,FALSE) -> A | W32: =IF(VLOOKUP($A32,'Master Database'!$D$4:$Q$13507,12,FALSE)=0,"",VLOOKUP($A32,'Master Database'!$D$4:$Q$13507,12,FALSE)) -> 13.06409856 | X32: =IF(VLOOKUP($A32,'Master Database'!$D$4:$Q$13507,13,FALSE)=0,"",VLOOKUP($A32,'Master Database'!$D$4:$Q$13507,13,FALSE)) -> 5.32663328 | Y32: =IF(VLOOKUP($A32,'Master Database'!$D$4:$Q$13507,14,FALSE)=0,"",VLOOKUP($A32,'Master Database'!$D$4:$Q$13507,14,FALSE)) -> 9.669106193 | AB32: To help understand how the management of diabetes affects expenditure and outcomes in the CCG please visit the Commissioning for Value webiste and download a 2014 pack. | AC32: http://www.england.nhs.uk/resources/resources-for-ccgs/comm-for-value/ http://pathways.nice.org.uk/pathways/diabetes
A33: 34NHS Airedale, Wharfedale and Craven | B33: =VLOOKUP(Report!$E$2,'Rules & Lookups'!$B$6:$C$216,2,FALSE) -> E38000001 | C33: =VLOOKUP(G33,'Map lookups'!$B$2:$P$104,7,FALSE) -> Cardiovascular Family of Diseases - Diabetes | D33: =IF(VLOOKUP(G33,'Map lookups'!$B$2:$P$104,8,FALSE)="","No Subcategory",VLOOKUP(G33,'Map lookups'!$B$2:$P$104,8,FALSE)) -> Diabetes | E33: =IF(VLOOKUP(G33,'Map lookups'!$B$2:$P$104,10,FALSE)="","No Pathway",VLOOKUP(G33,'Map lookups'!$B$2:$P$104,10,FALSE)) -> Endocrine, Nutritional and Metabolic problems - Diabetes | F33: =VLOOKUP(G33,'Map lookups'!$B$2:$P$104,5,FALSE) -> Primary Care Management | G33: 34 | H33: =VLOOKUP($G33,'Map lookups'!$B$2:$P$104,4,FALSE) -> Map 34: Relative risk of hospital admission for heart failure among people in the National Diabetes Audit (NDA) with Type 1 and Type 2 diabetes compared with people without diabetes by CCG, 2010/11-2012/13 | I33: =VLOOKUP(G33,'Map lookups'!$B$2:$P$104,6,FALSE) -> 1 | J33: =IF(VLOOKUP($G33,'Master Database'!$C$4:$E$13507,3,FALSE)="Bad","Improvement Opportunity",VLOOKUP($G33,'Master Database'!$C$4:$E$13507,3,FALSE)) -> Improvement Opportunity | K33: =IF(OR(VLOOKUP($A33,'Master Database'!$D$4:$Q$13507,3,FALSE)="-",VLOOKUP($A33,'Master Database'!$D$4:$Q$13507,3,FALSE)=""),"No Data",VLOOKUP($A33,'Master Database'!$D$4:$Q$13507,3,FALSE)) -> 3.005790189 | L33: =IF(OR(VLOOKUP($A33,'Master Database'!$D$4:$Q$13507,4,FALSE)="-",VLOOKUP($A33,'Master Database'!$D$4:$Q$13507,4,FALSE)=""),"No Data",VLOOKUP($A33,'Master Database'!$D$4:$Q$13507,4,FALSE)) -> 2.720480638 | M33: =IF(OR(VLOOKUP($A33,'Master Database'!$D$4:$Q$13507,5,FALSE)="-",VLOOKUP($A33,'Master Database'!$D$4:$Q$13507,5,FALSE)=""),"No Data",VLOOKUP($A33,'Master Database'!$D$4:$Q$13507,5,FALSE)) -> 3.312883601 | N33: =IF(VLOOKUP(A33,Quintiles!$A$3:$E$13506,5,FALSE)=6,"No Data",VLOOKUP(A33,Quintiles!$A$3:$E$13506,5,FALSE)) -> 5 | O33: =INDEX('Colour Calculation'!$X$15:$CI$16,1,MATCH(24,'Colour Calculation'!$X$16:$CI$16,0)) -> R | P33: =IFERROR(INDEX('Best performing CCG code'!$AE$7:$AL$70,MATCH("Map_24",'Best performing CCG code'!$AE$7:$AE$70,0),8),"") -> NHS East Staffordshire | Q33: =IF(OR(VLOOKUP($A33,'Master Database'!$D$4:$Q$13507,6,FALSE)="-",VLOOKUP($A33,'Master Database'!$D$4:$Q$13507,6,FALSE)="",VLOOKUP($A33,'Master Database'!$D$4:$Q$13507,6,FALSE)=0),"",VLOOKUP($A33,'Master Database'!$D$4:$Q$13507,6,FALSE)) -> 2.497683028 | R33: =IF(OR(VLOOKUP($A33,'Master Database'!$D$4:$Q$13507,7,FALSE)="-",VLOOKUP($A33,'Master Database'!$D$4:$Q$13507,7,FALSE)="",VLOOKUP($A33,'Master Database'!$D$4:$Q$13507,7,FALSE)=0),"",VLOOKUP($A33,'Master Database'!$D$4:$Q$13507,7,FALSE)) -> 2.429315439 | S33: =IF(OR(VLOOKUP($A33,'Master Database'!$D$4:$Q$13507,8,FALSE)="-",VLOOKUP($A33,'Master Database'!$D$4:$Q$13507,8,FALSE)=0,VLOOKUP($A33,'Master Database'!$D$4:$Q$13507,8,FALSE)=""),"",VLOOKUP($A33,'Master Database'!$D$4:$Q$13507,8,FALSE)) -> 2.250433755 | T33: =VLOOKUP($A33,'Master Database'!$D$4:$Q$13507,9,FALSE) -> R | U33: =VLOOKUP($A33,'Master Database'!$D$4:$Q$13507,10,FALSE) -> R | V33: =VLOOKUP($A33,'Master Database'!$D$4:$Q$13507,11,FALSE) -> R | W33: =IF(VLOOKUP($A33,'Master Database'!$D$4:$Q$13507,12,FALSE)=0,"",VLOOKUP($A33,'Master Database'!$D$4:$Q$13507,12,FALSE)) -> 0.5081071606 | X33: =IF(VLOOKUP($A33,'Master Database'!$D$4:$Q$13507,13,FALSE)=0,"",VLOOKUP($A33,'Master Database'!$D$4:$Q$13507,13,FALSE)) -> 0.5764747505 | Y33: =IF(VLOOKUP($A33,'Master Database'!$D$4:$Q$13507,14,FALSE)=0,"",VLOOKUP($A33,'Master Database'!$D$4:$Q$13507,14,FALSE)) -> 0.7553564345 | AB33: To help understand how the management of diabetes affects expenditure and outcomes in the CCG please visit the Commissioning for Value webiste and download a 2014 pack. | AC33: http://www.england.nhs.uk/resources/resources-for-ccgs/comm-for-value/ http://pathways.nice.org.uk/pathways/diabetes | AF33: 24
A34: 35NHS Airedale, Wharfedale and Craven | B34: =VLOOKUP(Report!$E$2,'Rules & Lookups'!$B$6:$C$216,2,FALSE) -> E38000001 | C34: =VLOOKUP(G34,'Map lookups'!$B$2:$P$104,7,FALSE) -> Cardiovascular Family of Diseases - Diabetes | D34: =IF(VLOOKUP(G34,'Map lookups'!$B$2:$P$104,8,FALSE)="","No Subcategory",VLOOKUP(G34,'Map lookups'!$B$2:$P$104,8,FALSE)) -> Diabetes | E34: =IF(VLOOKUP(G34,'Map lookups'!$B$2:$P$104,10,FALSE)="","No Pathway",VLOOKUP(G34,'Map lookups'!$B$2:$P$104,10,FALSE)) -> Endocrine, Nutritional and Metabolic problems - Diabetes | F34: =VLOOKUP(G34,'Map lookups'!$B$2:$P$104,5,FALSE) -> Primary Care Management | G34: 35 | H34: =VLOOKUP($G34,'Map lookups'!$B$2:$P$104,4,FALSE) -> Map 35: Relative risk of major lower limb amputation among people in the National Diabetes Audit (NDA) with Type 1 and Type 2 diabetes compared with people without diabetes by CCG, 2010/11-2012/13 | I34: =VLOOKUP(G34,'Map lookups'!$B$2:$P$104,6,FALSE) -> 1 | J34: =IF(VLOOKUP($G34,'Master Database'!$C$4:$E$13507,3,FALSE)="Bad","Improvement Opportunity",VLOOKUP($G34,'Master Database'!$C$4:$E$13507,3,FALSE)) -> Improvement Opportunity | K34: =IF(OR(VLOOKUP($A34,'Master Database'!$D$4:$Q$13507,3,FALSE)="-",VLOOKUP($A34,'Master Database'!$D$4:$Q$13507,3,FALSE)=""),"No Data",VLOOKUP($A34,'Master Database'!$D$4:$Q$13507,3,FALSE)) -> 5.114027249 | L34: =IF(OR(VLOOKUP($A34,'Master Database'!$D$4:$Q$13507,4,FALSE)="-",VLOOKUP($A34,'Master Database'!$D$4:$Q$13507,4,FALSE)=""),"No Data",VLOOKUP($A34,'Master Database'!$D$4:$Q$13507,4,FALSE)) -> 2.338458907 | M34: =IF(OR(VLOOKUP($A34,'Master Database'!$D$4:$Q$13507,5,FALSE)="-",VLOOKUP($A34,'Master Database'!$D$4:$Q$13507,5,FALSE)=""),"No Data",VLOOKUP($A34,'Master Database'!$D$4:$Q$13507,5,FALSE)) -> 9.70801671 | N34: =IF(VLOOKUP(A34,Quintiles!$A$3:$E$13506,5,FALSE)=6,"No Data",VLOOKUP(A34,Quintiles!$A$3:$E$13506,5,FALSE)) -> 3 | O34: =INDEX('Colour Calculation'!$X$15:$CI$16,1,MATCH(25,'Colour Calculation'!$X$16:$CI$16,0)) -> A | P34: =IFERROR(INDEX('Best performing CCG code'!$AE$7:$AL$70,MATCH("Map_25",'Best performing CCG code'!$AE$7:$AE$70,0),8),"") -> NHS South Worcestershire | Q34: =IF(OR(VLOOKUP($A34,'Master Database'!$D$4:$Q$13507,6,FALSE)="-",VLOOKUP($A34,'Master Database'!$D$4:$Q$13507,6,FALSE)="",VLOOKUP($A34,'Master Database'!$D$4:$Q$13507,6,FALSE)=0),"",VLOOKUP($A34,'Master Database'!$D$4:$Q$13507,6,FALSE)) -> 5.777513378 | R34: =IF(OR(VLOOKUP($A34,'Master Database'!$D$4:$Q$13507,7,FALSE)="-",VLOOKUP($A34,'Master Database'!$D$4:$Q$13507,7,FALSE)="",VLOOKUP($A34,'Master Database'!$D$4:$Q$13507,7,FALSE)=0),"",VLOOKUP($A34,'Master Database'!$D$4:$Q$13507,7,FALSE)) -> 6.006125722 | S34: =IF(OR(VLOOKUP($A34,'Master Database'!$D$4:$Q$13507,8,FALSE)="-",VLOOKUP($A34,'Master Database'!$D$4:$Q$13507,8,FALSE)=0,VLOOKUP($A34,'Master Database'!$D$4:$Q$13507,8,FALSE)=""),"",VLOOKUP($A34,'Master Database'!$D$4:$Q$13507,8,FALSE)) -> 4.850166741 | T34: =VLOOKUP($A34,'Master Database'!$D$4:$Q$13507,9,FALSE) -> A | U34: =VLOOKUP($A34,'Master Database'!$D$4:$Q$13507,10,FALSE) -> A | V34: =VLOOKUP($A34,'Master Database'!$D$4:$Q$13507,11,FALSE) -> A | W34: =IF(VLOOKUP($A34,'Master Database'!$D$4:$Q$13507,12,FALSE)=0,"",VLOOKUP($A34,'Master Database'!$D$4:$Q$13507,12,FALSE)) ->  | X34: =IF(VLOOKUP($A34,'Master Database'!$D$4:$Q$13507,13,FALSE)=0,"",VLOOKUP($A34,'Master Database'!$D$4:$Q$13507,13,FALSE)) ->  | Y34: =IF(VLOOKUP($A34,'Master Database'!$D$4:$Q$13507,14,FALSE)=0,"",VLOOKUP($A34,'Master Database'!$D$4:$Q$13507,14,FALSE)) -> 0.2638605075 | AB34: To help understand how the management of diabetes affects expenditure and outcomes in the CCG please visit the Commissioning for Value webiste and download a 2014 pack. | AC34: http://www.england.nhs.uk/resources/resources-for-ccgs/comm-for-value/ http://pathways.nice.org.uk/pathways/diabetes | AF34: 25
A35: 36NHS Airedale, Wharfedale and Craven | B35: =VLOOKUP(Report!$E$2,'Rules & Lookups'!$B$6:$C$216,2,FALSE) -> E38000001 | C35: =VLOOKUP(G35,'Map lookups'!$B$2:$P$104,7,FALSE) -> Cardiovascular Family of Diseases - Heart | D35: =IF(VLOOKUP(G35,'Map lookups'!$B$2:$P$104,8,FALSE)="","No Subcategory",VLOOKUP(G35,'Map lookups'!$B$2:$P$104,8,FALSE)) -> Coronary Heart Disease | E35: =IF(VLOOKUP(G35,'Map lookups'!$B$2:$P$104,10,FALSE)="","No Pathway",VLOOKUP(G35,'Map lookups'!$B$2:$P$104,10,FALSE)) -> Circulation Problems (CVD) - Heart Disease | F35: =VLOOKUP(G35,'Map lookups'!$B$2:$P$104,5,FALSE) -> Prevention and Early Diagnosis | G35: 36 | H35: =VLOOKUP($G35,'Map lookups'!$B$2:$P$104,4,FALSE) -> Map 36: Ratio of reported to expected prevalence of hypertension by CCG, 2013/14 | I35: =VLOOKUP(G35,'Map lookups'!$B$2:$P$104,6,FALSE) -> 1, 2 | J35: =IF(VLOOKUP($G35,'Master Database'!$C$4:$E$13507,3,FALSE)="Bad","Improvement Opportunity",VLOOKUP($G35,'Master Database'!$C$4:$E$13507,3,FALSE)) -> Good | K35: =IF(OR(VLOOKUP($A35,'Master Database'!$D$4:$Q$13507,3,FALSE)="-",VLOOKUP($A35,'Master Database'!$D$4:$Q$13507,3,FALSE)=""),"No Data",VLOOKUP($A35,'Master Database'!$D$4:$Q$13507,3,FALSE)) -> 0.5642752133 | L35: =IF(OR(VLOOKUP($A35,'Master Database'!$D$4:$Q$13507,4,FALSE)="-",VLOOKUP($A35,'Master Database'!$D$4:$Q$13507,4,FALSE)=""),"No Data",VLOOKUP($A35,'Master Database'!$D$4:$Q$13507,4,FALSE)) -> No Data | M35: =IF(OR(VLOOKUP($A35,'Master Database'!$D$4:$Q$13507,5,FALSE)="-",VLOOKUP($A35,'Master Database'!$D$4:$Q$13507,5,FALSE)=""),"No Data",VLOOKUP($A35,'Master Database'!$D$4:$Q$13507,5,FALSE)) -> No Data | N35: =IF(VLOOKUP(A35,Quintiles!$A$3:$E$13506,5,FALSE)=6,"No Data",VLOOKUP(A35,Quintiles!$A$3:$E$13506,5,FALSE)) -> 3 | O35: =INDEX('Colour Calculation'!$X$15:$CI$16,1,MATCH(Report!$G35,'Colour Calculation'!$X$16:$CI$16,0)) -> A | P35: =IFERROR(INDEX('Best performing CCG code'!$AE$7:$AL$70,MATCH("Map_"&Report!$G35,'Best performing CCG code'!$AE$7:$AE$70,0),8),"") -> NHS South West Lincolnshire | Q35: =IF(OR(VLOOKUP($A35,'Master Database'!$D$4:$Q$13507,6,FALSE)="-",VLOOKUP($A35,'Master Database'!$D$4:$Q$13507,6,FALSE)="",VLOOKUP($A35,'Master Database'!$D$4:$Q$13507,6,FALSE)=0),"",VLOOKUP($A35,'Master Database'!$D$4:$Q$13507,6,FALSE)) -> 0.5583134754 | R35: =IF(OR(VLOOKUP($A35,'Master Database'!$D$4:$Q$13507,7,FALSE)="-",VLOOKUP($A35,'Master Database'!$D$4:$Q$13507,7,FALSE)="",VLOOKUP($A35,'Master Database'!$D$4:$Q$13507,7,FALSE)=0),"",VLOOKUP($A35,'Master Database'!$D$4:$Q$13507,7,FALSE)) -> 0.5658546644 | S35: =IF(OR(VLOOKUP($A35,'Master Database'!$D$4:$Q$13507,8,FALSE)="-",VLOOKUP($A35,'Master Database'!$D$4:$Q$13507,8,FALSE)=0,VLOOKUP($A35,'Master Database'!$D$4:$Q$13507,8,FALSE)=""),"",VLOOKUP($A35,'Master Database'!$D$4:$Q$13507,8,FALSE)) -> 0.5754835682 | T35: =VLOOKUP($A35,'Master Database'!$D$4:$Q$13507,9,FALSE) ->  | U35: =VLOOKUP($A35,'Master Database'!$D$4:$Q$13507,10,FALSE) ->  | V35: =VLOOKUP($A35,'Master Database'!$D$4:$Q$13507,11,FALSE) ->  | W35: =IF(VLOOKUP($A35,'Master Database'!$D$4:$Q$13507,12,FALSE)=0,"",VLOOKUP($A35,'Master Database'!$D$4:$Q$13507,12,FALSE)) ->  | X35: =IF(VLOOKUP($A35,'Master Database'!$D$4:$Q$13507,13,FALSE)=0,"",VLOOKUP($A35,'Master Database'!$D$4:$Q$13507,13,FALSE)) -> 0.001579451104 | Y35: =IF(VLOOKUP($A35,'Master Database'!$D$4:$Q$13507,14,FALSE)=0,"",VLOOKUP($A35,'Master Database'!$D$4:$Q$13507,14,FALSE)) -> 0.0112083549 | AB35: To help understand how the management of hypertension and coronary heart disease affects expenditure and outcomes in the CCG please visit the Commissioning for Value website and download a 2014 pack. | AC35: http://www.england.nhs.uk/resources/resources-for-ccgs/comm-for-value/ http://pathways.nice.org.uk/pathways/hypertension http://pathways.nice.org.uk/pathways/cardiovascular-disease-prevention http://pathways.nice.org.uk/pathways/smoking
A36: 37NHS Airedale, Wharfedale and Craven | B36: =VLOOKUP(Report!$E$2,'Rules & Lookups'!$B$6:$C$216,2,FALSE) -> E38000001 | C36: =VLOOKUP(G36,'Map lookups'!$B$2:$P$104,7,FALSE) -> Cardiovascular Family of Diseases - Heart | D36: =IF(VLOOKUP(G36,'Map lookups'!$B$2:$P$104,8,FALSE)="","No Subcategory",VLOOKUP(G36,'Map lookups'!$B$2:$P$104,8,FALSE)) -> Coronary Heart Disease | E36: =IF(VLOOKUP(G36,'Map lookups'!$B$2:$P$104,10,FALSE)="","No Pathway",VLOOKUP(G36,'Map lookups'!$B$2:$P$104,10,FALSE)) -> Circulation Problems (CVD) - Heart Disease | F36: =VLOOKUP(G36,'Map lookups'!$B$2:$P$104,5,FALSE) -> Prevention and Early Diagnosis | G36: 37 | H36: =VLOOKUP($G36,'Map lookups'!$B$2:$P$104,4,FALSE) -> Map 37: Ratio of reported to expected prevalence of coronary heart disease (CHD) by CCG, 2013/14 | I36: =VLOOKUP(G36,'Map lookups'!$B$2:$P$104,6,FALSE) -> 1 | J36: =IF(VLOOKUP($G36,'Master Database'!$C$4:$E$13507,3,FALSE)="Bad","Improvement Opportunity",VLOOKUP($G36,'Master Database'!$C$4:$E$13507,3,FALSE)) -> Good | K36: =IF(OR(VLOOKUP($A36,'Master Database'!$D$4:$Q$13507,3,FALSE)="-",VLOOKUP($A36,'Master Database'!$D$4:$Q$13507,3,FALSE)=""),"No Data",VLOOKUP($A36,'Master Database'!$D$4:$Q$13507,3,FALSE)) -> 0.8167562466 | L36: =IF(OR(VLOOKUP($A36,'Master Database'!$D$4:$Q$13507,4,FALSE)="-",VLOOKUP($A36,'Master Database'!$D$4:$Q$13507,4,FALSE)=""),"No Data",VLOOKUP($A36,'Master Database'!$D$4:$Q$13507,4,FALSE)) -> No Data | M36: =IF(OR(VLOOKUP($A36,'Master Database'!$D$4:$Q$13507,5,FALSE)="-",VLOOKUP($A36,'Master Database'!$D$4:$Q$13507,5,FALSE)=""),"No Data",VLOOKUP($A36,'Master Database'!$D$4:$Q$13507,5,FALSE)) -> No Data | N36: =IF(VLOOKUP(A36,Quintiles!$A$3:$E$13506,5,FALSE)=6,"No Data",VLOOKUP(A36,Quintiles!$A$3:$E$13506,5,FALSE)) -> 5 | O36: =INDEX('Colour Calculation'!$X$15:$CI$16,1,MATCH(Report!$G36,'Colour Calculation'!$X$16:$CI$16,0)) -> G | P36: =IFERROR(INDEX('Best performing CCG code'!$AE$7:$AL$70,MATCH("Map_"&Report!$G36,'Best performing CCG code'!$AE$7:$AE$70,0),8),"") -> NHS Harrogate and Rural District | Q36: =IF(OR(VLOOKUP($A36,'Master Database'!$D$4:$Q$13507,6,FALSE)="-",VLOOKUP($A36,'Master Database'!$D$4:$Q$13507,6,FALSE)="",VLOOKUP($A36,'Master Database'!$D$4:$Q$13507,6,FALSE)=0),"",VLOOKUP($A36,'Master Database'!$D$4:$Q$13507,6,FALSE)) -> 0.7170719042 | R36: =IF(OR(VLOOKUP($A36,'Master Database'!$D$4:$Q$13507,7,FALSE)="-",VLOOKUP($A36,'Master Database'!$D$4:$Q$13507,7,FALSE)="",VLOOKUP($A36,'Master Database'!$D$4:$Q$13507,7,FALSE)=0),"",VLOOKUP($A36,'Master Database'!$D$4:$Q$13507,7,FALSE)) -> 0.756316526 | S36: =IF(OR(VLOOKUP($A36,'Master Database'!$D$4:$Q$13507,8,FALSE)="-",VLOOKUP($A36,'Master Database'!$D$4:$Q$13507,8,FALSE)=0,VLOOKUP($A36,'Master Database'!$D$4:$Q$13507,8,FALSE)=""),"",VLOOKUP($A36,'Master Database'!$D$4:$Q$13507,8,FALSE)) -> 0.8130599912 | T36: =VLOOKUP($A36,'Master Database'!$D$4:$Q$13507,9,FALSE) ->  | U36: =VLOOKUP($A36,'Master Database'!$D$4:$Q$13507,10,FALSE) ->  | V36: =VLOOKUP($A36,'Master Database'!$D$4:$Q$13507,11,FALSE) ->  | W36: =IF(VLOOKUP($A36,'Master Database'!$D$4:$Q$13507,12,FALSE)=0,"",VLOOKUP($A36,'Master Database'!$D$4:$Q$13507,12,FALSE)) ->  | X36: =IF(VLOOKUP($A36,'Master Database'!$D$4:$Q$13507,13,FALSE)=0,"",VLOOKUP($A36,'Master Database'!$D$4:$Q$13507,13,FALSE)) ->  | Y36: =IF(VLOOKUP($A36,'Master Database'!$D$4:$Q$13507,14,FALSE)=0,"",VLOOKUP($A36,'Master Database'!$D$4:$Q$13507,14,FALSE)) ->  | AB36: To help understand how the management of coronary heart disease affects expenditure and outcomes in the CCG please visit the Commissioning for Value website and download a 2014 pack. | AC36: http://www.england.nhs.uk/resources/resources-for-ccgs/comm-for-value/ http://pathways.nice.org.uk/pathways/cardiovascular-disease-prevention http://pathways.nice.org.uk/pathways/smoking
A37: 38NHS Airedale, Wharfedale and Craven | B37: =VLOOKUP(Report!$E$2,'Rules & Lookups'!$B$6:$C$216,2,FALSE) -> E38000001 | C37: =VLOOKUP(G37,'Map lookups'!$B$2:$P$104,7,FALSE) -> Cardiovascular Family of Diseases - Heart | D37: =IF(VLOOKUP(G37,'Map lookups'!$B$2:$P$104,8,FALSE)="","No Subcategory",VLOOKUP(G37,'Map lookups'!$B$2:$P$104,8,FALSE)) -> Coronary Heart Disease | E37: =IF(VLOOKUP(G37,'Map lookups'!$B$2:$P$104,10,FALSE)="","No Pathway",VLOOKUP(G37,'Map lookups'!$B$2:$P$104,10,FALSE)) -> Circulation Problems (CVD) - Heart Disease | F37: =VLOOKUP(G37,'Map lookups'!$B$2:$P$104,5,FALSE) -> Outcomes | G37: 38 | H37: =VLOOKUP($G37,'Map lookups'!$B$2:$P$104,4,FALSE) -> Map 38: Rate of mortality from coronary heart disease (CHD) in people aged under 75 years per 100,000 population by CCG, 2011-2013 | I37: =VLOOKUP(G37,'Map lookups'!$B$2:$P$104,6,FALSE) -> 1 | J37: =IF(VLOOKUP($G37,'Master Database'!$C$4:$E$13507,3,FALSE)="Bad","Improvement Opportunity",VLOOKUP($G37,'Master Database'!$C$4:$E$13507,3,FALSE)) -> Improvement Opportunity | K37: =IF(OR(VLOOKUP($A37,'Master Database'!$D$4:$Q$13507,3,FALSE)="-",VLOOKUP($A37,'Master Database'!$D$4:$Q$13507,3,FALSE)=""),"No Data",VLOOKUP($A37,'Master Database'!$D$4:$Q$13507,3,FALSE)) -> 37.4127603 | L37: =IF(OR(VLOOKUP($A37,'Master Database'!$D$4:$Q$13507,4,FALSE)="-",VLOOKUP($A37,'Master Database'!$D$4:$Q$13507,4,FALSE)=""),"No Data",VLOOKUP($A37,'Master Database'!$D$4:$Q$13507,4,FALSE)) -> 31.81323993 | M37: =IF(OR(VLOOKUP($A37,'Master Database'!$D$4:$Q$13507,5,FALSE)="-",VLOOKUP($A37,'Master Database'!$D$4:$Q$13507,5,FALSE)=""),"No Data",VLOOKUP($A37,'Master Database'!$D$4:$Q$13507,5,FALSE)) -> 43.71016965 | N37: =IF(VLOOKUP(A37,Quintiles!$A$3:$E$13506,5,FALSE)=6,"No Data",VLOOKUP(A37,Quintiles!$A$3:$E$13506,5,FALSE)) -> 2 | O37: =INDEX('Colour Calculation'!$X$15:$CI$16,1,MATCH(Report!$G37,'Colour Calculation'!$X$16:$CI$16,0)) -> A | P37: =IFERROR(INDEX('Best performing CCG code'!$AE$7:$AL$70,MATCH("Map_"&Report!$G37,'Best performing CCG code'!$AE$7:$AE$70,0),8),"") -> NHS Ashford | Q37: =IF(OR(VLOOKUP($A37,'Master Database'!$D$4:$Q$13507,6,FALSE)="-",VLOOKUP($A37,'Master Database'!$D$4:$Q$13507,6,FALSE)="",VLOOKUP($A37,'Master Database'!$D$4:$Q$13507,6,FALSE)=0),"",VLOOKUP($A37,'Master Database'!$D$4:$Q$13507,6,FALSE)) -> 44.9873951 | R37: =IF(OR(VLOOKUP($A37,'Master Database'!$D$4:$Q$13507,7,FALSE)="-",VLOOKUP($A37,'Master Database'!$D$4:$Q$13507,7,FALSE)="",VLOOKUP($A37,'Master Database'!$D$4:$Q$13507,7,FALSE)=0),"",VLOOKUP($A37,'Master Database'!$D$4:$Q$13507,7,FALSE)) -> 39.91975958 | S37: =IF(OR(VLOOKUP($A37,'Master Database'!$D$4:$Q$13507,8,FALSE)="-",VLOOKUP($A37,'Master Database'!$D$4:$Q$13507,8,FALSE)=0,VLOOKUP($A37,'Master Database'!$D$4:$Q$13507,8,FALSE)=""),"",VLOOKUP($A37,'Master Database'!$D$4:$Q$13507,8,FALSE)) -> 34.4456714 | T37: =VLOOKUP($A37,'Master Database'!$D$4:$Q$13507,9,FALSE) -> G | U37: =VLOOKUP($A37,'Master Database'!$D$4:$Q$13507,10,FALSE) -> A | V37: =VLOOKUP($A37,'Master Database'!$D$4:$Q$13507,11,FALSE) -> A | W37: =IF(VLOOKUP($A37,'Master Database'!$D$4:$Q$13507,12,FALSE)=0,"",VLOOKUP($A37,'Master Database'!$D$4:$Q$13507,12,FALSE)) ->  | X37: =IF(VLOOKUP($A37,'Master Database'!$D$4:$Q$13507,13,FALSE)=0,"",VLOOKUP($A37,'Master Database'!$D$4:$Q$13507,13,FALSE)) ->  | Y37: =IF(VLOOKUP($A37,'Master Database'!$D$4:$Q$13507,14,FALSE)=0,"",VLOOKUP($A37,'Master Database'!$D$4:$Q$13507,14,FALSE)) -> 2.967088894 | AB37: To help understand how the management of coronary heart disease affects expenditure and outcomes in the CCG please visit the Commissioning for Value website and download a 2014 pack. | AC37: http://www.england.nhs.uk/resources/resources-for-ccgs/comm-for-value/ http://pathways.nice.org.uk/pathways/cardiovascular-disease-prevention http://pathways.nice.org.uk/pathways/smoking
A38: 40NHS Airedale, Wharfedale and Craven | B38: =VLOOKUP(Report!$E$2,'Rules & Lookups'!$B$6:$C$216,2,FALSE) -> E38000001 | C38: =VLOOKUP(G38,'Map lookups'!$B$2:$P$104,7,FALSE) -> Cardiovascular Family of Diseases - Stroke | D38: =IF(VLOOKUP(G38,'Map lookups'!$B$2:$P$104,8,FALSE)="","No Subcategory",VLOOKUP(G38,'Map lookups'!$B$2:$P$104,8,FALSE)) -> Cerebrovascular Disease | E38: =IF(VLOOKUP(G38,'Map lookups'!$B$2:$P$104,10,FALSE)="","No Pathway",VLOOKUP(G38,'Map lookups'!$B$2:$P$104,10,FALSE)) -> Circulation Problems (CVD) - Stroke | F38: =VLOOKUP(G38,'Map lookups'!$B$2:$P$104,5,FALSE) -> Secondary Care Treatment | G38: 40 | H38: =VLOOKUP($G38,'Map lookups'!$B$2:$P$104,4,FALSE) -> Map 40: Percentage of people with acute stroke who were directly admitted to a stroke unit within four hours of arrival at hospital by CCG, 2013/14 | I38: =VLOOKUP(G38,'Map lookups'!$B$2:$P$104,6,FALSE) -> 1 | J38: =IF(VLOOKUP($G38,'Master Database'!$C$4:$E$13507,3,FALSE)="Bad","Improvement Opportunity",VLOOKUP($G38,'Master Database'!$C$4:$E$13507,3,FALSE)) -> Good | K38: =IF(OR(VLOOKUP($A38,'Master Database'!$D$4:$Q$13507,3,FALSE)="-",VLOOKUP($A38,'Master Database'!$D$4:$Q$13507,3,FALSE)=""),"No Data",VLOOKUP($A38,'Master Database'!$D$4:$Q$13507,3,FALSE)) -> 52.15686275 | L38: =IF(OR(VLOOKUP($A38,'Master Database'!$D$4:$Q$13507,4,FALSE)="-",VLOOKUP($A38,'Master Database'!$D$4:$Q$13507,4,FALSE)=""),"No Data",VLOOKUP($A38,'Master Database'!$D$4:$Q$13507,4,FALSE)) -> 46.03915084 | M38: =IF(OR(VLOOKUP($A38,'Master Database'!$D$4:$Q$13507,5,FALSE)="-",VLOOKUP($A38,'Master Database'!$D$4:$Q$13507,5,FALSE)=""),"No Data",VLOOKUP($A38,'Master Database'!$D$4:$Q$13507,5,FALSE)) -> 58.21055245 | N38: =IF(VLOOKUP(A38,Quintiles!$A$3:$E$13506,5,FALSE)=6,"No Data",VLOOKUP(A38,Quintiles!$A$3:$E$13506,5,FALSE)) -> 2 | O38: =INDEX('Colour Calculation'!$X$15:$CI$16,1,MATCH(Report!$G38,'Colour Calculation'!$X$16:$CI$16,0)) -> A | P38: =IFERROR(INDEX('Best performing CCG code'!$AE$7:$AL$70,MATCH("Map_"&Report!$G38,'Best performing CCG code'!$AE$7:$AE$70,0),8),"") -> NHS Great Yarmouth and Waveney | Q38: =IF(OR(VLOOKUP($A38,'Master Database'!$D$4:$Q$13507,6,FALSE)="-",VLOOKUP($A38,'Master Database'!$D$4:$Q$13507,6,FALSE)="",VLOOKUP($A38,'Master Database'!$D$4:$Q$13507,6,FALSE)=0),"",VLOOKUP($A38,'Master Database'!$D$4:$Q$13507,6,FALSE)) -> 59.45994107 | R38: =IF(OR(VLOOKUP($A38,'Master Database'!$D$4:$Q$13507,7,FALSE)="-",VLOOKUP($A38,'Master Database'!$D$4:$Q$13507,7,FALSE)="",VLOOKUP($A38,'Master Database'!$D$4:$Q$13507,7,FALSE)=0),"",VLOOKUP($A38,'Master Database'!$D$4:$Q$13507,7,FALSE)) -> 56.52311759 | S38: =IF(OR(VLOOKUP($A38,'Master Database'!$D$4:$Q$13507,8,FALSE)="-",VLOOKUP($A38,'Master Database'!$D$4:$Q$13507,8,FALSE)=0,VLOOKUP($A38,'Master Database'!$D$4:$Q$13507,8,FALSE)=""),"",VLOOKUP($A38,'Master Database'!$D$4:$Q$13507,8,FALSE)) -> 64.40522155 | T38: =VLOOKUP($A38,'Master Database'!$D$4:$Q$13507,9,FALSE) -> R | U38: =VLOOKUP($A38,'Master Database'!$D$4:$Q$13507,10,FALSE) -> A | V38: =VLOOKUP($A38,'Master Database'!$D$4:$Q$13507,11,FALSE) -> R | W38: =IF(VLOOKUP($A38,'Master Database'!$D$4:$Q$13507,12,FALSE)=0,"",VLOOKUP($A38,'Master Database'!$D$4:$Q$13507,12,FALSE)) -> 7.303078324 | X38: =IF(VLOOKUP($A38,'Master Database'!$D$4:$Q$13507,13,FALSE)=0,"",VLOOKUP($A38,'Master Database'!$D$4:$Q$13507,13,FALSE)) -> 4.366254844 | Y38: =IF(VLOOKUP($A38,'Master Database'!$D$4:$Q$13507,14,FALSE)=0,"",VLOOKUP($A38,'Master Database'!$D$4:$Q$13507,14,FALSE)) -> 12.2483588 | AB38: To help understand how the management of strokes affects expenditure and outcomes in the CCG please visit the Commissioning for Value website and download a 2014 pack. | AC38: http://www.england.nhs.uk/resources/resources-for-ccgs/comm-for-value/ http://pathways.nice.org.uk/pathways/stroke
A39: =G39&$E$2 -> 41NHS Airedale, Wharfedale and Craven | B39: =VLOOKUP(Report!$E$2,'Rules & Lookups'!$B$6:$C$216,2,FALSE) -> E38000001 | C39: =VLOOKUP(G39,'Map lookups'!$B$2:$P$104,7,FALSE) -> Cardiovascular Family of Diseases - Stroke | D39: =IF(VLOOKUP(G39,'Map lookups'!$B$2:$P$104,8,FALSE)="","No Subcategory",VLOOKUP(G39,'Map lookups'!$B$2:$P$104,8,FALSE)) -> Cerebrovascular Disease | E39: =IF(VLOOKUP(G39,'Map lookups'!$B$2:$P$104,10,FALSE)="","No Pathway",VLOOKUP(G39,'Map lookups'!$B$2:$P$104,10,FALSE)) -> Circulation Problems (CVD) - Stroke | F39: =VLOOKUP(G39,'Map lookups'!$B$2:$P$104,5,FALSE) -> Secondary Care Treatment | G39: 41 | H39: =VLOOKUP($G39,'Map lookups'!$B$2:$P$104,4,FALSE) -> Map 41: Average composite score for quality of care of stroke services in the Sentinel Stroke National Audit Programme (SSNAP) by CCG, April-June 2014 | I39: =VLOOKUP(G39,'Map lookups'!$B$2:$P$104,6,FALSE) -> 1 | J39: =IF(VLOOKUP($G39,'Master Database'!$C$4:$E$13507,3,FALSE)="Bad","Improvement Opportunity",VLOOKUP($G39,'Master Database'!$C$4:$E$13507,3,FALSE)) -> Good | K39: =IF(OR(VLOOKUP($A39,'Master Database'!$D$4:$Q$13507,3,FALSE)="-",VLOOKUP($A39,'Master Database'!$D$4:$Q$13507,3,FALSE)=""),"No Data",VLOOKUP($A39,'Master Database'!$D$4:$Q$13507,3,FALSE)) -> E | L39: =IF(OR(VLOOKUP($A39,'Master Database'!$D$4:$Q$13507,4,FALSE)="-",VLOOKUP($A39,'Master Database'!$D$4:$Q$13507,4,FALSE)=""),"No Data",VLOOKUP($A39,'Master Database'!$D$4:$Q$13507,4,FALSE)) -> No Data | M39: =IF(OR(VLOOKUP($A39,'Master Database'!$D$4:$Q$13507,5,FALSE)="-",VLOOKUP($A39,'Master Database'!$D$4:$Q$13507,5,FALSE)=""),"No Data",VLOOKUP($A39,'Master Database'!$D$4:$Q$13507,5,FALSE)) -> No Data | N39: =IF(VLOOKUP(A39,Quintiles!$A$3:$E$13506,5,FALSE)=6,"No Data",VLOOKUP(A39,Quintiles!$A$3:$E$13506,5,FALSE)) -> 1 | O39: =INDEX('Colour Calculation'!$X$15:$CI$16,1,MATCH(Report!$G39,'Colour Calculation'!$X$16:$CI$16,0)) ->  | P39: =IFERROR(INDEX('Best performing CCG code'!$AE$7:$AL$70,MATCH("Map_"&Report!$G39,'Best performing CCG code'!$AE$7:$AE$70,0),8),"") ->  | Q39: =IF(OR(VLOOKUP($A39,'Master Database'!$D$4:$Q$13507,6,FALSE)="-",VLOOKUP($A39,'Master Database'!$D$4:$Q$13507,6,FALSE)="",VLOOKUP($A39,'Master Database'!$D$4:$Q$13507,6,FALSE)=0),"",VLOOKUP($A39,'Master Database'!$D$4:$Q$13507,6,FALSE)) ->  | R39: =IF(OR(VLOOKUP($A39,'Master Database'!$D$4:$Q$13507,7,FALSE)="-",VLOOKUP($A39,'Master Database'!$D$4:$Q$13507,7,FALSE)="",VLOOKUP($A39,'Master Database'!$D$4:$Q$13507,7,FALSE)=0),"",VLOOKUP($A39,'Master Database'!$D$4:$Q$13507,7,FALSE)) ->  | S39: =IF(OR(VLOOKUP($A39,'Master Database'!$D$4:$Q$13507,8,FALSE)="-",VLOOKUP($A39,'Master Database'!$D$4:$Q$13507,8,FALSE)=0,VLOOKUP($A39,'Master Database'!$D$4:$Q$13507,8,FALSE)=""),"",VLOOKUP($A39,'Master Database'!$D$4:$Q$13507,8,FALSE)) ->  | T39: =VLOOKUP($A39,'Master Database'!$D$4:$Q$13507,9,FALSE) ->  | U39: =VLOOKUP($A39,'Master Database'!$D$4:$Q$13507,10,FALSE) ->  | V39: =VLOOKUP($A39,'Master Database'!$D$4:$Q$13507,11,FALSE) ->  | W39: =IF(VLOOKUP($A39,'Master Database'!$D$4:$Q$13507,12,FALSE)=0,"",VLOOKUP($A39,'Master Database'!$D$4:$Q$13507,12,FALSE)) ->  | X39: =IF(VLOOKUP($A39,'Master Database'!$D$4:$Q$13507,13,FALSE)=0,"",VLOOKUP($A39,'Master Database'!$D$4:$Q$13507,13,FALSE)) ->  | Y39: =IF(VLOOKUP($A39,'Master Database'!$D$4:$Q$13507,14,FALSE)=0,"",VLOOKUP($A39,'Master Database'!$D$4:$Q$13507,14,FALSE)) ->  | AB39: To help understand how the management of strokes affects expenditure and outcomes in the CCG please visit the Commissioning for Value website and download a 2014 pack. | AC39: http://www.england.nhs.uk/resources/resources-for-ccgs/comm-for-value/ http://pathways.nice.org.uk/pathways/stroke
A40: 42NHS Airedale, Wharfedale and Craven | B40: =VLOOKUP(Report!$E$2,'Rules & Lookups'!$B$6:$C$216,2,FALSE) -> E38000001 | C40: =VLOOKUP(G40,'Map lookups'!$B$2:$P$104,7,FALSE) -> Cardiovascular Family of Diseases - Stroke | D40: =IF(VLOOKUP(G40,'Map lookups'!$B$2:$P$104,8,FALSE)="","No Subcategory",VLOOKUP(G40,'Map lookups'!$B$2:$P$104,8,FALSE)) -> Cerebrovascular Disease | E40: =IF(VLOOKUP(G40,'Map lookups'!$B$2:$P$104,10,FALSE)="","No Pathway",VLOOKUP(G40,'Map lookups'!$B$2:$P$104,10,FALSE)) -> Circulation Problems (CVD) - Stroke | F40: =VLOOKUP(G40,'Map lookups'!$B$2:$P$104,5,FALSE) -> Secondary Care Treatment | G40: 42 | H40: =VLOOKUP($G40,'Map lookups'!$B$2:$P$104,4,FALSE) -> Map 42: Percentage of people known to have atrial fibrillation (AF) who were prescribed anticoagulation prior to a stroke by CCG, 2013/14 | I40: =VLOOKUP(G40,'Map lookups'!$B$2:$P$104,6,FALSE) -> 1 | J40: =IF(VLOOKUP($G40,'Master Database'!$C$4:$E$13507,3,FALSE)="Bad","Improvement Opportunity",VLOOKUP($G40,'Master Database'!$C$4:$E$13507,3,FALSE)) -> Good | K40: =IF(OR(VLOOKUP($A40,'Master Database'!$D$4:$Q$13507,3,FALSE)="-",VLOOKUP($A40,'Master Database'!$D$4:$Q$13507,3,FALSE)=""),"No Data",VLOOKUP($A40,'Master Database'!$D$4:$Q$13507,3,FALSE)) -> 32.8358209 | L40: =IF(OR(VLOOKUP($A40,'Master Database'!$D$4:$Q$13507,4,FALSE)="-",VLOOKUP($A40,'Master Database'!$D$4:$Q$13507,4,FALSE)=""),"No Data",VLOOKUP($A40,'Master Database'!$D$4:$Q$13507,4,FALSE)) -> 22.79115762 | M40: =IF(OR(VLOOKUP($A40,'Master Database'!$D$4:$Q$13507,5,FALSE)="-",VLOOKUP($A40,'Master Database'!$D$4:$Q$13507,5,FALSE)=""),"No Data",VLOOKUP($A40,'Master Database'!$D$4:$Q$13507,5,FALSE)) -> 44.74204322 | N40: =IF(VLOOKUP(A40,Quintiles!$A$3:$E$13506,5,FALSE)=6,"No Data",VLOOKUP(A40,Quintiles!$A$3:$E$13506,5,FALSE)) -> 2 | O40: =INDEX('Colour Calculation'!$X$15:$CI$16,1,MATCH(Report!$G40,'Colour Calculation'!$X$16:$CI$16,0)) -> A | P40: =IFERROR(INDEX('Best performing CCG code'!$AE$7:$AL$70,MATCH("Map_"&Report!$G40,'Best performing CCG code'!$AE$7:$AE$70,0),8),"") -> NHS East Staffordshire | Q40: =IF(OR(VLOOKUP($A40,'Master Database'!$D$4:$Q$13507,6,FALSE)="-",VLOOKUP($A40,'Master Database'!$D$4:$Q$13507,6,FALSE)="",VLOOKUP($A40,'Master Database'!$D$4:$Q$13507,6,FALSE)=0),"",VLOOKUP($A40,'Master Database'!$D$4:$Q$13507,6,FALSE)) -> 38.25711533 | R40: =IF(OR(VLOOKUP($A40,'Master Database'!$D$4:$Q$13507,7,FALSE)="-",VLOOKUP($A40,'Master Database'!$D$4:$Q$13507,7,FALSE)="",VLOOKUP($A40,'Master Database'!$D$4:$Q$13507,7,FALSE)=0),"",VLOOKUP($A40,'Master Database'!$D$4:$Q$13507,7,FALSE)) -> 41.28742739 | S40: =IF(OR(VLOOKUP($A40,'Master Database'!$D$4:$Q$13507,8,FALSE)="-",VLOOKUP($A40,'Master Database'!$D$4:$Q$13507,8,FALSE)=0,VLOOKUP($A40,'Master Database'!$D$4:$Q$13507,8,FALSE)=""),"",VLOOKUP($A40,'Master Database'!$D$4:$Q$13507,8,FALSE)) -> 47.08994709 | T40: =VLOOKUP($A40,'Master Database'!$D$4:$Q$13507,9,FALSE) -> A | U40: =VLOOKUP($A40,'Master Database'!$D$4:$Q$13507,10,FALSE) -> A | V40: =VLOOKUP($A40,'Master Database'!$D$4:$Q$13507,11,FALSE) -> R | W40: =IF(VLOOKUP($A40,'Master Database'!$D$4:$Q$13507,12,FALSE)=0,"",VLOOKUP($A40,'Master Database'!$D$4:$Q$13507,12,FALSE)) -> 5.421294433 | X40: =IF(VLOOKUP($A40,'Master Database'!$D$4:$Q$13507,13,FALSE)=0,"",VLOOKUP($A40,'Master Database'!$D$4:$Q$13507,13,FALSE)) -> 8.451606497 | Y40: =IF(VLOOKUP($A40,'Master Database'!$D$4:$Q$13507,14,FALSE)=0,"",VLOOKUP($A40,'Master Database'!$D$4:$Q$13507,14,FALSE)) -> 14.25412619 | AB40: To help understand how the management of strokes affects expenditure and outcomes in the CCG please visit the Commissioning for Value website and download a 2014 pack. | AC40: http://www.england.nhs.uk/resources/resources-for-ccgs/comm-for-value/ http://pathways.nice.org.uk/pathways/stroke
A41: 43NHS Airedale, Wharfedale and Craven | B41: =VLOOKUP(Report!$E$2,'Rules & Lookups'!$B$6:$C$216,2,FALSE) -> E38000001 | C41: =VLOOKUP(G41,'Map lookups'!$B$2:$P$104,7,FALSE) -> Cardiovascular Family of Diseases - Stroke | D41: =IF(VLOOKUP(G41,'Map lookups'!$B$2:$P$104,8,FALSE)="","No Subcategory",VLOOKUP(G41,'Map lookups'!$B$2:$P$104,8,FALSE)) -> Cerebrovascular Disease | E41: =IF(VLOOKUP(G41,'Map lookups'!$B$2:$P$104,10,FALSE)="","No Pathway",VLOOKUP(G41,'Map lookups'!$B$2:$P$104,10,FALSE)) -> Circulation Problems (CVD) - Stroke | F41: =VLOOKUP(G41,'Map lookups'!$B$2:$P$104,5,FALSE) -> Outcomes | G41: 43 | H41: =VLOOKUP($G41,'Map lookups'!$B$2:$P$104,4,FALSE) -> Map 43: Standardised mortality ratio (SMR) in the 30 days following admission to hospital for a stroke by CCG, 2013/14 | I41: =VLOOKUP(G41,'Map lookups'!$B$2:$P$104,6,FALSE) -> 1 | J41: =IF(VLOOKUP($G41,'Master Database'!$C$4:$E$13507,3,FALSE)="Bad","Improvement Opportunity",VLOOKUP($G41,'Master Database'!$C$4:$E$13507,3,FALSE)) -> Improvement Opportunity | K41: =IF(OR(VLOOKUP($A41,'Master Database'!$D$4:$Q$13507,3,FALSE)="-",VLOOKUP($A41,'Master Database'!$D$4:$Q$13507,3,FALSE)=""),"No Data",VLOOKUP($A41,'Master Database'!$D$4:$Q$13507,3,FALSE)) -> 1.68 | L41: =IF(OR(VLOOKUP($A41,'Master Database'!$D$4:$Q$13507,4,FALSE)="-",VLOOKUP($A41,'Master Database'!$D$4:$Q$13507,4,FALSE)=""),"No Data",VLOOKUP($A41,'Master Database'!$D$4:$Q$13507,4,FALSE)) -> No Data | M41: =IF(OR(VLOOKUP($A41,'Master Database'!$D$4:$Q$13507,5,FALSE)="-",VLOOKUP($A41,'Master Database'!$D$4:$Q$13507,5,FALSE)=""),"No Data",VLOOKUP($A41,'Master Database'!$D$4:$Q$13507,5,FALSE)) -> No Data | N41: =IF(VLOOKUP(A41,Quintiles!$A$3:$E$13506,5,FALSE)=6,"No Data",VLOOKUP(A41,Quintiles!$A$3:$E$13506,5,FALSE)) -> 3 | O41: =INDEX('Colour Calculation'!$X$15:$CI$16,1,MATCH(Report!$G41,'Colour Calculation'!$X$16:$CI$16,0)) -> R | P41: =IFERROR(INDEX('Best performing CCG code'!$AE$7:$AL$70,MATCH("Map_"&Report!$G41,'Best performing CCG code'!$AE$7:$AE$70,0),8),"") -> NHS Calderdale | Q41: =IF(OR(VLOOKUP($A41,'Master Database'!$D$4:$Q$13507,6,FALSE)="-",VLOOKUP($A41,'Master Database'!$D$4:$Q$13507,6,FALSE)="",VLOOKUP($A41,'Master Database'!$D$4:$Q$13507,6,FALSE)=0),"",VLOOKUP($A41,'Master Database'!$D$4:$Q$13507,6,FALSE)) -> 1.171650485 | R41: =IF(OR(VLOOKUP($A41,'Master Database'!$D$4:$Q$13507,7,FALSE)="-",VLOOKUP($A41,'Master Database'!$D$4:$Q$13507,7,FALSE)="",VLOOKUP($A41,'Master Database'!$D$4:$Q$13507,7,FALSE)=0),"",VLOOKUP($A41,'Master Database'!$D$4:$Q$13507,7,FALSE)) -> 1.364545455 | S41: =IF(OR(VLOOKUP($A41,'Master Database'!$D$4:$Q$13507,8,FALSE)="-",VLOOKUP($A41,'Master Database'!$D$4:$Q$13507,8,FALSE)=0,VLOOKUP($A41,'Master Database'!$D$4:$Q$13507,8,FALSE)=""),"",VLOOKUP($A41,'Master Database'!$D$4:$Q$13507,8,FALSE)) -> 1.145 | T41: =VLOOKUP($A41,'Master Database'!$D$4:$Q$13507,9,FALSE) ->  | U41: =VLOOKUP($A41,'Master Database'!$D$4:$Q$13507,10,FALSE) ->  | V41: =VLOOKUP($A41,'Master Database'!$D$4:$Q$13507,11,FALSE) ->  | W41: =IF(VLOOKUP($A41,'Master Database'!$D$4:$Q$13507,12,FALSE)=0,"",VLOOKUP($A41,'Master Database'!$D$4:$Q$13507,12,FALSE)) -> 0.5083495146 | X41: =IF(VLOOKUP($A41,'Master Database'!$D$4:$Q$13507,13,FALSE)=0,"",VLOOKUP($A41,'Master Database'!$D$4:$Q$13507,13,FALSE)) -> 0.3154545455 | Y41: =IF(VLOOKUP($A41,'Master Database'!$D$4:$Q$13507,14,FALSE)=0,"",VLOOKUP($A41,'Master Database'!$D$4:$Q$13507,14,FALSE)) -> 0.535 | AB41: To help understand how the management of strokes affects expenditure and outcomes in the CCG please visit the Commissioning for Value website and download a 2014 pack. | AC41: http://www.england.nhs.uk/resources/resources-for-ccgs/comm-for-value/ http://pathways.nice.org.uk/pathways/stroke
A42: 44NHS Airedale, Wharfedale and Craven | B42: =VLOOKUP(Report!$E$2,'Rules & Lookups'!$B$6:$C$216,2,FALSE) -> E38000001 | C42: =VLOOKUP(G42,'Map lookups'!$B$2:$P$104,7,FALSE) -> Cardiovascular Family of Diseases - Stroke | D42: =IF(VLOOKUP(G42,'Map lookups'!$B$2:$P$104,8,FALSE)="","No Subcategory",VLOOKUP(G42,'Map lookups'!$B$2:$P$104,8,FALSE)) -> Cerebrovascular Disease | E42: =IF(VLOOKUP(G42,'Map lookups'!$B$2:$P$104,10,FALSE)="","No Pathway",VLOOKUP(G42,'Map lookups'!$B$2:$P$104,10,FALSE)) -> Circulation Problems (CVD) - Stroke | F42: =VLOOKUP(G42,'Map lookups'!$B$2:$P$104,5,FALSE) -> Secondary Care Treatment | G42: 44 | H42: =VLOOKUP($G42,'Map lookups'!$B$2:$P$104,4,FALSE) -> Map 44: Percentage of people discharged from hospital following a stroke who were 'newly institutionalised' by CCG, 2013/14 | I42: =VLOOKUP(G42,'Map lookups'!$B$2:$P$104,6,FALSE) -> 1 | J42: =IF(VLOOKUP($G42,'Master Database'!$C$4:$E$13507,3,FALSE)="Bad","Improvement Opportunity",VLOOKUP($G42,'Master Database'!$C$4:$E$13507,3,FALSE)) -> Improvement Opportunity | K42: =IF(OR(VLOOKUP($A42,'Master Database'!$D$4:$Q$13507,3,FALSE)="-",VLOOKUP($A42,'Master Database'!$D$4:$Q$13507,3,FALSE)=""),"No Data",VLOOKUP($A42,'Master Database'!$D$4:$Q$13507,3,FALSE)) -> 10 | L42: =IF(OR(VLOOKUP($A42,'Master Database'!$D$4:$Q$13507,4,FALSE)="-",VLOOKUP($A42,'Master Database'!$D$4:$Q$13507,4,FALSE)=""),"No Data",VLOOKUP($A42,'Master Database'!$D$4:$Q$13507,4,FALSE)) -> No Data | M42: =IF(OR(VLOOKUP($A42,'Master Database'!$D$4:$Q$13507,5,FALSE)="-",VLOOKUP($A42,'Master Database'!$D$4:$Q$13507,5,FALSE)=""),"No Data",VLOOKUP($A42,'Master Database'!$D$4:$Q$13507,5,FALSE)) -> No Data | N42: =IF(VLOOKUP(A42,Quintiles!$A$3:$E$13506,5,FALSE)=6,"No Data",VLOOKUP(A42,Quintiles!$A$3:$E$13506,5,FALSE)) -> 4 | O42: =INDEX('Colour Calculation'!$X$15:$CI$16,1,MATCH(Report!$G42,'Colour Calculation'!$X$16:$CI$16,0)) -> A | P42: =IFERROR(INDEX('Best performing CCG code'!$AE$7:$AL$70,MATCH("Map_"&Report!$G42,'Best performing CCG code'!$AE$7:$AE$70,0),8),"") -> NHS Newark & Sherwood | Q42: =IF(OR(VLOOKUP($A42,'Master Database'!$D$4:$Q$13507,6,FALSE)="-",VLOOKUP($A42,'Master Database'!$D$4:$Q$13507,6,FALSE)="",VLOOKUP($A42,'Master Database'!$D$4:$Q$13507,6,FALSE)=0),"",VLOOKUP($A42,'Master Database'!$D$4:$Q$13507,6,FALSE)) -> 8.278238342 | R42: =IF(OR(VLOOKUP($A42,'Master Database'!$D$4:$Q$13507,7,FALSE)="-",VLOOKUP($A42,'Master Database'!$D$4:$Q$13507,7,FALSE)="",VLOOKUP($A42,'Master Database'!$D$4:$Q$13507,7,FALSE)=0),"",VLOOKUP($A42,'Master Database'!$D$4:$Q$13507,7,FALSE)) -> 8.36 | S42: =IF(OR(VLOOKUP($A42,'Master Database'!$D$4:$Q$13507,8,FALSE)="-",VLOOKUP($A42,'Master Database'!$D$4:$Q$13507,8,FALSE)=0,VLOOKUP($A42,'Master Database'!$D$4:$Q$13507,8,FALSE)=""),"",VLOOKUP($A42,'Master Database'!$D$4:$Q$13507,8,FALSE)) -> 4.075 | T42: =VLOOKUP($A42,'Master Database'!$D$4:$Q$13507,9,FALSE) ->  | U42: =VLOOKUP($A42,'Master Database'!$D$4:$Q$13507,10,FALSE) ->  | V42: =VLOOKUP($A42,'Master Database'!$D$4:$Q$13507,11,FALSE) ->  | W42: =IF(VLOOKUP($A42,'Master Database'!$D$4:$Q$13507,12,FALSE)=0,"",VLOOKUP($A42,'Master Database'!$D$4:$Q$13507,12,FALSE)) -> 1.721761658 | X42: =IF(VLOOKUP($A42,'Master Database'!$D$4:$Q$13507,13,FALSE)=0,"",VLOOKUP($A42,'Master Database'!$D$4:$Q$13507,13,FALSE)) -> 1.64 | Y42: =IF(VLOOKUP($A42,'Master Database'!$D$4:$Q$13507,14,FALSE)=0,"",VLOOKUP($A42,'Master Database'!$D$4:$Q$13507,14,FALSE)) -> 5.925 | AB42: To help understand how the management of strokes affects expenditure and outcomes in the CCG please visit the Commissioning for Value website and download a 2014 pack. | AC42: http://www.england.nhs.uk/resources/resources-for-ccgs/comm-for-value/ http://pathways.nice.org.uk/pathways/stroke
A43: 45NHS Airedale, Wharfedale and Craven | B43: =VLOOKUP(Report!$E$2,'Rules & Lookups'!$B$6:$C$216,2,FALSE) -> E38000001 | C43: =VLOOKUP(G43,'Map lookups'!$B$2:$P$104,7,FALSE) -> Mental Health Disorders | D43: =IF(VLOOKUP(G43,'Map lookups'!$B$2:$P$104,8,FALSE)="","No Subcategory",VLOOKUP(G43,'Map lookups'!$B$2:$P$104,8,FALSE)) -> Psychotic Disorders | E43: =IF(VLOOKUP(G43,'Map lookups'!$B$2:$P$104,10,FALSE)="","No Pathway",VLOOKUP(G43,'Map lookups'!$B$2:$P$104,10,FALSE)) -> Mental Health Problems - Psychosis | F43: =VLOOKUP(G43,'Map lookups'!$B$2:$P$104,5,FALSE) -> Primary Care Management | G43: 45 | H43: =VLOOKUP($G43,'Map lookups'!$B$2:$P$104,4,FALSE) -> Map 45: Percentage of people who are recorded in GP registers of severe mental illness (SMI) by CCG 2013/14 | I43: =VLOOKUP(G43,'Map lookups'!$B$2:$P$104,6,FALSE) -> 1, 2, 5 | J43: =IF(VLOOKUP($G43,'Master Database'!$C$4:$E$13507,3,FALSE)="Bad","Improvement Opportunity",VLOOKUP($G43,'Master Database'!$C$4:$E$13507,3,FALSE)) -> Good | K43: =IF(OR(VLOOKUP($A43,'Master Database'!$D$4:$Q$13507,3,FALSE)="-",VLOOKUP($A43,'Master Database'!$D$4:$Q$13507,3,FALSE)=""),"No Data",VLOOKUP($A43,'Master Database'!$D$4:$Q$13507,3,FALSE)) -> 0.9254767801 | L43: =IF(OR(VLOOKUP($A43,'Master Database'!$D$4:$Q$13507,4,FALSE)="-",VLOOKUP($A43,'Master Database'!$D$4:$Q$13507,4,FALSE)=""),"No Data",VLOOKUP($A43,'Master Database'!$D$4:$Q$13507,4,FALSE)) -> 0.8784485115 | M43: =IF(OR(VLOOKUP($A43,'Master Database'!$D$4:$Q$13507,5,FALSE)="-",VLOOKUP($A43,'Master Database'!$D$4:$Q$13507,5,FALSE)=""),"No Data",VLOOKUP($A43,'Master Database'!$D$4:$Q$13507,5,FALSE)) -> 0.9743686994 | N43: =IF(VLOOKUP(A43,Quintiles!$A$3:$E$13506,5,FALSE)=6,"No Data",VLOOKUP(A43,Quintiles!$A$3:$E$13506,5,FALSE)) -> 4 | O43: =INDEX('Colour Calculation'!$X$15:$CI$16,1,MATCH(Report!$G43,'Colour Calculation'!$X$16:$CI$16,0)) -> G | P43: =IFERROR(INDEX('Best performing CCG code'!$AE$7:$AL$70,MATCH("Map_"&Report!$G43,'Best performing CCG code'!$AE$7:$AE$70,0),8),"") -> NHS Great Yarmouth and Waveney | Q43: =IF(OR(VLOOKUP($A43,'Master Database'!$D$4:$Q$13507,6,FALSE)="-",VLOOKUP($A43,'Master Database'!$D$4:$Q$13507,6,FALSE)="",VLOOKUP($A43,'Master Database'!$D$4:$Q$13507,6,FALSE)=0),"",VLOOKUP($A43,'Master Database'!$D$4:$Q$13507,6,FALSE)) -> 0.8529571166 | R43: =IF(OR(VLOOKUP($A43,'Master Database'!$D$4:$Q$13507,7,FALSE)="-",VLOOKUP($A43,'Master Database'!$D$4:$Q$13507,7,FALSE)="",VLOOKUP($A43,'Master Database'!$D$4:$Q$13507,7,FALSE)=0),"",VLOOKUP($A43,'Master Database'!$D$4:$Q$13507,7,FALSE)) -> 0.7445343644 | S43: =IF(OR(VLOOKUP($A43,'Master Database'!$D$4:$Q$13507,8,FALSE)="-",VLOOKUP($A43,'Master Database'!$D$4:$Q$13507,8,FALSE)=0,VLOOKUP($A43,'Master Database'!$D$4:$Q$13507,8,FALSE)=""),"",VLOOKUP($A43,'Master Database'!$D$4:$Q$13507,8,FALSE)) -> 0.8574913404 | T43: =VLOOKUP($A43,'Master Database'!$D$4:$Q$13507,9,FALSE) -> G | U43: =VLOOKUP($A43,'Master Database'!$D$4:$Q$13507,10,FALSE) -> G | V43: =VLOOKUP($A43,'Master Database'!$D$4:$Q$13507,11,FALSE) -> G | W43: =IF(VLOOKUP($A43,'Master Database'!$D$4:$Q$13507,12,FALSE)=0,"",VLOOKUP($A43,'Master Database'!$D$4:$Q$13507,12,FALSE)) ->  | X43: =IF(VLOOKUP($A43,'Master Database'!$D$4:$Q$13507,13,FALSE)=0,"",VLOOKUP($A43,'Master Database'!$D$4:$Q$13507,13,FALSE)) ->  | Y43: =IF(VLOOKUP($A43,'Master Database'!$D$4:$Q$13507,14,FALSE)=0,"",VLOOKUP($A43,'Master Database'!$D$4:$Q$13507,14,FALSE)) ->  | AB43: To help understand how the management of psychosis affects expenditure and outcomes in the CCG please visit the Commissioning for Value website and download a 2014 pack. | AC43: http://www.england.nhs.uk/resources/resources-for-ccgs/comm-for-value/ http://pathways.nice.org.uk/pathways/psychosis-and-schizophrenia
A44: 46NHS Airedale, Wharfedale and Craven | B44: =VLOOKUP(Report!$E$2,'Rules & Lookups'!$B$6:$C$216,2,FALSE) -> E38000001 | C44: =VLOOKUP(G44,'Map lookups'!$B$2:$P$104,7,FALSE) -> Mental Health Disorders | D44: =IF(VLOOKUP(G44,'Map lookups'!$B$2:$P$104,8,FALSE)="","No Subcategory",VLOOKUP(G44,'Map lookups'!$B$2:$P$104,8,FALSE)) -> Psychotic Disorders | E44: =IF(VLOOKUP(G44,'Map lookups'!$B$2:$P$104,10,FALSE)="","No Pathway",VLOOKUP(G44,'Map lookups'!$B$2:$P$104,10,FALSE)) -> Mental Health Problems - Psychosis | F44: =VLOOKUP(G44,'Map lookups'!$B$2:$P$104,5,FALSE) -> Primary Care Management | G44: 46 | H44: =VLOOKUP($G44,'Map lookups'!$B$2:$P$104,4,FALSE) -> Map 46: Mean percentage achievement score for physical health checks on people with severe mental illness (SMI) recorded in GP SMI registers by CCG, 2013/14 | I44: =VLOOKUP(G44,'Map lookups'!$B$2:$P$104,6,FALSE) -> 1 | J44: =IF(VLOOKUP($G44,'Master Database'!$C$4:$E$13507,3,FALSE)="Bad","Improvement Opportunity",VLOOKUP($G44,'Master Database'!$C$4:$E$13507,3,FALSE)) -> Good | K44: =IF(OR(VLOOKUP($A44,'Master Database'!$D$4:$Q$13507,3,FALSE)="-",VLOOKUP($A44,'Master Database'!$D$4:$Q$13507,3,FALSE)=""),"No Data",VLOOKUP($A44,'Master Database'!$D$4:$Q$13507,3,FALSE)) -> 70.17121194 | L44: =IF(OR(VLOOKUP($A44,'Master Database'!$D$4:$Q$13507,4,FALSE)="-",VLOOKUP($A44,'Master Database'!$D$4:$Q$13507,4,FALSE)=""),"No Data",VLOOKUP($A44,'Master Database'!$D$4:$Q$13507,4,FALSE)) -> No Data | M44: =IF(OR(VLOOKUP($A44,'Master Database'!$D$4:$Q$13507,5,FALSE)="-",VLOOKUP($A44,'Master Database'!$D$4:$Q$13507,5,FALSE)=""),"No Data",VLOOKUP($A44,'Master Database'!$D$4:$Q$13507,5,FALSE)) -> No Data | N44: =IF(VLOOKUP(A44,Quintiles!$A$3:$E$13506,5,FALSE)=6,"No Data",VLOOKUP(A44,Quintiles!$A$3:$E$13506,5,FALSE)) -> 1 | O44: =INDEX('Colour Calculation'!$X$15:$CI$16,1,MATCH(Report!$G44,'Colour Calculation'!$X$16:$CI$16,0)) -> R | P44: =IFERROR(INDEX('Best performing CCG code'!$AE$7:$AL$70,MATCH("Map_"&Report!$G44,'Best performing CCG code'!$AE$7:$AE$70,0),8),"") -> NHS South West Lincolnshire | Q44: =IF(OR(VLOOKUP($A44,'Master Database'!$D$4:$Q$13507,6,FALSE)="-",VLOOKUP($A44,'Master Database'!$D$4:$Q$13507,6,FALSE)="",VLOOKUP($A44,'Master Database'!$D$4:$Q$13507,6,FALSE)=0),"",VLOOKUP($A44,'Master Database'!$D$4:$Q$13507,6,FALSE)) -> 76.29595638 | R44: =IF(OR(VLOOKUP($A44,'Master Database'!$D$4:$Q$13507,7,FALSE)="-",VLOOKUP($A44,'Master Database'!$D$4:$Q$13507,7,FALSE)="",VLOOKUP($A44,'Master Database'!$D$4:$Q$13507,7,FALSE)=0),"",VLOOKUP($A44,'Master Database'!$D$4:$Q$13507,7,FALSE)) -> 75.66668442 | S44: =IF(OR(VLOOKUP($A44,'Master Database'!$D$4:$Q$13507,8,FALSE)="-",VLOOKUP($A44,'Master Database'!$D$4:$Q$13507,8,FALSE)=0,VLOOKUP($A44,'Master Database'!$D$4:$Q$13507,8,FALSE)=""),"",VLOOKUP($A44,'Master Database'!$D$4:$Q$13507,8,FALSE)) -> 78.71173412 | T44: =VLOOKUP($A44,'Master Database'!$D$4:$Q$13507,9,FALSE) ->  | U44: =VLOOKUP($A44,'Master Database'!$D$4:$Q$13507,10,FALSE) ->  | V44: =VLOOKUP($A44,'Master Database'!$D$4:$Q$13507,11,FALSE) ->  | W44: =IF(VLOOKUP($A44,'Master Database'!$D$4:$Q$13507,12,FALSE)=0,"",VLOOKUP($A44,'Master Database'!$D$4:$Q$13507,12,FALSE)) -> 6.124744442 | X44: =IF(VLOOKUP($A44,'Master Database'!$D$4:$Q$13507,13,FALSE)=0,"",VLOOKUP($A44,'Master Database'!$D$4:$Q$13507,13,FALSE)) -> 5.495472483 | Y44: =IF(VLOOKUP($A44,'Master Database'!$D$4:$Q$13507,14,FALSE)=0,"",VLOOKUP($A44,'Master Database'!$D$4:$Q$13507,14,FALSE)) -> 8.540522178 | AB44: To help understand how the management of psychosis affects expenditure and outcomes in the CCG please visit the Commissioning for Value website and download a 2014 pack. | AC44: http://www.england.nhs.uk/resources/resources-for-ccgs/comm-for-value/ http://pathways.nice.org.uk/pathways/psychosis-and-schizophrenia
A45: 47NHS Airedale, Wharfedale and Craven | B45: =VLOOKUP(Report!$E$2,'Rules & Lookups'!$B$6:$C$216,2,FALSE) -> E38000001 | C45: =VLOOKUP(G45,'Map lookups'!$B$2:$P$104,7,FALSE) -> Mental Health Disorders | D45: =IF(VLOOKUP(G45,'Map lookups'!$B$2:$P$104,8,FALSE)="","No Subcategory",VLOOKUP(G45,'Map lookups'!$B$2:$P$104,8,FALSE)) -> Psychotic Disorders | E45: =IF(VLOOKUP(G45,'Map lookups'!$B$2:$P$104,10,FALSE)="","No Pathway",VLOOKUP(G45,'Map lookups'!$B$2:$P$104,10,FALSE)) -> Mental Health Problems - Psychosis | F45: =VLOOKUP(G45,'Map lookups'!$B$2:$P$104,5,FALSE) -> Primary Care Management | G45: 47 | H45: =VLOOKUP($G45,'Map lookups'!$B$2:$P$104,4,FALSE) -> Map 47: Percentage of people with severe mental illness (SMI) recorded in GP SMI registers who were excepted from the calculation of QOF achievement scores by CCG 2013/14 | I45: =VLOOKUP(G45,'Map lookups'!$B$2:$P$104,6,FALSE) -> 2 | J45: =IF(VLOOKUP($G45,'Master Database'!$C$4:$E$13507,3,FALSE)="Bad","Improvement Opportunity",VLOOKUP($G45,'Master Database'!$C$4:$E$13507,3,FALSE)) -> Improvement Opportunity | K45: =IF(OR(VLOOKUP($A45,'Master Database'!$D$4:$Q$13507,3,FALSE)="-",VLOOKUP($A45,'Master Database'!$D$4:$Q$13507,3,FALSE)=""),"No Data",VLOOKUP($A45,'Master Database'!$D$4:$Q$13507,3,FALSE)) -> 20.71731235 | L45: =IF(OR(VLOOKUP($A45,'Master Database'!$D$4:$Q$13507,4,FALSE)="-",VLOOKUP($A45,'Master Database'!$D$4:$Q$13507,4,FALSE)=""),"No Data",VLOOKUP($A45,'Master Database'!$D$4:$Q$13507,4,FALSE)) -> 19.75729388 | M45: =IF(OR(VLOOKUP($A45,'Master Database'!$D$4:$Q$13507,5,FALSE)="-",VLOOKUP($A45,'Master Database'!$D$4:$Q$13507,5,FALSE)=""),"No Data",VLOOKUP($A45,'Master Database'!$D$4:$Q$13507,5,FALSE)) -> 21.71135711 | N45: =IF(VLOOKUP(A45,Quintiles!$A$3:$E$13506,5,FALSE)=6,"No Data",VLOOKUP(A45,Quintiles!$A$3:$E$13506,5,FALSE)) -> 5 | O45: =INDEX('Colour Calculation'!$X$15:$CI$16,1,MATCH(Report!$G45,'Colour Calculation'!$X$16:$CI$16,0)) -> R | P45: =IFERROR(INDEX('Best performing CCG code'!$AE$7:$AL$70,MATCH("Map_"&Report!$G45,'Best performing CCG code'!$AE$7:$AE$70,0),8),"") -> NHS East Staffordshire | Q45: =IF(OR(VLOOKUP($A45,'Master Database'!$D$4:$Q$13507,6,FALSE)="-",VLOOKUP($A45,'Master Database'!$D$4:$Q$13507,6,FALSE)="",VLOOKUP($A45,'Master Database'!$D$4:$Q$13507,6,FALSE)=0),"",VLOOKUP($A45,'Master Database'!$D$4:$Q$13507,6,FALSE)) -> 11.62848034 | R45: =IF(OR(VLOOKUP($A45,'Master Database'!$D$4:$Q$13507,7,FALSE)="-",VLOOKUP($A45,'Master Database'!$D$4:$Q$13507,7,FALSE)="",VLOOKUP($A45,'Master Database'!$D$4:$Q$13507,7,FALSE)=0),"",VLOOKUP($A45,'Master Database'!$D$4:$Q$13507,7,FALSE)) -> 12.61979882 | S45: =IF(OR(VLOOKUP($A45,'Master Database'!$D$4:$Q$13507,8,FALSE)="-",VLOOKUP($A45,'Master Database'!$D$4:$Q$13507,8,FALSE)=0,VLOOKUP($A45,'Master Database'!$D$4:$Q$13507,8,FALSE)=""),"",VLOOKUP($A45,'Master Database'!$D$4:$Q$13507,8,FALSE)) -> 11.2041204 | T45: =VLOOKUP($A45,'Master Database'!$D$4:$Q$13507,9,FALSE) -> R | U45: =VLOOKUP($A45,'Master Database'!$D$4:$Q$13507,10,FALSE) -> R | V45: =VLOOKUP($A45,'Master Database'!$D$4:$Q$13507,11,FALSE) -> R | W45: =IF(VLOOKUP($A45,'Master Database'!$D$4:$Q$13507,12,FALSE)=0,"",VLOOKUP($A45,'Master Database'!$D$4:$Q$13507,12,FALSE)) -> 9.088832013 | X45: =IF(VLOOKUP($A45,'Master Database'!$D$4:$Q$13507,13,FALSE)=0,"",VLOOKUP($A45,'Master Database'!$D$4:$Q$13507,13,FALSE)) -> 8.097513532 | Y45: =IF(VLOOKUP($A45,'Master Database'!$D$4:$Q$13507,14,FALSE)=0,"",VLOOKUP($A45,'Master Database'!$D$4:$Q$13507,14,FALSE)) -> 9.513191951 | AB45: To help understand how the management of psychosis affects expenditure and outcomes in the CCG please visit the Commissioning for Value website and download a 2014 pack. | AC45: http://www.england.nhs.uk/resources/resources-for-ccgs/comm-for-value/ http://pathways.nice.org.uk/pathways/psychosis-and-schizophrenia
A46: 48NHS Airedale, Wharfedale and Craven | B46: =VLOOKUP(Report!$E$2,'Rules & Lookups'!$B$6:$C$216,2,FALSE) -> E38000001 | C46: =VLOOKUP(G46,'Map lookups'!$B$2:$P$104,7,FALSE) -> Mental Health Disorders | D46: =IF(VLOOKUP(G46,'Map lookups'!$B$2:$P$104,8,FALSE)="","No Subcategory",VLOOKUP(G46,'Map lookups'!$B$2:$P$104,8,FALSE)) -> Psychotic Disorders | E46: =IF(VLOOKUP(G46,'Map lookups'!$B$2:$P$104,10,FALSE)="","No Pathway",VLOOKUP(G46,'Map lookups'!$B$2:$P$104,10,FALSE)) -> Mental Health Problems - Psychosis | F46: =VLOOKUP(G46,'Map lookups'!$B$2:$P$104,5,FALSE) -> Secondary Care Treatment | G46: 48 | H46: =VLOOKUP($G46,'Map lookups'!$B$2:$P$104,4,FALSE) -> Map 48: Rate of new cases of psychosis in people aged 18 years and over who received early intervention psychosis (EIP) services per 100,000 population by CCG, April 2013-September 2014 | I46: =VLOOKUP(G46,'Map lookups'!$B$2:$P$104,6,FALSE) -> 2 | J46: =IF(VLOOKUP($G46,'Master Database'!$C$4:$E$13507,3,FALSE)="Bad","Improvement Opportunity",VLOOKUP($G46,'Master Database'!$C$4:$E$13507,3,FALSE)) -> Good | K46: =IF(OR(VLOOKUP($A46,'Master Database'!$D$4:$Q$13507,3,FALSE)="-",VLOOKUP($A46,'Master Database'!$D$4:$Q$13507,3,FALSE)=""),"No Data",VLOOKUP($A46,'Master Database'!$D$4:$Q$13507,3,FALSE)) -> 36.61406088 | L46: =IF(OR(VLOOKUP($A46,'Master Database'!$D$4:$Q$13507,4,FALSE)="-",VLOOKUP($A46,'Master Database'!$D$4:$Q$13507,4,FALSE)=""),"No Data",VLOOKUP($A46,'Master Database'!$D$4:$Q$13507,4,FALSE)) -> 28.43083738 | M46: =IF(OR(VLOOKUP($A46,'Master Database'!$D$4:$Q$13507,5,FALSE)="-",VLOOKUP($A46,'Master Database'!$D$4:$Q$13507,5,FALSE)=""),"No Data",VLOOKUP($A46,'Master Database'!$D$4:$Q$13507,5,FALSE)) -> 46.4179263 | N46: =IF(VLOOKUP(A46,Quintiles!$A$3:$E$13506,5,FALSE)=6,"No Data",VLOOKUP(A46,Quintiles!$A$3:$E$13506,5,FALSE)) -> 5 | O46: =INDEX('Colour Calculation'!$X$15:$CI$16,1,MATCH(Report!$G46,'Colour Calculation'!$X$16:$CI$16,0)) -> G | P46: =IFERROR(INDEX('Best performing CCG code'!$AE$7:$AL$70,MATCH("Map_"&Report!$G46,'Best performing CCG code'!$AE$7:$AE$70,0),8),"") -> NHS Calderdale | Q46: =IF(OR(VLOOKUP($A46,'Master Database'!$D$4:$Q$13507,6,FALSE)="-",VLOOKUP($A46,'Master Database'!$D$4:$Q$13507,6,FALSE)="",VLOOKUP($A46,'Master Database'!$D$4:$Q$13507,6,FALSE)=0),"",VLOOKUP($A46,'Master Database'!$D$4:$Q$13507,6,FALSE)) -> 24.63692423 | R46: =IF(OR(VLOOKUP($A46,'Master Database'!$D$4:$Q$13507,7,FALSE)="-",VLOOKUP($A46,'Master Database'!$D$4:$Q$13507,7,FALSE)="",VLOOKUP($A46,'Master Database'!$D$4:$Q$13507,7,FALSE)=0),"",VLOOKUP($A46,'Master Database'!$D$4:$Q$13507,7,FALSE)) -> 25.68062269 | S46: =IF(OR(VLOOKUP($A46,'Master Database'!$D$4:$Q$13507,8,FALSE)="-",VLOOKUP($A46,'Master Database'!$D$4:$Q$13507,8,FALSE)=0,VLOOKUP($A46,'Master Database'!$D$4:$Q$13507,8,FALSE)=""),"",VLOOKUP($A46,'Master Database'!$D$4:$Q$13507,8,FALSE)) -> 29.57791586 | T46: =VLOOKUP($A46,'Master Database'!$D$4:$Q$13507,9,FALSE) -> G | U46: =VLOOKUP($A46,'Master Database'!$D$4:$Q$13507,10,FALSE) -> G | V46: =VLOOKUP($A46,'Master Database'!$D$4:$Q$13507,11,FALSE) -> A | W46: =IF(VLOOKUP($A46,'Master Database'!$D$4:$Q$13507,12,FALSE)=0,"",VLOOKUP($A46,'Master Database'!$D$4:$Q$13507,12,FALSE)) ->  | X46: =IF(VLOOKUP($A46,'Master Database'!$D$4:$Q$13507,13,FALSE)=0,"",VLOOKUP($A46,'Master Database'!$D$4:$Q$13507,13,FALSE)) ->  | Y46: =IF(VLOOKUP($A46,'Master Database'!$D$4:$Q$13507,14,FALSE)=0,"",VLOOKUP($A46,'Master Database'!$D$4:$Q$13507,14,FALSE)) ->  | AB46: To help understand how the management of psychosis affects expenditure and outcomes in the CCG please visit the Commissioning for Value website and download a 2014 pack. | AC46: http://www.england.nhs.uk/resources/resources-for-ccgs/comm-for-value/ http://pathways.nice.org.uk/pathways/psychosis-and-schizophrenia
A47: 50NHS Airedale, Wharfedale and Craven | B47: =VLOOKUP(Report!$E$2,'Rules & Lookups'!$B$6:$C$216,2,FALSE) -> E38000001 | C47: =VLOOKUP(G47,'Map lookups'!$B$2:$P$104,7,FALSE) -> Mental Health Disorders | D47: =IF(VLOOKUP(G47,'Map lookups'!$B$2:$P$104,8,FALSE)="","No Subcategory",VLOOKUP(G47,'Map lookups'!$B$2:$P$104,8,FALSE)) -> Organic Mental Disorders | E47: =IF(VLOOKUP(G47,'Map lookups'!$B$2:$P$104,10,FALSE)="","No Pathway",VLOOKUP(G47,'Map lookups'!$B$2:$P$104,10,FALSE)) -> Dementia and LTCs | F47: =VLOOKUP(G47,'Map lookups'!$B$2:$P$104,5,FALSE) -> Prevention and Early Diagnosis | G47: 50 | H47: =VLOOKUP($G47,'Map lookups'!$B$2:$P$104,4,FALSE) -> Map 50: Ratio of reported to expected prevalence of dementia by CCG, October 2014 | I47: =VLOOKUP(G47,'Map lookups'!$B$2:$P$104,6,FALSE) -> 2 | J47: =IF(VLOOKUP($G47,'Master Database'!$C$4:$E$13507,3,FALSE)="Bad","Improvement Opportunity",VLOOKUP($G47,'Master Database'!$C$4:$E$13507,3,FALSE)) -> Good | K47: =IF(OR(VLOOKUP($A47,'Master Database'!$D$4:$Q$13507,3,FALSE)="-",VLOOKUP($A47,'Master Database'!$D$4:$Q$13507,3,FALSE)=""),"No Data",VLOOKUP($A47,'Master Database'!$D$4:$Q$13507,3,FALSE)) -> 0.5860566188 | L47: =IF(OR(VLOOKUP($A47,'Master Database'!$D$4:$Q$13507,4,FALSE)="-",VLOOKUP($A47,'Master Database'!$D$4:$Q$13507,4,FALSE)=""),"No Data",VLOOKUP($A47,'Master Database'!$D$4:$Q$13507,4,FALSE)) -> 0.5563863847 | M47: =IF(OR(VLOOKUP($A47,'Master Database'!$D$4:$Q$13507,5,FALSE)="-",VLOOKUP($A47,'Master Database'!$D$4:$Q$13507,5,FALSE)=""),"No Data",VLOOKUP($A47,'Master Database'!$D$4:$Q$13507,5,FALSE)) -> 0.6168981205 | N47: =IF(VLOOKUP(A47,Quintiles!$A$3:$E$13506,5,FALSE)=6,"No Data",VLOOKUP(A47,Quintiles!$A$3:$E$13506,5,FALSE)) -> 4 | O47: =INDEX('Colour Calculation'!$X$15:$CI$16,1,MATCH(Report!$G47,'Colour Calculation'!$X$16:$CI$16,0)) -> G | P47: =IFERROR(INDEX('Best performing CCG code'!$AE$7:$AL$70,MATCH("Map_"&Report!$G47,'Best performing CCG code'!$AE$7:$AE$70,0),8),"") -> NHS Harrogate and Rural District | Q47: =IF(OR(VLOOKUP($A47,'Master Database'!$D$4:$Q$13507,6,FALSE)="-",VLOOKUP($A47,'Master Database'!$D$4:$Q$13507,6,FALSE)="",VLOOKUP($A47,'Master Database'!$D$4:$Q$13507,6,FALSE)=0),"",VLOOKUP($A47,'Master Database'!$D$4:$Q$13507,6,FALSE)) -> 0.5599796215 | R47: =IF(OR(VLOOKUP($A47,'Master Database'!$D$4:$Q$13507,7,FALSE)="-",VLOOKUP($A47,'Master Database'!$D$4:$Q$13507,7,FALSE)="",VLOOKUP($A47,'Master Database'!$D$4:$Q$13507,7,FALSE)=0),"",VLOOKUP($A47,'Master Database'!$D$4:$Q$13507,7,FALSE)) -> 0.5264446765 | S47: =IF(OR(VLOOKUP($A47,'Master Database'!$D$4:$Q$13507,8,FALSE)="-",VLOOKUP($A47,'Master Database'!$D$4:$Q$13507,8,FALSE)=0,VLOOKUP($A47,'Master Database'!$D$4:$Q$13507,8,FALSE)=""),"",VLOOKUP($A47,'Master Database'!$D$4:$Q$13507,8,FALSE)) -> 0.5640790234 | T47: =VLOOKUP($A47,'Master Database'!$D$4:$Q$13507,9,FALSE) -> A | U47: =VLOOKUP($A47,'Master Database'!$D$4:$Q$13507,10,FALSE) -> G | V47: =VLOOKUP($A47,'Master Database'!$D$4:$Q$13507,11,FALSE) -> A | W47: =IF(VLOOKUP($A47,'Master Database'!$D$4:$Q$13507,12,FALSE)=0,"",VLOOKUP($A47,'Master Database'!$D$4:$Q$13507,12,FALSE)) ->  | X47: =IF(VLOOKUP($A47,'Master Database'!$D$4:$Q$13507,13,FALSE)=0,"",VLOOKUP($A47,'Master Database'!$D$4:$Q$13507,13,FALSE)) ->  | Y47: =IF(VLOOKUP($A47,'Master Database'!$D$4:$Q$13507,14,FALSE)=0,"",VLOOKUP($A47,'Master Database'!$D$4:$Q$13507,14,FALSE)) ->  | AB47: To help understand how the management of dementia affects expenditure and outcomes in the CCG please visit the Commissioning for Value website and download a 2015 pack. | AC47: http://www.england.nhs.uk/resources/resources-for-ccgs/comm-for-value/ http://pathways.nice.org.uk/pathways/dementia
A48: 55NHS Airedale, Wharfedale and Craven | B48: =VLOOKUP(Report!$E$2,'Rules & Lookups'!$B$6:$C$216,2,FALSE) -> E38000001 | C48: =VLOOKUP(G48,'Map lookups'!$B$2:$P$104,7,FALSE) -> Mental Health Disorders | D48: =IF(VLOOKUP(G48,'Map lookups'!$B$2:$P$104,8,FALSE)="","No Subcategory",VLOOKUP(G48,'Map lookups'!$B$2:$P$104,8,FALSE)) -> Organic Mental Disorders | E48: =IF(VLOOKUP(G48,'Map lookups'!$B$2:$P$104,10,FALSE)="","No Pathway",VLOOKUP(G48,'Map lookups'!$B$2:$P$104,10,FALSE)) -> Dementia and LTCs | F48: =VLOOKUP(G48,'Map lookups'!$B$2:$P$104,5,FALSE) -> Outcomes | G48: 55 | H48: =VLOOKUP($G48,'Map lookups'!$B$2:$P$104,4,FALSE) -> Map 55: Rate of emergency admissions to hospital of people with dementia aged 65 years and over per 100,000 population by CCG, 2012/13 | I48: =VLOOKUP(G48,'Map lookups'!$B$2:$P$104,6,FALSE) -> 2 | J48: =IF(VLOOKUP($G48,'Master Database'!$C$4:$E$13507,3,FALSE)="Bad","Improvement Opportunity",VLOOKUP($G48,'Master Database'!$C$4:$E$13507,3,FALSE)) -> Improvement Opportunity | K48: =IF(OR(VLOOKUP($A48,'Master Database'!$D$4:$Q$13507,3,FALSE)="-",VLOOKUP($A48,'Master Database'!$D$4:$Q$13507,3,FALSE)=""),"No Data",VLOOKUP($A48,'Master Database'!$D$4:$Q$13507,3,FALSE)) -> 2870.123766 | L48: =IF(OR(VLOOKUP($A48,'Master Database'!$D$4:$Q$13507,4,FALSE)="-",VLOOKUP($A48,'Master Database'!$D$4:$Q$13507,4,FALSE)=""),"No Data",VLOOKUP($A48,'Master Database'!$D$4:$Q$13507,4,FALSE)) -> 2687.237653 | M48: =IF(OR(VLOOKUP($A48,'Master Database'!$D$4:$Q$13507,5,FALSE)="-",VLOOKUP($A48,'Master Database'!$D$4:$Q$13507,5,FALSE)=""),"No Data",VLOOKUP($A48,'Master Database'!$D$4:$Q$13507,5,FALSE)) -> 3062.179688 | N48: =IF(VLOOKUP(A48,Quintiles!$A$3:$E$13506,5,FALSE)=6,"No Data",VLOOKUP(A48,Quintiles!$A$3:$E$13506,5,FALSE)) -> 2 | O48: =INDEX('Colour Calculation'!$X$15:$CI$16,1,MATCH(Report!$G48,'Colour Calculation'!$X$16:$CI$16,0)) -> A | P48: =IFERROR(INDEX('Best performing CCG code'!$AE$7:$AL$70,MATCH("Map_"&Report!$G48,'Best performing CCG code'!$AE$7:$AE$70,0),8),"") -> NHS Ashford | Q48: =IF(OR(VLOOKUP($A48,'Master Database'!$D$4:$Q$13507,6,FALSE)="-",VLOOKUP($A48,'Master Database'!$D$4:$Q$13507,6,FALSE)="",VLOOKUP($A48,'Master Database'!$D$4:$Q$13507,6,FALSE)=0),"",VLOOKUP($A48,'Master Database'!$D$4:$Q$13507,6,FALSE)) -> 3364.157721 | R48: =IF(OR(VLOOKUP($A48,'Master Database'!$D$4:$Q$13507,7,FALSE)="-",VLOOKUP($A48,'Master Database'!$D$4:$Q$13507,7,FALSE)="",VLOOKUP($A48,'Master Database'!$D$4:$Q$13507,7,FALSE)=0),"",VLOOKUP($A48,'Master Database'!$D$4:$Q$13507,7,FALSE)) -> 3003.225727 | S48: =IF(OR(VLOOKUP($A48,'Master Database'!$D$4:$Q$13507,8,FALSE)="-",VLOOKUP($A48,'Master Database'!$D$4:$Q$13507,8,FALSE)=0,VLOOKUP($A48,'Master Database'!$D$4:$Q$13507,8,FALSE)=""),"",VLOOKUP($A48,'Master Database'!$D$4:$Q$13507,8,FALSE)) -> 2766.611447 | T48: =VLOOKUP($A48,'Master Database'!$D$4:$Q$13507,9,FALSE) -> G | U48: =VLOOKUP($A48,'Master Database'!$D$4:$Q$13507,10,FALSE) -> A | V48: =VLOOKUP($A48,'Master Database'!$D$4:$Q$13507,11,FALSE) -> A | W48: =IF(VLOOKUP($A48,'Master Database'!$D$4:$Q$13507,12,FALSE)=0,"",VLOOKUP($A48,'Master Database'!$D$4:$Q$13507,12,FALSE)) ->  | X48: =IF(VLOOKUP($A48,'Master Database'!$D$4:$Q$13507,13,FALSE)=0,"",VLOOKUP($A48,'Master Database'!$D$4:$Q$13507,13,FALSE)) ->  | Y48: =IF(VLOOKUP($A48,'Master Database'!$D$4:$Q$13507,14,FALSE)=0,"",VLOOKUP($A48,'Master Database'!$D$4:$Q$13507,14,FALSE)) -> 103.5123195 | AB48: To help understand how the management of dementia affects expenditure and outcomes in the CCG please visit the Commissioning for Value website and download a 2015 pack. | AC48: http://www.england.nhs.uk/resources/resources-for-ccgs/comm-for-value/ http://pathways.nice.org.uk/pathways/dementia
A49: 56NHS Airedale, Wharfedale and Craven | B49: =VLOOKUP(Report!$E$2,'Rules & Lookups'!$B$6:$C$216,2,FALSE) -> E38000001 | C49: =VLOOKUP(G49,'Map lookups'!$B$2:$P$104,7,FALSE) -> Problems of the Musculo-skeletal System | D49: =IF(VLOOKUP(G49,'Map lookups'!$B$2:$P$104,8,FALSE)="","No Subcategory",VLOOKUP(G49,'Map lookups'!$B$2:$P$104,8,FALSE)) -> Problems of the Musculo Skeletal System | E49: =IF(VLOOKUP(G49,'Map lookups'!$B$2:$P$104,10,FALSE)="","No Pathway",VLOOKUP(G49,'Map lookups'!$B$2:$P$104,10,FALSE)) -> Musculoskeletal System Problems (Excludes Trauma) | F49: =VLOOKUP(G49,'Map lookups'!$B$2:$P$104,5,FALSE) -> Secondary Care Treatment | G49: 56 | H49: =VLOOKUP($G49,'Map lookups'!$B$2:$P$104,4,FALSE) -> Map 56: Rate of dual-energy X-ray absorptiometry (DEXA) activity per 1,000 weighted population by CCG, 2013/14 | I49: =VLOOKUP(G49,'Map lookups'!$B$2:$P$104,6,FALSE) -> 2 | J49: =IF(VLOOKUP($G49,'Master Database'!$C$4:$E$13507,3,FALSE)="Bad","Improvement Opportunity",VLOOKUP($G49,'Master Database'!$C$4:$E$13507,3,FALSE)) -> Requires Local Interpretation | K49: =IF(OR(VLOOKUP($A49,'Master Database'!$D$4:$Q$13507,3,FALSE)="-",VLOOKUP($A49,'Master Database'!$D$4:$Q$13507,3,FALSE)=""),"No Data",VLOOKUP($A49,'Master Database'!$D$4:$Q$13507,3,FALSE)) -> 10.5660562 | L49: =IF(OR(VLOOKUP($A49,'Master Database'!$D$4:$Q$13507,4,FALSE)="-",VLOOKUP($A49,'Master Database'!$D$4:$Q$13507,4,FALSE)=""),"No Data",VLOOKUP($A49,'Master Database'!$D$4:$Q$13507,4,FALSE)) -> 10.0645609 | M49: =IF(OR(VLOOKUP($A49,'Master Database'!$D$4:$Q$13507,5,FALSE)="-",VLOOKUP($A49,'Master Database'!$D$4:$Q$13507,5,FALSE)=""),"No Data",VLOOKUP($A49,'Master Database'!$D$4:$Q$13507,5,FALSE)) -> 11.0860709 | N49: =IF(VLOOKUP(A49,Quintiles!$A$3:$E$13506,5,FALSE)=6,"No Data",VLOOKUP(A49,Quintiles!$A$3:$E$13506,5,FALSE)) -> 5 | O49: =INDEX('Colour Calculation'!$X$15:$CI$16,1,MATCH(Report!$G49,'Colour Calculation'!$X$16:$CI$16,0)) ->  | P49: =IFERROR(INDEX('Best performing CCG code'!$AE$7:$AL$70,MATCH("Map_"&Report!$G49,'Best performing CCG code'!$AE$7:$AE$70,0),8),"") ->  | Q49: =IF(OR(VLOOKUP($A49,'Master Database'!$D$4:$Q$13507,6,FALSE)="-",VLOOKUP($A49,'Master Database'!$D$4:$Q$13507,6,FALSE)="",VLOOKUP($A49,'Master Database'!$D$4:$Q$13507,6,FALSE)=0),"",VLOOKUP($A49,'Master Database'!$D$4:$Q$13507,6,FALSE)) -> 6.56228202 | R49: =IF(OR(VLOOKUP($A49,'Master Database'!$D$4:$Q$13507,7,FALSE)="-",VLOOKUP($A49,'Master Database'!$D$4:$Q$13507,7,FALSE)="",VLOOKUP($A49,'Master Database'!$D$4:$Q$13507,7,FALSE)=0),"",VLOOKUP($A49,'Master Database'!$D$4:$Q$13507,7,FALSE)) -> 7.130527877 | S49: =IF(OR(VLOOKUP($A49,'Master Database'!$D$4:$Q$13507,8,FALSE)="-",VLOOKUP($A49,'Master Database'!$D$4:$Q$13507,8,FALSE)=0,VLOOKUP($A49,'Master Database'!$D$4:$Q$13507,8,FALSE)=""),"",VLOOKUP($A49,'Master Database'!$D$4:$Q$13507,8,FALSE)) ->  | T49: =VLOOKUP($A49,'Master Database'!$D$4:$Q$13507,9,FALSE) -> Requires Local Interpretation | U49: =VLOOKUP($A49,'Master Database'!$D$4:$Q$13507,10,FALSE) -> Requires Local Interpretation | V49: =VLOOKUP($A49,'Master Database'!$D$4:$Q$13507,11,FALSE) -> Requires Local Interpretation | W49: =IF(VLOOKUP($A49,'Master Database'!$D$4:$Q$13507,12,FALSE)=0,"",VLOOKUP($A49,'Master Database'!$D$4:$Q$13507,12,FALSE)) ->  | X49: =IF(VLOOKUP($A49,'Master Database'!$D$4:$Q$13507,13,FALSE)=0,"",VLOOKUP($A49,'Master Database'!$D$4:$Q$13507,13,FALSE)) ->  | Y49: =IF(VLOOKUP($A49,'Master Database'!$D$4:$Q$13507,14,FALSE)=0,"",VLOOKUP($A49,'Master Database'!$D$4:$Q$13507,14,FALSE)) ->  | AB49: To help understand how the management of Musculoskeletal System Problems affects expenditure and outcomes in the CCG please visit the Commissioning for Value website and download a 2014 pack. | AC49: http://www.england.nhs.uk/resources/resources-for-ccgs/comm-for-value/ http://pathways.nice.org.uk/pathways/musculoskeletal-conditions http://www.arthritisresearchuk.org/mskcalculator
A50: 57NHS Airedale, Wharfedale and Craven | B50: =VLOOKUP(Report!$E$2,'Rules & Lookups'!$B$6:$C$216,2,FALSE) -> E38000001 | C50: =VLOOKUP(G50,'Map lookups'!$B$2:$P$104,7,FALSE) -> Problems of the Musculo-skeletal System | D50: =IF(VLOOKUP(G50,'Map lookups'!$B$2:$P$104,8,FALSE)="","No Subcategory",VLOOKUP(G50,'Map lookups'!$B$2:$P$104,8,FALSE)) -> Problems of the Musculo Skeletal System | E50: =IF(VLOOKUP(G50,'Map lookups'!$B$2:$P$104,10,FALSE)="","No Pathway",VLOOKUP(G50,'Map lookups'!$B$2:$P$104,10,FALSE)) -> Musculoskeletal System Problems (Excludes Trauma) | F50: =VLOOKUP(G50,'Map lookups'!$B$2:$P$104,5,FALSE) -> Secondary Care Treatment | G50: 57 | H50: =VLOOKUP($G50,'Map lookups'!$B$2:$P$104,4,FALSE) -> Map 57: Percentage of patients aged 75 years and over with a fragility fracture on or after 1 April 2012 who were treated with a bone-sparing agent (excluding exceptions) by CCG, 2013/14 | I50: =VLOOKUP(G50,'Map lookups'!$B$2:$P$104,6,FALSE) -> 3 | J50: =IF(VLOOKUP($G50,'Master Database'!$C$4:$E$13507,3,FALSE)="Bad","Improvement Opportunity",VLOOKUP($G50,'Master Database'!$C$4:$E$13507,3,FALSE)) -> Good | K50: =IF(OR(VLOOKUP($A50,'Master Database'!$D$4:$Q$13507,3,FALSE)="-",VLOOKUP($A50,'Master Database'!$D$4:$Q$13507,3,FALSE)=""),"No Data",VLOOKUP($A50,'Master Database'!$D$4:$Q$13507,3,FALSE)) -> 86.36363636 | L50: =IF(OR(VLOOKUP($A50,'Master Database'!$D$4:$Q$13507,4,FALSE)="-",VLOOKUP($A50,'Master Database'!$D$4:$Q$13507,4,FALSE)=""),"No Data",VLOOKUP($A50,'Master Database'!$D$4:$Q$13507,4,FALSE)) -> 80.05230453 | M50: =IF(OR(VLOOKUP($A50,'Master Database'!$D$4:$Q$13507,5,FALSE)="-",VLOOKUP($A50,'Master Database'!$D$4:$Q$13507,5,FALSE)=""),"No Data",VLOOKUP($A50,'Master Database'!$D$4:$Q$13507,5,FALSE)) -> 90.90497174 | N50: =IF(VLOOKUP(A50,Quintiles!$A$3:$E$13506,5,FALSE)=6,"No Data",VLOOKUP(A50,Quintiles!$A$3:$E$13506,5,FALSE)) -> 5 | O50: =INDEX('Colour Calculation'!$X$15:$CI$16,1,MATCH(Report!$G50,'Colour Calculation'!$X$16:$CI$16,0)) -> G | P50: =IFERROR(INDEX('Best performing CCG code'!$AE$7:$AL$70,MATCH("Map_"&Report!$G50,'Best performing CCG code'!$AE$7:$AE$70,0),8),"") -> NHS Airedale, Wharfedale and Craven | Q50: =IF(OR(VLOOKUP($A50,'Master Database'!$D$4:$Q$13507,6,FALSE)="-",VLOOKUP($A50,'Master Database'!$D$4:$Q$13507,6,FALSE)="",VLOOKUP($A50,'Master Database'!$D$4:$Q$13507,6,FALSE)=0),"",VLOOKUP($A50,'Master Database'!$D$4:$Q$13507,6,FALSE)) -> 82.19264541 | R50: =IF(OR(VLOOKUP($A50,'Master Database'!$D$4:$Q$13507,7,FALSE)="-",VLOOKUP($A50,'Master Database'!$D$4:$Q$13507,7,FALSE)="",VLOOKUP($A50,'Master Database'!$D$4:$Q$13507,7,FALSE)=0),"",VLOOKUP($A50,'Master Database'!$D$4:$Q$13507,7,FALSE)) -> 79.97653038 | S50: =IF(OR(VLOOKUP($A50,'Master Database'!$D$4:$Q$13507,8,FALSE)="-",VLOOKUP($A50,'Master Database'!$D$4:$Q$13507,8,FALSE)=0,VLOOKUP($A50,'Master Database'!$D$4:$Q$13507,8,FALSE)=""),"",VLOOKUP($A50,'Master Database'!$D$4:$Q$13507,8,FALSE)) -> 82.6317345 | T50: =VLOOKUP($A50,'Master Database'!$D$4:$Q$13507,9,FALSE) -> A | U50: =VLOOKUP($A50,'Master Database'!$D$4:$Q$13507,10,FALSE) -> G | V50: =VLOOKUP($A50,'Master Database'!$D$4:$Q$13507,11,FALSE) -> A | W50: =IF(VLOOKUP($A50,'Master Database'!$D$4:$Q$13507,12,FALSE)=0,"",VLOOKUP($A50,'Master Database'!$D$4:$Q$13507,12,FALSE)) ->  | X50: =IF(VLOOKUP($A50,'Master Database'!$D$4:$Q$13507,13,FALSE)=0,"",VLOOKUP($A50,'Master Database'!$D$4:$Q$13507,13,FALSE)) ->  | Y50: =IF(VLOOKUP($A50,'Master Database'!$D$4:$Q$13507,14,FALSE)=0,"",VLOOKUP($A50,'Master Database'!$D$4:$Q$13507,14,FALSE)) ->  | AB50: To help understand how the management of Musculoskeletal System Problems affects expenditure and outcomes in the CCG please visit the Commissioning for Value website and download a 2014 pack. | AC50: http://www.england.nhs.uk/resources/resources-for-ccgs/comm-for-value/ http://pathways.nice.org.uk/pathways/musculoskeletal-conditions http://www.arthritisresearchuk.org/mskcalculator
A51: 58NHS Airedale, Wharfedale and Craven | B51: =VLOOKUP(Report!$E$2,'Rules & Lookups'!$B$6:$C$216,2,FALSE) -> E38000001 | C51: =VLOOKUP(G51,'Map lookups'!$B$2:$P$104,7,FALSE) -> Problems of the Musculo-skeletal System | D51: =IF(VLOOKUP(G51,'Map lookups'!$B$2:$P$104,8,FALSE)="","No Subcategory",VLOOKUP(G51,'Map lookups'!$B$2:$P$104,8,FALSE)) -> Problems of the Musculo Skeletal System | E51: =IF(VLOOKUP(G51,'Map lookups'!$B$2:$P$104,10,FALSE)="","No Pathway",VLOOKUP(G51,'Map lookups'!$B$2:$P$104,10,FALSE)) -> Trauma & Injury | F51: =VLOOKUP(G51,'Map lookups'!$B$2:$P$104,5,FALSE) -> Secondary Care Treatment | G51: 58 | H51: =VLOOKUP($G51,'Map lookups'!$B$2:$P$104,4,FALSE) -> Map 58: Mean length of stay (days) for emergency admission to hospital for fractured neck of femur (FNOF) by CCG, 2012/13 | I51: =VLOOKUP(G51,'Map lookups'!$B$2:$P$104,6,FALSE) -> 3 | J51: =IF(VLOOKUP($G51,'Master Database'!$C$4:$E$13507,3,FALSE)="Bad","Improvement Opportunity",VLOOKUP($G51,'Master Database'!$C$4:$E$13507,3,FALSE)) -> Improvement Opportunity | K51: =IF(OR(VLOOKUP($A51,'Master Database'!$D$4:$Q$13507,3,FALSE)="-",VLOOKUP($A51,'Master Database'!$D$4:$Q$13507,3,FALSE)=""),"No Data",VLOOKUP($A51,'Master Database'!$D$4:$Q$13507,3,FALSE)) -> 18.15277778 | L51: =IF(OR(VLOOKUP($A51,'Master Database'!$D$4:$Q$13507,4,FALSE)="-",VLOOKUP($A51,'Master Database'!$D$4:$Q$13507,4,FALSE)=""),"No Data",VLOOKUP($A51,'Master Database'!$D$4:$Q$13507,4,FALSE)) -> 16.24041616 | M51: =IF(OR(VLOOKUP($A51,'Master Database'!$D$4:$Q$13507,5,FALSE)="-",VLOOKUP($A51,'Master Database'!$D$4:$Q$13507,5,FALSE)=""),"No Data",VLOOKUP($A51,'Master Database'!$D$4:$Q$13507,5,FALSE)) -> 20.0651394 | N51: =IF(VLOOKUP(A51,Quintiles!$A$3:$E$13506,5,FALSE)=6,"No Data",VLOOKUP(A51,Quintiles!$A$3:$E$13506,5,FALSE)) -> 3 | O51: =INDEX('Colour Calculation'!$X$15:$CI$16,1,MATCH(Report!$G51,'Colour Calculation'!$X$16:$CI$16,0)) -> A | P51: =IFERROR(INDEX('Best performing CCG code'!$AE$7:$AL$70,MATCH("Map_"&Report!$G51,'Best performing CCG code'!$AE$7:$AE$70,0),8),"") -> NHS South West Lincolnshire | Q51: =IF(OR(VLOOKUP($A51,'Master Database'!$D$4:$Q$13507,6,FALSE)="-",VLOOKUP($A51,'Master Database'!$D$4:$Q$13507,6,FALSE)="",VLOOKUP($A51,'Master Database'!$D$4:$Q$13507,6,FALSE)=0),"",VLOOKUP($A51,'Master Database'!$D$4:$Q$13507,6,FALSE)) -> 18.79030721 | R51: =IF(OR(VLOOKUP($A51,'Master Database'!$D$4:$Q$13507,7,FALSE)="-",VLOOKUP($A51,'Master Database'!$D$4:$Q$13507,7,FALSE)="",VLOOKUP($A51,'Master Database'!$D$4:$Q$13507,7,FALSE)=0),"",VLOOKUP($A51,'Master Database'!$D$4:$Q$13507,7,FALSE)) -> 18.7459244 | S51: =IF(OR(VLOOKUP($A51,'Master Database'!$D$4:$Q$13507,8,FALSE)="-",VLOOKUP($A51,'Master Database'!$D$4:$Q$13507,8,FALSE)=0,VLOOKUP($A51,'Master Database'!$D$4:$Q$13507,8,FALSE)=""),"",VLOOKUP($A51,'Master Database'!$D$4:$Q$13507,8,FALSE)) -> 17.03525844 | T51: =VLOOKUP($A51,'Master Database'!$D$4:$Q$13507,9,FALSE) -> A | U51: =VLOOKUP($A51,'Master Database'!$D$4:$Q$13507,10,FALSE) -> A | V51: =VLOOKUP($A51,'Master Database'!$D$4:$Q$13507,11,FALSE) -> A | W51: =IF(VLOOKUP($A51,'Master Database'!$D$4:$Q$13507,12,FALSE)=0,"",VLOOKUP($A51,'Master Database'!$D$4:$Q$13507,12,FALSE)) ->  | X51: =IF(VLOOKUP($A51,'Master Database'!$D$4:$Q$13507,13,FALSE)=0,"",VLOOKUP($A51,'Master Database'!$D$4:$Q$13507,13,FALSE)) ->  | Y51: =IF(VLOOKUP($A51,'Master Database'!$D$4:$Q$13507,14,FALSE)=0,"",VLOOKUP($A51,'Master Database'!$D$4:$Q$13507,14,FALSE)) -> 1.117519339 | AB51: To help understand how the management of Trauma & Injury affects expenditure and outcomes in the CCG please visit the Commissioning for Value website and download a 2014 pack. | AC51: http://www.england.nhs.uk/resources/resources-for-ccgs/comm-for-value/ http://pathways.nice.org.uk/pathways/falls-in-older-people http://pathways.nice.org.uk/pathways/unintentional-injuries-among-under-15s http://pathways.nice.org.uk/pathways/hip-fracture
A52: 59NHS Airedale, Wharfedale and Craven | B52: =VLOOKUP(Report!$E$2,'Rules & Lookups'!$B$6:$C$216,2,FALSE) -> E38000001 | C52: =VLOOKUP(G52,'Map lookups'!$B$2:$P$104,7,FALSE) -> Problems of the Musculo-skeletal System | D52: =IF(VLOOKUP(G52,'Map lookups'!$B$2:$P$104,8,FALSE)="","No Subcategory",VLOOKUP(G52,'Map lookups'!$B$2:$P$104,8,FALSE)) -> Problems of the Musculo Skeletal System | E52: =IF(VLOOKUP(G52,'Map lookups'!$B$2:$P$104,10,FALSE)="","No Pathway",VLOOKUP(G52,'Map lookups'!$B$2:$P$104,10,FALSE)) -> Musculoskeletal System Problems (Excludes Trauma) | F52: =VLOOKUP(G52,'Map lookups'!$B$2:$P$104,5,FALSE) -> Secondary Care Treatment | G52: 59 | H52: =VLOOKUP($G52,'Map lookups'!$B$2:$P$104,4,FALSE) -> Map 59: Rate of primary hip replacement procedures per 100,000 population by CCG, 2012/13 | I52: =VLOOKUP(G52,'Map lookups'!$B$2:$P$104,6,FALSE) -> 3 | J52: =IF(VLOOKUP($G52,'Master Database'!$C$4:$E$13507,3,FALSE)="Bad","Improvement Opportunity",VLOOKUP($G52,'Master Database'!$C$4:$E$13507,3,FALSE)) -> Requires Local Interpretation | K52: =IF(OR(VLOOKUP($A52,'Master Database'!$D$4:$Q$13507,3,FALSE)="-",VLOOKUP($A52,'Master Database'!$D$4:$Q$13507,3,FALSE)=""),"No Data",VLOOKUP($A52,'Master Database'!$D$4:$Q$13507,3,FALSE)) -> 170.6912541 | L52: =IF(OR(VLOOKUP($A52,'Master Database'!$D$4:$Q$13507,4,FALSE)="-",VLOOKUP($A52,'Master Database'!$D$4:$Q$13507,4,FALSE)=""),"No Data",VLOOKUP($A52,'Master Database'!$D$4:$Q$13507,4,FALSE)) -> 150.9037595 | M52: =IF(OR(VLOOKUP($A52,'Master Database'!$D$4:$Q$13507,5,FALSE)="-",VLOOKUP($A52,'Master Database'!$D$4:$Q$13507,5,FALSE)=""),"No Data",VLOOKUP($A52,'Master Database'!$D$4:$Q$13507,5,FALSE)) -> 192.3308131 | N52: =IF(VLOOKUP(A52,Quintiles!$A$3:$E$13506,5,FALSE)=6,"No Data",VLOOKUP(A52,Quintiles!$A$3:$E$13506,5,FALSE)) -> 5 | O52: =INDEX('Colour Calculation'!$X$15:$CI$16,1,MATCH(Report!$G52,'Colour Calculation'!$X$16:$CI$16,0)) ->  | P52: =IFERROR(INDEX('Best performing CCG code'!$AE$7:$AL$70,MATCH("Map_"&Report!$G52,'Best performing CCG code'!$AE$7:$AE$70,0),8),"") ->  | Q52: =IF(OR(VLOOKUP($A52,'Master Database'!$D$4:$Q$13507,6,FALSE)="-",VLOOKUP($A52,'Master Database'!$D$4:$Q$13507,6,FALSE)="",VLOOKUP($A52,'Master Database'!$D$4:$Q$13507,6,FALSE)=0),"",VLOOKUP($A52,'Master Database'!$D$4:$Q$13507,6,FALSE)) -> 137.3952523 | R52: =IF(OR(VLOOKUP($A52,'Master Database'!$D$4:$Q$13507,7,FALSE)="-",VLOOKUP($A52,'Master Database'!$D$4:$Q$13507,7,FALSE)="",VLOOKUP($A52,'Master Database'!$D$4:$Q$13507,7,FALSE)=0),"",VLOOKUP($A52,'Master Database'!$D$4:$Q$13507,7,FALSE)) -> 146.8114374 | S52: =IF(OR(VLOOKUP($A52,'Master Database'!$D$4:$Q$13507,8,FALSE)="-",VLOOKUP($A52,'Master Database'!$D$4:$Q$13507,8,FALSE)=0,VLOOKUP($A52,'Master Database'!$D$4:$Q$13507,8,FALSE)=""),"",VLOOKUP($A52,'Master Database'!$D$4:$Q$13507,8,FALSE)) ->  | T52: =VLOOKUP($A52,'Master Database'!$D$4:$Q$13507,9,FALSE) -> Requires Local Interpretation | U52: =VLOOKUP($A52,'Master Database'!$D$4:$Q$13507,10,FALSE) -> Requires Local Interpretation | V52: =VLOOKUP($A52,'Master Database'!$D$4:$Q$13507,11,FALSE) -> Requires Local Interpretation | W52: =IF(VLOOKUP($A52,'Master Database'!$D$4:$Q$13507,12,FALSE)=0,"",VLOOKUP($A52,'Master Database'!$D$4:$Q$13507,12,FALSE)) ->  | X52: =IF(VLOOKUP($A52,'Master Database'!$D$4:$Q$13507,13,FALSE)=0,"",VLOOKUP($A52,'Master Database'!$D$4:$Q$13507,13,FALSE)) ->  | Y52: =IF(VLOOKUP($A52,'Master Database'!$D$4:$Q$13507,14,FALSE)=0,"",VLOOKUP($A52,'Master Database'!$D$4:$Q$13507,14,FALSE)) ->  | AB52: To help understand how the management of Musculoskeletal System Problems affects expenditure and outcomes in the CCG please visit the Commissioning for Value website and download a 2014 pack. | AC52: http://www.england.nhs.uk/resources/resources-for-ccgs/comm-for-value/ http://pathways.nice.org.uk/pathways/musculoskeletal-conditions http://www.arthritisresearchuk.org/mskcalculator
A53: 60NHS Airedale, Wharfedale and Craven | B53: =VLOOKUP(Report!$E$2,'Rules & Lookups'!$B$6:$C$216,2,FALSE) -> E38000001 | C53: =VLOOKUP(G53,'Map lookups'!$B$2:$P$104,7,FALSE) -> Problems of the Musculo-skeletal System | D53: =IF(VLOOKUP(G53,'Map lookups'!$B$2:$P$104,8,FALSE)="","No Subcategory",VLOOKUP(G53,'Map lookups'!$B$2:$P$104,8,FALSE)) -> Problems of the Musculo Skeletal System | E53: =IF(VLOOKUP(G53,'Map lookups'!$B$2:$P$104,10,FALSE)="","No Pathway",VLOOKUP(G53,'Map lookups'!$B$2:$P$104,10,FALSE)) -> Musculoskeletal System Problems (Excludes Trauma) | F53: =VLOOKUP(G53,'Map lookups'!$B$2:$P$104,5,FALSE) -> Secondary Care Treatment | G53: 60 | H53: =VLOOKUP($G53,'Map lookups'!$B$2:$P$104,4,FALSE) -> Map 60: Mean patient-reported health gain (EQ-5D index score) for primary hip replacement procedures by CCG, 2013/14 | I53: =VLOOKUP(G53,'Map lookups'!$B$2:$P$104,6,FALSE) -> 3 | J53: =IF(VLOOKUP($G53,'Master Database'!$C$4:$E$13507,3,FALSE)="Bad","Improvement Opportunity",VLOOKUP($G53,'Master Database'!$C$4:$E$13507,3,FALSE)) -> Good | K53: =IF(OR(VLOOKUP($A53,'Master Database'!$D$4:$Q$13507,3,FALSE)="-",VLOOKUP($A53,'Master Database'!$D$4:$Q$13507,3,FALSE)=""),"No Data",VLOOKUP($A53,'Master Database'!$D$4:$Q$13507,3,FALSE)) -> 0.405 | L53: =IF(OR(VLOOKUP($A53,'Master Database'!$D$4:$Q$13507,4,FALSE)="-",VLOOKUP($A53,'Master Database'!$D$4:$Q$13507,4,FALSE)=""),"No Data",VLOOKUP($A53,'Master Database'!$D$4:$Q$13507,4,FALSE)) -> No Data | M53: =IF(OR(VLOOKUP($A53,'Master Database'!$D$4:$Q$13507,5,FALSE)="-",VLOOKUP($A53,'Master Database'!$D$4:$Q$13507,5,FALSE)=""),"No Data",VLOOKUP($A53,'Master Database'!$D$4:$Q$13507,5,FALSE)) -> No Data | N53: =IF(VLOOKUP(A53,Quintiles!$A$3:$E$13506,5,FALSE)=6,"No Data",VLOOKUP(A53,Quintiles!$A$3:$E$13506,5,FALSE)) -> 2 | O53: =INDEX('Colour Calculation'!$X$15:$CI$16,1,MATCH(Report!$G53,'Colour Calculation'!$X$16:$CI$16,0)) -> A | P53: =IFERROR(INDEX('Best performing CCG code'!$AE$7:$AL$70,MATCH("Map_"&Report!$G53,'Best performing CCG code'!$AE$7:$AE$70,0),8),"") -> NHS West Essex | Q53: =IF(OR(VLOOKUP($A53,'Master Database'!$D$4:$Q$13507,6,FALSE)="-",VLOOKUP($A53,'Master Database'!$D$4:$Q$13507,6,FALSE)="",VLOOKUP($A53,'Master Database'!$D$4:$Q$13507,6,FALSE)=0),"",VLOOKUP($A53,'Master Database'!$D$4:$Q$13507,6,FALSE)) -> 0.4355165877 | R53: =IF(OR(VLOOKUP($A53,'Master Database'!$D$4:$Q$13507,7,FALSE)="-",VLOOKUP($A53,'Master Database'!$D$4:$Q$13507,7,FALSE)="",VLOOKUP($A53,'Master Database'!$D$4:$Q$13507,7,FALSE)=0),"",VLOOKUP($A53,'Master Database'!$D$4:$Q$13507,7,FALSE)) -> 0.4198181818 | S53: =IF(OR(VLOOKUP($A53,'Master Database'!$D$4:$Q$13507,8,FALSE)="-",VLOOKUP($A53,'Master Database'!$D$4:$Q$13507,8,FALSE)=0,VLOOKUP($A53,'Master Database'!$D$4:$Q$13507,8,FALSE)=""),"",VLOOKUP($A53,'Master Database'!$D$4:$Q$13507,8,FALSE)) -> 0.4435 | T53: =VLOOKUP($A53,'Master Database'!$D$4:$Q$13507,9,FALSE) ->  | U53: =VLOOKUP($A53,'Master Database'!$D$4:$Q$13507,10,FALSE) ->  | V53: =VLOOKUP($A53,'Master Database'!$D$4:$Q$13507,11,FALSE) ->  | W53: =IF(VLOOKUP($A53,'Master Database'!$D$4:$Q$13507,12,FALSE)=0,"",VLOOKUP($A53,'Master Database'!$D$4:$Q$13507,12,FALSE)) -> 0.03051658768 | X53: =IF(VLOOKUP($A53,'Master Database'!$D$4:$Q$13507,13,FALSE)=0,"",VLOOKUP($A53,'Master Database'!$D$4:$Q$13507,13,FALSE)) -> 0.01481818182 | Y53: =IF(VLOOKUP($A53,'Master Database'!$D$4:$Q$13507,14,FALSE)=0,"",VLOOKUP($A53,'Master Database'!$D$4:$Q$13507,14,FALSE)) -> 0.0385 | AB53: To help understand how the management of Musculoskeletal System Problems affects expenditure and outcomes in the CCG please visit the Commissioning for Value website and download a 2014 pack. | AC53: http://www.england.nhs.uk/resources/resources-for-ccgs/comm-for-value/ http://pathways.nice.org.uk/pathways/musculoskeletal-conditions http://www.arthritisresearchuk.org/mskcalculator
A54: 61NHS Airedale, Wharfedale and Craven | B54: =VLOOKUP(Report!$E$2,'Rules & Lookups'!$B$6:$C$216,2,FALSE) -> E38000001 | C54: =VLOOKUP(G54,'Map lookups'!$B$2:$P$104,7,FALSE) -> Care of Older People | D54: =IF(VLOOKUP(G54,'Map lookups'!$B$2:$P$104,8,FALSE)="","No Subcategory",VLOOKUP(G54,'Map lookups'!$B$2:$P$104,8,FALSE)) -> No Subcategory | E54: =IF(VLOOKUP(G54,'Map lookups'!$B$2:$P$104,10,FALSE)="","No Pathway",VLOOKUP(G54,'Map lookups'!$B$2:$P$104,10,FALSE)) -> Dementia and LTCs | F54: =VLOOKUP(G54,'Map lookups'!$B$2:$P$104,5,FALSE) -> Secondary Care Treatment | G54: 61 | H54: =VLOOKUP($G54,'Map lookups'!$B$2:$P$104,4,FALSE) -> Map 61: Rate of emergency admission to hospital for people aged 75 years and over with a length of stay of less than 24 hours per 100,000 population by CCG, 2012/13 | I54: =VLOOKUP(G54,'Map lookups'!$B$2:$P$104,6,FALSE) -> 2, 3, 5 | J54: =IF(VLOOKUP($G54,'Master Database'!$C$4:$E$13507,3,FALSE)="Bad","Improvement Opportunity",VLOOKUP($G54,'Master Database'!$C$4:$E$13507,3,FALSE)) -> Improvement Opportunity | K54: =IF(OR(VLOOKUP($A54,'Master Database'!$D$4:$Q$13507,3,FALSE)="-",VLOOKUP($A54,'Master Database'!$D$4:$Q$13507,3,FALSE)=""),"No Data",VLOOKUP($A54,'Master Database'!$D$4:$Q$13507,3,FALSE)) -> 1244.759755 | L54: =IF(OR(VLOOKUP($A54,'Master Database'!$D$4:$Q$13507,4,FALSE)="-",VLOOKUP($A54,'Master Database'!$D$4:$Q$13507,4,FALSE)=""),"No Data",VLOOKUP($A54,'Master Database'!$D$4:$Q$13507,4,FALSE)) -> 1075.322372 | M54: =IF(OR(VLOOKUP($A54,'Master Database'!$D$4:$Q$13507,5,FALSE)="-",VLOOKUP($A54,'Master Database'!$D$4:$Q$13507,5,FALSE)=""),"No Data",VLOOKUP($A54,'Master Database'!$D$4:$Q$13507,5,FALSE)) -> 1433.31221 | N54: =IF(VLOOKUP(A54,Quintiles!$A$3:$E$13506,5,FALSE)=6,"No Data",VLOOKUP(A54,Quintiles!$A$3:$E$13506,5,FALSE)) -> 1 | O54: =INDEX('Colour Calculation'!$X$15:$CI$16,1,MATCH(Report!$G54,'Colour Calculation'!$X$16:$CI$16,0)) -> G | P54: =IFERROR(INDEX('Best performing CCG code'!$AE$7:$AL$70,MATCH("Map_"&Report!$G54,'Best performing CCG code'!$AE$7:$AE$70,0),8),"") -> NHS Airedale, Wharfedale and Craven | Q54: =IF(OR(VLOOKUP($A54,'Master Database'!$D$4:$Q$13507,6,FALSE)="-",VLOOKUP($A54,'Master Database'!$D$4:$Q$13507,6,FALSE)="",VLOOKUP($A54,'Master Database'!$D$4:$Q$13507,6,FALSE)=0),"",VLOOKUP($A54,'Master Database'!$D$4:$Q$13507,6,FALSE)) -> 5261.498034 | R54: =IF(OR(VLOOKUP($A54,'Master Database'!$D$4:$Q$13507,7,FALSE)="-",VLOOKUP($A54,'Master Database'!$D$4:$Q$13507,7,FALSE)="",VLOOKUP($A54,'Master Database'!$D$4:$Q$13507,7,FALSE)=0),"",VLOOKUP($A54,'Master Database'!$D$4:$Q$13507,7,FALSE)) -> 4750.361072 | S54: =IF(OR(VLOOKUP($A54,'Master Database'!$D$4:$Q$13507,8,FALSE)="-",VLOOKUP($A54,'Master Database'!$D$4:$Q$13507,8,FALSE)=0,VLOOKUP($A54,'Master Database'!$D$4:$Q$13507,8,FALSE)=""),"",VLOOKUP($A54,'Master Database'!$D$4:$Q$13507,8,FALSE)) -> 3570.648552 | T54: =VLOOKUP($A54,'Master Database'!$D$4:$Q$13507,9,FALSE) -> G | U54: =VLOOKUP($A54,'Master Database'!$D$4:$Q$13507,10,FALSE) -> G | V54: =VLOOKUP($A54,'Master Database'!$D$4:$Q$13507,11,FALSE) -> G | W54: =IF(VLOOKUP($A54,'Master Database'!$D$4:$Q$13507,12,FALSE)=0,"",VLOOKUP($A54,'Master Database'!$D$4:$Q$13507,12,FALSE)) ->  | X54: =IF(VLOOKUP($A54,'Master Database'!$D$4:$Q$13507,13,FALSE)=0,"",VLOOKUP($A54,'Master Database'!$D$4:$Q$13507,13,FALSE)) ->  | Y54: =IF(VLOOKUP($A54,'Master Database'!$D$4:$Q$13507,14,FALSE)=0,"",VLOOKUP($A54,'Master Database'!$D$4:$Q$13507,14,FALSE)) ->  | AB54: To help understand how the management of dementia and long-term conditions affects expenditure and outcomes in the CCG please visit the Commissioning for Value website and download a 2015 pack. | AC54: http://www.england.nhs.uk/resources/resources-for-ccgs/comm-for-value/ http://pathways.nice.org.uk/pathways/dementia
A55: 62NHS Airedale, Wharfedale and Craven | B55: =VLOOKUP(Report!$E$2,'Rules & Lookups'!$B$6:$C$216,2,FALSE) -> E38000001 | C55: =VLOOKUP(G55,'Map lookups'!$B$2:$P$104,7,FALSE) -> Care of Older People | D55: =IF(VLOOKUP(G55,'Map lookups'!$B$2:$P$104,8,FALSE)="","No Subcategory",VLOOKUP(G55,'Map lookups'!$B$2:$P$104,8,FALSE)) -> No Subcategory | E55: =IF(VLOOKUP(G55,'Map lookups'!$B$2:$P$104,10,FALSE)="","No Pathway",VLOOKUP(G55,'Map lookups'!$B$2:$P$104,10,FALSE)) -> Dementia and LTCs | F55: =VLOOKUP(G55,'Map lookups'!$B$2:$P$104,5,FALSE) -> End of Life, Social Care & Rehabilitation | G55: 62 | H55: =VLOOKUP($G55,'Map lookups'!$B$2:$P$104,4,FALSE) -> Map 62: Rate of admission to hospital for people aged 75 years and over from nursing home or residential care home settings per 1,000 population by CCG, 2012/13 | I55: =VLOOKUP(G55,'Map lookups'!$B$2:$P$104,6,FALSE) -> 2, 3, 5 | J55: =IF(VLOOKUP($G55,'Master Database'!$C$4:$E$13507,3,FALSE)="Bad","Improvement Opportunity",VLOOKUP($G55,'Master Database'!$C$4:$E$13507,3,FALSE)) -> Improvement Opportunity | K55: =IF(OR(VLOOKUP($A55,'Master Database'!$D$4:$Q$13507,3,FALSE)="-",VLOOKUP($A55,'Master Database'!$D$4:$Q$13507,3,FALSE)=""),"No Data",VLOOKUP($A55,'Master Database'!$D$4:$Q$13507,3,FALSE)) -> 1.289906482 | L55: =IF(OR(VLOOKUP($A55,'Master Database'!$D$4:$Q$13507,4,FALSE)="-",VLOOKUP($A55,'Master Database'!$D$4:$Q$13507,4,FALSE)=""),"No Data",VLOOKUP($A55,'Master Database'!$D$4:$Q$13507,4,FALSE)) -> 0.787572584 | M55: =IF(OR(VLOOKUP($A55,'Master Database'!$D$4:$Q$13507,5,FALSE)="-",VLOOKUP($A55,'Master Database'!$D$4:$Q$13507,5,FALSE)=""),"No Data",VLOOKUP($A55,'Master Database'!$D$4:$Q$13507,5,FALSE)) -> 1.992266613 | N55: =IF(VLOOKUP(A55,Quintiles!$A$3:$E$13506,5,FALSE)=6,"No Data",VLOOKUP(A55,Quintiles!$A$3:$E$13506,5,FALSE)) -> 3 | O55: =INDEX('Colour Calculation'!$X$15:$CI$16,1,MATCH(Report!$G55,'Colour Calculation'!$X$16:$CI$16,0)) -> A | P55: =IFERROR(INDEX('Best performing CCG code'!$AE$7:$AL$70,MATCH("Map_"&Report!$G55,'Best performing CCG code'!$AE$7:$AE$70,0),8),"") -> NHS South West Lincolnshire | Q55: =IF(OR(VLOOKUP($A55,'Master Database'!$D$4:$Q$13507,6,FALSE)="-",VLOOKUP($A55,'Master Database'!$D$4:$Q$13507,6,FALSE)="",VLOOKUP($A55,'Master Database'!$D$4:$Q$13507,6,FALSE)=0),"",VLOOKUP($A55,'Master Database'!$D$4:$Q$13507,6,FALSE)) -> 4.827930648 | R55: =IF(OR(VLOOKUP($A55,'Master Database'!$D$4:$Q$13507,7,FALSE)="-",VLOOKUP($A55,'Master Database'!$D$4:$Q$13507,7,FALSE)="",VLOOKUP($A55,'Master Database'!$D$4:$Q$13507,7,FALSE)=0),"",VLOOKUP($A55,'Master Database'!$D$4:$Q$13507,7,FALSE)) -> 6.001941806 | S55: =IF(OR(VLOOKUP($A55,'Master Database'!$D$4:$Q$13507,8,FALSE)="-",VLOOKUP($A55,'Master Database'!$D$4:$Q$13507,8,FALSE)=0,VLOOKUP($A55,'Master Database'!$D$4:$Q$13507,8,FALSE)=""),"",VLOOKUP($A55,'Master Database'!$D$4:$Q$13507,8,FALSE)) -> 1.135951604 | T55: =VLOOKUP($A55,'Master Database'!$D$4:$Q$13507,9,FALSE) -> G | U55: =VLOOKUP($A55,'Master Database'!$D$4:$Q$13507,10,FALSE) -> G | V55: =VLOOKUP($A55,'Master Database'!$D$4:$Q$13507,11,FALSE) -> A | W55: =IF(VLOOKUP($A55,'Master Database'!$D$4:$Q$13507,12,FALSE)=0,"",VLOOKUP($A55,'Master Database'!$D$4:$Q$13507,12,FALSE)) ->  | X55: =IF(VLOOKUP($A55,'Master Database'!$D$4:$Q$13507,13,FALSE)=0,"",VLOOKUP($A55,'Master Database'!$D$4:$Q$13507,13,FALSE)) ->  | Y55: =IF(VLOOKUP($A55,'Master Database'!$D$4:$Q$13507,14,FALSE)=0,"",VLOOKUP($A55,'Master Database'!$D$4:$Q$13507,14,FALSE)) -> 0.1539548776 | AB55: To help understand how the management of dementia and long-term conditions affects expenditure and outcomes in the CCG please visit the Commissioning for Value website and download a 2015 pack. | AC55: http://www.england.nhs.uk/resources/resources-for-ccgs/comm-for-value/ http://pathways.nice.org.uk/pathways/dementia
A56: 67NHS Airedale, Wharfedale and Craven | B56: =VLOOKUP(Report!$E$2,'Rules & Lookups'!$B$6:$C$216,2,FALSE) -> E38000001 | C56: =VLOOKUP(G56,'Map lookups'!$B$2:$P$104,7,FALSE) -> End-of-Life Care | D56: =IF(VLOOKUP(G56,'Map lookups'!$B$2:$P$104,8,FALSE)="","No Subcategory",VLOOKUP(G56,'Map lookups'!$B$2:$P$104,8,FALSE)) -> No Subcategory | E56: =IF(VLOOKUP(G56,'Map lookups'!$B$2:$P$104,10,FALSE)="","No Pathway",VLOOKUP(G56,'Map lookups'!$B$2:$P$104,10,FALSE)) -> Dementia and LTCs | F56: =VLOOKUP(G56,'Map lookups'!$B$2:$P$104,5,FALSE) -> End of Life, Social Care & Rehabilitation | G56: 67 | H56: =VLOOKUP($G56,'Map lookups'!$B$2:$P$104,4,FALSE) -> Map 67: Percentage of all deaths that occurred in usual place of residence by CCG, 2013 | I56: =VLOOKUP(G56,'Map lookups'!$B$2:$P$104,6,FALSE) -> 4 | J56: =IF(VLOOKUP($G56,'Master Database'!$C$4:$E$13507,3,FALSE)="Bad","Improvement Opportunity",VLOOKUP($G56,'Master Database'!$C$4:$E$13507,3,FALSE)) -> Good | K56: =IF(OR(VLOOKUP($A56,'Master Database'!$D$4:$Q$13507,3,FALSE)="-",VLOOKUP($A56,'Master Database'!$D$4:$Q$13507,3,FALSE)=""),"No Data",VLOOKUP($A56,'Master Database'!$D$4:$Q$13507,3,FALSE)) -> 53.61803084 | L56: =IF(OR(VLOOKUP($A56,'Master Database'!$D$4:$Q$13507,4,FALSE)="-",VLOOKUP($A56,'Master Database'!$D$4:$Q$13507,4,FALSE)=""),"No Data",VLOOKUP($A56,'Master Database'!$D$4:$Q$13507,4,FALSE)) -> 50.12274485 | M56: =IF(OR(VLOOKUP($A56,'Master Database'!$D$4:$Q$13507,5,FALSE)="-",VLOOKUP($A56,'Master Database'!$D$4:$Q$13507,5,FALSE)=""),"No Data",VLOOKUP($A56,'Master Database'!$D$4:$Q$13507,5,FALSE)) -> 57.11331683 | N56: =IF(VLOOKUP(A56,Quintiles!$A$3:$E$13506,5,FALSE)=6,"No Data",VLOOKUP(A56,Quintiles!$A$3:$E$13506,5,FALSE)) -> 5 | O56: =INDEX('Colour Calculation'!$X$15:$CI$16,1,MATCH(Report!$G56,'Colour Calculation'!$X$16:$CI$16,0)) -> G | P56: =IFERROR(INDEX('Best performing CCG code'!$AE$7:$AL$70,MATCH("Map_"&Report!$G56,'Best performing CCG code'!$AE$7:$AE$70,0),8),"") -> NHS Airedale, Wharfedale and Craven | Q56: =IF(OR(VLOOKUP($A56,'Master Database'!$D$4:$Q$13507,6,FALSE)="-",VLOOKUP($A56,'Master Database'!$D$4:$Q$13507,6,FALSE)="",VLOOKUP($A56,'Master Database'!$D$4:$Q$13507,6,FALSE)=0),"",VLOOKUP($A56,'Master Database'!$D$4:$Q$13507,6,FALSE)) -> 43.55337506 | R56: =IF(OR(VLOOKUP($A56,'Master Database'!$D$4:$Q$13507,7,FALSE)="-",VLOOKUP($A56,'Master Database'!$D$4:$Q$13507,7,FALSE)="",VLOOKUP($A56,'Master Database'!$D$4:$Q$13507,7,FALSE)=0),"",VLOOKUP($A56,'Master Database'!$D$4:$Q$13507,7,FALSE)) -> 45.8965025 | S56: =IF(OR(VLOOKUP($A56,'Master Database'!$D$4:$Q$13507,8,FALSE)="-",VLOOKUP($A56,'Master Database'!$D$4:$Q$13507,8,FALSE)=0,VLOOKUP($A56,'Master Database'!$D$4:$Q$13507,8,FALSE)=""),"",VLOOKUP($A56,'Master Database'!$D$4:$Q$13507,8,FALSE)) -> 47.97691479 | T56: =VLOOKUP($A56,'Master Database'!$D$4:$Q$13507,9,FALSE) -> G | U56: =VLOOKUP($A56,'Master Database'!$D$4:$Q$13507,10,FALSE) -> G | V56: =VLOOKUP($A56,'Master Database'!$D$4:$Q$13507,11,FALSE) -> G | W56: =IF(VLOOKUP($A56,'Master Database'!$D$4:$Q$13507,12,FALSE)=0,"",VLOOKUP($A56,'Master Database'!$D$4:$Q$13507,12,FALSE)) ->  | X56: =IF(VLOOKUP($A56,'Master Database'!$D$4:$Q$13507,13,FALSE)=0,"",VLOOKUP($A56,'Master Database'!$D$4:$Q$13507,13,FALSE)) ->  | Y56: =IF(VLOOKUP($A56,'Master Database'!$D$4:$Q$13507,14,FALSE)=0,"",VLOOKUP($A56,'Master Database'!$D$4:$Q$13507,14,FALSE)) ->  | AB56: To help understand how the management of dementia and long-term conditions affects expenditure and outcomes in the CCG please visit the Commissioning for Value website and download a 2015 pack. | AC56: http://www.england.nhs.uk/resources/resources-for-ccgs/comm-for-value/ http://pathways.nice.org.uk/pathways/dementia
A57: 74NHS Airedale, Wharfedale and Craven | B57: =VLOOKUP(Report!$E$2,'Rules & Lookups'!$B$6:$C$216,2,FALSE) -> E38000001 | C57: =VLOOKUP(G57,'Map lookups'!$B$2:$P$104,7,FALSE) -> Care of Mothers, Babies, Children and Young People | D57: =IF(VLOOKUP(G57,'Map lookups'!$B$2:$P$104,8,FALSE)="","No Subcategory",VLOOKUP(G57,'Map lookups'!$B$2:$P$104,8,FALSE)) -> No Subcategory | E57: =IF(VLOOKUP(G57,'Map lookups'!$B$2:$P$104,10,FALSE)="","No Pathway",VLOOKUP(G57,'Map lookups'!$B$2:$P$104,10,FALSE)) -> Maternity and Early Years | F57: =VLOOKUP(G57,'Map lookups'!$B$2:$P$104,5,FALSE) -> Prevention and Early Diagnosis | G57: 74 | H57: =VLOOKUP($G57,'Map lookups'!$B$2:$P$104,4,FALSE) -> Map 74: Percentage of re-admissions to hospital following an elective Caesarean section that occurred within 28 days of discharge by CCG, 2012/13 | I57: =VLOOKUP(G57,'Map lookups'!$B$2:$P$104,6,FALSE) -> 4, 5 | J57: =IF(VLOOKUP($G57,'Master Database'!$C$4:$E$13507,3,FALSE)="Bad","Improvement Opportunity",VLOOKUP($G57,'Master Database'!$C$4:$E$13507,3,FALSE)) -> Improvement Opportunity | K57: =IF(OR(VLOOKUP($A57,'Master Database'!$D$4:$Q$13507,3,FALSE)="-",VLOOKUP($A57,'Master Database'!$D$4:$Q$13507,3,FALSE)=""),"No Data",VLOOKUP($A57,'Master Database'!$D$4:$Q$13507,3,FALSE)) -> 10.58823529 | L57: =IF(OR(VLOOKUP($A57,'Master Database'!$D$4:$Q$13507,4,FALSE)="-",VLOOKUP($A57,'Master Database'!$D$4:$Q$13507,4,FALSE)=""),"No Data",VLOOKUP($A57,'Master Database'!$D$4:$Q$13507,4,FALSE)) -> 6.803069762 | M57: =IF(OR(VLOOKUP($A57,'Master Database'!$D$4:$Q$13507,5,FALSE)="-",VLOOKUP($A57,'Master Database'!$D$4:$Q$13507,5,FALSE)=""),"No Data",VLOOKUP($A57,'Master Database'!$D$4:$Q$13507,5,FALSE)) -> 16.11526509 | N57: =IF(VLOOKUP(A57,Quintiles!$A$3:$E$13506,5,FALSE)=6,"No Data",VLOOKUP(A57,Quintiles!$A$3:$E$13506,5,FALSE)) -> 3 | O57: =INDEX('Colour Calculation'!$X$15:$CI$16,1,MATCH(Report!$G57,'Colour Calculation'!$X$16:$CI$16,0)) -> A | P57: =IFERROR(INDEX('Best performing CCG code'!$AE$7:$AL$70,MATCH("Map_"&Report!$G57,'Best performing CCG code'!$AE$7:$AE$70,0),8),"") -> NHS West Essex | Q57: =IF(OR(VLOOKUP($A57,'Master Database'!$D$4:$Q$13507,6,FALSE)="-",VLOOKUP($A57,'Master Database'!$D$4:$Q$13507,6,FALSE)="",VLOOKUP($A57,'Master Database'!$D$4:$Q$13507,6,FALSE)=0),"",VLOOKUP($A57,'Master Database'!$D$4:$Q$13507,6,FALSE)) -> 11.31467069 | R57: =IF(OR(VLOOKUP($A57,'Master Database'!$D$4:$Q$13507,7,FALSE)="-",VLOOKUP($A57,'Master Database'!$D$4:$Q$13507,7,FALSE)="",VLOOKUP($A57,'Master Database'!$D$4:$Q$13507,7,FALSE)=0),"",VLOOKUP($A57,'Master Database'!$D$4:$Q$13507,7,FALSE)) -> 9.704103845 | S57: =IF(OR(VLOOKUP($A57,'Master Database'!$D$4:$Q$13507,8,FALSE)="-",VLOOKUP($A57,'Master Database'!$D$4:$Q$13507,8,FALSE)=0,VLOOKUP($A57,'Master Database'!$D$4:$Q$13507,8,FALSE)=""),"",VLOOKUP($A57,'Master Database'!$D$4:$Q$13507,8,FALSE)) -> 8.444698995 | T57: =VLOOKUP($A57,'Master Database'!$D$4:$Q$13507,9,FALSE) -> A | U57: =VLOOKUP($A57,'Master Database'!$D$4:$Q$13507,10,FALSE) -> A | V57: =VLOOKUP($A57,'Master Database'!$D$4:$Q$13507,11,FALSE) -> A | W57: =IF(VLOOKUP($A57,'Master Database'!$D$4:$Q$13507,12,FALSE)=0,"",VLOOKUP($A57,'Master Database'!$D$4:$Q$13507,12,FALSE)) ->  | X57: =IF(VLOOKUP($A57,'Master Database'!$D$4:$Q$13507,13,FALSE)=0,"",VLOOKUP($A57,'Master Database'!$D$4:$Q$13507,13,FALSE)) -> 0.8841314496 | Y57: =IF(VLOOKUP($A57,'Master Database'!$D$4:$Q$13507,14,FALSE)=0,"",VLOOKUP($A57,'Master Database'!$D$4:$Q$13507,14,FALSE)) -> 2.1435363 | AB57: To help understand how the management of maternity and early years affects expenditure and outcomes in the Local Authority please visit the Commissioning for Value website and download a 2015 pack. | AC57: http://www.england.nhs.uk/resources/resources-for-ccgs/comm-for-value/ http://pathways.nice.org.uk/ https://sustain.sharepoint.com/Documents/HCP%20Integrated%20Com%20and%20Del%20toolkit%20final.pdf
A58: 75NHS Airedale, Wharfedale and Craven | B58: =VLOOKUP(Report!$E$2,'Rules & Lookups'!$B$6:$C$216,2,FALSE) -> E38000001 | C58: =VLOOKUP(G58,'Map lookups'!$B$2:$P$104,7,FALSE) -> Care of Mothers, Babies, Children and Young People | D58: =IF(VLOOKUP(G58,'Map lookups'!$B$2:$P$104,8,FALSE)="","No Subcategory",VLOOKUP(G58,'Map lookups'!$B$2:$P$104,8,FALSE)) -> No Subcategory | E58: =IF(VLOOKUP(G58,'Map lookups'!$B$2:$P$104,10,FALSE)="","No Pathway",VLOOKUP(G58,'Map lookups'!$B$2:$P$104,10,FALSE)) -> Maternity and Early Years | F58: =VLOOKUP(G58,'Map lookups'!$B$2:$P$104,5,FALSE) -> Secondary Care Treatment | G58: 75 | H58: =VLOOKUP($G58,'Map lookups'!$B$2:$P$104,4,FALSE) -> Map 75: Rate of emergency admissions to hospital of babies within 14 days of being born per 1,000 deliveries by CCG, 2012/13 | I58: =VLOOKUP(G58,'Map lookups'!$B$2:$P$104,6,FALSE) -> 5 | J58: =IF(VLOOKUP($G58,'Master Database'!$C$4:$E$13507,3,FALSE)="Bad","Improvement Opportunity",VLOOKUP($G58,'Master Database'!$C$4:$E$13507,3,FALSE)) -> Improvement Opportunity | K58: =IF(OR(VLOOKUP($A58,'Master Database'!$D$4:$Q$13507,3,FALSE)="-",VLOOKUP($A58,'Master Database'!$D$4:$Q$13507,3,FALSE)=""),"No Data",VLOOKUP($A58,'Master Database'!$D$4:$Q$13507,3,FALSE)) -> 52.23447475 | L58: =IF(OR(VLOOKUP($A58,'Master Database'!$D$4:$Q$13507,4,FALSE)="-",VLOOKUP($A58,'Master Database'!$D$4:$Q$13507,4,FALSE)=""),"No Data",VLOOKUP($A58,'Master Database'!$D$4:$Q$13507,4,FALSE)) -> 42.00268609 | M58: =IF(OR(VLOOKUP($A58,'Master Database'!$D$4:$Q$13507,5,FALSE)="-",VLOOKUP($A58,'Master Database'!$D$4:$Q$13507,5,FALSE)=""),"No Data",VLOOKUP($A58,'Master Database'!$D$4:$Q$13507,5,FALSE)) -> 64.2050376 | N58: =IF(VLOOKUP(A58,Quintiles!$A$3:$E$13506,5,FALSE)=6,"No Data",VLOOKUP(A58,Quintiles!$A$3:$E$13506,5,FALSE)) -> 3 | O58: =INDEX('Colour Calculation'!$X$15:$CI$16,1,MATCH(Report!$G58,'Colour Calculation'!$X$16:$CI$16,0)) -> A | P58: =IFERROR(INDEX('Best performing CCG code'!$AE$7:$AL$70,MATCH("Map_"&Report!$G58,'Best performing CCG code'!$AE$7:$AE$70,0),8),"") -> NHS Ashford | Q58: =IF(OR(VLOOKUP($A58,'Master Database'!$D$4:$Q$13507,6,FALSE)="-",VLOOKUP($A58,'Master Database'!$D$4:$Q$13507,6,FALSE)="",VLOOKUP($A58,'Master Database'!$D$4:$Q$13507,6,FALSE)=0),"",VLOOKUP($A58,'Master Database'!$D$4:$Q$13507,6,FALSE)) -> 55.61109843 | R58: =IF(OR(VLOOKUP($A58,'Master Database'!$D$4:$Q$13507,7,FALSE)="-",VLOOKUP($A58,'Master Database'!$D$4:$Q$13507,7,FALSE)="",VLOOKUP($A58,'Master Database'!$D$4:$Q$13507,7,FALSE)=0),"",VLOOKUP($A58,'Master Database'!$D$4:$Q$13507,7,FALSE)) -> 55.92717303 | S58: =IF(OR(VLOOKUP($A58,'Master Database'!$D$4:$Q$13507,8,FALSE)="-",VLOOKUP($A58,'Master Database'!$D$4:$Q$13507,8,FALSE)=0,VLOOKUP($A58,'Master Database'!$D$4:$Q$13507,8,FALSE)=""),"",VLOOKUP($A58,'Master Database'!$D$4:$Q$13507,8,FALSE)) -> 36.03844019 | T58: =VLOOKUP($A58,'Master Database'!$D$4:$Q$13507,9,FALSE) -> A | U58: =VLOOKUP($A58,'Master Database'!$D$4:$Q$13507,10,FALSE) -> A | V58: =VLOOKUP($A58,'Master Database'!$D$4:$Q$13507,11,FALSE) -> R | W58: =IF(VLOOKUP($A58,'Master Database'!$D$4:$Q$13507,12,FALSE)=0,"",VLOOKUP($A58,'Master Database'!$D$4:$Q$13507,12,FALSE)) ->  | X58: =IF(VLOOKUP($A58,'Master Database'!$D$4:$Q$13507,13,FALSE)=0,"",VLOOKUP($A58,'Master Database'!$D$4:$Q$13507,13,FALSE)) ->  | Y58: =IF(VLOOKUP($A58,'Master Database'!$D$4:$Q$13507,14,FALSE)=0,"",VLOOKUP($A58,'Master Database'!$D$4:$Q$13507,14,FALSE)) -> 16.19603456 | AB58: To help understand how the management of maternity and early years affects expenditure and outcomes in the Local Authority please visit the Commissioning for Value website and download a 2015 pack. | AC58: http://www.england.nhs.uk/resources/resources-for-ccgs/comm-for-value/ http://pathways.nice.org.uk/ https://sustain.sharepoint.com/Documents/HCP%20Integrated%20Com%20and%20Del%20toolkit%20final.pdf
A59: 79NHS Airedale, Wharfedale and Craven | B59: =VLOOKUP(Report!$E$2,'Rules & Lookups'!$B$6:$C$216,2,FALSE) -> E38000001 | C59: =VLOOKUP(G59,'Map lookups'!$B$2:$P$104,7,FALSE) -> Care of Mothers, Babies, Children and Young People | D59: =IF(VLOOKUP(G59,'Map lookups'!$B$2:$P$104,8,FALSE)="","No Subcategory",VLOOKUP(G59,'Map lookups'!$B$2:$P$104,8,FALSE)) -> No Subcategory | E59: =IF(VLOOKUP(G59,'Map lookups'!$B$2:$P$104,10,FALSE)="","No Pathway",VLOOKUP(G59,'Map lookups'!$B$2:$P$104,10,FALSE)) -> Maternity and Early Years | F59: =VLOOKUP(G59,'Map lookups'!$B$2:$P$104,5,FALSE) -> Prevention and Early Diagnosis | G59: 79 | H59: =VLOOKUP($G59,'Map lookups'!$B$2:$P$104,4,FALSE) -> Map 79: Rate of admission to hospital for dental caries in children aged 1-4 years per 100,000 population by CCG, 2010/11-2012/13 | I59: =VLOOKUP(G59,'Map lookups'!$B$2:$P$104,6,FALSE) -> 5 | J59: =IF(VLOOKUP($G59,'Master Database'!$C$4:$E$13507,3,FALSE)="Bad","Improvement Opportunity",VLOOKUP($G59,'Master Database'!$C$4:$E$13507,3,FALSE)) -> Improvement Opportunity | K59: =IF(OR(VLOOKUP($A59,'Master Database'!$D$4:$Q$13507,3,FALSE)="-",VLOOKUP($A59,'Master Database'!$D$4:$Q$13507,3,FALSE)=""),"No Data",VLOOKUP($A59,'Master Database'!$D$4:$Q$13507,3,FALSE)) -> 446.2775753 | L59: =IF(OR(VLOOKUP($A59,'Master Database'!$D$4:$Q$13507,4,FALSE)="-",VLOOKUP($A59,'Master Database'!$D$4:$Q$13507,4,FALSE)=""),"No Data",VLOOKUP($A59,'Master Database'!$D$4:$Q$13507,4,FALSE)) -> 361.0652085 | M59: =IF(OR(VLOOKUP($A59,'Master Database'!$D$4:$Q$13507,5,FALSE)="-",VLOOKUP($A59,'Master Database'!$D$4:$Q$13507,5,FALSE)=""),"No Data",VLOOKUP($A59,'Master Database'!$D$4:$Q$13507,5,FALSE)) -> 545.5511933 | N59: =IF(VLOOKUP(A59,Quintiles!$A$3:$E$13506,5,FALSE)=6,"No Data",VLOOKUP(A59,Quintiles!$A$3:$E$13506,5,FALSE)) -> 4 | O59: =INDEX('Colour Calculation'!$X$15:$CI$16,1,MATCH(Report!$G59,'Colour Calculation'!$X$16:$CI$16,0)) -> R | P59: =IFERROR(INDEX('Best performing CCG code'!$AE$7:$AL$70,MATCH("Map_"&Report!$G59,'Best performing CCG code'!$AE$7:$AE$70,0),8),"") -> NHS South Worcestershire | Q59: =IF(OR(VLOOKUP($A59,'Master Database'!$D$4:$Q$13507,6,FALSE)="-",VLOOKUP($A59,'Master Database'!$D$4:$Q$13507,6,FALSE)="",VLOOKUP($A59,'Master Database'!$D$4:$Q$13507,6,FALSE)=0),"",VLOOKUP($A59,'Master Database'!$D$4:$Q$13507,6,FALSE)) -> 357.9141428 | R59: =IF(OR(VLOOKUP($A59,'Master Database'!$D$4:$Q$13507,7,FALSE)="-",VLOOKUP($A59,'Master Database'!$D$4:$Q$13507,7,FALSE)="",VLOOKUP($A59,'Master Database'!$D$4:$Q$13507,7,FALSE)=0),"",VLOOKUP($A59,'Master Database'!$D$4:$Q$13507,7,FALSE)) -> 311.1237253 | S59: =IF(OR(VLOOKUP($A59,'Master Database'!$D$4:$Q$13507,8,FALSE)="-",VLOOKUP($A59,'Master Database'!$D$4:$Q$13507,8,FALSE)=0,VLOOKUP($A59,'Master Database'!$D$4:$Q$13507,8,FALSE)=""),"",VLOOKUP($A59,'Master Database'!$D$4:$Q$13507,8,FALSE)) -> 64.9995663 | T59: =VLOOKUP($A59,'Master Database'!$D$4:$Q$13507,9,FALSE) -> R | U59: =VLOOKUP($A59,'Master Database'!$D$4:$Q$13507,10,FALSE) -> R | V59: =VLOOKUP($A59,'Master Database'!$D$4:$Q$13507,11,FALSE) -> R | W59: =IF(VLOOKUP($A59,'Master Database'!$D$4:$Q$13507,12,FALSE)=0,"",VLOOKUP($A59,'Master Database'!$D$4:$Q$13507,12,FALSE)) -> 88.36343241 | X59: =IF(VLOOKUP($A59,'Master Database'!$D$4:$Q$13507,13,FALSE)=0,"",VLOOKUP($A59,'Master Database'!$D$4:$Q$13507,13,FALSE)) -> 135.1538499 | Y59: =IF(VLOOKUP($A59,'Master Database'!$D$4:$Q$13507,14,FALSE)=0,"",VLOOKUP($A59,'Master Database'!$D$4:$Q$13507,14,FALSE)) -> 381.278009 | AB59: To help understand how the management of maternity and early years affects expenditure and outcomes in the Local Authority please visit the Commissioning for Value website and download a 2015 pack. | AC59: http://www.england.nhs.uk/resources/resources-for-ccgs/comm-for-value/ http://pathways.nice.org.uk/ https://sustain.sharepoint.com/Documents/HCP%20Integrated%20Com%20and%20Del%20toolkit%20final.pdf
A60: 83NHS Airedale, Wharfedale and Craven | B60: =VLOOKUP(Report!$E$2,'Rules & Lookups'!$B$6:$C$216,2,FALSE) -> E38000001 | C60: =VLOOKUP(G60,'Map lookups'!$B$2:$P$104,7,FALSE) -> Care of Mothers, Babies, Children and Young People | D60: =IF(VLOOKUP(G60,'Map lookups'!$B$2:$P$104,8,FALSE)="","No Subcategory",VLOOKUP(G60,'Map lookups'!$B$2:$P$104,8,FALSE)) -> No Subcategory | E60: =IF(VLOOKUP(G60,'Map lookups'!$B$2:$P$104,10,FALSE)="","No Pathway",VLOOKUP(G60,'Map lookups'!$B$2:$P$104,10,FALSE)) -> Respiratory System Problems - Asthma | F60: =VLOOKUP(G60,'Map lookups'!$B$2:$P$104,5,FALSE) -> Secondary Care Treatment | G60: 83 | H60: =VLOOKUP($G60,'Map lookups'!$B$2:$P$104,4,FALSE) -> Map 83: Emergency asthma admission rate for children aged 0-18 years per 100,000 population by CCG, 2012/13 | I60: =VLOOKUP(G60,'Map lookups'!$B$2:$P$104,6,FALSE) -> 2, 4 | J60: =IF(VLOOKUP($G60,'Master Database'!$C$4:$E$13507,3,FALSE)="Bad","Improvement Opportunity",VLOOKUP($G60,'Master Database'!$C$4:$E$13507,3,FALSE)) -> Improvement Opportunity | K60: =IF(OR(VLOOKUP($A60,'Master Database'!$D$4:$Q$13507,3,FALSE)="-",VLOOKUP($A60,'Master Database'!$D$4:$Q$13507,3,FALSE)=""),"No Data",VLOOKUP($A60,'Master Database'!$D$4:$Q$13507,3,FALSE)) -> 210.9790004 | L60: =IF(OR(VLOOKUP($A60,'Master Database'!$D$4:$Q$13507,4,FALSE)="-",VLOOKUP($A60,'Master Database'!$D$4:$Q$13507,4,FALSE)=""),"No Data",VLOOKUP($A60,'Master Database'!$D$4:$Q$13507,4,FALSE)) -> 165.3738575 | M60: =IF(OR(VLOOKUP($A60,'Master Database'!$D$4:$Q$13507,5,FALSE)="-",VLOOKUP($A60,'Master Database'!$D$4:$Q$13507,5,FALSE)=""),"No Data",VLOOKUP($A60,'Master Database'!$D$4:$Q$13507,5,FALSE)) -> 265.2744177 | N60: =IF(VLOOKUP(A60,Quintiles!$A$3:$E$13506,5,FALSE)=6,"No Data",VLOOKUP(A60,Quintiles!$A$3:$E$13506,5,FALSE)) -> 3 | O60: =INDEX('Colour Calculation'!$X$15:$CI$16,1,MATCH(Report!$G60,'Colour Calculation'!$X$16:$CI$16,0)) -> A | P60: =IFERROR(INDEX('Best performing CCG code'!$AE$7:$AL$70,MATCH("Map_"&Report!$G60,'Best performing CCG code'!$AE$7:$AE$70,0),8),"") -> NHS Newark & Sherwood | Q60: =IF(OR(VLOOKUP($A60,'Master Database'!$D$4:$Q$13507,6,FALSE)="-",VLOOKUP($A60,'Master Database'!$D$4:$Q$13507,6,FALSE)="",VLOOKUP($A60,'Master Database'!$D$4:$Q$13507,6,FALSE)=0),"",VLOOKUP($A60,'Master Database'!$D$4:$Q$13507,6,FALSE)) -> 220.8175884 | R60: =IF(OR(VLOOKUP($A60,'Master Database'!$D$4:$Q$13507,7,FALSE)="-",VLOOKUP($A60,'Master Database'!$D$4:$Q$13507,7,FALSE)="",VLOOKUP($A60,'Master Database'!$D$4:$Q$13507,7,FALSE)=0),"",VLOOKUP($A60,'Master Database'!$D$4:$Q$13507,7,FALSE)) -> 172.4362619 | S60: =IF(OR(VLOOKUP($A60,'Master Database'!$D$4:$Q$13507,8,FALSE)="-",VLOOKUP($A60,'Master Database'!$D$4:$Q$13507,8,FALSE)=0,VLOOKUP($A60,'Master Database'!$D$4:$Q$13507,8,FALSE)=""),"",VLOOKUP($A60,'Master Database'!$D$4:$Q$13507,8,FALSE)) -> 138.5622332 | T60: =VLOOKUP($A60,'Master Database'!$D$4:$Q$13507,9,FALSE) -> A | U60: =VLOOKUP($A60,'Master Database'!$D$4:$Q$13507,10,FALSE) -> A | V60: =VLOOKUP($A60,'Master Database'!$D$4:$Q$13507,11,FALSE) -> R | W60: =IF(VLOOKUP($A60,'Master Database'!$D$4:$Q$13507,12,FALSE)=0,"",VLOOKUP($A60,'Master Database'!$D$4:$Q$13507,12,FALSE)) ->  | X60: =IF(VLOOKUP($A60,'Master Database'!$D$4:$Q$13507,13,FALSE)=0,"",VLOOKUP($A60,'Master Database'!$D$4:$Q$13507,13,FALSE)) -> 38.54273851 | Y60: =IF(VLOOKUP($A60,'Master Database'!$D$4:$Q$13507,14,FALSE)=0,"",VLOOKUP($A60,'Master Database'!$D$4:$Q$13507,14,FALSE)) -> 72.41676715 | AB60: To help understand how the management of Asthma affects expenditure and outcomes in the CCG please visit the Commissioning for Value website and download a 2014 pack. | AC60: http://www.england.nhs.uk/resources/resources-for-ccgs/comm-for-value/ http://pathways.nice.org.uk/pathways/asthma
